Workbook

Sheet Macro (hidden)

Sheet Overview

Sheet Select School
B3: =VLOOKUP(C3,SchList!$I$1:$J$499,2,FALSE) -> 9999 | C3: 1

Sheet Reading
A2: Click here to return to the school and sheet selection interface
A3: ='Select School'!B3 -> 9999
A4: =TEXT(A3,"0000")&"-"&VLOOKUP(A3,SchList!$A$2:$B$504,2,FALSE) -> 9999-District
A5: Reading - Grade 9 | Q5: READING
A6: Level of Proficiency at 70% or above | B6: Total # of Students | C6: % of Students Tested | D6: ='G9-10 Matrix'!C$2&" ["&'G9-10 Matrix'!C3&"]" -> Overall [43] | F6: ='G9-10 Matrix'!D$2&" ["&'G9-10 Matrix'!D3&"]" -> Vocabulary [7] | H6: ='G9-10 Matrix'!E$2&" ["&'G9-10 Matrix'!E3&"]" -> Reading Application [22] | J6: ='G9-10 Matrix'!F$2&" ["&'G9-10 Matrix'!F3&"]" -> Literary Analysis Fiction/Nonfiction [6] | L6: ='G9-10 Matrix'!G$2&" ["&'G9-10 Matrix'!G3&"]" -> Informational Text/ Research Process [8] | Q6: Grade 9 Test | S6: Overall | V6: Number Sense | Y6: Measurement | AB6: Geometry | AE6: Algrebraic Thinking | AH6: Data Analysis
D7: Average Score | E7: % Proficient | F7: Average Score | G7: % Proficient | H7: Average Score | I7: % Proficient | J7: Average Score | K7: % Proficient | L7: Average Score | M7: % Proficient | Q7: Number Tested | S7: AVG Combined | T7: % Prof Combined | U7: Number Prof Combined | V7: AVG Combined | W7: % Prof Combined | X7: Number Prof Combined | Y7: AVG Combined | Z7: % Prof Combined | AA7: Number Prof Combined | AB7: AVG Combined | AC7: % Prof Combined | AD7: Number Prof Combined | AE7: AVG Combined | AF7: % Prof Combined | AG7: Number Prof Combined | AH7: AVG Combined | AI7: % Prof Combined | AJ7: Number Prof Combined
A8: All students | B8: =IFERROR(VLOOKUP(TEXT($A$3,"0000"),Mem_All!$A$2:$S$500,13,FALSE),0) -> 27622 | C8: =IFERROR((IF(OR(B8=0,B8="",B8="NA"),"NA",((IF(VLOOKUP($A$3,'G9-RALL'!$A$6:$AM$500,3,FALSE)>=B8,"100% ("&VLOOKUP($A$3,'G9-RALL'!$A$6:$AM$500,3,FALSE)&")",(ROUND((VLOOKUP($A$3,'G9-RALL'!$A$6:$AM$500,3,FALSE)/B8*100),0))&"% ("&IF(VLOOKUP($A$3,'G9-RALL'!$A$6:$AM$500,3,FALSE)="",0,VLOOKUP($A$3,'G9-RALL'!$A$6:$AM$500,3,FALSE))&")"))))),"0% (0)") -> 90% (24869) | D8: =IFERROR((IF($C8="NA","NA",VLOOKUP($A$3,'G9-RALL'!$A$6:$AM$500,4,FALSE))),"NA") -> 22.85029957 | E8: =IFERROR((IF($C8="NA","NA",ROUND(VLOOKUP($A$3,'G9-RALL'!$A$6:$AM$500,6,FALSE),0)&"% ("&IF(VLOOKUP($A$3,'G9-RALL'!$A$6:$AM$500,5,FALSE)="",0,VLOOKUP($A$3,'G9-RALL'!$A$6:$AM$500,5,FALSE))&")")),"NA") -> 23% (5803) | F8: =IFERROR((IF($C8="NA","NA",VLOOKUP($A$3,'G9-RALL'!$A$6:$AM$500,7,FALSE))),"NA") -> 3.905142949 | G8: =IFERROR((IF($C8="NA","NA",ROUND(VLOOKUP($A$3,'G9-RALL'!$A$6:$AM$500,9,FALSE),0)&"% ("&IF(VLOOKUP($A$3,'G9-RALL'!$A$6:$AM$500,8,FALSE)="",0,VLOOKUP($A$3,'G9-RALL'!$A$6:$AM$500,8,FALSE))&")")),"NA") -> 40% (9863) | H8: =IFERROR((IF($C8="NA","NA",VLOOKUP($A$3,'G9-RALL'!$A$6:$AM$500,10,FALSE))),"NA") -> 12.29022478 | I8: =IFERROR((IF($C8="NA","NA",ROUND(VLOOKUP($A$3,'G9-RALL'!$A$6:$AM$500,12,FALSE),0)&"% ("&IF(VLOOKUP($A$3,'G9-RALL'!$A$6:$AM$500,11,FALSE)="",0,VLOOKUP($A$3,'G9-RALL'!$A$6:$AM$500,11,FALSE))&")")),"NA") -> 31% (7710) | J8: =IFERROR((IF($C8="NA","NA",VLOOKUP($A$3,'G9-RALL'!$A$6:$AM$500,13,FALSE))),"NA") -> 3.02302867 | K8: =IFERROR((IF($C8="NA","NA",ROUND(VLOOKUP($A$3,'G9-RALL'!$A$6:$AM$500,15,FALSE),0)&"% ("&IF(VLOOKUP($A$3,'G9-RALL'!$A$6:$AM$500,14,FALSE)="",0,VLOOKUP($A$3,'G9-RALL'!$A$6:$AM$500,14,FALSE))&")")),"NA") -> 17% (4147) | L8: =IFERROR((IF($C8="NA","NA",VLOOKUP($A$3,'G9-RALL'!$A$6:$AM$500,16,FALSE))),"NA") -> 3.6273473 | M8: =IFERROR((IF($C8="NA","NA",ROUND(VLOOKUP($A$3,'G9-RALL'!$A$6:$AM$500,18,FALSE),0)&"% ("&IF(VLOOKUP($A$3,'G9-RALL'!$A$6:$AM$500,17,FALSE)="",0,VLOOKUP($A$3,'G9-RALL'!$A$6:$AM$500,17,FALSE))&")")),"NA") -> 20% (4930) | Q8: =IFERROR(VLOOKUP($A$3,'G9-RALL'!$A$6:$BX$500,3,FALSE),"not tested") -> 24869 | S8: =SUM(VLOOKUP($A$3,'GEO-ALL'!$A$14:$AA$500,4,FALSE)*$Q8,VLOOKUP($A$3,'GEO-ALL'!$A$14:$AA$500,41,FALSE)*$R8)/SUM($Q8,$R8) ->  | T8: =SUM(VLOOKUP($A$3,'GEO-ALL'!$A$14:$AA$500,7,FALSE),VLOOKUP($A$3,'GEO-ALL'!$A$14:$AA$500,44,FALSE))/SUM($Q8:$R8)*100 ->  | U8: =SUM(VLOOKUP($A$3,'GEO-ALL'!$A$14:$AA$500,7,FALSE),VLOOKUP($A$3,'GEO-ALL'!$A$14:$AA$500,44,FALSE)) ->  | V8: =SUM(VLOOKUP($A$3,'GEO-ALL'!$A$14:$AA$500,10,FALSE)*$Q8,VLOOKUP($A$3,'GEO-ALL'!$A$14:$AA$500,47,FALSE)*$R8)/SUM($Q8,$R8) ->  | W8: =SUM(VLOOKUP($A$3,'GEO-ALL'!$A$14:$AA$500,8,FALSE),VLOOKUP($A$3,'GEO-ALL'!$A$14:$AA$500,50,FALSE))/SUM($Q8:$R8)*100 ->  | X8: =SUM(VLOOKUP($A$3,'GEO-ALL'!$A$14:$AA$500,8,FALSE),VLOOKUP($A$3,'GEO-ALL'!$A$14:$AA$500,50,FALSE)) ->  | Y8: =SUM(VLOOKUP($A$3,'GEO-ALL'!$A$14:$AA$500,16,FALSE)*$Q8,VLOOKUP($A$3,'GEO-ALL'!$A$14:$AA$500,53,FALSE)*$R8)/SUM($Q8,$R8) ->  | Z8: =SUM(VLOOKUP($A$3,'GEO-ALL'!$A$14:$AA$500,19,FALSE),VLOOKUP($A$3,'GEO-ALL'!$A$14:$AA$500,56,FALSE))/SUM($Q8:$R8)*100 ->  | AA8: =SUM(VLOOKUP($A$3,'GEO-ALL'!$A$14:$AA$500,19,FALSE),VLOOKUP($A$3,'GEO-ALL'!$A$14:$AA$500,56,FALSE)) ->  | AB8: =SUM(VLOOKUP($A$3,'GEO-ALL'!$A$14:$AA$500,22,FALSE)*$Q8,VLOOKUP($A$3,'GEO-ALL'!$A$14:$AA$500,59,FALSE)*$R8)/SUM($Q8,$R8) ->  | AC8: =SUM(VLOOKUP($A$3,'GEO-ALL'!$A$14:$AA$500,25,FALSE),VLOOKUP($A$3,'GEO-ALL'!$A$14:$AA$500,62,FALSE))/SUM($Q8:$R8)*100 ->  | AD8: =SUM(VLOOKUP($A$3,'GEO-ALL'!$A$14:$AA$500,25,FALSE),VLOOKUP($A$3,'GEO-ALL'!$A$14:$AA$500,62,FALSE)) ->  | AE8: =SUM(VLOOKUP($A$3,'GEO-ALL'!$A$14:$AA$500,28,FALSE)*$Q8,VLOOKUP($A$3,'GEO-ALL'!$A$14:$AA$500,65,FALSE)*$R8)/SUM($Q8,$R8) ->  | AF8: =SUM(VLOOKUP($A$3,'GEO-ALL'!$A$14:$AA$500,31,FALSE),VLOOKUP($A$3,'GEO-ALL'!$A$14:$AA$500,68,FALSE))/SUM($Q8:$R8)*100 ->  | AG8: =SUM(VLOOKUP($A$3,'GEO-ALL'!$A$14:$AA$500,31,FALSE),VLOOKUP($A$3,'GEO-ALL'!$A$14:$AA$500,68,FALSE)) ->  | AH8: =SUM(VLOOKUP($A$3,'GEO-ALL'!$A$14:$AA$500,34,FALSE)*$Q8,VLOOKUP($A$3,'GEO-ALL'!$A$14:$AA$500,71,FALSE)*$R8)/SUM($Q8,$R8) ->  | AI8: =SUM(VLOOKUP($A$3,'GEO-ALL'!$A$14:$AA$500,37,FALSE),VLOOKUP($A$3,'GEO-ALL'!$A$14:$AA$500,74,FALSE))/SUM($Q8:$R8)*100 ->  | AJ8: =SUM(VLOOKUP($A$3,'GEO-ALL'!$A$14:$AA$500,37,FALSE),VLOOKUP($A$3,'GEO-ALL'!$A$14:$AA$500,74,FALSE)) -> 
A9: FCAT Level 1 | B9: =IFERROR(VLOOKUP(TEXT($A$3,"0000"),MEM_RL1!$A$2:$S$500,10,FALSE),0) -> 4839 | C9: =IFERROR((IF(OR(B9=0,B9="",B9="NA"),"NA",((IF(VLOOKUP($A$3,'G9-RL1'!$A$6:$AM$506,3,FALSE)>=B9,"100% ("&VLOOKUP($A$3,'G9-RL1'!$A$6:$AM$506,3,FALSE)&")",(ROUND((VLOOKUP($A$3,'G9-RL1'!$A$6:$AM$506,3,FALSE)/B9*100),0))&"% ("&IF(VLOOKUP($A$3,'G9-RL1'!$A$6:$AM$506,3,FALSE)="",0,VLOOKUP($A$3,'G9-RL1'!$A$6:$AM$506,3,FALSE))&")"))))),"0% (0)") -> 90% (4347) | D9: =IFERROR((IF($C9="NA","NA",VLOOKUP($A$3,'G9-RL1'!$A$6:$AM$506,4,FALSE))),"NA") -> 13.35613066 | E9: =IFERROR((IF($C9="NA","NA",ROUND(VLOOKUP($A$3,'G9-RL1'!$A$6:$AM$506,6,FALSE),0)&"% ("&IF(VLOOKUP($A$3,'G9-RL1'!$A$6:$AM$506,5,FALSE)="",0,VLOOKUP($A$3,'G9-RL1'!$A$6:$AM$506,5,FALSE))&")")),"NA") -> 0% (5) | F9: =IFERROR((IF($C9="NA","NA",VLOOKUP($A$3,'G9-RL1'!$A$6:$AM$506,7,FALSE))),"NA") -> 2.327858293 | G9: =IFERROR((IF($C9="NA","NA",ROUND(VLOOKUP($A$3,'G9-RL1'!$A$6:$AM$506,9,FALSE),0)&"% ("&IF(VLOOKUP($A$3,'G9-RL1'!$A$6:$AM$506,8,FALSE)="",0,VLOOKUP($A$3,'G9-RL1'!$A$6:$AM$506,8,FALSE))&")")),"NA") -> 5% (223) | H9: =IFERROR((IF($C9="NA","NA",VLOOKUP($A$3,'G9-RL1'!$A$6:$AM$506,10,FALSE))),"NA") -> 7.047250978 | I9: =IFERROR((IF($C9="NA","NA",ROUND(VLOOKUP($A$3,'G9-RL1'!$A$6:$AM$506,12,FALSE),0)&"% ("&IF(VLOOKUP($A$3,'G9-RL1'!$A$6:$AM$506,11,FALSE)="",0,VLOOKUP($A$3,'G9-RL1'!$A$6:$AM$506,11,FALSE))&")")),"NA") -> 1% (30) | J9: =IFERROR((IF($C9="NA","NA",VLOOKUP($A$3,'G9-RL1'!$A$6:$AM$506,13,FALSE))),"NA") -> 1.953071084 | K9: =IFERROR((IF($C9="NA","NA",ROUND(VLOOKUP($A$3,'G9-RL1'!$A$6:$AM$506,15,FALSE),0)&"% ("&IF(VLOOKUP($A$3,'G9-RL1'!$A$6:$AM$506,14,FALSE)="",0,VLOOKUP($A$3,'G9-RL1'!$A$6:$AM$506,14,FALSE))&")")),"NA") -> 2% (99) | L9: =IFERROR((IF($C9="NA","NA",VLOOKUP($A$3,'G9-RL1'!$A$6:$AM$506,16,FALSE))),"NA") -> 2.030710835 | M9: =IFERROR((IF($C9="NA","NA",ROUND(VLOOKUP($A$3,'G9-RL1'!$A$6:$AM$506,18,FALSE),0)&"% ("&IF(VLOOKUP($A$3,'G9-RL1'!$A$6:$AM$506,17,FALSE)="",0,VLOOKUP($A$3,'G9-RL1'!$A$6:$AM$506,17,FALSE))&")")),"NA") -> 1% (35) | Q9: =IFERROR(VLOOKUP($A$3,'G9-RL1'!$A$6:$BX$506,3,FALSE),"not tested") -> 4347 | S9: =SUM(VLOOKUP($A$3,'GEO-L1'!$A$14:$BX$500,4,FALSE)*$Q9,VLOOKUP($A$3,'GEO-L1'!$A$14:$BX$500,41,FALSE)*$R9)/SUM($Q9,$R9) -> 9.896139519 | T9: =SUM(VLOOKUP($A$3,'GEO-L1'!$A$14:$BX$500,7,FALSE),VLOOKUP($A$3,'GEO-L1'!$A$14:$BX$500,44,FALSE))/SUM($Q9:$R9)*100 -> 0.1663084357 | U9: =SUM(VLOOKUP($A$3,'GEO-L1'!$A$14:$BX$500,7,FALSE),VLOOKUP($A$3,'GEO-L1'!$A$14:$BX$500,44,FALSE)) -> 7.229427701 | V9: =SUM(VLOOKUP($A$3,'GEO-L1'!$A$14:$BX$500,10,FALSE)*$Q9,VLOOKUP($A$3,'GEO-L1'!$A$14:$BX$500,47,FALSE)*$R9)/SUM($Q9,$R9) -> 0.9332881815 | W9: =SUM(VLOOKUP($A$3,'GEO-L1'!$A$14:$BX$500,8,FALSE),VLOOKUP($A$3,'GEO-L1'!$A$14:$BX$500,50,FALSE))/SUM($Q9:$R9)*100 -> 0.09201748332 | X9: =SUM(VLOOKUP($A$3,'GEO-L1'!$A$14:$BX$500,8,FALSE),VLOOKUP($A$3,'GEO-L1'!$A$14:$BX$500,50,FALSE)) -> 4 | Y9: =SUM(VLOOKUP($A$3,'GEO-L1'!$A$14:$BX$500,16,FALSE)*$Q9,VLOOKUP($A$3,'GEO-L1'!$A$14:$BX$500,53,FALSE)*$R9)/SUM($Q9,$R9) -> 0 | Z9: =SUM(VLOOKUP($A$3,'GEO-L1'!$A$14:$BX$500,19,FALSE),VLOOKUP($A$3,'GEO-L1'!$A$14:$BX$500,56,FALSE))/SUM($Q9:$R9)*100 -> 0 | AA9: =SUM(VLOOKUP($A$3,'GEO-L1'!$A$14:$BX$500,19,FALSE),VLOOKUP($A$3,'GEO-L1'!$A$14:$BX$500,56,FALSE)) -> 0 | AB9: =SUM(VLOOKUP($A$3,'GEO-L1'!$A$14:$BX$500,22,FALSE)*$Q9,VLOOKUP($A$3,'GEO-L1'!$A$14:$BX$500,59,FALSE)*$R9)/SUM($Q9,$R9) -> 0 | AC9: =SUM(VLOOKUP($A$3,'GEO-L1'!$A$14:$BX$500,25,FALSE),VLOOKUP($A$3,'GEO-L1'!$A$14:$BX$500,62,FALSE))/SUM($Q9:$R9)*100 -> 0 | AD9: =SUM(VLOOKUP($A$3,'GEO-L1'!$A$14:$BX$500,25,FALSE),VLOOKUP($A$3,'GEO-L1'!$A$14:$BX$500,62,FALSE)) -> 0 | AE9: =SUM(VLOOKUP($A$3,'GEO-L1'!$A$14:$BX$500,28,FALSE)*$Q9,VLOOKUP($A$3,'GEO-L1'!$A$14:$BX$500,65,FALSE)*$R9)/SUM($Q9,$R9) -> 0 | AF9: =SUM(VLOOKUP($A$3,'GEO-L1'!$A$14:$BX$500,31,FALSE),VLOOKUP($A$3,'GEO-L1'!$A$14:$BX$500,68,FALSE))/SUM($Q9:$R9)*100 -> 0 | AG9: =SUM(VLOOKUP($A$3,'GEO-L1'!$A$14:$BX$500,31,FALSE),VLOOKUP($A$3,'GEO-L1'!$A$14:$BX$500,68,FALSE)) -> 0 | AH9: =SUM(VLOOKUP($A$3,'GEO-L1'!$A$14:$BX$500,34,FALSE)*$Q9,VLOOKUP($A$3,'GEO-L1'!$A$14:$BX$500,71,FALSE)*$R9)/SUM($Q9,$R9) -> 0 | AI9: =SUM(VLOOKUP($A$3,'GEO-L1'!$A$14:$BX$500,37,FALSE),VLOOKUP($A$3,'GEO-L1'!$A$14:$BX$500,74,FALSE))/SUM($Q9:$R9)*100 -> 0 | AJ9: =SUM(VLOOKUP($A$3,'GEO-L1'!$A$14:$BX$500,37,FALSE),VLOOKUP($A$3,'GEO-L1'!$A$14:$BX$500,74,FALSE)) -> 0
A10: FCAT Level 2 | B10: =IFERROR(VLOOKUP(TEXT($A$3,"0000"),MEM_RL2!$A$2:$S$500,10,FALSE),0) -> 7043 | C10: =IFERROR((IF(OR(B10=0,B10="",B10="NA"),"NA",((IF(VLOOKUP($A$3,'G9-RL2'!$A$6:$AM$500,3,FALSE)>=B10,"100% ("&VLOOKUP($A$3,'G9-RL2'!$A$6:$AM$500,3,FALSE)&")",(ROUND((VLOOKUP($A$3,'G9-RL2'!$A$6:$AM$500,3,FALSE)/B10*100),0))&"% ("&IF(VLOOKUP($A$3,'G9-RL2'!$A$6:$AM$500,3,FALSE)="",0,VLOOKUP($A$3,'G9-RL2'!$A$6:$AM$500,3,FALSE))&")"))))),"0% (0)") -> 92% (6468) | D10: =IFERROR((IF($C10="NA","NA",VLOOKUP($A$3,'G9-RL2'!$A$6:$AM$500,4,FALSE))),"NA") -> 19.24451144 | E10: =IFERROR((IF($C10="NA","NA",ROUND(VLOOKUP($A$3,'G9-RL2'!$A$6:$AM$500,6,FALSE),0)&"% ("&IF(VLOOKUP($A$3,'G9-RL2'!$A$6:$AM$500,5,FALSE)="",0,VLOOKUP($A$3,'G9-RL2'!$A$6:$AM$500,5,FALSE))&")")),"NA") -> 3% (180) | F10: =IFERROR((IF($C10="NA","NA",VLOOKUP($A$3,'G9-RL2'!$A$6:$AM$500,7,FALSE))),"NA") -> 3.35995671 | G10: =IFERROR((IF($C10="NA","NA",ROUND(VLOOKUP($A$3,'G9-RL2'!$A$6:$AM$500,9,FALSE),0)&"% ("&IF(VLOOKUP($A$3,'G9-RL2'!$A$6:$AM$500,8,FALSE)="",0,VLOOKUP($A$3,'G9-RL2'!$A$6:$AM$500,8,FALSE))&")")),"NA") -> 21% (1386) | H10: =IFERROR((IF($C10="NA","NA",VLOOKUP($A$3,'G9-RL2'!$A$6:$AM$500,10,FALSE))),"NA") -> 10.32207792 | I10: =IFERROR((IF($C10="NA","NA",ROUND(VLOOKUP($A$3,'G9-RL2'!$A$6:$AM$500,12,FALSE),0)&"% ("&IF(VLOOKUP($A$3,'G9-RL2'!$A$6:$AM$500,11,FALSE)="",0,VLOOKUP($A$3,'G9-RL2'!$A$6:$AM$500,11,FALSE))&")")),"NA") -> 9% (561) | J10: =IFERROR((IF($C10="NA","NA",VLOOKUP($A$3,'G9-RL2'!$A$6:$AM$500,13,FALSE))),"NA") -> 2.653695114 | K10: =IFERROR((IF($C10="NA","NA",ROUND(VLOOKUP($A$3,'G9-RL2'!$A$6:$AM$500,15,FALSE),0)&"% ("&IF(VLOOKUP($A$3,'G9-RL2'!$A$6:$AM$500,14,FALSE)="",0,VLOOKUP($A$3,'G9-RL2'!$A$6:$AM$500,14,FALSE))&")")),"NA") -> 8% (519) | L10: =IFERROR((IF($C10="NA","NA",VLOOKUP($A$3,'G9-RL2'!$A$6:$AM$500,16,FALSE))),"NA") -> 2.910003092 | M10: =IFERROR((IF($C10="NA","NA",ROUND(VLOOKUP($A$3,'G9-RL2'!$A$6:$AM$500,18,FALSE),0)&"% ("&IF(VLOOKUP($A$3,'G9-RL2'!$A$6:$AM$500,17,FALSE)="",0,VLOOKUP($A$3,'G9-RL2'!$A$6:$AM$500,17,FALSE))&")")),"NA") -> 6% (383) | Q10: =IFERROR(VLOOKUP($A$3,'G9-RL2'!$A$6:$BX$500,3,FALSE),"not tested") -> 6468 | S10: =SUM(VLOOKUP($A$3,'GEO-L2'!$A$14:$BX$500,4,FALSE)*$Q10,VLOOKUP($A$3,'GEO-L2'!$A$14:$BX$500,41,FALSE)*$R10)/SUM($Q10,$R10) -> 10.40394897 | T10: =SUM(VLOOKUP($A$3,'GEO-L2'!$A$14:$BX$500,7,FALSE),VLOOKUP($A$3,'GEO-L2'!$A$14:$BX$500,44,FALSE))/SUM($Q10:$R10)*100 -> 0.1164958785 | U10: =SUM(VLOOKUP($A$3,'GEO-L2'!$A$14:$BX$500,7,FALSE),VLOOKUP($A$3,'GEO-L2'!$A$14:$BX$500,44,FALSE)) -> 7.534953422 | V10: =SUM(VLOOKUP($A$3,'GEO-L2'!$A$14:$BX$500,10,FALSE)*$Q10,VLOOKUP($A$3,'GEO-L2'!$A$14:$BX$500,47,FALSE)*$R10)/SUM($Q10,$R10) -> 1.029323613 | W10: =SUM(VLOOKUP($A$3,'GEO-L2'!$A$14:$BX$500,8,FALSE),VLOOKUP($A$3,'GEO-L2'!$A$14:$BX$500,50,FALSE))/SUM($Q10:$R10)*100 -> 0.03092145949 | X10: =SUM(VLOOKUP($A$3,'GEO-L2'!$A$14:$BX$500,8,FALSE),VLOOKUP($A$3,'GEO-L2'!$A$14:$BX$500,50,FALSE)) -> 2 | Y10: =SUM(VLOOKUP($A$3,'GEO-L2'!$A$14:$BX$500,16,FALSE)*$Q10,VLOOKUP($A$3,'GEO-L2'!$A$14:$BX$500,53,FALSE)*$R10)/SUM($Q10,$R10) -> 0 | Z10: =SUM(VLOOKUP($A$3,'GEO-L2'!$A$14:$BX$500,19,FALSE),VLOOKUP($A$3,'GEO-L2'!$A$14:$BX$500,56,FALSE))/SUM($Q10:$R10)*100 -> 0 | AA10: =SUM(VLOOKUP($A$3,'GEO-L2'!$A$14:$BX$500,19,FALSE),VLOOKUP($A$3,'GEO-L2'!$A$14:$BX$500,56,FALSE)) -> 0 | AB10: =SUM(VLOOKUP($A$3,'GEO-L2'!$A$14:$BX$500,22,FALSE)*$Q10,VLOOKUP($A$3,'GEO-L2'!$A$14:$BX$500,59,FALSE)*$R10)/SUM($Q10,$R10) -> 0 | AC10: =SUM(VLOOKUP($A$3,'GEO-L2'!$A$14:$BX$500,25,FALSE),VLOOKUP($A$3,'GEO-L2'!$A$14:$BX$500,62,FALSE))/SUM($Q10:$R10)*100 -> 0 | AD10: =SUM(VLOOKUP($A$3,'GEO-L2'!$A$14:$BX$500,25,FALSE),VLOOKUP($A$3,'GEO-L2'!$A$14:$BX$500,62,FALSE)) -> 0 | AE10: =SUM(VLOOKUP($A$3,'GEO-L2'!$A$14:$BX$500,28,FALSE)*$Q10,VLOOKUP($A$3,'GEO-L2'!$A$14:$BX$500,65,FALSE)*$R10)/SUM($Q10,$R10) -> 0 | AF10: =SUM(VLOOKUP($A$3,'GEO-L2'!$A$14:$BX$500,31,FALSE),VLOOKUP($A$3,'GEO-L2'!$A$14:$BX$500,68,FALSE))/SUM($Q10:$R10)*100 -> 0 | AG10: =SUM(VLOOKUP($A$3,'GEO-L2'!$A$14:$BX$500,31,FALSE),VLOOKUP($A$3,'GEO-L2'!$A$14:$BX$500,68,FALSE)) -> 0 | AH10: =SUM(VLOOKUP($A$3,'GEO-L2'!$A$14:$BX$500,34,FALSE)*$Q10,VLOOKUP($A$3,'GEO-L2'!$A$14:$BX$500,71,FALSE)*$R10)/SUM($Q10,$R10) -> 0 | AI10: =SUM(VLOOKUP($A$3,'GEO-L2'!$A$14:$BX$500,37,FALSE),VLOOKUP($A$3,'GEO-L2'!$A$14:$BX$500,74,FALSE))/SUM($Q10:$R10)*100 -> 0 | AJ10: =SUM(VLOOKUP($A$3,'GEO-L2'!$A$14:$BX$500,37,FALSE),VLOOKUP($A$3,'GEO-L2'!$A$14:$BX$500,74,FALSE)) -> 0
A11: FCAT Level 3 | B11: =IFERROR(VLOOKUP(TEXT($A$3,"0000"),MEM_RL3!$A$2:$S$500,10,FALSE),0) -> 6596 | C11: =IFERROR((IF(OR(B11=0,B11="",B11="NA"),"NA",((IF(VLOOKUP($A$3,'G9-RL3'!$A$6:$AM$500,3,FALSE)>=B11,"100% ("&VLOOKUP($A$3,'G9-RL3'!$A$6:$AM$500,3,FALSE)&")",(ROUND((VLOOKUP($A$3,'G9-RL3'!$A$6:$AM$500,3,FALSE)/B11*100),0))&"% ("&IF(VLOOKUP($A$3,'G9-RL3'!$A$6:$AM$500,3,FALSE)="",0,VLOOKUP($A$3,'G9-RL3'!$A$6:$AM$500,3,FALSE))&")"))))),"0% (0)") -> 96% (6334) | D11: =IFERROR((IF($C11="NA","NA",VLOOKUP($A$3,'G9-RL3'!$A$6:$AM$500,4,FALSE))),"NA") -> 24.58010736 | E11: =IFERROR((IF($C11="NA","NA",ROUND(VLOOKUP($A$3,'G9-RL3'!$A$6:$AM$500,6,FALSE),0)&"% ("&IF(VLOOKUP($A$3,'G9-RL3'!$A$6:$AM$500,5,FALSE)="",0,VLOOKUP($A$3,'G9-RL3'!$A$6:$AM$500,5,FALSE))&")")),"NA") -> 18% (1151) | F11: =IFERROR((IF($C11="NA","NA",VLOOKUP($A$3,'G9-RL3'!$A$6:$AM$500,7,FALSE))),"NA") -> 4.247158194 | G11: =IFERROR((IF($C11="NA","NA",ROUND(VLOOKUP($A$3,'G9-RL3'!$A$6:$AM$500,9,FALSE),0)&"% ("&IF(VLOOKUP($A$3,'G9-RL3'!$A$6:$AM$500,8,FALSE)="",0,VLOOKUP($A$3,'G9-RL3'!$A$6:$AM$500,8,FALSE))&")")),"NA") -> 46% (2924) | H11: =IFERROR((IF($C11="NA","NA",VLOOKUP($A$3,'G9-RL3'!$A$6:$AM$500,10,FALSE))),"NA") -> 13.27134512 | I11: =IFERROR((IF($C11="NA","NA",ROUND(VLOOKUP($A$3,'G9-RL3'!$A$6:$AM$500,12,FALSE),0)&"% ("&IF(VLOOKUP($A$3,'G9-RL3'!$A$6:$AM$500,11,FALSE)="",0,VLOOKUP($A$3,'G9-RL3'!$A$6:$AM$500,11,FALSE))&")")),"NA") -> 31% (1981) | J11: =IFERROR((IF($C11="NA","NA",VLOOKUP($A$3,'G9-RL3'!$A$6:$AM$500,13,FALSE))),"NA") -> 3.199573729 | K11: =IFERROR((IF($C11="NA","NA",ROUND(VLOOKUP($A$3,'G9-RL3'!$A$6:$AM$500,15,FALSE),0)&"% ("&IF(VLOOKUP($A$3,'G9-RL3'!$A$6:$AM$500,14,FALSE)="",0,VLOOKUP($A$3,'G9-RL3'!$A$6:$AM$500,14,FALSE))&")")),"NA") -> 16% (1025) | L11: =IFERROR((IF($C11="NA","NA",VLOOKUP($A$3,'G9-RL3'!$A$6:$AM$500,16,FALSE))),"NA") -> 3.854610041 | M11: =IFERROR((IF($C11="NA","NA",ROUND(VLOOKUP($A$3,'G9-RL3'!$A$6:$AM$500,18,FALSE),0)&"% ("&IF(VLOOKUP($A$3,'G9-RL3'!$A$6:$AM$500,17,FALSE)="",0,VLOOKUP($A$3,'G9-RL3'!$A$6:$AM$500,17,FALSE))&")")),"NA") -> 18% (1169) | Q11: =IFERROR(VLOOKUP($A$3,'G9-RL3'!$A$6:$BX$500,3,FALSE),"not tested") -> 6334 | S11: =SUM(VLOOKUP($A$3,'GEO-L3'!$A$14:$BX$500,4,FALSE)*$Q11,VLOOKUP($A$3,'GEO-L3'!$A$14:$BX$500,41,FALSE)*$R11)/SUM($Q11,$R11) -> 11.48055857 | T11: =SUM(VLOOKUP($A$3,'GEO-L3'!$A$14:$BX$500,7,FALSE),VLOOKUP($A$3,'GEO-L3'!$A$14:$BX$500,44,FALSE))/SUM($Q11:$R11)*100 -> 0.1313306775 | U11: =SUM(VLOOKUP($A$3,'GEO-L3'!$A$14:$BX$500,7,FALSE),VLOOKUP($A$3,'GEO-L3'!$A$14:$BX$500,44,FALSE)) -> 8.318485112 | V11: =SUM(VLOOKUP($A$3,'GEO-L3'!$A$14:$BX$500,10,FALSE)*$Q11,VLOOKUP($A$3,'GEO-L3'!$A$14:$BX$500,47,FALSE)*$R11)/SUM($Q11,$R11) -> 1.146326885 | W11: =SUM(VLOOKUP($A$3,'GEO-L3'!$A$14:$BX$500,8,FALSE),VLOOKUP($A$3,'GEO-L3'!$A$14:$BX$500,50,FALSE))/SUM($Q11:$R11)*100 -> 0.2526049889 | X11: =SUM(VLOOKUP($A$3,'GEO-L3'!$A$14:$BX$500,8,FALSE),VLOOKUP($A$3,'GEO-L3'!$A$14:$BX$500,50,FALSE)) -> 16 | Y11: =SUM(VLOOKUP($A$3,'GEO-L3'!$A$14:$BX$500,16,FALSE)*$Q11,VLOOKUP($A$3,'GEO-L3'!$A$14:$BX$500,53,FALSE)*$R11)/SUM($Q11,$R11) -> 0 | Z11: =SUM(VLOOKUP($A$3,'GEO-L3'!$A$14:$BX$500,19,FALSE),VLOOKUP($A$3,'GEO-L3'!$A$14:$BX$500,56,FALSE))/SUM($Q11:$R11)*100 -> 0 | AA11: =SUM(VLOOKUP($A$3,'GEO-L3'!$A$14:$BX$500,19,FALSE),VLOOKUP($A$3,'GEO-L3'!$A$14:$BX$500,56,FALSE)) -> 0 | AB11: =SUM(VLOOKUP($A$3,'GEO-L3'!$A$14:$BX$500,22,FALSE)*$Q11,VLOOKUP($A$3,'GEO-L3'!$A$14:$BX$500,59,FALSE)*$R11)/SUM($Q11,$R11) -> 0 | AC11: =SUM(VLOOKUP($A$3,'GEO-L3'!$A$14:$BX$500,25,FALSE),VLOOKUP($A$3,'GEO-L3'!$A$14:$BX$500,62,FALSE))/SUM($Q11:$R11)*100 -> 0 | AD11: =SUM(VLOOKUP($A$3,'GEO-L3'!$A$14:$BX$500,25,FALSE),VLOOKUP($A$3,'GEO-L3'!$A$14:$BX$500,62,FALSE)) -> 0 | AE11: =SUM(VLOOKUP($A$3,'GEO-L3'!$A$14:$BX$500,28,FALSE)*$Q11,VLOOKUP($A$3,'GEO-L3'!$A$14:$BX$500,65,FALSE)*$R11)/SUM($Q11,$R11) -> 0 | AF11: =SUM(VLOOKUP($A$3,'GEO-L3'!$A$14:$BX$500,31,FALSE),VLOOKUP($A$3,'GEO-L3'!$A$14:$BX$500,68,FALSE))/SUM($Q11:$R11)*100 -> 0 | AG11: =SUM(VLOOKUP($A$3,'GEO-L3'!$A$14:$BX$500,31,FALSE),VLOOKUP($A$3,'GEO-L3'!$A$14:$BX$500,68,FALSE)) -> 0 | AH11: =SUM(VLOOKUP($A$3,'GEO-L3'!$A$14:$BX$500,34,FALSE)*$Q11,VLOOKUP($A$3,'GEO-L3'!$A$14:$BX$500,71,FALSE)*$R11)/SUM($Q11,$R11) -> 0 | AI11: =SUM(VLOOKUP($A$3,'GEO-L3'!$A$14:$BX$500,37,FALSE),VLOOKUP($A$3,'GEO-L3'!$A$14:$BX$500,74,FALSE))/SUM($Q11:$R11)*100 -> 0 | AJ11: =SUM(VLOOKUP($A$3,'GEO-L3'!$A$14:$BX$500,37,FALSE),VLOOKUP($A$3,'GEO-L3'!$A$14:$BX$500,74,FALSE)) -> 0
A12: FCAT Level 4 | B12: =IFERROR(VLOOKUP(TEXT($A$3,"0000"),MEM_RL4!$A$2:$S$500,10,FALSE),0) -> 4335 | C12: =IFERROR((IF(OR(B12=0,B12="",B12="NA"),"NA",((IF(VLOOKUP($A$3,'G9-RL4'!$A$6:$AM$500,3,FALSE)>=B12,"100% ("&VLOOKUP($A$3,'G9-RL4'!$A$6:$AM$500,3,FALSE)&")",(ROUND((VLOOKUP($A$3,'G9-RL4'!$A$6:$AM$500,3,FALSE)/B12*100),0))&"% ("&IF(VLOOKUP($A$3,'G9-RL4'!$A$6:$AM$500,3,FALSE)="",0,VLOOKUP($A$3,'G9-RL4'!$A$6:$AM$500,3,FALSE))&")"))))),"0% (0)") -> 96% (4158) | D12: =IFERROR((IF($C12="NA","NA",VLOOKUP($A$3,'G9-RL4'!$A$6:$AM$500,4,FALSE))),"NA") -> 29.6996152 | E12: =IFERROR((IF($C12="NA","NA",ROUND(VLOOKUP($A$3,'G9-RL4'!$A$6:$AM$500,6,FALSE),0)&"% ("&IF(VLOOKUP($A$3,'G9-RL4'!$A$6:$AM$500,5,FALSE)="",0,VLOOKUP($A$3,'G9-RL4'!$A$6:$AM$500,5,FALSE))&")")),"NA") -> 53% (2197) | F12: =IFERROR((IF($C12="NA","NA",VLOOKUP($A$3,'G9-RL4'!$A$6:$AM$500,7,FALSE))),"NA") -> 4.984704185 | G12: =IFERROR((IF($C12="NA","NA",ROUND(VLOOKUP($A$3,'G9-RL4'!$A$6:$AM$500,9,FALSE),0)&"% ("&IF(VLOOKUP($A$3,'G9-RL4'!$A$6:$AM$500,8,FALSE)="",0,VLOOKUP($A$3,'G9-RL4'!$A$6:$AM$500,8,FALSE))&")")),"NA") -> 68% (2828) | H12: =IFERROR((IF($C12="NA","NA",VLOOKUP($A$3,'G9-RL4'!$A$6:$AM$500,10,FALSE))),"NA") -> 16.06142376 | I12: =IFERROR((IF($C12="NA","NA",ROUND(VLOOKUP($A$3,'G9-RL4'!$A$6:$AM$500,12,FALSE),0)&"% ("&IF(VLOOKUP($A$3,'G9-RL4'!$A$6:$AM$500,11,FALSE)="",0,VLOOKUP($A$3,'G9-RL4'!$A$6:$AM$500,11,FALSE))&")")),"NA") -> 64% (2679) | J12: =IFERROR((IF($C12="NA","NA",VLOOKUP($A$3,'G9-RL4'!$A$6:$AM$500,13,FALSE))),"NA") -> 3.777657528 | K12: =IFERROR((IF($C12="NA","NA",ROUND(VLOOKUP($A$3,'G9-RL4'!$A$6:$AM$500,15,FALSE),0)&"% ("&IF(VLOOKUP($A$3,'G9-RL4'!$A$6:$AM$500,14,FALSE)="",0,VLOOKUP($A$3,'G9-RL4'!$A$6:$AM$500,14,FALSE))&")")),"NA") -> 29% (1219) | L12: =IFERROR((IF($C12="NA","NA",VLOOKUP($A$3,'G9-RL4'!$A$6:$AM$500,16,FALSE))),"NA") -> 4.88015873 | M12: =IFERROR((IF($C12="NA","NA",ROUND(VLOOKUP($A$3,'G9-RL4'!$A$6:$AM$500,18,FALSE),0)&"% ("&IF(VLOOKUP($A$3,'G9-RL4'!$A$6:$AM$500,17,FALSE)="",0,VLOOKUP($A$3,'G9-RL4'!$A$6:$AM$500,17,FALSE))&")")),"NA") -> 39% (1630) | Q12: =IFERROR(VLOOKUP($A$3,'G9-RL4'!$A$6:$BX$500,3,FALSE),"not tested") -> 4158 | S12: =SUM(VLOOKUP($A$3,'GEO-L4'!$A$14:$BX$500,4,FALSE)*$Q12,VLOOKUP($A$3,'GEO-L4'!$A$14:$BX$500,41,FALSE)*$R12)/SUM($Q12,$R12) -> 13.33695557 | T12: =SUM(VLOOKUP($A$3,'GEO-L4'!$A$14:$BX$500,7,FALSE),VLOOKUP($A$3,'GEO-L4'!$A$14:$BX$500,44,FALSE))/SUM($Q12:$R12)*100 -> 0.2324990842 | U12: =SUM(VLOOKUP($A$3,'GEO-L4'!$A$14:$BX$500,7,FALSE),VLOOKUP($A$3,'GEO-L4'!$A$14:$BX$500,44,FALSE)) -> 9.667311923 | V12: =SUM(VLOOKUP($A$3,'GEO-L4'!$A$14:$BX$500,10,FALSE)*$Q12,VLOOKUP($A$3,'GEO-L4'!$A$14:$BX$500,47,FALSE)*$R12)/SUM($Q12,$R12) -> 1.318939727 | W12: =SUM(VLOOKUP($A$3,'GEO-L4'!$A$14:$BX$500,8,FALSE),VLOOKUP($A$3,'GEO-L4'!$A$14:$BX$500,50,FALSE))/SUM($Q12:$R12)*100 -> 0.1202501203 | X12: =SUM(VLOOKUP($A$3,'GEO-L4'!$A$14:$BX$500,8,FALSE),VLOOKUP($A$3,'GEO-L4'!$A$14:$BX$500,50,FALSE)) -> 5 | Y12: =SUM(VLOOKUP($A$3,'GEO-L4'!$A$14:$BX$500,16,FALSE)*$Q12,VLOOKUP($A$3,'GEO-L4'!$A$14:$BX$500,53,FALSE)*$R12)/SUM($Q12,$R12) -> 0 | Z12: =SUM(VLOOKUP($A$3,'GEO-L4'!$A$14:$BX$500,19,FALSE),VLOOKUP($A$3,'GEO-L4'!$A$14:$BX$500,56,FALSE))/SUM($Q12:$R12)*100 -> 0 | AA12: =SUM(VLOOKUP($A$3,'GEO-L4'!$A$14:$BX$500,19,FALSE),VLOOKUP($A$3,'GEO-L4'!$A$14:$BX$500,56,FALSE)) -> 0 | AB12: =SUM(VLOOKUP($A$3,'GEO-L4'!$A$14:$BX$500,22,FALSE)*$Q12,VLOOKUP($A$3,'GEO-L4'!$A$14:$BX$500,59,FALSE)*$R12)/SUM($Q12,$R12) -> 0 | AC12: =SUM(VLOOKUP($A$3,'GEO-L4'!$A$14:$BX$500,25,FALSE),VLOOKUP($A$3,'GEO-L4'!$A$14:$BX$500,62,FALSE))/SUM($Q12:$R12)*100 -> 0 | AD12: =SUM(VLOOKUP($A$3,'GEO-L4'!$A$14:$BX$500,25,FALSE),VLOOKUP($A$3,'GEO-L4'!$A$14:$BX$500,62,FALSE)) -> 0 | AE12: =SUM(VLOOKUP($A$3,'GEO-L4'!$A$14:$BX$500,28,FALSE)*$Q12,VLOOKUP($A$3,'GEO-L4'!$A$14:$BX$500,65,FALSE)*$R12)/SUM($Q12,$R12) -> 0 | AF12: =SUM(VLOOKUP($A$3,'GEO-L4'!$A$14:$BX$500,31,FALSE),VLOOKUP($A$3,'GEO-L4'!$A$14:$BX$500,68,FALSE))/SUM($Q12:$R12)*100 -> 0 | AG12: =SUM(VLOOKUP($A$3,'GEO-L4'!$A$14:$BX$500,31,FALSE),VLOOKUP($A$3,'GEO-L4'!$A$14:$BX$500,68,FALSE)) -> 0 | AH12: =SUM(VLOOKUP($A$3,'GEO-L4'!$A$14:$BX$500,34,FALSE)*$Q12,VLOOKUP($A$3,'GEO-L4'!$A$14:$BX$500,71,FALSE)*$R12)/SUM($Q12,$R12) -> 0 | AI12: =SUM(VLOOKUP($A$3,'GEO-L4'!$A$14:$BX$500,37,FALSE),VLOOKUP($A$3,'GEO-L4'!$A$14:$BX$500,74,FALSE))/SUM($Q12:$R12)*100 -> 0 | AJ12: =SUM(VLOOKUP($A$3,'GEO-L4'!$A$14:$BX$500,37,FALSE),VLOOKUP($A$3,'GEO-L4'!$A$14:$BX$500,74,FALSE)) -> 0
A13: FCAT Level 5 | B13: =IFERROR(VLOOKUP(TEXT($A$3,"0000"),MEM_RL5!$A$2:$S$500,9,FALSE),0) -> 2633 | C13: =IFERROR((IF(OR(B13=0,B13="",B13="NA"),"NA",((IF(VLOOKUP($A$3,'G9-RL5'!$A$6:$AM$500,3,FALSE)>=B13,"100% ("&VLOOKUP($A$3,'G9-RL5'!$A$6:$AM$500,3,FALSE)&")",(ROUND((VLOOKUP($A$3,'G9-RL5'!$A$6:$AM$500,3,FALSE)/B13*100),0))&"% ("&IF(VLOOKUP($A$3,'G9-RL5'!$A$6:$AM$500,3,FALSE)="",0,VLOOKUP($A$3,'G9-RL5'!$A$6:$AM$500,3,FALSE))&")"))))),"0% (0)") -> 95% (2505) | D13: =IFERROR((IF($C13="NA","NA",VLOOKUP($A$3,'G9-RL5'!$A$6:$AM$500,4,FALSE))),"NA") -> 33.9489022 | E13: =IFERROR((IF($C13="NA","NA",ROUND(VLOOKUP($A$3,'G9-RL5'!$A$6:$AM$500,6,FALSE),0)&"% ("&IF(VLOOKUP($A$3,'G9-RL5'!$A$6:$AM$500,5,FALSE)="",0,VLOOKUP($A$3,'G9-RL5'!$A$6:$AM$500,5,FALSE))&")")),"NA") -> 82% (2053) | F13: =IFERROR((IF($C13="NA","NA",VLOOKUP($A$3,'G9-RL5'!$A$6:$AM$500,7,FALSE))),"NA") -> 5.61249501 | G13: =IFERROR((IF($C13="NA","NA",ROUND(VLOOKUP($A$3,'G9-RL5'!$A$6:$AM$500,9,FALSE),0)&"% ("&IF(VLOOKUP($A$3,'G9-RL5'!$A$6:$AM$500,8,FALSE)="",0,VLOOKUP($A$3,'G9-RL5'!$A$6:$AM$500,8,FALSE))&")")),"NA") -> 86% (2147) | H13: =IFERROR((IF($C13="NA","NA",VLOOKUP($A$3,'G9-RL5'!$A$6:$AM$500,10,FALSE))),"NA") -> 18.30011976 | I13: =IFERROR((IF($C13="NA","NA",ROUND(VLOOKUP($A$3,'G9-RL5'!$A$6:$AM$500,12,FALSE),0)&"% ("&IF(VLOOKUP($A$3,'G9-RL5'!$A$6:$AM$500,11,FALSE)="",0,VLOOKUP($A$3,'G9-RL5'!$A$6:$AM$500,11,FALSE))&")")),"NA") -> 88% (2192) | J13: =IFERROR((IF($C13="NA","NA",VLOOKUP($A$3,'G9-RL5'!$A$6:$AM$500,13,FALSE))),"NA") -> 4.300878244 | K13: =IFERROR((IF($C13="NA","NA",ROUND(VLOOKUP($A$3,'G9-RL5'!$A$6:$AM$500,15,FALSE),0)&"% ("&IF(VLOOKUP($A$3,'G9-RL5'!$A$6:$AM$500,14,FALSE)="",0,VLOOKUP($A$3,'G9-RL5'!$A$6:$AM$500,14,FALSE))&")")),"NA") -> 46% (1164) | L13: =IFERROR((IF($C13="NA","NA",VLOOKUP($A$3,'G9-RL5'!$A$6:$AM$500,16,FALSE))),"NA") -> 5.718003992 | M13: =IFERROR((IF($C13="NA","NA",ROUND(VLOOKUP($A$3,'G9-RL5'!$A$6:$AM$500,18,FALSE),0)&"% ("&IF(VLOOKUP($A$3,'G9-RL5'!$A$6:$AM$500,17,FALSE)="",0,VLOOKUP($A$3,'G9-RL5'!$A$6:$AM$500,17,FALSE))&")")),"NA") -> 62% (1546) | Q13: =IFERROR(VLOOKUP($A$3,'G9-RL5'!$A$6:$BX$500,3,FALSE),"not tested") -> 2505 | S13: =SUM(VLOOKUP($A$3,'GEO-L5'!$A$14:$BX$500,4,FALSE)*$Q13,VLOOKUP($A$3,'GEO-L5'!$A$14:$BX$500,41,FALSE)*$R13)/SUM($Q13,$R13) -> 16.17224453 | T13: =SUM(VLOOKUP($A$3,'GEO-L5'!$A$14:$BX$500,7,FALSE),VLOOKUP($A$3,'GEO-L5'!$A$14:$BX$500,44,FALSE))/SUM($Q13:$R13)*100 -> 0.4664780212 | U13: =SUM(VLOOKUP($A$3,'GEO-L5'!$A$14:$BX$500,7,FALSE),VLOOKUP($A$3,'GEO-L5'!$A$14:$BX$500,44,FALSE)) -> 11.68527443 | V13: =SUM(VLOOKUP($A$3,'GEO-L5'!$A$14:$BX$500,10,FALSE)*$Q13,VLOOKUP($A$3,'GEO-L5'!$A$14:$BX$500,47,FALSE)*$R13)/SUM($Q13,$R13) -> 1.487639447 | W13: =SUM(VLOOKUP($A$3,'GEO-L5'!$A$14:$BX$500,8,FALSE),VLOOKUP($A$3,'GEO-L5'!$A$14:$BX$500,50,FALSE))/SUM($Q13:$R13)*100 -> 2.51497006 | X13: =SUM(VLOOKUP($A$3,'GEO-L5'!$A$14:$BX$500,8,FALSE),VLOOKUP($A$3,'GEO-L5'!$A$14:$BX$500,50,FALSE)) -> 63 | Y13: =SUM(VLOOKUP($A$3,'GEO-L5'!$A$14:$BX$500,16,FALSE)*$Q13,VLOOKUP($A$3,'GEO-L5'!$A$14:$BX$500,53,FALSE)*$R13)/SUM($Q13,$R13) -> 0 | Z13: =SUM(VLOOKUP($A$3,'GEO-L5'!$A$14:$BX$500,19,FALSE),VLOOKUP($A$3,'GEO-L5'!$A$14:$BX$500,56,FALSE))/SUM($Q13:$R13)*100 -> 0 | AA13: =SUM(VLOOKUP($A$3,'GEO-L5'!$A$14:$BX$500,19,FALSE),VLOOKUP($A$3,'GEO-L5'!$A$14:$BX$500,56,FALSE)) -> 0 | AB13: =SUM(VLOOKUP($A$3,'GEO-L5'!$A$14:$BX$500,22,FALSE)*$Q13,VLOOKUP($A$3,'GEO-L5'!$A$14:$BX$500,59,FALSE)*$R13)/SUM($Q13,$R13) -> 0 | AC13: =SUM(VLOOKUP($A$3,'GEO-L5'!$A$14:$BX$500,25,FALSE),VLOOKUP($A$3,'GEO-L5'!$A$14:$BX$500,62,FALSE))/SUM($Q13:$R13)*100 -> 0 | AD13: =SUM(VLOOKUP($A$3,'GEO-L5'!$A$14:$BX$500,25,FALSE),VLOOKUP($A$3,'GEO-L5'!$A$14:$BX$500,62,FALSE)) -> 0 | AE13: =SUM(VLOOKUP($A$3,'GEO-L5'!$A$14:$BX$500,28,FALSE)*$Q13,VLOOKUP($A$3,'GEO-L5'!$A$14:$BX$500,65,FALSE)*$R13)/SUM($Q13,$R13) -> 0 | AF13: =SUM(VLOOKUP($A$3,'GEO-L5'!$A$14:$BX$500,31,FALSE),VLOOKUP($A$3,'GEO-L5'!$A$14:$BX$500,68,FALSE))/SUM($Q13:$R13)*100 -> 0 | AG13: =SUM(VLOOKUP($A$3,'GEO-L5'!$A$14:$BX$500,31,FALSE),VLOOKUP($A$3,'GEO-L5'!$A$14:$BX$500,68,FALSE)) -> 0 | AH13: =SUM(VLOOKUP($A$3,'GEO-L5'!$A$14:$BX$500,34,FALSE)*$Q13,VLOOKUP($A$3,'GEO-L5'!$A$14:$BX$500,71,FALSE)*$R13)/SUM($Q13,$R13) -> 0 | AI13: =SUM(VLOOKUP($A$3,'GEO-L5'!$A$14:$BX$500,37,FALSE),VLOOKUP($A$3,'GEO-L5'!$A$14:$BX$500,74,FALSE))/SUM($Q13:$R13)*100 -> 0 | AJ13: =SUM(VLOOKUP($A$3,'GEO-L5'!$A$14:$BX$500,37,FALSE),VLOOKUP($A$3,'GEO-L5'!$A$14:$BX$500,74,FALSE)) -> 0
A14: White | B14: =IFERROR(VLOOKUP(TEXT($A$3,"0000"),MEM_W!$A$2:$S$500,13,FALSE),0) -> 2374 | C14: =IFERROR((IF(OR(B14=0,B14="",B14="NA"),"NA",((IF(VLOOKUP($A$3,'G9-RW'!$A$6:$AM$500,3,FALSE)>=B14,"100% ("&VLOOKUP($A$3,'G9-RW'!$A$6:$AM$500,3,FALSE)&")",(ROUND((VLOOKUP($A$3,'G9-RW'!$A$6:$AM$500,3,FALSE)/B14*100),0))&"% ("&IF(VLOOKUP($A$3,'G9-RW'!$A$6:$AM$500,3,FALSE)="",0,VLOOKUP($A$3,'G9-RW'!$A$6:$AM$500,3,FALSE))&")"))))),"0% (0)") -> 90% (2144) | D14: =IFERROR((IF($C14="NA","NA",VLOOKUP($A$3,'G9-RW'!$A$6:$AM$500,4,FALSE))),"NA") -> 27.24435634 | E14: =IFERROR((IF($C14="NA","NA",ROUND(VLOOKUP($A$3,'G9-RW'!$A$6:$AM$500,6,FALSE),0)&"% ("&IF(VLOOKUP($A$3,'G9-RW'!$A$6:$AM$500,5,FALSE)="",0,VLOOKUP($A$3,'G9-RW'!$A$6:$AM$500,5,FALSE))&")")),"NA") -> 41% (887) | F14: =IFERROR((IF($C14="NA","NA",VLOOKUP($A$3,'G9-RW'!$A$6:$AM$500,7,FALSE))),"NA") -> 4.631203358 | G14: =IFERROR((IF($C14="NA","NA",ROUND(VLOOKUP($A$3,'G9-RW'!$A$6:$AM$500,9,FALSE),0)&"% ("&IF(VLOOKUP($A$3,'G9-RW'!$A$6:$AM$500,8,FALSE)="",0,VLOOKUP($A$3,'G9-RW'!$A$6:$AM$500,8,FALSE))&")")),"NA") -> 58% (1242) | H14: =IFERROR((IF($C14="NA","NA",VLOOKUP($A$3,'G9-RW'!$A$6:$AM$500,10,FALSE))),"NA") -> 14.6579291 | I14: =IFERROR((IF($C14="NA","NA",ROUND(VLOOKUP($A$3,'G9-RW'!$A$6:$AM$500,12,FALSE),0)&"% ("&IF(VLOOKUP($A$3,'G9-RW'!$A$6:$AM$500,11,FALSE)="",0,VLOOKUP($A$3,'G9-RW'!$A$6:$AM$500,11,FALSE))&")")),"NA") -> 50% (1071) | J14: =IFERROR((IF($C14="NA","NA",VLOOKUP($A$3,'G9-RW'!$A$6:$AM$500,13,FALSE))),"NA") -> 3.577052239 | K14: =IFERROR((IF($C14="NA","NA",ROUND(VLOOKUP($A$3,'G9-RW'!$A$6:$AM$500,15,FALSE),0)&"% ("&IF(VLOOKUP($A$3,'G9-RW'!$A$6:$AM$500,14,FALSE)="",0,VLOOKUP($A$3,'G9-RW'!$A$6:$AM$500,14,FALSE))&")")),"NA") -> 27% (570) | L14: =IFERROR((IF($C14="NA","NA",VLOOKUP($A$3,'G9-RW'!$A$6:$AM$500,16,FALSE))),"NA") -> 4.392630597 | M14: =IFERROR((IF($C14="NA","NA",ROUND(VLOOKUP($A$3,'G9-RW'!$A$6:$AM$500,18,FALSE),0)&"% ("&IF(VLOOKUP($A$3,'G9-RW'!$A$6:$AM$500,17,FALSE)="",0,VLOOKUP($A$3,'G9-RW'!$A$6:$AM$500,17,FALSE))&")")),"NA") -> 34% (721) | Q14: =IFERROR(VLOOKUP($A$3,'G9-RW'!$A$6:$BX$500,3,FALSE),"not tested") -> 2144 | S14: =SUM(VLOOKUP($A$3,'GEO-W'!$A$14:$BX$500,4,FALSE)*$Q14,VLOOKUP($A$3,'GEO-W'!$A$14:$BX$500,41,FALSE)*$R14)/SUM($Q14,$R14) -> 13.03186471 | T14: =SUM(VLOOKUP($A$3,'GEO-W'!$A$14:$BX$500,7,FALSE),VLOOKUP($A$3,'GEO-W'!$A$14:$BX$500,44,FALSE))/SUM($Q14:$R14)*100 -> 0.4376793436 | U14: =SUM(VLOOKUP($A$3,'GEO-W'!$A$14:$BX$500,7,FALSE),VLOOKUP($A$3,'GEO-W'!$A$14:$BX$500,44,FALSE)) -> 9.383845127 | V14: =SUM(VLOOKUP($A$3,'GEO-W'!$A$14:$BX$500,10,FALSE)*$Q14,VLOOKUP($A$3,'GEO-W'!$A$14:$BX$500,47,FALSE)*$R14)/SUM($Q14,$R14) -> 1.300178015 | W14: =SUM(VLOOKUP($A$3,'GEO-W'!$A$14:$BX$500,8,FALSE),VLOOKUP($A$3,'GEO-W'!$A$14:$BX$500,50,FALSE))/SUM($Q14:$R14)*100 -> 0.8395522388 | X14: =SUM(VLOOKUP($A$3,'GEO-W'!$A$14:$BX$500,8,FALSE),VLOOKUP($A$3,'GEO-W'!$A$14:$BX$500,50,FALSE)) -> 18 | Y14: =SUM(VLOOKUP($A$3,'GEO-W'!$A$14:$BX$500,16,FALSE)*$Q14,VLOOKUP($A$3,'GEO-W'!$A$14:$BX$500,53,FALSE)*$R14)/SUM($Q14,$R14) -> 0 | Z14: =SUM(VLOOKUP($A$3,'GEO-W'!$A$14:$BX$500,19,FALSE),VLOOKUP($A$3,'GEO-W'!$A$14:$BX$500,56,FALSE))/SUM($Q14:$R14)*100 -> 0 | AA14: =SUM(VLOOKUP($A$3,'GEO-W'!$A$14:$BX$500,19,FALSE),VLOOKUP($A$3,'GEO-W'!$A$14:$BX$500,56,FALSE)) -> 0 | AB14: =SUM(VLOOKUP($A$3,'GEO-W'!$A$14:$BX$500,22,FALSE)*$Q14,VLOOKUP($A$3,'GEO-W'!$A$14:$BX$500,59,FALSE)*$R14)/SUM($Q14,$R14) -> 0 | AC14: =SUM(VLOOKUP($A$3,'GEO-W'!$A$14:$BX$500,25,FALSE),VLOOKUP($A$3,'GEO-W'!$A$14:$BX$500,62,FALSE))/SUM($Q14:$R14)*100 -> 0 | AD14: =SUM(VLOOKUP($A$3,'GEO-W'!$A$14:$BX$500,25,FALSE),VLOOKUP($A$3,'GEO-W'!$A$14:$BX$500,62,FALSE)) -> 0 | AE14: =SUM(VLOOKUP($A$3,'GEO-W'!$A$14:$BX$500,28,FALSE)*$Q14,VLOOKUP($A$3,'GEO-W'!$A$14:$BX$500,65,FALSE)*$R14)/SUM($Q14,$R14) -> 0 | AF14: =SUM(VLOOKUP($A$3,'GEO-W'!$A$14:$BX$500,31,FALSE),VLOOKUP($A$3,'GEO-W'!$A$14:$BX$500,68,FALSE))/SUM($Q14:$R14)*100 -> 0 | AG14: =SUM(VLOOKUP($A$3,'GEO-W'!$A$14:$BX$500,31,FALSE),VLOOKUP($A$3,'GEO-W'!$A$14:$BX$500,68,FALSE)) -> 0 | AH14: =SUM(VLOOKUP($A$3,'GEO-W'!$A$14:$BX$500,34,FALSE)*$Q14,VLOOKUP($A$3,'GEO-W'!$A$14:$BX$500,71,FALSE)*$R14)/SUM($Q14,$R14) -> 0 | AI14: =SUM(VLOOKUP($A$3,'GEO-W'!$A$14:$BX$500,37,FALSE),VLOOKUP($A$3,'GEO-W'!$A$14:$BX$500,74,FALSE))/SUM($Q14:$R14)*100 -> 0 | AJ14: =SUM(VLOOKUP($A$3,'GEO-W'!$A$14:$BX$500,37,FALSE),VLOOKUP($A$3,'GEO-W'!$A$14:$BX$500,74,FALSE)) -> 0
A15: Black | B15: =IFERROR(VLOOKUP(TEXT($A$3,"0000"),MEM_B!$A$2:$S$500,13,FALSE),0) -> 6391 | C15: =IFERROR((IF(OR(B15=0,B15="",B15="NA"),"NA",((IF(VLOOKUP($A$3,'G9-RB'!$A$6:$AM$500,3,FALSE)>=B15,"100% ("&VLOOKUP($A$3,'G9-RB'!$A$6:$AM$500,3,FALSE)&")",(ROUND((VLOOKUP($A$3,'G9-RB'!$A$6:$AM$500,3,FALSE)/B15*100),0))&"% ("&IF(VLOOKUP($A$3,'G9-RB'!$A$6:$AM$500,3,FALSE)="",0,VLOOKUP($A$3,'G9-RB'!$A$6:$AM$500,3,FALSE))&")"))))),"0% (0)") -> 89% (5705) | D15: =IFERROR((IF($C15="NA","NA",VLOOKUP($A$3,'G9-RB'!$A$6:$AG$500,4,FALSE))),"NA") -> 20.69174408 | E15: =IFERROR((IF($C15="NA","NA",ROUND(VLOOKUP($A$3,'G9-RB'!$A$6:$AG$500,6,FALSE),0)&"% ("&IF(VLOOKUP($A$3,'G9-RB'!$A$6:$AG$500,5,FALSE)="",0,VLOOKUP($A$3,'G9-RB'!$A$6:$AG$500,5,FALSE))&")")),"NA") -> 13% (715) | F15: =IFERROR((IF($C15="NA","NA",VLOOKUP($A$3,'G9-RB'!$A$6:$AG$500,7,FALSE))),"NA") -> 3.523786152 | G15: =IFERROR((IF($C15="NA","NA",ROUND(VLOOKUP($A$3,'G9-RB'!$A$6:$AG$500,9,FALSE),0)&"% ("&IF(VLOOKUP($A$3,'G9-RB'!$A$6:$AG$500,8,FALSE)="",0,VLOOKUP($A$3,'G9-RB'!$A$6:$AG$500,8,FALSE))&")")),"NA") -> 29% (1647) | H15: =IFERROR((IF($C15="NA","NA",VLOOKUP($A$3,'G9-RB'!$A$6:$AG$500,10,FALSE))),"NA") -> 11.12376862 | I15: =IFERROR((IF($C15="NA","NA",ROUND(VLOOKUP($A$3,'G9-RB'!$A$6:$AG$500,12,FALSE),0)&"% ("&IF(VLOOKUP($A$3,'G9-RB'!$A$6:$AG$500,11,FALSE)="",0,VLOOKUP($A$3,'G9-RB'!$A$6:$AG$500,11,FALSE))&")")),"NA") -> 20% (1121) | J15: =IFERROR((IF($C15="NA","NA",VLOOKUP($A$3,'G9-RB'!$A$6:$AG$500,13,FALSE))),"NA") -> 2.70520596 | K15: =IFERROR((IF($C15="NA","NA",ROUND(VLOOKUP($A$3,'G9-RB'!$A$6:$AG$500,15,FALSE),0)&"% ("&IF(VLOOKUP($A$3,'G9-RB'!$A$6:$AG$500,14,FALSE)="",0,VLOOKUP($A$3,'G9-RB'!$A$6:$AG$500,14,FALSE))&")")),"NA") -> 10% (586) | L15: =IFERROR((IF($C15="NA","NA",VLOOKUP($A$3,'G9-RB'!$A$6:$AG$500,16,FALSE))),"NA") -> 3.321349693 | M15: =IFERROR((IF($C15="NA","NA",ROUND(VLOOKUP($A$3,'G9-RB'!$A$6:$AG$500,18,FALSE),0)&"% ("&IF(VLOOKUP($A$3,'G9-RB'!$A$6:$AG$500,17,FALSE)="",0,VLOOKUP($A$3,'G9-RB'!$A$6:$AG$500,17,FALSE))&")")),"NA") -> 14% (808) | Q15: =IFERROR(VLOOKUP($A$3,'G9-RB'!$A$6:$BX$500,3,FALSE),"not tested") -> 5705 | S15: =SUM(VLOOKUP($A$3,'GEO-B'!$A$14:$BX$500,4,FALSE)*$Q15,VLOOKUP($A$3,'GEO-B'!$A$14:$BX$500,41,FALSE)*$R15)/SUM($Q15,$R15) -> 10.85310416 | T15: =SUM(VLOOKUP($A$3,'GEO-B'!$A$14:$BX$500,7,FALSE),VLOOKUP($A$3,'GEO-B'!$A$14:$BX$500,44,FALSE))/SUM($Q15:$R15)*100 -> 0.1386743796 | U15: =SUM(VLOOKUP($A$3,'GEO-B'!$A$14:$BX$500,7,FALSE),VLOOKUP($A$3,'GEO-B'!$A$14:$BX$500,44,FALSE)) -> 7.911373354 | V15: =SUM(VLOOKUP($A$3,'GEO-B'!$A$14:$BX$500,10,FALSE)*$Q15,VLOOKUP($A$3,'GEO-B'!$A$14:$BX$500,47,FALSE)*$R15)/SUM($Q15,$R15) -> 1.050145374 | W15: =SUM(VLOOKUP($A$3,'GEO-B'!$A$14:$BX$500,8,FALSE),VLOOKUP($A$3,'GEO-B'!$A$14:$BX$500,50,FALSE))/SUM($Q15:$R15)*100 -> 0.07011393514 | X15: =SUM(VLOOKUP($A$3,'GEO-B'!$A$14:$BX$500,8,FALSE),VLOOKUP($A$3,'GEO-B'!$A$14:$BX$500,50,FALSE)) -> 4 | Y15: =SUM(VLOOKUP($A$3,'GEO-B'!$A$14:$BX$500,16,FALSE)*$Q15,VLOOKUP($A$3,'GEO-B'!$A$14:$BX$500,53,FALSE)*$R15)/SUM($Q15,$R15) -> 0 | Z15: =SUM(VLOOKUP($A$3,'GEO-B'!$A$14:$BX$500,19,FALSE),VLOOKUP($A$3,'GEO-B'!$A$14:$BX$500,56,FALSE))/SUM($Q15:$R15)*100 -> 0 | AA15: =SUM(VLOOKUP($A$3,'GEO-B'!$A$14:$BX$500,19,FALSE),VLOOKUP($A$3,'GEO-B'!$A$14:$BX$500,56,FALSE)) -> 0 | AB15: =SUM(VLOOKUP($A$3,'GEO-B'!$A$14:$BX$500,22,FALSE)*$Q15,VLOOKUP($A$3,'GEO-B'!$A$14:$BX$500,59,FALSE)*$R15)/SUM($Q15,$R15) -> 0 | AC15: =SUM(VLOOKUP($A$3,'GEO-B'!$A$14:$BX$500,25,FALSE),VLOOKUP($A$3,'GEO-B'!$A$14:$BX$500,62,FALSE))/SUM($Q15:$R15)*100 -> 0 | AD15: =SUM(VLOOKUP($A$3,'GEO-B'!$A$14:$BX$500,25,FALSE),VLOOKUP($A$3,'GEO-B'!$A$14:$BX$500,62,FALSE)) -> 0 | AE15: =SUM(VLOOKUP($A$3,'GEO-B'!$A$14:$BX$500,28,FALSE)*$Q15,VLOOKUP($A$3,'GEO-B'!$A$14:$BX$500,65,FALSE)*$R15)/SUM($Q15,$R15) -> 0 | AF15: =SUM(VLOOKUP($A$3,'GEO-B'!$A$14:$BX$500,31,FALSE),VLOOKUP($A$3,'GEO-B'!$A$14:$BX$500,68,FALSE))/SUM($Q15:$R15)*100 -> 0 | AG15: =SUM(VLOOKUP($A$3,'GEO-B'!$A$14:$BX$500,31,FALSE),VLOOKUP($A$3,'GEO-B'!$A$14:$BX$500,68,FALSE)) -> 0 | AH15: =SUM(VLOOKUP($A$3,'GEO-B'!$A$14:$BX$500,34,FALSE)*$Q15,VLOOKUP($A$3,'GEO-B'!$A$14:$BX$500,71,FALSE)*$R15)/SUM($Q15,$R15) -> 0 | AI15: =SUM(VLOOKUP($A$3,'GEO-B'!$A$14:$BX$500,37,FALSE),VLOOKUP($A$3,'GEO-B'!$A$14:$BX$500,74,FALSE))/SUM($Q15:$R15)*100 -> 0 | AJ15: =SUM(VLOOKUP($A$3,'GEO-B'!$A$14:$BX$500,37,FALSE),VLOOKUP($A$3,'GEO-B'!$A$14:$BX$500,74,FALSE)) -> 0
A16: Hispanic | B16: =IFERROR(VLOOKUP(TEXT($A$3,"0000"),MEM_H!$A$2:$S$500,13,FALSE),0) -> 18451 | C16: =IFERROR((IF(OR(B16=0,B16="",B16="NA"),"NA",((IF(VLOOKUP($A$3,'G9-RH'!$A$6:$AM$500,3,FALSE)>=B16,"100% ("&VLOOKUP($A$3,'G9-RH'!$A$6:$AM$500,3,FALSE)&")",(ROUND((VLOOKUP($A$3,'G9-RH'!$A$6:$AM$500,3,FALSE)/B16*100),0))&"% ("&IF(VLOOKUP($A$3,'G9-RH'!$A$6:$AM$500,3,FALSE)="",0,VLOOKUP($A$3,'G9-RH'!$A$6:$AM$500,3,FALSE))&")"))))),"0% (0)") -> 90% (16637) | D16: =IFERROR((IF($C16="NA","NA",VLOOKUP($A$3,'G9-RH'!$A$6:$AM$500,4,FALSE))),"NA") -> 22.89751157 | E16: =IFERROR((IF($C16="NA","NA",ROUND(VLOOKUP($A$3,'G9-RH'!$A$6:$AM$500,6,FALSE),0)&"% ("&IF(VLOOKUP($A$3,'G9-RH'!$A$6:$AM$500,5,FALSE)="",0,VLOOKUP($A$3,'G9-RH'!$A$6:$AM$500,5,FALSE))&")")),"NA") -> 24% (4027) | F16: =IFERROR((IF($C16="NA","NA",VLOOKUP($A$3,'G9-RH'!$A$6:$AM$500,7,FALSE))),"NA") -> 3.923501833 | G16: =IFERROR((IF($C16="NA","NA",ROUND(VLOOKUP($A$3,'G9-RH'!$A$6:$AM$500,9,FALSE),0)&"% ("&IF(VLOOKUP($A$3,'G9-RH'!$A$6:$AM$500,8,FALSE)="",0,VLOOKUP($A$3,'G9-RH'!$A$6:$AM$500,8,FALSE))&")")),"NA") -> 41% (6749) | H16: =IFERROR((IF($C16="NA","NA",VLOOKUP($A$3,'G9-RH'!$A$6:$AM$500,10,FALSE))),"NA") -> 12.31312136 | I16: =IFERROR((IF($C16="NA","NA",ROUND(VLOOKUP($A$3,'G9-RH'!$A$6:$AM$500,12,FALSE),0)&"% ("&IF(VLOOKUP($A$3,'G9-RH'!$A$6:$AM$500,11,FALSE)="",0,VLOOKUP($A$3,'G9-RH'!$A$6:$AM$500,11,FALSE))&")")),"NA") -> 32% (5315) | J16: =IFERROR((IF($C16="NA","NA",VLOOKUP($A$3,'G9-RH'!$A$6:$AM$500,13,FALSE))),"NA") -> 3.052347178 | K16: =IFERROR((IF($C16="NA","NA",ROUND(VLOOKUP($A$3,'G9-RH'!$A$6:$AM$500,15,FALSE),0)&"% ("&IF(VLOOKUP($A$3,'G9-RH'!$A$6:$AM$500,14,FALSE)="",0,VLOOKUP($A$3,'G9-RH'!$A$6:$AM$500,14,FALSE))&")")),"NA") -> 17% (2871) | L16: =IFERROR((IF($C16="NA","NA",VLOOKUP($A$3,'G9-RH'!$A$6:$AM$500,16,FALSE))),"NA") -> 3.608318807 | M16: =IFERROR((IF($C16="NA","NA",ROUND(VLOOKUP($A$3,'G9-RH'!$A$6:$AM$500,18,FALSE),0)&"% ("&IF(VLOOKUP($A$3,'G9-RH'!$A$6:$AM$500,17,FALSE)="",0,VLOOKUP($A$3,'G9-RH'!$A$6:$AM$500,17,FALSE))&")")),"NA") -> 20% (3274) | Q16: =IFERROR(VLOOKUP($A$3,'G9-RH'!$A$6:$BX$500,3,FALSE),"not tested") -> 16637 | S16: =SUM(VLOOKUP($A$3,'GEO-H'!$A$14:$BX$500,4,FALSE)*$Q16,VLOOKUP($A$3,'GEO-H'!$A$14:$BX$500,41,FALSE)*$R16)/SUM($Q16,$R16) -> 11.85077118 | T16: =SUM(VLOOKUP($A$3,'GEO-H'!$A$14:$BX$500,7,FALSE),VLOOKUP($A$3,'GEO-H'!$A$14:$BX$500,44,FALSE))/SUM($Q16:$R16)*100 -> 0.0517121443 | U16: =SUM(VLOOKUP($A$3,'GEO-H'!$A$14:$BX$500,7,FALSE),VLOOKUP($A$3,'GEO-H'!$A$14:$BX$500,44,FALSE)) -> 8.603349448 | V16: =SUM(VLOOKUP($A$3,'GEO-H'!$A$14:$BX$500,10,FALSE)*$Q16,VLOOKUP($A$3,'GEO-H'!$A$14:$BX$500,47,FALSE)*$R16)/SUM($Q16,$R16) -> 1.170908149 | W16: =SUM(VLOOKUP($A$3,'GEO-H'!$A$14:$BX$500,8,FALSE),VLOOKUP($A$3,'GEO-H'!$A$14:$BX$500,50,FALSE))/SUM($Q16:$R16)*100 -> 0.3967061369 | X16: =SUM(VLOOKUP($A$3,'GEO-H'!$A$14:$BX$500,8,FALSE),VLOOKUP($A$3,'GEO-H'!$A$14:$BX$500,50,FALSE)) -> 66 | Y16: =SUM(VLOOKUP($A$3,'GEO-H'!$A$14:$BX$500,16,FALSE)*$Q16,VLOOKUP($A$3,'GEO-H'!$A$14:$BX$500,53,FALSE)*$R16)/SUM($Q16,$R16) -> 0 | Z16: =SUM(VLOOKUP($A$3,'GEO-H'!$A$14:$BX$500,19,FALSE),VLOOKUP($A$3,'GEO-H'!$A$14:$BX$500,56,FALSE))/SUM($Q16:$R16)*100 -> 0 | AA16: =SUM(VLOOKUP($A$3,'GEO-H'!$A$14:$BX$500,19,FALSE),VLOOKUP($A$3,'GEO-H'!$A$14:$BX$500,56,FALSE)) -> 0 | AB16: =SUM(VLOOKUP($A$3,'GEO-H'!$A$14:$BX$500,22,FALSE)*$Q16,VLOOKUP($A$3,'GEO-H'!$A$14:$BX$500,59,FALSE)*$R16)/SUM($Q16,$R16) -> 0 | AC16: =SUM(VLOOKUP($A$3,'GEO-H'!$A$14:$BX$500,25,FALSE),VLOOKUP($A$3,'GEO-H'!$A$14:$BX$500,62,FALSE))/SUM($Q16:$R16)*100 -> 0 | AD16: =SUM(VLOOKUP($A$3,'GEO-H'!$A$14:$BX$500,25,FALSE),VLOOKUP($A$3,'GEO-H'!$A$14:$BX$500,62,FALSE)) -> 0 | AE16: =SUM(VLOOKUP($A$3,'GEO-H'!$A$14:$BX$500,28,FALSE)*$Q16,VLOOKUP($A$3,'GEO-H'!$A$14:$BX$500,65,FALSE)*$R16)/SUM($Q16,$R16) -> 0 | AF16: =SUM(VLOOKUP($A$3,'GEO-H'!$A$14:$BX$500,31,FALSE),VLOOKUP($A$3,'GEO-H'!$A$14:$BX$500,68,FALSE))/SUM($Q16:$R16)*100 -> 0 | AG16: =SUM(VLOOKUP($A$3,'GEO-H'!$A$14:$BX$500,31,FALSE),VLOOKUP($A$3,'GEO-H'!$A$14:$BX$500,68,FALSE)) -> 0 | AH16: =SUM(VLOOKUP($A$3,'GEO-H'!$A$14:$BX$500,34,FALSE)*$Q16,VLOOKUP($A$3,'GEO-H'!$A$14:$BX$500,71,FALSE)*$R16)/SUM($Q16,$R16) -> 0 | AI16: =SUM(VLOOKUP($A$3,'GEO-H'!$A$14:$BX$500,37,FALSE),VLOOKUP($A$3,'GEO-H'!$A$14:$BX$500,74,FALSE))/SUM($Q16:$R16)*100 -> 0 | AJ16: =SUM(VLOOKUP($A$3,'GEO-H'!$A$14:$BX$500,37,FALSE),VLOOKUP($A$3,'GEO-H'!$A$14:$BX$500,74,FALSE)) -> 0
A17: Asian | B17: =IFERROR(VLOOKUP(TEXT($A$3,"0000"),MEM_A!$A$2:$S$500,13,FALSE),0) -> 299 | C17: =IFERROR((IF(OR(B17=0,B17="",B17="NA"),"NA",((IF(VLOOKUP($A$3,'G9-RA'!$A$6:$AM$500,3,FALSE)>=B17,"100% ("&VLOOKUP($A$3,'G9-RA'!$A$6:$AM$500,3,FALSE)&")",(ROUND((VLOOKUP($A$3,'G9-RA'!$A$6:$AM$500,3,FALSE)/B17*100),0))&"% ("&IF(VLOOKUP($A$3,'G9-RA'!$A$6:$AM$500,3,FALSE)="",0,VLOOKUP($A$3,'G9-RA'!$A$6:$AM$500,3,FALSE))&")"))))),"0% (0)") -> 94% (282) | D17: =IFERROR((IF($C17="NA","NA",VLOOKUP($A$3,'G9-RA'!$A$6:$AM$500,4,FALSE))),"NA") -> 28.70070922 | E17: =IFERROR((IF($C17="NA","NA",ROUND(VLOOKUP($A$3,'G9-RA'!$A$6:$AM$500,6,FALSE),0)&"% ("&IF(VLOOKUP($A$3,'G9-RA'!$A$6:$AM$500,5,FALSE)="",0,VLOOKUP($A$3,'G9-RA'!$A$6:$AM$500,5,FALSE))&")")),"NA") -> 48% (136) | F17: =IFERROR((IF($C17="NA","NA",VLOOKUP($A$3,'G9-RA'!$A$6:$AM$500,7,FALSE))),"NA") -> 4.761702128 | G17: =IFERROR((IF($C17="NA","NA",ROUND(VLOOKUP($A$3,'G9-RA'!$A$6:$AM$500,9,FALSE),0)&"% ("&IF(VLOOKUP($A$3,'G9-RA'!$A$6:$AM$500,8,FALSE)="",0,VLOOKUP($A$3,'G9-RA'!$A$6:$AM$500,8,FALSE))&")")),"NA") -> 61% (172) | H17: =IFERROR((IF($C17="NA","NA",VLOOKUP($A$3,'G9-RA'!$A$6:$AM$500,10,FALSE))),"NA") -> 15.47446809 | I17: =IFERROR((IF($C17="NA","NA",ROUND(VLOOKUP($A$3,'G9-RA'!$A$6:$AM$500,12,FALSE),0)&"% ("&IF(VLOOKUP($A$3,'G9-RA'!$A$6:$AM$500,11,FALSE)="",0,VLOOKUP($A$3,'G9-RA'!$A$6:$AM$500,11,FALSE))&")")),"NA") -> 56% (159) | J17: =IFERROR((IF($C17="NA","NA",VLOOKUP($A$3,'G9-RA'!$A$6:$AM$500,13,FALSE))),"NA") -> 3.739361702 | K17: =IFERROR((IF($C17="NA","NA",ROUND(VLOOKUP($A$3,'G9-RA'!$A$6:$AM$500,15,FALSE),0)&"% ("&IF(VLOOKUP($A$3,'G9-RA'!$A$6:$AM$500,14,FALSE)="",0,VLOOKUP($A$3,'G9-RA'!$A$6:$AM$500,14,FALSE))&")")),"NA") -> 35% (99) | L17: =IFERROR((IF($C17="NA","NA",VLOOKUP($A$3,'G9-RA'!$A$6:$AM$500,16,FALSE))),"NA") -> 4.75106383 | M17: =IFERROR((IF($C17="NA","NA",ROUND(VLOOKUP($A$3,'G9-RA'!$A$6:$AM$500,18,FALSE),0)&"% ("&IF(VLOOKUP($A$3,'G9-RA'!$A$6:$AM$500,17,FALSE)="",0,VLOOKUP($A$3,'G9-RA'!$A$6:$AM$500,17,FALSE))&")")),"NA") -> 37% (105) | Q17: =IFERROR(VLOOKUP($A$3,'G9-RA'!$A$6:$BX$500,3,FALSE),"not tested") -> 282 | S17: =SUM(VLOOKUP($A$3,'GEO-A'!$A$14:$BX$500,4,FALSE)*$Q17,VLOOKUP($A$3,'GEO-A'!$A$14:$BX$500,41,FALSE)*$R17)/SUM($Q17,$R17) -> 14.04966667 | T17: =SUM(VLOOKUP($A$3,'GEO-A'!$A$14:$BX$500,7,FALSE),VLOOKUP($A$3,'GEO-A'!$A$14:$BX$500,44,FALSE))/SUM($Q17:$R17)*100 -> 3.628605201 | U17: =SUM(VLOOKUP($A$3,'GEO-A'!$A$14:$BX$500,7,FALSE),VLOOKUP($A$3,'GEO-A'!$A$14:$BX$500,44,FALSE)) -> 10.23266667 | V17: =SUM(VLOOKUP($A$3,'GEO-A'!$A$14:$BX$500,10,FALSE)*$Q17,VLOOKUP($A$3,'GEO-A'!$A$14:$BX$500,47,FALSE)*$R17)/SUM($Q17,$R17) -> 1.304666667 | W17: =SUM(VLOOKUP($A$3,'GEO-A'!$A$14:$BX$500,8,FALSE),VLOOKUP($A$3,'GEO-A'!$A$14:$BX$500,50,FALSE))/SUM($Q17:$R17)*100 -> 2.127659574 | X17: =SUM(VLOOKUP($A$3,'GEO-A'!$A$14:$BX$500,8,FALSE),VLOOKUP($A$3,'GEO-A'!$A$14:$BX$500,50,FALSE)) -> 6 | Y17: =SUM(VLOOKUP($A$3,'GEO-A'!$A$14:$BX$500,16,FALSE)*$Q17,VLOOKUP($A$3,'GEO-A'!$A$14:$BX$500,53,FALSE)*$R17)/SUM($Q17,$R17) -> 0 | Z17: =SUM(VLOOKUP($A$3,'GEO-A'!$A$14:$BX$500,19,FALSE),VLOOKUP($A$3,'GEO-A'!$A$14:$BX$500,56,FALSE))/SUM($Q17:$R17)*100 -> 0 | AA17: =SUM(VLOOKUP($A$3,'GEO-A'!$A$14:$BX$500,19,FALSE),VLOOKUP($A$3,'GEO-A'!$A$14:$BX$500,56,FALSE)) -> 0 | AB17: =SUM(VLOOKUP($A$3,'GEO-A'!$A$14:$BX$500,22,FALSE)*$Q17,VLOOKUP($A$3,'GEO-A'!$A$14:$BX$500,59,FALSE)*$R17)/SUM($Q17,$R17) -> 0 | AC17: =SUM(VLOOKUP($A$3,'GEO-A'!$A$14:$BX$500,25,FALSE),VLOOKUP($A$3,'GEO-A'!$A$14:$BX$500,62,FALSE))/SUM($Q17:$R17)*100 -> 0 | AD17: =SUM(VLOOKUP($A$3,'GEO-A'!$A$14:$BX$500,25,FALSE),VLOOKUP($A$3,'GEO-A'!$A$14:$BX$500,62,FALSE)) -> 0 | AE17: =SUM(VLOOKUP($A$3,'GEO-A'!$A$14:$BX$500,28,FALSE)*$Q17,VLOOKUP($A$3,'GEO-A'!$A$14:$BX$500,65,FALSE)*$R17)/SUM($Q17,$R17) -> 0 | AF17: =SUM(VLOOKUP($A$3,'GEO-A'!$A$14:$BX$500,31,FALSE),VLOOKUP($A$3,'GEO-A'!$A$14:$BX$500,68,FALSE))/SUM($Q17:$R17)*100 -> 0 | AG17: =SUM(VLOOKUP($A$3,'GEO-A'!$A$14:$BX$500,31,FALSE),VLOOKUP($A$3,'GEO-A'!$A$14:$BX$500,68,FALSE)) -> 0 | AH17: =SUM(VLOOKUP($A$3,'GEO-A'!$A$14:$BX$500,34,FALSE)*$Q17,VLOOKUP($A$3,'GEO-A'!$A$14:$BX$500,71,FALSE)*$R17)/SUM($Q17,$R17) -> 0 | AI17: =SUM(VLOOKUP($A$3,'GEO-A'!$A$14:$BX$500,37,FALSE),VLOOKUP($A$3,'GEO-A'!$A$14:$BX$500,74,FALSE))/SUM($Q17:$R17)*100 -> 0 | AJ17: =SUM(VLOOKUP($A$3,'GEO-A'!$A$14:$BX$500,37,FALSE),VLOOKUP($A$3,'GEO-A'!$A$14:$BX$500,74,FALSE)) -> 0
A18: Am. Indian | B18: =IFERROR(VLOOKUP(TEXT($A$3,"0000"),MEM_I!$A$2:$S$500,13,FALSE),0) -> 33 | C18: =IFERROR((IF(OR(B18=0,B18="",B18="NA"),"NA",((IF(VLOOKUP($A$3,'G9-RI'!$A$6:$AM$500,3,FALSE)>=B18,"100% ("&VLOOKUP($A$3,'G9-RI'!$A$6:$AM$500,3,FALSE)&")",(ROUND((VLOOKUP($A$3,'G9-RI'!$A$6:$AM$500,3,FALSE)/B18*100),0))&"% ("&IF(VLOOKUP($A$3,'G9-RI'!$A$6:$AM$500,3,FALSE)="",0,VLOOKUP($A$3,'G9-RI'!$A$6:$AM$500,3,FALSE))&")"))))),"0% (0)") -> 91% (30) | D18: =IFERROR((IF($C18="NA","NA",VLOOKUP($A$3,'G9-RI'!$A$6:$AM$500,4,FALSE))),"NA") -> 24.99666667 | E18: =IFERROR((IF($C18="NA","NA",ROUND(VLOOKUP($A$3,'G9-RI'!$A$6:$AM$500,6,FALSE),0)&"% ("&IF(VLOOKUP($A$3,'G9-RI'!$A$6:$AM$500,5,FALSE)="",0,VLOOKUP($A$3,'G9-RI'!$A$6:$AM$500,5,FALSE))&")")),"NA") -> 30% (9) | F18: =IFERROR((IF($C18="NA","NA",VLOOKUP($A$3,'G9-RI'!$A$6:$AM$500,7,FALSE))),"NA") -> 4.003333333 | G18: =IFERROR((IF($C18="NA","NA",ROUND(VLOOKUP($A$3,'G9-RI'!$A$6:$AM$500,9,FALSE),0)&"% ("&IF(VLOOKUP($A$3,'G9-RI'!$A$6:$AM$500,8,FALSE)="",0,VLOOKUP($A$3,'G9-RI'!$A$6:$AM$500,8,FALSE))&")")),"NA") -> 37% (11) | H18: =IFERROR((IF($C18="NA","NA",VLOOKUP($A$3,'G9-RI'!$A$6:$AM$500,10,FALSE))),"NA") -> 13.61 | I18: =IFERROR((IF($C18="NA","NA",ROUND(VLOOKUP($A$3,'G9-RI'!$A$6:$AM$500,12,FALSE),0)&"% ("&IF(VLOOKUP($A$3,'G9-RI'!$A$6:$AM$500,11,FALSE)="",0,VLOOKUP($A$3,'G9-RI'!$A$6:$AM$500,11,FALSE))&")")),"NA") -> 27% (8) | J18: =IFERROR((IF($C18="NA","NA",VLOOKUP($A$3,'G9-RI'!$A$6:$AM$500,13,FALSE))),"NA") -> 3.2 | K18: =IFERROR((IF($C18="NA","NA",ROUND(VLOOKUP($A$3,'G9-RI'!$A$6:$AM$500,15,FALSE),0)&"% ("&IF(VLOOKUP($A$3,'G9-RI'!$A$6:$AM$500,14,FALSE)="",0,VLOOKUP($A$3,'G9-RI'!$A$6:$AM$500,14,FALSE))&")")),"NA") -> 17% (5) | L18: =IFERROR((IF($C18="NA","NA",VLOOKUP($A$3,'G9-RI'!$A$6:$AM$500,16,FALSE))),"NA") -> 4.206666667 | M18: =IFERROR((IF($C18="NA","NA",ROUND(VLOOKUP($A$3,'G9-RI'!$A$6:$AM$500,18,FALSE),0)&"% ("&IF(VLOOKUP($A$3,'G9-RI'!$A$6:$AM$500,17,FALSE)="",0,VLOOKUP($A$3,'G9-RI'!$A$6:$AM$500,17,FALSE))&")")),"NA") -> 30% (9) | Q18: =IFERROR(VLOOKUP($A$3,'G9-RI'!$A$6:$BX$500,3,FALSE),"not tested") -> 30 | S18: =SUM(VLOOKUP($A$3,'GEO-I'!$A$14:$BX$500,4,FALSE)*$Q18,VLOOKUP($A$3,'GEO-I'!$A$14:$BX$500,41,FALSE)*$R18)/SUM($Q18,$R18) -> 12.44482759 | T18: =SUM(VLOOKUP($A$3,'GEO-I'!$A$14:$BX$500,7,FALSE),VLOOKUP($A$3,'GEO-I'!$A$14:$BX$500,44,FALSE))/SUM($Q18:$R18)*100 -> 30.55172414 | U18: =SUM(VLOOKUP($A$3,'GEO-I'!$A$14:$BX$500,7,FALSE),VLOOKUP($A$3,'GEO-I'!$A$14:$BX$500,44,FALSE)) -> 9.165517241 | V18: =SUM(VLOOKUP($A$3,'GEO-I'!$A$14:$BX$500,10,FALSE)*$Q18,VLOOKUP($A$3,'GEO-I'!$A$14:$BX$500,47,FALSE)*$R18)/SUM($Q18,$R18) -> 0.9655172414 | W18: =SUM(VLOOKUP($A$3,'GEO-I'!$A$14:$BX$500,8,FALSE),VLOOKUP($A$3,'GEO-I'!$A$14:$BX$500,50,FALSE))/SUM($Q18:$R18)*100 -> 0 | X18: =SUM(VLOOKUP($A$3,'GEO-I'!$A$14:$BX$500,8,FALSE),VLOOKUP($A$3,'GEO-I'!$A$14:$BX$500,50,FALSE)) -> 0 | Y18: =SUM(VLOOKUP($A$3,'GEO-I'!$A$14:$BX$500,16,FALSE)*$Q18,VLOOKUP($A$3,'GEO-I'!$A$14:$BX$500,53,FALSE)*$R18)/SUM($Q18,$R18) -> 0 | Z18: =SUM(VLOOKUP($A$3,'GEO-I'!$A$14:$BX$500,19,FALSE),VLOOKUP($A$3,'GEO-I'!$A$14:$BX$500,56,FALSE))/SUM($Q18:$R18)*100 -> 0 | AA18: =SUM(VLOOKUP($A$3,'GEO-I'!$A$14:$BX$500,19,FALSE),VLOOKUP($A$3,'GEO-I'!$A$14:$BX$500,56,FALSE)) -> 0 | AB18: =SUM(VLOOKUP($A$3,'GEO-I'!$A$14:$BX$500,22,FALSE)*$Q18,VLOOKUP($A$3,'GEO-I'!$A$14:$BX$500,59,FALSE)*$R18)/SUM($Q18,$R18) -> 0 | AC18: =SUM(VLOOKUP($A$3,'GEO-I'!$A$14:$BX$500,25,FALSE),VLOOKUP($A$3,'GEO-I'!$A$14:$BX$500,62,FALSE))/SUM($Q18:$R18)*100 -> 0 | AD18: =SUM(VLOOKUP($A$3,'GEO-I'!$A$14:$BX$500,25,FALSE),VLOOKUP($A$3,'GEO-I'!$A$14:$BX$500,62,FALSE)) -> 0 | AE18: =SUM(VLOOKUP($A$3,'GEO-I'!$A$14:$BX$500,28,FALSE)*$Q18,VLOOKUP($A$3,'GEO-I'!$A$14:$BX$500,65,FALSE)*$R18)/SUM($Q18,$R18) -> 0 | AF18: =SUM(VLOOKUP($A$3,'GEO-I'!$A$14:$BX$500,31,FALSE),VLOOKUP($A$3,'GEO-I'!$A$14:$BX$500,68,FALSE))/SUM($Q18:$R18)*100 -> 0 | AG18: =SUM(VLOOKUP($A$3,'GEO-I'!$A$14:$BX$500,31,FALSE),VLOOKUP($A$3,'GEO-I'!$A$14:$BX$500,68,FALSE)) -> 0 | AH18: =SUM(VLOOKUP($A$3,'GEO-I'!$A$14:$BX$500,34,FALSE)*$Q18,VLOOKUP($A$3,'GEO-I'!$A$14:$BX$500,71,FALSE)*$R18)/SUM($Q18,$R18) -> 0 | AI18: =SUM(VLOOKUP($A$3,'GEO-I'!$A$14:$BX$500,37,FALSE),VLOOKUP($A$3,'GEO-I'!$A$14:$BX$500,74,FALSE))/SUM($Q18:$R18)*100 -> 0 | AJ18: =SUM(VLOOKUP($A$3,'GEO-I'!$A$14:$BX$500,37,FALSE),VLOOKUP($A$3,'GEO-I'!$A$14:$BX$500,74,FALSE)) -> 0
A19: ED | B19: =IFERROR(VLOOKUP(TEXT($A$3,"0000"),MEM_ED!$A$2:$S$500,13,FALSE),0) -> 21403 | C19: =IFERROR((IF(OR(B19=0,B19="",B19="NA"),"NA",((IF(VLOOKUP($A$3,'G9-RED'!$A$6:$AM$500,3,FALSE)>=B19,"100% ("&VLOOKUP($A$3,'G9-RED'!$A$6:$AM$500,3,FALSE)&")",(ROUND((VLOOKUP($A$3,'G9-RED'!$A$6:$AM$500,3,FALSE)/B19*100),0))&"% ("&IF(VLOOKUP($A$3,'G9-RED'!$A$6:$AM$500,3,FALSE)="",0,VLOOKUP($A$3,'G9-RED'!$A$6:$AM$500,3,FALSE))&")"))))),"0% (0)") -> 90% (19287) | D19: =IFERROR((IF($C19="NA","NA",VLOOKUP($A$3,'G9-RED'!$A$6:$AM$500,4,FALSE))),"NA") -> 21.713408 | E19: =IFERROR((IF($C19="NA","NA",ROUND(VLOOKUP($A$3,'G9-RED'!$A$6:$AM$500,6,FALSE),0)&"% ("&IF(VLOOKUP($A$3,'G9-RED'!$A$6:$AM$500,5,FALSE)="",0,VLOOKUP($A$3,'G9-RED'!$A$6:$AM$500,5,FALSE))&")")),"NA") -> 18% (3557) | F19: =IFERROR((IF($C19="NA","NA",VLOOKUP($A$3,'G9-RED'!$A$6:$AM$500,7,FALSE))),"NA") -> 3.729574325 | G19: =IFERROR((IF($C19="NA","NA",ROUND(VLOOKUP($A$3,'G9-RED'!$A$6:$AM$500,9,FALSE),0)&"% ("&IF(VLOOKUP($A$3,'G9-RED'!$A$6:$AM$500,8,FALSE)="",0,VLOOKUP($A$3,'G9-RED'!$A$6:$AM$500,8,FALSE))&")")),"NA") -> 35% (6760) | H19: =IFERROR((IF($C19="NA","NA",VLOOKUP($A$3,'G9-RED'!$A$6:$AM$500,10,FALSE))),"NA") -> 11.67899103 | I19: =IFERROR((IF($C19="NA","NA",ROUND(VLOOKUP($A$3,'G9-RED'!$A$6:$AM$500,12,FALSE),0)&"% ("&IF(VLOOKUP($A$3,'G9-RED'!$A$6:$AM$500,11,FALSE)="",0,VLOOKUP($A$3,'G9-RED'!$A$6:$AM$500,11,FALSE))&")")),"NA") -> 26% (5016) | J19: =IFERROR((IF($C19="NA","NA",VLOOKUP($A$3,'G9-RED'!$A$6:$AM$500,13,FALSE))),"NA") -> 2.886488308 | K19: =IFERROR((IF($C19="NA","NA",ROUND(VLOOKUP($A$3,'G9-RED'!$A$6:$AM$500,15,FALSE),0)&"% ("&IF(VLOOKUP($A$3,'G9-RED'!$A$6:$AM$500,14,FALSE)="",0,VLOOKUP($A$3,'G9-RED'!$A$6:$AM$500,14,FALSE))&")")),"NA") -> 14% (2708) | L19: =IFERROR((IF($C19="NA","NA",VLOOKUP($A$3,'G9-RED'!$A$6:$AM$500,16,FALSE))),"NA") -> 3.42568051 | M19: =IFERROR((IF($C19="NA","NA",ROUND(VLOOKUP($A$3,'G9-RED'!$A$6:$AM$500,18,FALSE),0)&"% ("&IF(VLOOKUP($A$3,'G9-RED'!$A$6:$AM$500,17,FALSE)="",0,VLOOKUP($A$3,'G9-RED'!$A$6:$AM$500,17,FALSE))&")")),"NA") -> 16% (3153) | Q19: =IFERROR(VLOOKUP($A$3,'G9-RED'!$A$6:$BX$500,3,FALSE),"not tested") -> 19287 | S19: =SUM(VLOOKUP($A$3,'GEO-ED'!$A$14:$BX$500,4,FALSE)*$Q19,VLOOKUP($A$3,'GEO-ED'!$A$14:$BX$500,41,FALSE)*$R19)/SUM($Q19,$R19) -> 11.45635051 | T19: =SUM(VLOOKUP($A$3,'GEO-ED'!$A$14:$BX$500,7,FALSE),VLOOKUP($A$3,'GEO-ED'!$A$14:$BX$500,44,FALSE))/SUM($Q19:$R19)*100 -> 0.04316048317 | U19: =SUM(VLOOKUP($A$3,'GEO-ED'!$A$14:$BX$500,7,FALSE),VLOOKUP($A$3,'GEO-ED'!$A$14:$BX$500,44,FALSE)) -> 8.324362389 | V19: =SUM(VLOOKUP($A$3,'GEO-ED'!$A$14:$BX$500,10,FALSE)*$Q19,VLOOKUP($A$3,'GEO-ED'!$A$14:$BX$500,47,FALSE)*$R19)/SUM($Q19,$R19) -> 1.121479054 | W19: =SUM(VLOOKUP($A$3,'GEO-ED'!$A$14:$BX$500,8,FALSE),VLOOKUP($A$3,'GEO-ED'!$A$14:$BX$500,50,FALSE))/SUM($Q19:$R19)*100 -> 0.274796495 | X19: =SUM(VLOOKUP($A$3,'GEO-ED'!$A$14:$BX$500,8,FALSE),VLOOKUP($A$3,'GEO-ED'!$A$14:$BX$500,50,FALSE)) -> 53 | Y19: =SUM(VLOOKUP($A$3,'GEO-ED'!$A$14:$BX$500,16,FALSE)*$Q19,VLOOKUP($A$3,'GEO-ED'!$A$14:$BX$500,53,FALSE)*$R19)/SUM($Q19,$R19) -> 0 | Z19: =SUM(VLOOKUP($A$3,'GEO-ED'!$A$14:$BX$500,19,FALSE),VLOOKUP($A$3,'GEO-ED'!$A$14:$BX$500,56,FALSE))/SUM($Q19:$R19)*100 -> 0 | AA19: =SUM(VLOOKUP($A$3,'GEO-ED'!$A$14:$BX$500,19,FALSE),VLOOKUP($A$3,'GEO-ED'!$A$14:$BX$500,56,FALSE)) -> 0 | AB19: =SUM(VLOOKUP($A$3,'GEO-ED'!$A$14:$BX$500,22,FALSE)*$Q19,VLOOKUP($A$3,'GEO-ED'!$A$14:$BX$500,59,FALSE)*$R19)/SUM($Q19,$R19) -> 0 | AC19: =SUM(VLOOKUP($A$3,'GEO-ED'!$A$14:$BX$500,25,FALSE),VLOOKUP($A$3,'GEO-ED'!$A$14:$BX$500,62,FALSE))/SUM($Q19:$R19)*100 -> 0 | AD19: =SUM(VLOOKUP($A$3,'GEO-ED'!$A$14:$BX$500,25,FALSE),VLOOKUP($A$3,'GEO-ED'!$A$14:$BX$500,62,FALSE)) -> 0 | AE19: =SUM(VLOOKUP($A$3,'GEO-ED'!$A$14:$BX$500,28,FALSE)*$Q19,VLOOKUP($A$3,'GEO-ED'!$A$14:$BX$500,65,FALSE)*$R19)/SUM($Q19,$R19) -> 0 | AF19: =SUM(VLOOKUP($A$3,'GEO-ED'!$A$14:$BX$500,31,FALSE),VLOOKUP($A$3,'GEO-ED'!$A$14:$BX$500,68,FALSE))/SUM($Q19:$R19)*100 -> 0 | AG19: =SUM(VLOOKUP($A$3,'GEO-ED'!$A$14:$BX$500,31,FALSE),VLOOKUP($A$3,'GEO-ED'!$A$14:$BX$500,68,FALSE)) -> 0 | AH19: =SUM(VLOOKUP($A$3,'GEO-ED'!$A$14:$BX$500,34,FALSE)*$Q19,VLOOKUP($A$3,'GEO-ED'!$A$14:$BX$500,71,FALSE)*$R19)/SUM($Q19,$R19) -> 0 | AI19: =SUM(VLOOKUP($A$3,'GEO-ED'!$A$14:$BX$500,37,FALSE),VLOOKUP($A$3,'GEO-ED'!$A$14:$BX$500,74,FALSE))/SUM($Q19:$R19)*100 -> 0 | AJ19: =SUM(VLOOKUP($A$3,'GEO-ED'!$A$14:$BX$500,37,FALSE),VLOOKUP($A$3,'GEO-ED'!$A$14:$BX$500,74,FALSE)) -> 0
A20: ELL | B20: =IFERROR(VLOOKUP(TEXT($A$3,"0000"),MEM_ELL!$A$2:$S$500,13,FALSE),0) -> 3685 | C20: =IFERROR((IF(OR(B20=0,B20="",B20="NA"),"NA",((IF(VLOOKUP($A$3,'G9-RELL'!$A$6:$AM$500,3,FALSE)>=B20,"100% ("&VLOOKUP($A$3,'G9-RELL'!$A$6:$AM$500,3,FALSE)&")",(ROUND((VLOOKUP($A$3,'G9-RELL'!$A$6:$AM$500,3,FALSE)/B20*100),0))&"% ("&IF(VLOOKUP($A$3,'G9-RELL'!$A$6:$AM$500,3,FALSE)="",0,VLOOKUP($A$3,'G9-RELL'!$A$6:$AM$500,3,FALSE))&")"))))),"0% (0)") -> 84% (3078) | D20: =IFERROR((IF($C20="NA","NA",VLOOKUP($A$3,'G9-RELL'!$A$6:$AM$500,4,FALSE))),"NA") -> 15.2985705 | E20: =IFERROR((IF($C20="NA","NA",ROUND(VLOOKUP($A$3,'G9-RELL'!$A$6:$AM$500,6,FALSE),0)&"% ("&IF(VLOOKUP($A$3,'G9-RELL'!$A$6:$AM$500,5,FALSE)="",0,VLOOKUP($A$3,'G9-RELL'!$A$6:$AM$500,5,FALSE))&")")),"NA") -> 4% (122) | F20: =IFERROR((IF($C20="NA","NA",VLOOKUP($A$3,'G9-RELL'!$A$6:$AM$500,7,FALSE))),"NA") -> 2.655295647 | G20: =IFERROR((IF($C20="NA","NA",ROUND(VLOOKUP($A$3,'G9-RELL'!$A$6:$AM$500,9,FALSE),0)&"% ("&IF(VLOOKUP($A$3,'G9-RELL'!$A$6:$AM$500,8,FALSE)="",0,VLOOKUP($A$3,'G9-RELL'!$A$6:$AM$500,8,FALSE))&")")),"NA") -> 13% (403) | H20: =IFERROR((IF($C20="NA","NA",VLOOKUP($A$3,'G9-RELL'!$A$6:$AM$500,10,FALSE))),"NA") -> 8.14619883 | I20: =IFERROR((IF($C20="NA","NA",ROUND(VLOOKUP($A$3,'G9-RELL'!$A$6:$AM$500,12,FALSE),0)&"% ("&IF(VLOOKUP($A$3,'G9-RELL'!$A$6:$AM$500,11,FALSE)="",0,VLOOKUP($A$3,'G9-RELL'!$A$6:$AM$500,11,FALSE))&")")),"NA") -> 7% (218) | J20: =IFERROR((IF($C20="NA","NA",VLOOKUP($A$3,'G9-RELL'!$A$6:$AM$500,13,FALSE))),"NA") -> 2.16634178 | K20: =IFERROR((IF($C20="NA","NA",ROUND(VLOOKUP($A$3,'G9-RELL'!$A$6:$AM$500,15,FALSE),0)&"% ("&IF(VLOOKUP($A$3,'G9-RELL'!$A$6:$AM$500,14,FALSE)="",0,VLOOKUP($A$3,'G9-RELL'!$A$6:$AM$500,14,FALSE))&")")),"NA") -> 6% (174) | L20: =IFERROR((IF($C20="NA","NA",VLOOKUP($A$3,'G9-RELL'!$A$6:$AM$500,16,FALSE))),"NA") -> 2.330734243 | M20: =IFERROR((IF($C20="NA","NA",ROUND(VLOOKUP($A$3,'G9-RELL'!$A$6:$AM$500,18,FALSE),0)&"% ("&IF(VLOOKUP($A$3,'G9-RELL'!$A$6:$AM$500,17,FALSE)="",0,VLOOKUP($A$3,'G9-RELL'!$A$6:$AM$500,17,FALSE))&")")),"NA") -> 3% (104) | Q20: =IFERROR(VLOOKUP($A$3,'G9-RELL'!$A$6:$BX$500,3,FALSE),"not tested") -> 3078 | S20: =SUM(VLOOKUP($A$3,'GEO-ELL'!$A$14:$BX$500,4,FALSE)*$Q20,VLOOKUP($A$3,'GEO-ELL'!$A$14:$BX$500,41,FALSE)*$R20)/SUM($Q20,$R20) -> 10.21745932 | T20: =SUM(VLOOKUP($A$3,'GEO-ELL'!$A$14:$BX$500,7,FALSE),VLOOKUP($A$3,'GEO-ELL'!$A$14:$BX$500,44,FALSE))/SUM($Q20:$R20)*100 -> 0.2459112715 | U20: =SUM(VLOOKUP($A$3,'GEO-ELL'!$A$14:$BX$500,7,FALSE),VLOOKUP($A$3,'GEO-ELL'!$A$14:$BX$500,44,FALSE)) -> 7.569148936 | V20: =SUM(VLOOKUP($A$3,'GEO-ELL'!$A$14:$BX$500,10,FALSE)*$Q20,VLOOKUP($A$3,'GEO-ELL'!$A$14:$BX$500,47,FALSE)*$R20)/SUM($Q20,$R20) -> 0.9928035044 | W20: =SUM(VLOOKUP($A$3,'GEO-ELL'!$A$14:$BX$500,8,FALSE),VLOOKUP($A$3,'GEO-ELL'!$A$14:$BX$500,50,FALSE))/SUM($Q20:$R20)*100 -> 0.1624431449 | X20: =SUM(VLOOKUP($A$3,'GEO-ELL'!$A$14:$BX$500,8,FALSE),VLOOKUP($A$3,'GEO-ELL'!$A$14:$BX$500,50,FALSE)) -> 5 | Y20: =SUM(VLOOKUP($A$3,'GEO-ELL'!$A$14:$BX$500,16,FALSE)*$Q20,VLOOKUP($A$3,'GEO-ELL'!$A$14:$BX$500,53,FALSE)*$R20)/SUM($Q20,$R20) -> 0 | Z20: =SUM(VLOOKUP($A$3,'GEO-ELL'!$A$14:$BX$500,19,FALSE),VLOOKUP($A$3,'GEO-ELL'!$A$14:$BX$500,56,FALSE))/SUM($Q20:$R20)*100 -> 0 | AA20: =SUM(VLOOKUP($A$3,'GEO-ELL'!$A$14:$BX$500,19,FALSE),VLOOKUP($A$3,'GEO-ELL'!$A$14:$BX$500,56,FALSE)) -> 0 | AB20: =SUM(VLOOKUP($A$3,'GEO-ELL'!$A$14:$BX$500,22,FALSE)*$Q20,VLOOKUP($A$3,'GEO-ELL'!$A$14:$BX$500,59,FALSE)*$R20)/SUM($Q20,$R20) -> 0 | AC20: =SUM(VLOOKUP($A$3,'GEO-ELL'!$A$14:$BX$500,25,FALSE),VLOOKUP($A$3,'GEO-ELL'!$A$14:$BX$500,62,FALSE))/SUM($Q20:$R20)*100 -> 0 | AD20: =SUM(VLOOKUP($A$3,'GEO-ELL'!$A$14:$BX$500,25,FALSE),VLOOKUP($A$3,'GEO-ELL'!$A$14:$BX$500,62,FALSE)) -> 0 | AE20: =SUM(VLOOKUP($A$3,'GEO-ELL'!$A$14:$BX$500,28,FALSE)*$Q20,VLOOKUP($A$3,'GEO-ELL'!$A$14:$BX$500,65,FALSE)*$R20)/SUM($Q20,$R20) -> 0 | AF20: =SUM(VLOOKUP($A$3,'GEO-ELL'!$A$14:$BX$500,31,FALSE),VLOOKUP($A$3,'GEO-ELL'!$A$14:$BX$500,68,FALSE))/SUM($Q20:$R20)*100 -> 0 | AG20: =SUM(VLOOKUP($A$3,'GEO-ELL'!$A$14:$BX$500,31,FALSE),VLOOKUP($A$3,'GEO-ELL'!$A$14:$BX$500,68,FALSE)) -> 0 | AH20: =SUM(VLOOKUP($A$3,'GEO-ELL'!$A$14:$BX$500,34,FALSE)*$Q20,VLOOKUP($A$3,'GEO-ELL'!$A$14:$BX$500,71,FALSE)*$R20)/SUM($Q20,$R20) -> 0 | AI20: =SUM(VLOOKUP($A$3,'GEO-ELL'!$A$14:$BX$500,37,FALSE),VLOOKUP($A$3,'GEO-ELL'!$A$14:$BX$500,74,FALSE))/SUM($Q20:$R20)*100 -> 0 | AJ20: =SUM(VLOOKUP($A$3,'GEO-ELL'!$A$14:$BX$500,37,FALSE),VLOOKUP($A$3,'GEO-ELL'!$A$14:$BX$500,74,FALSE)) -> 0
A21: SWD | B21: =IFERROR(VLOOKUP(TEXT($A$3,"0000"),MEM_SWD!$A$2:$S$500,13,FALSE),0) -> 2686 | C21: =IFERROR((IF(OR(B21=0,B21="",B21="NA"),"NA",((IF(VLOOKUP($A$3,'G9-RSWD'!$A$6:$AM$500,3,FALSE)>=B21,"100% ("&VLOOKUP($A$3,'G9-RSWD'!$A$6:$AM$500,3,FALSE)&")",(ROUND((VLOOKUP($A$3,'G9-RSWD'!$A$6:$AM$500,3,FALSE)/B21*100),0))&"% ("&IF(VLOOKUP($A$3,'G9-RSWD'!$A$6:$AM$500,3,FALSE)="",0,VLOOKUP($A$3,'G9-RSWD'!$A$6:$AM$500,3,FALSE))&")"))))),"0% (0)") -> 84% (2269) | D21: =IFERROR((IF($C21="NA","NA",VLOOKUP($A$3,'G9-RSWD'!$A$6:$AM$500,4,FALSE))),"NA") -> 16.67712649 | E21: =IFERROR((IF($C21="NA","NA",ROUND(VLOOKUP($A$3,'G9-RSWD'!$A$6:$AM$500,6,FALSE),0)&"% ("&IF(VLOOKUP($A$3,'G9-RSWD'!$A$6:$AM$500,5,FALSE)="",0,VLOOKUP($A$3,'G9-RSWD'!$A$6:$AM$500,5,FALSE))&")")),"NA") -> 6% (127) | F21: =IFERROR((IF($C21="NA","NA",VLOOKUP($A$3,'G9-RSWD'!$A$6:$AM$500,7,FALSE))),"NA") -> 2.90850595 | G21: =IFERROR((IF($C21="NA","NA",ROUND(VLOOKUP($A$3,'G9-RSWD'!$A$6:$AM$500,9,FALSE),0)&"% ("&IF(VLOOKUP($A$3,'G9-RSWD'!$A$6:$AM$500,8,FALSE)="",0,VLOOKUP($A$3,'G9-RSWD'!$A$6:$AM$500,8,FALSE))&")")),"NA") -> 18% (403) | H21: =IFERROR((IF($C21="NA","NA",VLOOKUP($A$3,'G9-RSWD'!$A$6:$AM$500,10,FALSE))),"NA") -> 8.943631556 | I21: =IFERROR((IF($C21="NA","NA",ROUND(VLOOKUP($A$3,'G9-RSWD'!$A$6:$AM$500,12,FALSE),0)&"% ("&IF(VLOOKUP($A$3,'G9-RSWD'!$A$6:$AM$500,11,FALSE)="",0,VLOOKUP($A$3,'G9-RSWD'!$A$6:$AM$500,11,FALSE))&")")),"NA") -> 10% (230) | J21: =IFERROR((IF($C21="NA","NA",VLOOKUP($A$3,'G9-RSWD'!$A$6:$AM$500,13,FALSE))),"NA") -> 2.301189952 | K21: =IFERROR((IF($C21="NA","NA",ROUND(VLOOKUP($A$3,'G9-RSWD'!$A$6:$AM$500,15,FALSE),0)&"% ("&IF(VLOOKUP($A$3,'G9-RSWD'!$A$6:$AM$500,14,FALSE)="",0,VLOOKUP($A$3,'G9-RSWD'!$A$6:$AM$500,14,FALSE))&")")),"NA") -> 5% (124) | L21: =IFERROR((IF($C21="NA","NA",VLOOKUP($A$3,'G9-RSWD'!$A$6:$AM$500,16,FALSE))),"NA") -> 2.526707801 | M21: =IFERROR((IF($C21="NA","NA",ROUND(VLOOKUP($A$3,'G9-RSWD'!$A$6:$AM$500,18,FALSE),0)&"% ("&IF(VLOOKUP($A$3,'G9-RSWD'!$A$6:$AM$500,17,FALSE)="",0,VLOOKUP($A$3,'G9-RSWD'!$A$6:$AM$500,17,FALSE))&")")),"NA") -> 6% (131) | Q21: =IFERROR(VLOOKUP($A$3,'G9-RSWD'!$A$6:$BX$500,3,FALSE),"not tested") -> 2269 | S21: =SUM(VLOOKUP($A$3,'GEO-SWD'!$A$14:$BX$500,4,FALSE)*$Q21,VLOOKUP($A$3,'GEO-SWD'!$A$14:$BX$500,41,FALSE)*$R21)/SUM($Q21,$R21) -> 10.61715976 | T21: =SUM(VLOOKUP($A$3,'GEO-SWD'!$A$14:$BX$500,7,FALSE),VLOOKUP($A$3,'GEO-SWD'!$A$14:$BX$500,44,FALSE))/SUM($Q21:$R21)*100 -> 0.3410292796 | U21: =SUM(VLOOKUP($A$3,'GEO-SWD'!$A$14:$BX$500,7,FALSE),VLOOKUP($A$3,'GEO-SWD'!$A$14:$BX$500,44,FALSE)) -> 7.737954353 | V21: =SUM(VLOOKUP($A$3,'GEO-SWD'!$A$14:$BX$500,10,FALSE)*$Q21,VLOOKUP($A$3,'GEO-SWD'!$A$14:$BX$500,47,FALSE)*$R21)/SUM($Q21,$R21) -> 1.037362637 | W21: =SUM(VLOOKUP($A$3,'GEO-SWD'!$A$14:$BX$500,8,FALSE),VLOOKUP($A$3,'GEO-SWD'!$A$14:$BX$500,50,FALSE))/SUM($Q21:$R21)*100 -> 0.1322168356 | X21: =SUM(VLOOKUP($A$3,'GEO-SWD'!$A$14:$BX$500,8,FALSE),VLOOKUP($A$3,'GEO-SWD'!$A$14:$BX$500,50,FALSE)) -> 3 | Y21: =SUM(VLOOKUP($A$3,'GEO-SWD'!$A$14:$BX$500,16,FALSE)*$Q21,VLOOKUP($A$3,'GEO-SWD'!$A$14:$BX$500,53,FALSE)*$R21)/SUM($Q21,$R21) -> 0 | Z21: =SUM(VLOOKUP($A$3,'GEO-SWD'!$A$14:$BX$500,19,FALSE),VLOOKUP($A$3,'GEO-SWD'!$A$14:$BX$500,56,FALSE))/SUM($Q21:$R21)*100 -> 0 | AA21: =SUM(VLOOKUP($A$3,'GEO-SWD'!$A$14:$BX$500,19,FALSE),VLOOKUP($A$3,'GEO-SWD'!$A$14:$BX$500,56,FALSE)) -> 0 | AB21: =SUM(VLOOKUP($A$3,'GEO-SWD'!$A$14:$BX$500,22,FALSE)*$Q21,VLOOKUP($A$3,'GEO-SWD'!$A$14:$BX$500,59,FALSE)*$R21)/SUM($Q21,$R21) -> 0 | AC21: =SUM(VLOOKUP($A$3,'GEO-SWD'!$A$14:$BX$500,25,FALSE),VLOOKUP($A$3,'GEO-SWD'!$A$14:$BX$500,62,FALSE))/SUM($Q21:$R21)*100 -> 0 | AD21: =SUM(VLOOKUP($A$3,'GEO-SWD'!$A$14:$BX$500,25,FALSE),VLOOKUP($A$3,'GEO-SWD'!$A$14:$BX$500,62,FALSE)) -> 0 | AE21: =SUM(VLOOKUP($A$3,'GEO-SWD'!$A$14:$BX$500,28,FALSE)*$Q21,VLOOKUP($A$3,'GEO-SWD'!$A$14:$BX$500,65,FALSE)*$R21)/SUM($Q21,$R21) -> 0 | AF21: =SUM(VLOOKUP($A$3,'GEO-SWD'!$A$14:$BX$500,31,FALSE),VLOOKUP($A$3,'GEO-SWD'!$A$14:$BX$500,68,FALSE))/SUM($Q21:$R21)*100 -> 0 | AG21: =SUM(VLOOKUP($A$3,'GEO-SWD'!$A$14:$BX$500,31,FALSE),VLOOKUP($A$3,'GEO-SWD'!$A$14:$BX$500,68,FALSE)) -> 0 | AH21: =SUM(VLOOKUP($A$3,'GEO-SWD'!$A$14:$BX$500,34,FALSE)*$Q21,VLOOKUP($A$3,'GEO-SWD'!$A$14:$BX$500,71,FALSE)*$R21)/SUM($Q21,$R21) -> 0 | AI21: =SUM(VLOOKUP($A$3,'GEO-SWD'!$A$14:$BX$500,37,FALSE),VLOOKUP($A$3,'GEO-SWD'!$A$14:$BX$500,74,FALSE))/SUM($Q21:$R21)*100 -> 0 | AJ21: =SUM(VLOOKUP($A$3,'GEO-SWD'!$A$14:$BX$500,37,FALSE),VLOOKUP($A$3,'GEO-SWD'!$A$14:$BX$500,74,FALSE)) -> 0
A22: Reading - Grade 10 | Q22: READING
A23: Level of Proficiency at 70% or above | B23: Total # of Students | C23: % of Students Tested | D23: ='G9-10 Matrix'!C$2&" ["&'G9-10 Matrix'!C5&"]" -> Overall [34] | F23: ='G9-10 Matrix'!D$2&" ["&'G9-10 Matrix'!D5&"]" -> Vocabulary [5] | H23: ='G9-10 Matrix'!E$2&" ["&'G9-10 Matrix'!E5&"]" -> Reading Application [15] | J23: ='G9-10 Matrix'!F$2&" ["&'G9-10 Matrix'!F5&"]" -> Literary Analysis Fiction/Nonfiction [4] | L23: ='G9-10 Matrix'!G$2&" ["&'G9-10 Matrix'!G5&"]" -> Informational Text/ Research Process [10] | Q23: Grade 10 Test
D24: Average Score | E24: % Proficient | F24: Average Score | G24: % Proficient | H24: Average Score | I24: % Proficient | J24: Average Score | K24: % Proficient | L24: Average Score | M24: % Proficient | Q24: Number Tested
A25: All students | B25: =IFERROR(VLOOKUP(TEXT($A$3,"0000"),Mem_All!$A$2:$S$500,18,FALSE),0) -> 27323 | C25: =IFERROR((IF(OR(B25=0,B25="",B25="NA"),"NA",((IF(VLOOKUP($A$3,'G10-RALL'!$A$6:$AM$500,3,FALSE)>=B25,"100% ("&VLOOKUP($A$3,'G10-RALL'!$A$6:$AM$500,3,FALSE)&")",(ROUND((VLOOKUP($A$3,'G10-RALL'!$A$6:$AM$500,3,FALSE)/B25*100),0))&"% ("&IF(VLOOKUP($A$3,'G10-RALL'!$A$6:$AM$500,3,FALSE)="",0,VLOOKUP($A$3,'G10-RALL'!$A$6:$AM$500,3,FALSE))&")"))))),"0% (0)") -> 90% (24479) | D25: =IFERROR((IF($C25="NA","NA",VLOOKUP($A$3,'G10-RALL'!$A$6:$AM$500,4,FALSE))),"NA") -> 19.85767801 | E25: =IFERROR((IF($C25="NA","NA",ROUND(VLOOKUP($A$3,'G10-RALL'!$A$6:$AM$500,6,FALSE),0)&"% ("&IF(VLOOKUP($A$3,'G10-RALL'!$A$6:$AM$500,5,FALSE)="",0,VLOOKUP($A$3,'G10-RALL'!$A$6:$AM$500,5,FALSE))&")")),"NA") -> 35% (8587) | F25: =IFERROR((IF($C25="NA","NA",VLOOKUP($A$3,'G10-RALL'!$A$6:$AM$500,7,FALSE))),"NA") -> 3.379423179 | G25: =IFERROR((IF($C25="NA","NA",ROUND(VLOOKUP($A$3,'G10-RALL'!$A$6:$AM$500,9,FALSE),0)&"% ("&IF(VLOOKUP($A$3,'G10-RALL'!$A$6:$AM$500,8,FALSE)="",0,VLOOKUP($A$3,'G10-RALL'!$A$6:$AM$500,8,FALSE))&")")),"NA") -> 54% (13209) | H25: =IFERROR((IF($C25="NA","NA",VLOOKUP($A$3,'G10-RALL'!$A$6:$AM$500,10,FALSE))),"NA") -> 9.217704972 | I25: =IFERROR((IF($C25="NA","NA",ROUND(VLOOKUP($A$3,'G10-RALL'!$A$6:$AM$500,12,FALSE),0)&"% ("&IF(VLOOKUP($A$3,'G10-RALL'!$A$6:$AM$500,11,FALSE)="",0,VLOOKUP($A$3,'G10-RALL'!$A$6:$AM$500,11,FALSE))&")")),"NA") -> 40% (9759) | J25: =IFERROR((IF($C25="NA","NA",VLOOKUP($A$3,'G10-RALL'!$A$6:$AM$500,13,FALSE))),"NA") -> 1.753899261 | K25: =IFERROR((IF($C25="NA","NA",ROUND(VLOOKUP($A$3,'G10-RALL'!$A$6:$AM$500,15,FALSE),0)&"% ("&IF(VLOOKUP($A$3,'G10-RALL'!$A$6:$AM$500,14,FALSE)="",0,VLOOKUP($A$3,'G10-RALL'!$A$6:$AM$500,14,FALSE))&")")),"NA") -> 28% (6808) | L25: =IFERROR((IF($C25="NA","NA",VLOOKUP($A$3,'G10-RALL'!$A$6:$AM$500,16,FALSE))),"NA") -> 5.500804771 | M25: =IFERROR((IF($C25="NA","NA",ROUND(VLOOKUP($A$3,'G10-RALL'!$A$6:$AM$500,18,FALSE),0)&"% ("&IF(VLOOKUP($A$3,'G10-RALL'!$A$6:$AM$500,17,FALSE)="",0,VLOOKUP($A$3,'G10-RALL'!$A$6:$AM$500,17,FALSE))&")")),"NA") -> 35% (8687) | N25: =IFERROR(IF($C25="NA","NA",IF($R25=0,VLOOKUP($A$3,'GEO-ALL'!$A$14:$AA$500,34,FALSE),IF($Q25=0,VLOOKUP($A$3,'GEO-ALL'!$A$14:$AA$500,71,FALSE),AH25))),"NA") -> NA | O25: =IF($C25="NA","NA",IF($R25=0,ROUND(VLOOKUP($A$3,'GEO-ALL'!$A$14:$AA$500,39,FALSE)*100,0)&"% ("&VLOOKUP($A$3,'GEO-ALL'!$A$14:$AA$500,37,FALSE)&")",IF($Q25=0,ROUND(VLOOKUP($A$3,'GEO-ALL'!$A$14:$AA$500,76,FALSE)*100,0)&"% ("&VLOOKUP($A$3,'GEO-ALL'!$A$14:$AA$500,74,FALSE)&")",ROUND(AI25,0)&"% ("&AJ25&")"))) ->  | Q25: =IFERROR(VLOOKUP($A$3,'G10-RALL'!$A$6:$BX$500,3,FALSE),"not tested") -> 24479
A26: FCAT Level 1 | B26: =IFERROR(VLOOKUP(TEXT($A$3,"0000"),MEM_RL1!$A$2:$S$500,11,FALSE),0) -> 5327 | C26: =IFERROR((IF(OR(B26=0,B26="",B26="NA"),"NA",((IF(VLOOKUP($A$3,'G10-RL1'!$A$6:$AM$500,3,FALSE)>=B26,"100% ("&VLOOKUP($A$3,'G10-RL1'!$A$6:$AM$500,3,FALSE)&")",(ROUND((VLOOKUP($A$3,'G10-RL1'!$A$6:$AM$500,3,FALSE)/B26*100),0))&"% ("&IF(VLOOKUP($A$3,'G10-RL1'!$A$6:$AM$500,3,FALSE)="",0,VLOOKUP($A$3,'G10-RL1'!$A$6:$AM$500,3,FALSE))&")"))))),"0% (0)") -> 87% (4655) | D26: =IFERROR((IF($C26="NA","NA",VLOOKUP($A$3,'G10-RL1'!$A$6:$AM$500,4,FALSE))),"NA") -> 13.10225564 | E26: =IFERROR((IF($C26="NA","NA",ROUND(VLOOKUP($A$3,'G10-RL1'!$A$6:$AM$500,6,FALSE),0)&"% ("&IF(VLOOKUP($A$3,'G10-RL1'!$A$6:$AM$500,5,FALSE)="",0,VLOOKUP($A$3,'G10-RL1'!$A$6:$AM$500,5,FALSE))&")")),"NA") -> 2% (99) | F26: =IFERROR((IF($C26="NA","NA",VLOOKUP($A$3,'G10-RL1'!$A$6:$AM$500,7,FALSE))),"NA") -> 2.110741139 | G26: =IFERROR((IF($C26="NA","NA",ROUND(VLOOKUP($A$3,'G10-RL1'!$A$6:$AM$500,9,FALSE),0)&"% ("&IF(VLOOKUP($A$3,'G10-RL1'!$A$6:$AM$500,8,FALSE)="",0,VLOOKUP($A$3,'G10-RL1'!$A$6:$AM$500,8,FALSE))&")")),"NA") -> 15% (705) | H26: =IFERROR((IF($C26="NA","NA",VLOOKUP($A$3,'G10-RL1'!$A$6:$AM$500,10,FALSE))),"NA") -> 6.122900107 | I26: =IFERROR((IF($C26="NA","NA",ROUND(VLOOKUP($A$3,'G10-RL1'!$A$6:$AM$500,12,FALSE),0)&"% ("&IF(VLOOKUP($A$3,'G10-RL1'!$A$6:$AM$500,11,FALSE)="",0,VLOOKUP($A$3,'G10-RL1'!$A$6:$AM$500,11,FALSE))&")")),"NA") -> 4% (209) | J26: =IFERROR((IF($C26="NA","NA",VLOOKUP($A$3,'G10-RL1'!$A$6:$AM$500,13,FALSE))),"NA") -> 1.119484425 | K26: =IFERROR((IF($C26="NA","NA",ROUND(VLOOKUP($A$3,'G10-RL1'!$A$6:$AM$500,15,FALSE),0)&"% ("&IF(VLOOKUP($A$3,'G10-RL1'!$A$6:$AM$500,14,FALSE)="",0,VLOOKUP($A$3,'G10-RL1'!$A$6:$AM$500,14,FALSE))&")")),"NA") -> 8% (395) | L26: =IFERROR((IF($C26="NA","NA",VLOOKUP($A$3,'G10-RL1'!$A$6:$AM$500,16,FALSE))),"NA") -> 3.758238453 | M26: =IFERROR((IF($C26="NA","NA",ROUND(VLOOKUP($A$3,'G10-RL1'!$A$6:$AM$500,18,FALSE),0)&"% ("&IF(VLOOKUP($A$3,'G10-RL1'!$A$6:$AM$500,17,FALSE)="",0,VLOOKUP($A$3,'G10-RL1'!$A$6:$AM$500,17,FALSE))&")")),"NA") -> 7% (334) | N26: =IFERROR(IF($C26="NA","NA",IF($R26=0,VLOOKUP($A$3,'GEO-L1'!$A$14:$BX$500,34,FALSE),IF($Q26=0,VLOOKUP($A$3,'GEO-L1'!$A$14:$BX$500,71,FALSE),AH26))),"NA") -> 0 | O26: =IF($C26="NA","NA",IF($R26=0,ROUND(VLOOKUP($A$3,'GEO-L1'!$A$14:$BX$500,39,FALSE)*100,0)&"% ("&VLOOKUP($A$3,'GEO-L1'!$A$14:$BX$500,37,FALSE)&")",IF($Q26=0,ROUND(VLOOKUP($A$3,'GEO-L1'!$A$14:$BX$500,76,FALSE)*100,0)&"% ("&VLOOKUP($A$3,'GEO-L1'!$A$14:$BX$500,74,FALSE)&")",ROUND(AI26,0)&"% ("&AJ26&")"))) -> 0% () | Q26: =IFERROR(VLOOKUP($A$3,'G10-RL1'!$A$6:$BX$500,3,FALSE),"not tested") -> 4655
A27: FCAT Level 2 | B27: =IFERROR(VLOOKUP(TEXT($A$3,"0000"),MEM_RL2!$A$2:$S$500,11,FALSE),0) -> 7795 | C27: =IFERROR((IF(OR(B27=0,B27="",B27="NA"),"NA",((IF(VLOOKUP($A$3,'G10-RL2'!$A$6:$AM$500,3,FALSE)>=B27,"100% ("&VLOOKUP($A$3,'G10-RL2'!$A$6:$AM$500,3,FALSE)&")",(ROUND((VLOOKUP($A$3,'G10-RL2'!$A$6:$AM$500,3,FALSE)/B27*100),0))&"% ("&IF(VLOOKUP($A$3,'G10-RL2'!$A$6:$AM$500,3,FALSE)="",0,VLOOKUP($A$3,'G10-RL2'!$A$6:$AM$500,3,FALSE))&")"))))),"0% (0)") -> 93% (7258) | D27: =IFERROR((IF($C27="NA","NA",VLOOKUP($A$3,'G10-RL2'!$A$6:$AM$500,4,FALSE))),"NA") -> 18.2475062 | E27: =IFERROR((IF($C27="NA","NA",ROUND(VLOOKUP($A$3,'G10-RL2'!$A$6:$AM$500,6,FALSE),0)&"% ("&IF(VLOOKUP($A$3,'G10-RL2'!$A$6:$AM$500,5,FALSE)="",0,VLOOKUP($A$3,'G10-RL2'!$A$6:$AM$500,5,FALSE))&")")),"NA") -> 16% (1155) | F27: =IFERROR((IF($C27="NA","NA",VLOOKUP($A$3,'G10-RL2'!$A$6:$AM$500,7,FALSE))),"NA") -> 3.179278038 | G27: =IFERROR((IF($C27="NA","NA",ROUND(VLOOKUP($A$3,'G10-RL2'!$A$6:$AM$500,9,FALSE),0)&"% ("&IF(VLOOKUP($A$3,'G10-RL2'!$A$6:$AM$500,8,FALSE)="",0,VLOOKUP($A$3,'G10-RL2'!$A$6:$AM$500,8,FALSE))&")")),"NA") -> 45% (3259) | H27: =IFERROR((IF($C27="NA","NA",VLOOKUP($A$3,'G10-RL2'!$A$6:$AM$500,10,FALSE))),"NA") -> 8.502094241 | I27: =IFERROR((IF($C27="NA","NA",ROUND(VLOOKUP($A$3,'G10-RL2'!$A$6:$AM$500,12,FALSE),0)&"% ("&IF(VLOOKUP($A$3,'G10-RL2'!$A$6:$AM$500,11,FALSE)="",0,VLOOKUP($A$3,'G10-RL2'!$A$6:$AM$500,11,FALSE))&")")),"NA") -> 24% (1723) | J27: =IFERROR((IF($C27="NA","NA",VLOOKUP($A$3,'G10-RL2'!$A$6:$AM$500,13,FALSE))),"NA") -> 1.475117112 | K27: =IFERROR((IF($C27="NA","NA",ROUND(VLOOKUP($A$3,'G10-RL2'!$A$6:$AM$500,15,FALSE),0)&"% ("&IF(VLOOKUP($A$3,'G10-RL2'!$A$6:$AM$500,14,FALSE)="",0,VLOOKUP($A$3,'G10-RL2'!$A$6:$AM$500,14,FALSE))&")")),"NA") -> 17% (1234) | L27: =IFERROR((IF($C27="NA","NA",VLOOKUP($A$3,'G10-RL2'!$A$6:$AM$500,16,FALSE))),"NA") -> 5.092807936 | M27: =IFERROR((IF($C27="NA","NA",ROUND(VLOOKUP($A$3,'G10-RL2'!$A$6:$AM$500,18,FALSE),0)&"% ("&IF(VLOOKUP($A$3,'G10-RL2'!$A$6:$AM$500,17,FALSE)="",0,VLOOKUP($A$3,'G10-RL2'!$A$6:$AM$500,17,FALSE))&")")),"NA") -> 24% (1729) | N27: =IFERROR(IF($C27="NA","NA",IF($R27=0,VLOOKUP($A$3,'GEO-L2'!$A$14:$BX$500,34,FALSE),IF($Q27=0,VLOOKUP($A$3,'GEO-L2'!$A$14:$BX$500,71,FALSE),AH27))),"NA") -> 0 | O27: =IF($C27="NA","NA",IF($R27=0,ROUND(VLOOKUP($A$3,'GEO-L2'!$A$14:$BX$500,39,FALSE)*100,0)&"% ("&VLOOKUP($A$3,'GEO-L2'!$A$14:$BX$500,37,FALSE)&")",IF($Q27=0,ROUND(VLOOKUP($A$3,'GEO-L2'!$A$14:$BX$500,76,FALSE)*100,0)&"% ("&VLOOKUP($A$3,'GEO-L2'!$A$14:$BX$500,74,FALSE)&")",ROUND(AI27,0)&"% ("&AJ27&")"))) -> 0% () | Q27: =IFERROR(VLOOKUP($A$3,'G10-RL2'!$A$6:$BX$500,3,FALSE),"not tested") -> 7258
A28: FCAT Level 3 | B28: =IFERROR(VLOOKUP(TEXT($A$3,"0000"),MEM_RL3!$A$2:$S$500,18,FALSE),0) -> 6377 | C28: =IFERROR((IF(OR(B28=0,B28="",B28="NA"),"NA",((IF(VLOOKUP($A$3,'G10-RL3'!$A$6:$AM$500,3,FALSE)>=B28,"100% ("&VLOOKUP($A$3,'G10-RL3'!$A$6:$AM$500,3,FALSE)&")",(ROUND((VLOOKUP($A$3,'G10-RL3'!$A$6:$AM$500,3,FALSE)/B28*100),0))&"% ("&IF(VLOOKUP($A$3,'G10-RL3'!$A$6:$AM$500,3,FALSE)="",0,VLOOKUP($A$3,'G10-RL3'!$A$6:$AM$500,3,FALSE))&")"))))),"0% (0)") -> 96% (6110) | D28: =IFERROR((IF($C28="NA","NA",VLOOKUP($A$3,'G10-RL3'!$A$6:$AM$500,4,FALSE))),"NA") -> 21.81929624 | E28: =IFERROR((IF($C28="NA","NA",ROUND(VLOOKUP($A$3,'G10-RL3'!$A$6:$AM$500,6,FALSE),0)&"% ("&IF(VLOOKUP($A$3,'G10-RL3'!$A$6:$AM$500,5,FALSE)="",0,VLOOKUP($A$3,'G10-RL3'!$A$6:$AM$500,5,FALSE))&")")),"NA") -> 44% (2680) | F28: =IFERROR((IF($C28="NA","NA",VLOOKUP($A$3,'G10-RL3'!$A$6:$AM$500,7,FALSE))),"NA") -> 3.779738134 | G28: =IFERROR((IF($C28="NA","NA",ROUND(VLOOKUP($A$3,'G10-RL3'!$A$6:$AM$500,9,FALSE),0)&"% ("&IF(VLOOKUP($A$3,'G10-RL3'!$A$6:$AM$500,8,FALSE)="",0,VLOOKUP($A$3,'G10-RL3'!$A$6:$AM$500,8,FALSE))&")")),"NA") -> 67% (4067) | H28: =IFERROR((IF($C28="NA","NA",VLOOKUP($A$3,'G10-RL3'!$A$6:$AM$500,10,FALSE))),"NA") -> 10.09777414 | I28: =IFERROR((IF($C28="NA","NA",ROUND(VLOOKUP($A$3,'G10-RL3'!$A$6:$AM$500,12,FALSE),0)&"% ("&IF(VLOOKUP($A$3,'G10-RL3'!$A$6:$AM$500,11,FALSE)="",0,VLOOKUP($A$3,'G10-RL3'!$A$6:$AM$500,11,FALSE))&")")),"NA") -> 50% (3065) | J28: =IFERROR((IF($C28="NA","NA",VLOOKUP($A$3,'G10-RL3'!$A$6:$AM$500,13,FALSE))),"NA") -> 1.903633388 | K28: =IFERROR((IF($C28="NA","NA",ROUND(VLOOKUP($A$3,'G10-RL3'!$A$6:$AM$500,15,FALSE),0)&"% ("&IF(VLOOKUP($A$3,'G10-RL3'!$A$6:$AM$500,14,FALSE)="",0,VLOOKUP($A$3,'G10-RL3'!$A$6:$AM$500,14,FALSE))&")")),"NA") -> 31% (1919) | L28: =IFERROR((IF($C28="NA","NA",VLOOKUP($A$3,'G10-RL3'!$A$6:$AM$500,16,FALSE))),"NA") -> 6.046448445 | M28: =IFERROR((IF($C28="NA","NA",ROUND(VLOOKUP($A$3,'G10-RL3'!$A$6:$AM$500,18,FALSE),0)&"% ("&IF(VLOOKUP($A$3,'G10-RL3'!$A$6:$AM$500,17,FALSE)="",0,VLOOKUP($A$3,'G10-RL3'!$A$6:$AM$500,17,FALSE))&")")),"NA") -> 43% (2652) | N28: =IFERROR(IF($C28="NA","NA",IF($R28=0,VLOOKUP($A$3,'GEO-L3'!$A$14:$BX$500,34,FALSE),IF($Q28=0,VLOOKUP($A$3,'GEO-L3'!$A$14:$BX$500,71,FALSE),AH28))),"NA") -> 0 | O28: =IF($C28="NA","NA",IF($R28=0,ROUND(VLOOKUP($A$3,'GEO-L3'!$A$14:$BX$500,39,FALSE)*100,0)&"% ("&VLOOKUP($A$3,'GEO-L3'!$A$14:$BX$500,37,FALSE)&")",IF($Q28=0,ROUND(VLOOKUP($A$3,'GEO-L3'!$A$14:$BX$500,76,FALSE)*100,0)&"% ("&VLOOKUP($A$3,'GEO-L3'!$A$14:$BX$500,74,FALSE)&")",ROUND(AI28,0)&"% ("&AJ28&")"))) -> 0% () | Q28: =IFERROR(VLOOKUP($A$3,'G10-RL3'!$A$6:$BX$500,3,FALSE),"not tested") -> 6110
A29: FCAT Level 4 | B29: =IFERROR(VLOOKUP(TEXT($A$3,"0000"),MEM_RL4!$A$2:$S$500,18,FALSE),0) -> 4332 | C29: =IFERROR((IF(OR(B29=0,B29="",B29="NA"),"NA",((IF(VLOOKUP($A$3,'G10-RL4'!$A$6:$AM$500,3,FALSE)>=B29,"100% ("&VLOOKUP($A$3,'G10-RL4'!$A$6:$AM$500,3,FALSE)&")",(ROUND((VLOOKUP($A$3,'G10-RL4'!$A$6:$AM$500,3,FALSE)/B29*100),0))&"% ("&IF(VLOOKUP($A$3,'G10-RL4'!$A$6:$AM$500,3,FALSE)="",0,VLOOKUP($A$3,'G10-RL4'!$A$6:$AM$500,3,FALSE))&")"))))),"0% (0)") -> 97% (4187) | D29: =IFERROR((IF($C29="NA","NA",VLOOKUP($A$3,'G10-RL4'!$A$6:$AM$500,4,FALSE))),"NA") -> 24.90630523 | E29: =IFERROR((IF($C29="NA","NA",ROUND(VLOOKUP($A$3,'G10-RL4'!$A$6:$AM$500,6,FALSE),0)&"% ("&IF(VLOOKUP($A$3,'G10-RL4'!$A$6:$AM$500,5,FALSE)="",0,VLOOKUP($A$3,'G10-RL4'!$A$6:$AM$500,5,FALSE))&")")),"NA") -> 72% (3021) | F29: =IFERROR((IF($C29="NA","NA",VLOOKUP($A$3,'G10-RL4'!$A$6:$AM$500,7,FALSE))),"NA") -> 4.215357058 | G29: =IFERROR((IF($C29="NA","NA",ROUND(VLOOKUP($A$3,'G10-RL4'!$A$6:$AM$500,9,FALSE),0)&"% ("&IF(VLOOKUP($A$3,'G10-RL4'!$A$6:$AM$500,8,FALSE)="",0,VLOOKUP($A$3,'G10-RL4'!$A$6:$AM$500,8,FALSE))&")")),"NA") -> 83% (3462) | H29: =IFERROR((IF($C29="NA","NA",VLOOKUP($A$3,'G10-RL4'!$A$6:$AM$500,10,FALSE))),"NA") -> 11.50893241 | I29: =IFERROR((IF($C29="NA","NA",ROUND(VLOOKUP($A$3,'G10-RL4'!$A$6:$AM$500,12,FALSE),0)&"% ("&IF(VLOOKUP($A$3,'G10-RL4'!$A$6:$AM$500,11,FALSE)="",0,VLOOKUP($A$3,'G10-RL4'!$A$6:$AM$500,11,FALSE))&")")),"NA") -> 74% (3114) | J29: =IFERROR((IF($C29="NA","NA",VLOOKUP($A$3,'G10-RL4'!$A$6:$AM$500,13,FALSE))),"NA") -> 2.372963936 | K29: =IFERROR((IF($C29="NA","NA",ROUND(VLOOKUP($A$3,'G10-RL4'!$A$6:$AM$500,15,FALSE),0)&"% ("&IF(VLOOKUP($A$3,'G10-RL4'!$A$6:$AM$500,14,FALSE)="",0,VLOOKUP($A$3,'G10-RL4'!$A$6:$AM$500,14,FALSE))&")")),"NA") -> 49% (2061) | L29: =IFERROR((IF($C29="NA","NA",VLOOKUP($A$3,'G10-RL4'!$A$6:$AM$500,16,FALSE))),"NA") -> 6.809195128 | M29: =IFERROR((IF($C29="NA","NA",ROUND(VLOOKUP($A$3,'G10-RL4'!$A$6:$AM$500,18,FALSE),0)&"% ("&IF(VLOOKUP($A$3,'G10-RL4'!$A$6:$AM$500,17,FALSE)="",0,VLOOKUP($A$3,'G10-RL4'!$A$6:$AM$500,17,FALSE))&")")),"NA") -> 61% (2574) | N29: =IFERROR(IF($C29="NA","NA",IF($R29=0,VLOOKUP($A$3,'GEO-L4'!$A$14:$BX$500,34,FALSE),IF($Q29=0,VLOOKUP($A$3,'GEO-L4'!$A$14:$BX$500,71,FALSE),AH29))),"NA") -> 0 | O29: =IF($C29="NA","NA",IF($R29=0,ROUND(VLOOKUP($A$3,'GEO-L4'!$A$14:$BX$500,39,FALSE)*100,0)&"% ("&VLOOKUP($A$3,'GEO-L4'!$A$14:$BX$500,37,FALSE)&")",IF($Q29=0,ROUND(VLOOKUP($A$3,'GEO-L4'!$A$14:$BX$500,76,FALSE)*100,0)&"% ("&VLOOKUP($A$3,'GEO-L4'!$A$14:$BX$500,74,FALSE)&")",ROUND(AI29,0)&"% ("&AJ29&")"))) -> 0% () | Q29: =IFERROR(VLOOKUP($A$3,'G10-RL4'!$A$6:$BX$500,3,FALSE),"not tested") -> 4187
A30: FCAT Level 5 | B30: =IFERROR(VLOOKUP(TEXT($A$3,"0000"),MEM_RL5!$A$2:$S$500,18,FALSE),0) -> 1790 | C30: =IFERROR((IF(OR(B30=0,B30="",B30="NA"),"NA",((IF(VLOOKUP($A$3,'G10-RL5'!$A$6:$AM$500,3,FALSE)>=B30,"100% ("&VLOOKUP($A$3,'G10-RL5'!$A$6:$AM$500,3,FALSE)&")",(ROUND((VLOOKUP($A$3,'G10-RL5'!$A$6:$AM$500,3,FALSE)/B30*100),0))&"% ("&IF(VLOOKUP($A$3,'G10-RL5'!$A$6:$AM$500,3,FALSE)="",0,VLOOKUP($A$3,'G10-RL5'!$A$6:$AM$500,3,FALSE))&")"))))),"0% (0)") -> 95% (1704) | D30: =IFERROR((IF($C30="NA","NA",VLOOKUP($A$3,'G10-RL5'!$A$6:$AM$500,4,FALSE))),"NA") -> 27.18315728 | E30: =IFERROR((IF($C30="NA","NA",ROUND(VLOOKUP($A$3,'G10-RL5'!$A$6:$AM$500,6,FALSE),0)&"% ("&IF(VLOOKUP($A$3,'G10-RL5'!$A$6:$AM$500,5,FALSE)="",0,VLOOKUP($A$3,'G10-RL5'!$A$6:$AM$500,5,FALSE))&")")),"NA") -> 90% (1533) | F30: =IFERROR((IF($C30="NA","NA",VLOOKUP($A$3,'G10-RL5'!$A$6:$AM$500,7,FALSE))),"NA") -> 4.502406103 | G30: =IFERROR((IF($C30="NA","NA",ROUND(VLOOKUP($A$3,'G10-RL5'!$A$6:$AM$500,9,FALSE),0)&"% ("&IF(VLOOKUP($A$3,'G10-RL5'!$A$6:$AM$500,8,FALSE)="",0,VLOOKUP($A$3,'G10-RL5'!$A$6:$AM$500,8,FALSE))&")")),"NA") -> 91% (1543) | H30: =IFERROR((IF($C30="NA","NA",VLOOKUP($A$3,'G10-RL5'!$A$6:$AM$500,10,FALSE))),"NA") -> 12.57030516 | I30: =IFERROR((IF($C30="NA","NA",ROUND(VLOOKUP($A$3,'G10-RL5'!$A$6:$AM$500,12,FALSE),0)&"% ("&IF(VLOOKUP($A$3,'G10-RL5'!$A$6:$AM$500,11,FALSE)="",0,VLOOKUP($A$3,'G10-RL5'!$A$6:$AM$500,11,FALSE))&")")),"NA") -> 90% (1529) | J30: =IFERROR((IF($C30="NA","NA",VLOOKUP($A$3,'G10-RL5'!$A$6:$AM$500,13,FALSE))),"NA") -> 2.759741784 | K30: =IFERROR((IF($C30="NA","NA",ROUND(VLOOKUP($A$3,'G10-RL5'!$A$6:$AM$500,15,FALSE),0)&"% ("&IF(VLOOKUP($A$3,'G10-RL5'!$A$6:$AM$500,14,FALSE)="",0,VLOOKUP($A$3,'G10-RL5'!$A$6:$AM$500,14,FALSE))&")")),"NA") -> 65% (1102) | L30: =IFERROR((IF($C30="NA","NA",VLOOKUP($A$3,'G10-RL5'!$A$6:$AM$500,16,FALSE))),"NA") -> 7.373650235 | M30: =IFERROR((IF($C30="NA","NA",ROUND(VLOOKUP($A$3,'G10-RL5'!$A$6:$AM$500,18,FALSE),0)&"% ("&IF(VLOOKUP($A$3,'G10-RL5'!$A$6:$AM$500,17,FALSE)="",0,VLOOKUP($A$3,'G10-RL5'!$A$6:$AM$500,17,FALSE))&")")),"NA") -> 76% (1301) | N30: =IFERROR(IF($C30="NA","NA",IF($R30=0,VLOOKUP($A$3,'GEO-L5'!$A$14:$BX$500,34,FALSE),IF($Q30=0,VLOOKUP($A$3,'GEO-L5'!$A$14:$BX$500,71,FALSE),AH30))),"NA") -> 0 | O30: =IF($C30="NA","NA",IF($R30=0,ROUND(VLOOKUP($A$3,'GEO-L5'!$A$14:$BX$500,39,FALSE)*100,0)&"% ("&VLOOKUP($A$3,'GEO-L5'!$A$14:$BX$500,37,FALSE)&")",IF($Q30=0,ROUND(VLOOKUP($A$3,'GEO-L5'!$A$14:$BX$500,76,FALSE)*100,0)&"% ("&VLOOKUP($A$3,'GEO-L5'!$A$14:$BX$500,74,FALSE)&")",ROUND(AI30,0)&"% ("&AJ30&")"))) -> 0% () | Q30: =IFERROR(VLOOKUP($A$3,'G10-RL5'!$A$6:$BX$500,3,FALSE),"not tested") -> 1704
A31: White | B31: =IFERROR(VLOOKUP(TEXT($A$3,"0000"),MEM_W!$A$2:$S$500,18,FALSE),0) -> 2445 | C31: =IFERROR((IF(OR(B31=0,B31="",B31="NA"),"NA",((IF(VLOOKUP($A$3,'G10-RW'!$A$6:$AM$500,3,FALSE)>=B31,"100% ("&VLOOKUP($A$3,'G10-RW'!$A$6:$AM$500,3,FALSE)&")",(ROUND((VLOOKUP($A$3,'G10-RW'!$A$6:$AM$500,3,FALSE)/B31*100),0))&"% ("&IF(VLOOKUP($A$3,'G10-RW'!$A$6:$AM$500,3,FALSE)="",0,VLOOKUP($A$3,'G10-RW'!$A$6:$AM$500,3,FALSE))&")"))))),"0% (0)") -> 90% (2208) | D31: =IFERROR((IF($C31="NA","NA",VLOOKUP($A$3,'G10-RW'!$A$6:$AM$500,4,FALSE))),"NA") -> 22.8245471 | E31: =IFERROR((IF($C31="NA","NA",ROUND(VLOOKUP($A$3,'G10-RW'!$A$6:$AM$500,6,FALSE),0)&"% ("&IF(VLOOKUP($A$3,'G10-RW'!$A$6:$AM$500,5,FALSE)="",0,VLOOKUP($A$3,'G10-RW'!$A$6:$AM$500,5,FALSE))&")")),"NA") -> 55% (1206) | F31: =IFERROR((IF($C31="NA","NA",VLOOKUP($A$3,'G10-RW'!$A$6:$AM$500,7,FALSE))),"NA") -> 3.935190217 | G31: =IFERROR((IF($C31="NA","NA",ROUND(VLOOKUP($A$3,'G10-RW'!$A$6:$AM$500,9,FALSE),0)&"% ("&IF(VLOOKUP($A$3,'G10-RW'!$A$6:$AM$500,8,FALSE)="",0,VLOOKUP($A$3,'G10-RW'!$A$6:$AM$500,8,FALSE))&")")),"NA") -> 72% (1585) | H31: =IFERROR((IF($C31="NA","NA",VLOOKUP($A$3,'G10-RW'!$A$6:$AM$500,10,FALSE))),"NA") -> 10.51888587 | I31: =IFERROR((IF($C31="NA","NA",ROUND(VLOOKUP($A$3,'G10-RW'!$A$6:$AM$500,12,FALSE),0)&"% ("&IF(VLOOKUP($A$3,'G10-RW'!$A$6:$AM$500,11,FALSE)="",0,VLOOKUP($A$3,'G10-RW'!$A$6:$AM$500,11,FALSE))&")")),"NA") -> 58% (1273) | J31: =IFERROR((IF($C31="NA","NA",VLOOKUP($A$3,'G10-RW'!$A$6:$AM$500,13,FALSE))),"NA") -> 2.131793478 | K31: =IFERROR((IF($C31="NA","NA",ROUND(VLOOKUP($A$3,'G10-RW'!$A$6:$AM$500,15,FALSE),0)&"% ("&IF(VLOOKUP($A$3,'G10-RW'!$A$6:$AM$500,14,FALSE)="",0,VLOOKUP($A$3,'G10-RW'!$A$6:$AM$500,14,FALSE))&")")),"NA") -> 42% (919) | L31: =IFERROR((IF($C31="NA","NA",VLOOKUP($A$3,'G10-RW'!$A$6:$AM$500,16,FALSE))),"NA") -> 6.264175725 | M31: =IFERROR((IF($C31="NA","NA",ROUND(VLOOKUP($A$3,'G10-RW'!$A$6:$AM$500,18,FALSE),0)&"% ("&IF(VLOOKUP($A$3,'G10-RW'!$A$6:$AM$500,17,FALSE)="",0,VLOOKUP($A$3,'G10-RW'!$A$6:$AM$500,17,FALSE))&")")),"NA") -> 51% (1120) | N31: =IFERROR(IF($C31="NA","NA",IF($R31=0,VLOOKUP($A$3,'GEO-W'!$A$14:$BX$500,34,FALSE),IF($Q31=0,VLOOKUP($A$3,'GEO-W'!$A$14:$BX$500,71,FALSE),AH31))),"NA") -> 0 | O31: =IF($C31="NA","NA",IF($R31=0,ROUND(VLOOKUP($A$3,'GEO-W'!$A$14:$BX$500,39,FALSE)*100,0)&"% ("&VLOOKUP($A$3,'GEO-W'!$A$14:$BX$500,37,FALSE)&")",IF($Q31=0,ROUND(VLOOKUP($A$3,'GEO-W'!$A$14:$BX$500,76,FALSE)*100,0)&"% ("&VLOOKUP($A$3,'GEO-W'!$A$14:$BX$500,74,FALSE)&")",ROUND(AI31,0)&"% ("&AJ31&")"))) -> 0% () | Q31: =IFERROR(VLOOKUP($A$3,'G10-RW'!$A$6:$BX$500,3,FALSE),"not tested") -> 2208
A32: Black | B32: =IFERROR(VLOOKUP(TEXT($A$3,"0000"),MEM_B!$A$2:$S$500,18,FALSE),0) -> 6477 | C32: =IFERROR((IF(OR(B32=0,B32="",B32="NA"),"NA",((IF(VLOOKUP($A$3,'G10-RB'!$A$6:$AM$500,3,FALSE)>=B32,"100% ("&VLOOKUP($A$3,'G10-RB'!$A$6:$AM$500,3,FALSE)&")",(ROUND((VLOOKUP($A$3,'G10-RB'!$A$6:$AM$500,3,FALSE)/B32*100),0))&"% ("&IF(VLOOKUP($A$3,'G10-RB'!$A$6:$AM$500,3,FALSE)="",0,VLOOKUP($A$3,'G10-RB'!$A$6:$AM$500,3,FALSE))&")"))))),"0% (0)") -> 87% (5605) | D32: =IFERROR((IF($C32="NA","NA",VLOOKUP($A$3,'G10-RB'!$A$6:$AM$500,4,FALSE))),"NA") -> 18.42688671 | E32: =IFERROR((IF($C32="NA","NA",ROUND(VLOOKUP($A$3,'G10-RB'!$A$6:$AM$500,6,FALSE),0)&"% ("&IF(VLOOKUP($A$3,'G10-RB'!$A$6:$AM$500,5,FALSE)="",0,VLOOKUP($A$3,'G10-RB'!$A$6:$AM$500,5,FALSE))&")")),"NA") -> 24% (1356) | F32: =IFERROR((IF($C32="NA","NA",VLOOKUP($A$3,'G10-RB'!$A$6:$AM$500,7,FALSE))),"NA") -> 3.312417484 | G32: =IFERROR((IF($C32="NA","NA",ROUND(VLOOKUP($A$3,'G10-RB'!$A$6:$AM$500,9,FALSE),0)&"% ("&IF(VLOOKUP($A$3,'G10-RB'!$A$6:$AM$500,8,FALSE)="",0,VLOOKUP($A$3,'G10-RB'!$A$6:$AM$500,8,FALSE))&")")),"NA") -> 50% (2818) | H32: =IFERROR((IF($C32="NA","NA",VLOOKUP($A$3,'G10-RB'!$A$6:$AM$500,10,FALSE))),"NA") -> 8.550454951 | I32: =IFERROR((IF($C32="NA","NA",ROUND(VLOOKUP($A$3,'G10-RB'!$A$6:$AM$500,12,FALSE),0)&"% ("&IF(VLOOKUP($A$3,'G10-RB'!$A$6:$AM$500,11,FALSE)="",0,VLOOKUP($A$3,'G10-RB'!$A$6:$AM$500,11,FALSE))&")")),"NA") -> 29% (1647) | J32: =IFERROR((IF($C32="NA","NA",VLOOKUP($A$3,'G10-RB'!$A$6:$AM$500,13,FALSE))),"NA") -> 1.582283675 | K32: =IFERROR((IF($C32="NA","NA",ROUND(VLOOKUP($A$3,'G10-RB'!$A$6:$AM$500,15,FALSE),0)&"% ("&IF(VLOOKUP($A$3,'G10-RB'!$A$6:$AM$500,14,FALSE)="",0,VLOOKUP($A$3,'G10-RB'!$A$6:$AM$500,14,FALSE))&")")),"NA") -> 22% (1239) | L32: =IFERROR((IF($C32="NA","NA",VLOOKUP($A$3,'G10-RB'!$A$6:$AM$500,16,FALSE))),"NA") -> 4.985084746 | M32: =IFERROR((IF($C32="NA","NA",ROUND(VLOOKUP($A$3,'G10-RB'!$A$6:$AM$500,18,FALSE),0)&"% ("&IF(VLOOKUP($A$3,'G10-RB'!$A$6:$AM$500,17,FALSE)="",0,VLOOKUP($A$3,'G10-RB'!$A$6:$AM$500,17,FALSE))&")")),"NA") -> 24% (1341) | N32: =IFERROR(IF($C32="NA","NA",IF($R32=0,VLOOKUP($A$3,'GEO-B'!$A$14:$BX$500,34,FALSE),IF($Q32=0,VLOOKUP($A$3,'GEO-B'!$A$14:$BX$500,71,FALSE),AH32))),"NA") -> 0 | O32: =IF($C32="NA","NA",IF($R32=0,ROUND(VLOOKUP($A$3,'GEO-B'!$A$14:$BX$500,39,FALSE)*100,0)&"% ("&VLOOKUP($A$3,'GEO-B'!$A$14:$BX$500,37,FALSE)&")",IF($Q32=0,ROUND(VLOOKUP($A$3,'GEO-B'!$A$14:$BX$500,76,FALSE)*100,0)&"% ("&VLOOKUP($A$3,'GEO-B'!$A$14:$BX$500,74,FALSE)&")",ROUND(AI32,0)&"% ("&AJ32&")"))) -> 0% () | Q32: =IFERROR(VLOOKUP($A$3,'G10-RB'!$A$6:$BX$500,3,FALSE),"not tested") -> 5605
A33: Hispanic | B33: =IFERROR(VLOOKUP(TEXT($A$3,"0000"),MEM_H!$A$2:$S$500,18,FALSE),0) -> 17972 | C33: =IFERROR((IF(OR(B33=0,B33="",B33="NA"),"NA",((IF(VLOOKUP($A$3,'G10-RH'!$A$6:$AM$500,3,FALSE)>=B33,"100% ("&VLOOKUP($A$3,'G10-RH'!$A$6:$AM$500,3,FALSE)&")",(ROUND((VLOOKUP($A$3,'G10-RH'!$A$6:$AM$500,3,FALSE)/B33*100),0))&"% ("&IF(VLOOKUP($A$3,'G10-RH'!$A$6:$AM$500,3,FALSE)="",0,VLOOKUP($A$3,'G10-RH'!$A$6:$AM$500,3,FALSE))&")"))))),"0% (0)") -> 90% (16261) | D33: =IFERROR((IF($C33="NA","NA",VLOOKUP($A$3,'G10-RH'!$A$6:$AM$500,4,FALSE))),"NA") -> 19.85269049 | E33: =IFERROR((IF($C33="NA","NA",ROUND(VLOOKUP($A$3,'G10-RH'!$A$6:$AM$500,6,FALSE),0)&"% ("&IF(VLOOKUP($A$3,'G10-RH'!$A$6:$AM$500,5,FALSE)="",0,VLOOKUP($A$3,'G10-RH'!$A$6:$AM$500,5,FALSE))&")")),"NA") -> 36% (5792) | F33: =IFERROR((IF($C33="NA","NA",VLOOKUP($A$3,'G10-RH'!$A$6:$AM$500,7,FALSE))),"NA") -> 3.318387553 | G33: =IFERROR((IF($C33="NA","NA",ROUND(VLOOKUP($A$3,'G10-RH'!$A$6:$AM$500,9,FALSE),0)&"% ("&IF(VLOOKUP($A$3,'G10-RH'!$A$6:$AM$500,8,FALSE)="",0,VLOOKUP($A$3,'G10-RH'!$A$6:$AM$500,8,FALSE))&")")),"NA") -> 52% (8493) | H33: =IFERROR((IF($C33="NA","NA",VLOOKUP($A$3,'G10-RH'!$A$6:$AM$500,10,FALSE))),"NA") -> 9.231972203 | I33: =IFERROR((IF($C33="NA","NA",ROUND(VLOOKUP($A$3,'G10-RH'!$A$6:$AM$500,12,FALSE),0)&"% ("&IF(VLOOKUP($A$3,'G10-RH'!$A$6:$AM$500,11,FALSE)="",0,VLOOKUP($A$3,'G10-RH'!$A$6:$AM$500,11,FALSE))&")")),"NA") -> 41% (6586) | J33: =IFERROR((IF($C33="NA","NA",VLOOKUP($A$3,'G10-RH'!$A$6:$AM$500,13,FALSE))),"NA") -> 1.756681631 | K33: =IFERROR((IF($C33="NA","NA",ROUND(VLOOKUP($A$3,'G10-RH'!$A$6:$AM$500,15,FALSE),0)&"% ("&IF(VLOOKUP($A$3,'G10-RH'!$A$6:$AM$500,14,FALSE)="",0,VLOOKUP($A$3,'G10-RH'!$A$6:$AM$500,14,FALSE))&")")),"NA") -> 28% (4480) | L33: =IFERROR((IF($C33="NA","NA",VLOOKUP($A$3,'G10-RH'!$A$6:$AM$500,16,FALSE))),"NA") -> 5.556792325 | M33: =IFERROR((IF($C33="NA","NA",ROUND(VLOOKUP($A$3,'G10-RH'!$A$6:$AM$500,18,FALSE),0)&"% ("&IF(VLOOKUP($A$3,'G10-RH'!$A$6:$AM$500,17,FALSE)="",0,VLOOKUP($A$3,'G10-RH'!$A$6:$AM$500,17,FALSE))&")")),"NA") -> 37% (6014) | N33: =IFERROR(IF($C33="NA","NA",IF($R33=0,VLOOKUP($A$3,'GEO-H'!$A$14:$BX$500,34,FALSE),IF($Q33=0,VLOOKUP($A$3,'GEO-H'!$A$14:$BX$500,71,FALSE),AH33))),"NA") -> 0 | O33: =IF($C33="NA","NA",IF($R33=0,ROUND(VLOOKUP($A$3,'GEO-H'!$A$14:$BX$500,39,FALSE)*100,0)&"% ("&VLOOKUP($A$3,'GEO-H'!$A$14:$BX$500,37,FALSE)&")",IF($Q33=0,ROUND(VLOOKUP($A$3,'GEO-H'!$A$14:$BX$500,76,FALSE)*100,0)&"% ("&VLOOKUP($A$3,'GEO-H'!$A$14:$BX$500,74,FALSE)&")",ROUND(AI33,0)&"% ("&AJ33&")"))) -> 0% () | Q33: =IFERROR(VLOOKUP($A$3,'G10-RH'!$A$6:$BX$500,3,FALSE),"not tested") -> 16261
A34: Asian | B34: =IFERROR(VLOOKUP(TEXT($A$3,"0000"),MEM_A!$A$2:$S$500,18,FALSE),0) -> 356 | C34: =IFERROR((IF(OR(B34=0,B34="",B34="NA"),"NA",((IF(VLOOKUP($A$3,'G10-RA'!$A$6:$AM$500,3,FALSE)>=B34,"100% ("&VLOOKUP($A$3,'G10-RA'!$A$6:$AM$500,3,FALSE)&")",(ROUND((VLOOKUP($A$3,'G10-RA'!$A$6:$AM$500,3,FALSE)/B34*100),0))&"% ("&IF(VLOOKUP($A$3,'G10-RA'!$A$6:$AM$500,3,FALSE)="",0,VLOOKUP($A$3,'G10-RA'!$A$6:$AM$500,3,FALSE))&")"))))),"0% (0)") -> 93% (331) | D34: =IFERROR((IF($C34="NA","NA",VLOOKUP($A$3,'G10-RA'!$A$6:$AM$500,4,FALSE))),"NA") -> 23.73957704 | E34: =IFERROR((IF($C34="NA","NA",ROUND(VLOOKUP($A$3,'G10-RA'!$A$6:$AM$500,6,FALSE),0)&"% ("&IF(VLOOKUP($A$3,'G10-RA'!$A$6:$AM$500,5,FALSE)="",0,VLOOKUP($A$3,'G10-RA'!$A$6:$AM$500,5,FALSE))&")")),"NA") -> 60% (200) | F34: =IFERROR((IF($C34="NA","NA",VLOOKUP($A$3,'G10-RA'!$A$6:$AM$500,7,FALSE))),"NA") -> 4.16858006 | G34: =IFERROR((IF($C34="NA","NA",ROUND(VLOOKUP($A$3,'G10-RA'!$A$6:$AM$500,9,FALSE),0)&"% ("&IF(VLOOKUP($A$3,'G10-RA'!$A$6:$AM$500,8,FALSE)="",0,VLOOKUP($A$3,'G10-RA'!$A$6:$AM$500,8,FALSE))&")")),"NA") -> 80% (264) | H34: =IFERROR((IF($C34="NA","NA",VLOOKUP($A$3,'G10-RA'!$A$6:$AM$500,10,FALSE))),"NA") -> 10.88519637 | I34: =IFERROR((IF($C34="NA","NA",ROUND(VLOOKUP($A$3,'G10-RA'!$A$6:$AM$500,12,FALSE),0)&"% ("&IF(VLOOKUP($A$3,'G10-RA'!$A$6:$AM$500,11,FALSE)="",0,VLOOKUP($A$3,'G10-RA'!$A$6:$AM$500,11,FALSE))&")")),"NA") -> 64% (212) | J34: =IFERROR((IF($C34="NA","NA",VLOOKUP($A$3,'G10-RA'!$A$6:$AM$500,13,FALSE))),"NA") -> 2.240181269 | K34: =IFERROR((IF($C34="NA","NA",ROUND(VLOOKUP($A$3,'G10-RA'!$A$6:$AM$500,15,FALSE),0)&"% ("&IF(VLOOKUP($A$3,'G10-RA'!$A$6:$AM$500,14,FALSE)="",0,VLOOKUP($A$3,'G10-RA'!$A$6:$AM$500,14,FALSE))&")")),"NA") -> 44% (145) | L34: =IFERROR((IF($C34="NA","NA",VLOOKUP($A$3,'G10-RA'!$A$6:$AM$500,16,FALSE))),"NA") -> 6.450453172 | M34: =IFERROR((IF($C34="NA","NA",ROUND(VLOOKUP($A$3,'G10-RA'!$A$6:$AM$500,18,FALSE),0)&"% ("&IF(VLOOKUP($A$3,'G10-RA'!$A$6:$AM$500,17,FALSE)="",0,VLOOKUP($A$3,'G10-RA'!$A$6:$AM$500,17,FALSE))&")")),"NA") -> 55% (183) | N34: =IFERROR(IF($C34="NA","NA",IF($R34=0,VLOOKUP($A$3,'GEO-A'!$A$14:$BX$500,34,FALSE),IF($Q34=0,VLOOKUP($A$3,'GEO-A'!$A$14:$BX$500,71,FALSE),AH34))),"NA") -> 0 | O34: =IF($C34="NA","NA",IF($R34=0,ROUND(VLOOKUP($A$3,'GEO-A'!$A$14:$BX$500,39,FALSE)*100,0)&"% ("&VLOOKUP($A$3,'GEO-A'!$A$14:$BX$500,37,FALSE)&")",IF($Q34=0,ROUND(VLOOKUP($A$3,'GEO-A'!$A$14:$BX$500,76,FALSE)*100,0)&"% ("&VLOOKUP($A$3,'GEO-A'!$A$14:$BX$500,74,FALSE)&")",ROUND(AI34,0)&"% ("&AJ34&")"))) -> 0% () | Q34: =IFERROR(VLOOKUP($A$3,'G10-RA'!$A$6:$BX$500,3,FALSE),"not tested") -> 331
A35: Am. Indian | B35: =IFERROR(VLOOKUP(TEXT($A$3,"0000"),MEM_I!$A$2:$S$500,18,FALSE),0) -> 24 | C35: =IFERROR((IF(OR(B35=0,B35="",B35="NA"),"NA",((IF(VLOOKUP($A$3,'G10-RI'!$A$6:$AM$500,3,FALSE)>=B35,"100% ("&VLOOKUP($A$3,'G10-RI'!$A$6:$AM$500,3,FALSE)&")",(ROUND((VLOOKUP($A$3,'G10-RI'!$A$6:$AM$500,3,FALSE)/B35*100),0))&"% ("&IF(VLOOKUP($A$3,'G10-RI'!$A$6:$AM$500,3,FALSE)="",0,VLOOKUP($A$3,'G10-RI'!$A$6:$AM$500,3,FALSE))&")"))))),"0% (0)") -> 100% (24) | D35: =IFERROR((IF($C35="NA","NA",VLOOKUP($A$3,'G10-RI'!$A$6:$AM$500,4,FALSE))),"NA") -> 17.96666667 | E35: =IFERROR((IF($C35="NA","NA",ROUND(VLOOKUP($A$3,'G10-RI'!$A$6:$AM$500,6,FALSE),0)&"% ("&IF(VLOOKUP($A$3,'G10-RI'!$A$6:$AM$500,5,FALSE)="",0,VLOOKUP($A$3,'G10-RI'!$A$6:$AM$500,5,FALSE))&")")),"NA") -> 21% (5) | F35: =IFERROR((IF($C35="NA","NA",VLOOKUP($A$3,'G10-RI'!$A$6:$AM$500,7,FALSE))),"NA") -> 3.258333333 | G35: =IFERROR((IF($C35="NA","NA",ROUND(VLOOKUP($A$3,'G10-RI'!$A$6:$AM$500,9,FALSE),0)&"% ("&IF(VLOOKUP($A$3,'G10-RI'!$A$6:$AM$500,8,FALSE)="",0,VLOOKUP($A$3,'G10-RI'!$A$6:$AM$500,8,FALSE))&")")),"NA") -> 54% (13) | H35: =IFERROR((IF($C35="NA","NA",VLOOKUP($A$3,'G10-RI'!$A$6:$AM$500,10,FALSE))),"NA") -> 8.5875 | I35: =IFERROR((IF($C35="NA","NA",ROUND(VLOOKUP($A$3,'G10-RI'!$A$6:$AM$500,12,FALSE),0)&"% ("&IF(VLOOKUP($A$3,'G10-RI'!$A$6:$AM$500,11,FALSE)="",0,VLOOKUP($A$3,'G10-RI'!$A$6:$AM$500,11,FALSE))&")")),"NA") -> 33% (8) | J35: =IFERROR((IF($C35="NA","NA",VLOOKUP($A$3,'G10-RI'!$A$6:$AM$500,13,FALSE))),"NA") -> 1.295833333 | K35: =IFERROR((IF($C35="NA","NA",ROUND(VLOOKUP($A$3,'G10-RI'!$A$6:$AM$500,15,FALSE),0)&"% ("&IF(VLOOKUP($A$3,'G10-RI'!$A$6:$AM$500,14,FALSE)="",0,VLOOKUP($A$3,'G10-RI'!$A$6:$AM$500,14,FALSE))&")")),"NA") -> 13% (3) | L35: =IFERROR((IF($C35="NA","NA",VLOOKUP($A$3,'G10-RI'!$A$6:$AM$500,16,FALSE))),"NA") -> 4.829166667 | M35: =IFERROR((IF($C35="NA","NA",ROUND(VLOOKUP($A$3,'G10-RI'!$A$6:$AM$500,18,FALSE),0)&"% ("&IF(VLOOKUP($A$3,'G10-RI'!$A$6:$AM$500,17,FALSE)="",0,VLOOKUP($A$3,'G10-RI'!$A$6:$AM$500,17,FALSE))&")")),"NA") -> 21% (5) | N35: =IFERROR(IF($C35="NA","NA",IF($R35=0,VLOOKUP($A$3,'GEO-I'!$A$14:$BX$500,34,FALSE),IF($Q35=0,VLOOKUP($A$3,'GEO-I'!$A$14:$BX$500,71,FALSE),AH35))),"NA") -> 0 | O35: =IF($C35="NA","NA",IF($R35=0,ROUND(VLOOKUP($A$3,'GEO-I'!$A$14:$BX$500,39,FALSE)*100,0)&"% ("&VLOOKUP($A$3,'GEO-I'!$A$14:$BX$500,37,FALSE)&")",IF($Q35=0,ROUND(VLOOKUP($A$3,'GEO-I'!$A$14:$BX$500,76,FALSE)*100,0)&"% ("&VLOOKUP($A$3,'GEO-I'!$A$14:$BX$500,74,FALSE)&")",ROUND(AI35,0)&"% ("&AJ35&")"))) -> 0% () | Q35: =IFERROR(VLOOKUP($A$3,'G10-RI'!$A$6:$BX$500,3,FALSE),"not tested") -> 24
A36: ED | B36: =IFERROR(VLOOKUP(TEXT($A$3,"0000"),MEM_ED!$A$2:$S$500,18,FALSE),0) -> 20415 | C36: =IFERROR((IF(OR(B36=0,B36="",B36="NA"),"NA",((IF(VLOOKUP($A$3,'G10-RED'!$A$6:$AM$500,3,FALSE)>=B36,"100% ("&VLOOKUP($A$3,'G10-RED'!$A$6:$AM$500,3,FALSE)&")",(ROUND((VLOOKUP($A$3,'G10-RED'!$A$6:$AM$500,3,FALSE)/B36*100),0))&"% ("&IF(VLOOKUP($A$3,'G10-RED'!$A$6:$AM$500,3,FALSE)="",0,VLOOKUP($A$3,'G10-RED'!$A$6:$AM$500,3,FALSE))&")"))))),"0% (0)") -> 90% (18288) | D36: =IFERROR((IF($C36="NA","NA",VLOOKUP($A$3,'G10-RED'!$A$6:$AM$500,4,FALSE))),"NA") -> 19.17821522 | E36: =IFERROR((IF($C36="NA","NA",ROUND(VLOOKUP($A$3,'G10-RED'!$A$6:$AM$500,6,FALSE),0)&"% ("&IF(VLOOKUP($A$3,'G10-RED'!$A$6:$AM$500,5,FALSE)="",0,VLOOKUP($A$3,'G10-RED'!$A$6:$AM$500,5,FALSE))&")")),"NA") -> 30% (5561) | F36: =IFERROR((IF($C36="NA","NA",VLOOKUP($A$3,'G10-RED'!$A$6:$AM$500,7,FALSE))),"NA") -> 3.248704068 | G36: =IFERROR((IF($C36="NA","NA",ROUND(VLOOKUP($A$3,'G10-RED'!$A$6:$AM$500,9,FALSE),0)&"% ("&IF(VLOOKUP($A$3,'G10-RED'!$A$6:$AM$500,8,FALSE)="",0,VLOOKUP($A$3,'G10-RED'!$A$6:$AM$500,8,FALSE))&")")),"NA") -> 50% (9175) | H36: =IFERROR((IF($C36="NA","NA",VLOOKUP($A$3,'G10-RED'!$A$6:$AM$500,10,FALSE))),"NA") -> 8.898042432 | I36: =IFERROR((IF($C36="NA","NA",ROUND(VLOOKUP($A$3,'G10-RED'!$A$6:$AM$500,12,FALSE),0)&"% ("&IF(VLOOKUP($A$3,'G10-RED'!$A$6:$AM$500,11,FALSE)="",0,VLOOKUP($A$3,'G10-RED'!$A$6:$AM$500,11,FALSE))&")")),"NA") -> 35% (6482) | J36: =IFERROR((IF($C36="NA","NA",VLOOKUP($A$3,'G10-RED'!$A$6:$AM$500,13,FALSE))),"NA") -> 1.66872266 | K36: =IFERROR((IF($C36="NA","NA",ROUND(VLOOKUP($A$3,'G10-RED'!$A$6:$AM$500,15,FALSE),0)&"% ("&IF(VLOOKUP($A$3,'G10-RED'!$A$6:$AM$500,14,FALSE)="",0,VLOOKUP($A$3,'G10-RED'!$A$6:$AM$500,14,FALSE))&")")),"NA") -> 25% (4506) | L36: =IFERROR((IF($C36="NA","NA",VLOOKUP($A$3,'G10-RED'!$A$6:$AM$500,16,FALSE))),"NA") -> 5.337560149 | M36: =IFERROR((IF($C36="NA","NA",ROUND(VLOOKUP($A$3,'G10-RED'!$A$6:$AM$500,18,FALSE),0)&"% ("&IF(VLOOKUP($A$3,'G10-RED'!$A$6:$AM$500,17,FALSE)="",0,VLOOKUP($A$3,'G10-RED'!$A$6:$AM$500,17,FALSE))&")")),"NA") -> 32% (5868) | N36: =IFERROR(IF($C36="NA","NA",IF($R36=0,VLOOKUP($A$3,'GEO-ED'!$A$14:$BX$500,34,FALSE),IF($Q36=0,VLOOKUP($A$3,'GEO-ED'!$A$14:$BX$500,71,FALSE),AH36))),"NA") -> 0 | O36: =IF($C36="NA","NA",IF($R36=0,ROUND(VLOOKUP($A$3,'GEO-ED'!$A$14:$BX$500,39,FALSE)*100,0)&"% ("&VLOOKUP($A$3,'GEO-ED'!$A$14:$BX$500,37,FALSE)&")",IF($Q36=0,ROUND(VLOOKUP($A$3,'GEO-ED'!$A$14:$BX$500,76,FALSE)*100,0)&"% ("&VLOOKUP($A$3,'GEO-ED'!$A$14:$BX$500,74,FALSE)&")",ROUND(AI36,0)&"% ("&AJ36&")"))) -> 0% () | Q36: =IFERROR(VLOOKUP($A$3,'G10-RED'!$A$6:$BX$500,3,FALSE),"not tested") -> 18288
A37: ELL | B37: =IFERROR(VLOOKUP(TEXT($A$3,"0000"),MEM_ELL!$A$2:$S$500,18,FALSE),0) -> 3438 | C37: =IFERROR((IF(OR(B37=0,B37="",B37="NA"),"NA",((IF(VLOOKUP($A$3,'G10-RELL'!$A$6:$AM$500,3,FALSE)>=B37,"100% ("&VLOOKUP($A$3,'G10-RELL'!$A$6:$AM$500,3,FALSE)&")",(ROUND((VLOOKUP($A$3,'G10-RELL'!$A$6:$AM$500,3,FALSE)/B37*100),0))&"% ("&IF(VLOOKUP($A$3,'G10-RELL'!$A$6:$AM$500,3,FALSE)="",0,VLOOKUP($A$3,'G10-RELL'!$A$6:$AM$500,3,FALSE))&")"))))),"0% (0)") -> 84% (2872) | D37: =IFERROR((IF($C37="NA","NA",VLOOKUP($A$3,'G10-RELL'!$A$6:$AM$500,4,FALSE))),"NA") -> 13.88231198 | E37: =IFERROR((IF($C37="NA","NA",ROUND(VLOOKUP($A$3,'G10-RELL'!$A$6:$AM$500,6,FALSE),0)&"% ("&IF(VLOOKUP($A$3,'G10-RELL'!$A$6:$AM$500,5,FALSE)="",0,VLOOKUP($A$3,'G10-RELL'!$A$6:$AM$500,5,FALSE))&")")),"NA") -> 9% (248) | F37: =IFERROR((IF($C37="NA","NA",VLOOKUP($A$3,'G10-RELL'!$A$6:$AM$500,7,FALSE))),"NA") -> 2.098885794 | G37: =IFERROR((IF($C37="NA","NA",ROUND(VLOOKUP($A$3,'G10-RELL'!$A$6:$AM$500,9,FALSE),0)&"% ("&IF(VLOOKUP($A$3,'G10-RELL'!$A$6:$AM$500,8,FALSE)="",0,VLOOKUP($A$3,'G10-RELL'!$A$6:$AM$500,8,FALSE))&")")),"NA") -> 18% (531) | H37: =IFERROR((IF($C37="NA","NA",VLOOKUP($A$3,'G10-RELL'!$A$6:$AM$500,10,FALSE))),"NA") -> 6.430362117 | I37: =IFERROR((IF($C37="NA","NA",ROUND(VLOOKUP($A$3,'G10-RELL'!$A$6:$AM$500,12,FALSE),0)&"% ("&IF(VLOOKUP($A$3,'G10-RELL'!$A$6:$AM$500,11,FALSE)="",0,VLOOKUP($A$3,'G10-RELL'!$A$6:$AM$500,11,FALSE))&")")),"NA") -> 10% (293) | J37: =IFERROR((IF($C37="NA","NA",VLOOKUP($A$3,'G10-RELL'!$A$6:$AM$500,13,FALSE))),"NA") -> 1.287604457 | K37: =IFERROR((IF($C37="NA","NA",ROUND(VLOOKUP($A$3,'G10-RELL'!$A$6:$AM$500,15,FALSE),0)&"% ("&IF(VLOOKUP($A$3,'G10-RELL'!$A$6:$AM$500,14,FALSE)="",0,VLOOKUP($A$3,'G10-RELL'!$A$6:$AM$500,14,FALSE))&")")),"NA") -> 13% (382) | L37: =IFERROR((IF($C37="NA","NA",VLOOKUP($A$3,'G10-RELL'!$A$6:$AM$500,16,FALSE))),"NA") -> 4.06545961 | M37: =IFERROR((IF($C37="NA","NA",ROUND(VLOOKUP($A$3,'G10-RELL'!$A$6:$AM$500,18,FALSE),0)&"% ("&IF(VLOOKUP($A$3,'G10-RELL'!$A$6:$AM$500,17,FALSE)="",0,VLOOKUP($A$3,'G10-RELL'!$A$6:$AM$500,17,FALSE))&")")),"NA") -> 13% (387) | N37: =IFERROR(IF($C37="NA","NA",IF($R37=0,VLOOKUP($A$3,'GEO-ELL'!$A$14:$BX$500,34,FALSE),IF($Q37=0,VLOOKUP($A$3,'GEO-ELL'!$A$14:$BX$500,71,FALSE),AH37))),"NA") -> 0 | O37: =IF($C37="NA","NA",IF($R37=0,ROUND(VLOOKUP($A$3,'GEO-ELL'!$A$14:$BX$500,39,FALSE)*100,0)&"% ("&VLOOKUP($A$3,'GEO-ELL'!$A$14:$BX$500,37,FALSE)&")",IF($Q37=0,ROUND(VLOOKUP($A$3,'GEO-ELL'!$A$14:$BX$500,76,FALSE)*100,0)&"% ("&VLOOKUP($A$3,'GEO-ELL'!$A$14:$BX$500,74,FALSE)&")",ROUND(AI37,0)&"% ("&AJ37&")"))) -> 0% () | Q37: =IFERROR(VLOOKUP($A$3,'G10-RELL'!$A$6:$BX$500,3,FALSE),"not tested") -> 2872
A38: SWD | B38: =IFERROR(VLOOKUP(TEXT($A$3,"0000"),MEM_SWD!$A$2:$S$500,18,FALSE),0) -> 2615 | C38: =IFERROR((IF(OR(B38=0,B38="",B38="NA"),"NA",((IF(VLOOKUP($A$3,'G10-RSWD'!$A$6:$AM$500,3,FALSE)>=B38,"100% ("&VLOOKUP($A$3,'G10-RSWD'!$A$6:$AM$500,3,FALSE)&")",(ROUND((VLOOKUP($A$3,'G10-RSWD'!$A$6:$AM$500,3,FALSE)/B38*100),0))&"% ("&IF(VLOOKUP($A$3,'G10-RSWD'!$A$6:$AM$500,3,FALSE)="",0,VLOOKUP($A$3,'G10-RSWD'!$A$6:$AM$500,3,FALSE))&")"))))),"0% (0)") -> 83% (2173) | D38: =IFERROR((IF($C38="NA","NA",VLOOKUP($A$3,'G10-RSWD'!$A$6:$AM$500,4,FALSE))),"NA") -> 15.28384722 | E38: =IFERROR((IF($C38="NA","NA",ROUND(VLOOKUP($A$3,'G10-RSWD'!$A$6:$AM$500,6,FALSE),0)&"% ("&IF(VLOOKUP($A$3,'G10-RSWD'!$A$6:$AM$500,5,FALSE)="",0,VLOOKUP($A$3,'G10-RSWD'!$A$6:$AM$500,5,FALSE))&")")),"NA") -> 11% (241) | F38: =IFERROR((IF($C38="NA","NA",VLOOKUP($A$3,'G10-RSWD'!$A$6:$AM$500,7,FALSE))),"NA") -> 2.576346065 | G38: =IFERROR((IF($C38="NA","NA",ROUND(VLOOKUP($A$3,'G10-RSWD'!$A$6:$AM$500,9,FALSE),0)&"% ("&IF(VLOOKUP($A$3,'G10-RSWD'!$A$6:$AM$500,8,FALSE)="",0,VLOOKUP($A$3,'G10-RSWD'!$A$6:$AM$500,8,FALSE))&")")),"NA") -> 29% (628) | H38: =IFERROR((IF($C38="NA","NA",VLOOKUP($A$3,'G10-RSWD'!$A$6:$AM$500,10,FALSE))),"NA") -> 7.12600092 | I38: =IFERROR((IF($C38="NA","NA",ROUND(VLOOKUP($A$3,'G10-RSWD'!$A$6:$AM$500,12,FALSE),0)&"% ("&IF(VLOOKUP($A$3,'G10-RSWD'!$A$6:$AM$500,11,FALSE)="",0,VLOOKUP($A$3,'G10-RSWD'!$A$6:$AM$500,11,FALSE))&")")),"NA") -> 15% (335) | J38: =IFERROR((IF($C38="NA","NA",VLOOKUP($A$3,'G10-RSWD'!$A$6:$AM$500,13,FALSE))),"NA") -> 1.253244363 | K38: =IFERROR((IF($C38="NA","NA",ROUND(VLOOKUP($A$3,'G10-RSWD'!$A$6:$AM$500,15,FALSE),0)&"% ("&IF(VLOOKUP($A$3,'G10-RSWD'!$A$6:$AM$500,14,FALSE)="",0,VLOOKUP($A$3,'G10-RSWD'!$A$6:$AM$500,14,FALSE))&")")),"NA") -> 13% (285) | L38: =IFERROR((IF($C38="NA","NA",VLOOKUP($A$3,'G10-RSWD'!$A$6:$AM$500,16,FALSE))),"NA") -> 4.330050621 | M38: =IFERROR((IF($C38="NA","NA",ROUND(VLOOKUP($A$3,'G10-RSWD'!$A$6:$AM$500,18,FALSE),0)&"% ("&IF(VLOOKUP($A$3,'G10-RSWD'!$A$6:$AM$500,17,FALSE)="",0,VLOOKUP($A$3,'G10-RSWD'!$A$6:$AM$500,17,FALSE))&")")),"NA") -> 15% (329) | N38: =IFERROR(IF($C38="NA","NA",IF($R38=0,VLOOKUP($A$3,'GEO-SWD'!$A$14:$BX$500,34,FALSE),IF($Q38=0,VLOOKUP($A$3,'GEO-SWD'!$A$14:$BX$500,71,FALSE),AH38))),"NA") -> 0 | O38: =IF($C38="NA","NA",IF($R38=0,ROUND(VLOOKUP($A$3,'GEO-SWD'!$A$14:$BX$500,39,FALSE)*100,0)&"% ("&VLOOKUP($A$3,'GEO-SWD'!$A$14:$BX$500,37,FALSE)&")",IF($Q38=0,ROUND(VLOOKUP($A$3,'GEO-SWD'!$A$14:$BX$500,76,FALSE)*100,0)&"% ("&VLOOKUP($A$3,'GEO-SWD'!$A$14:$BX$500,74,FALSE)&")",ROUND(AI38,0)&"% ("&AJ38&")"))) -> 0% () | Q38: =IFERROR(VLOOKUP($A$3,'G10-RSWD'!$A$6:$BX$500,3,FALSE),"not tested") -> 2173
A39: District Writing Pre-Test, Grade 10 | Q39: Writing Grade 10
A40: Level of Proficiency at 3 or above | B40: Total # of Students | C40: % of Students Tested (Max. of the two prompts) | D40: Combined Prompts (Weighted Values) | H40: Expository | J40: Persuasive | Q40: =H40 -> Expository | R40: =J40 -> Persuasive
D41: Average Score | E41: % at 3.0 | F41: % at or above 4.0 | H41: Average Score | I41: % Proficient | J41: Average Score | K41: % Proficient | Q41: Number Tested | R41: Number Tested
A42: All students | B42: =IFERROR(VLOOKUP(TEXT($A$3,"0000"),Mem_All!$A$2:$S$500,14,FALSE),0) -> 27408 | C42: =IF(OR(B42=0,B42="",B42="NA"),"NA",IF(VLOOKUP($A$3,'G10-WALL'!$A$6:$Z$500,3,FALSE)>B42,"100% ("&VLOOKUP($A$3,'G10-WALL'!$A$6:$Z$500,3,FALSE)&")",ROUND(VLOOKUP($A$3,'G10-WALL'!$A$6:$Z$500,3,FALSE)/B42*100,0)&"% ("&VLOOKUP($A$3,'G10-WALL'!$A$6:$Z$500,3,FALSE)&")")) -> 45% (12207) | D42: =IFERROR((IF($C42="NA","NA",VLOOKUP($A$3,'G10-WALL'!$A$6:$Z$500,4,FALSE))),"NA") -> 2.968214174 | E42: =IF($D42="NA","NA",ROUND(VLOOKUP($A$3,'G10-WALL'!$A$6:$Z$500,6,FALSE),0)&"% ("&VLOOKUP($A$3,'G10-WALL'!$A$6:$Z$500,5,FALSE)&")") -> 34% (4172) | F42: =IF($D42="NA","NA",ROUND(VLOOKUP($A$3,'G10-WALL'!$A$6:$Z$500,8,FALSE),0)&"% ("&VLOOKUP($A$3,'G10-WALL'!$A$6:$Z$500,7,FALSE)&")") -> 24% (2964) | H42: =IFERROR(IF(VLOOKUP($A$3,'G10-WALL'!$A$6:$Z$500,9,FALSE)=0,"NA",VLOOKUP($A$3,'G10-WALL'!$A$6:$Z$500,10,FALSE)),"NA") -> 2.657366182 | I42: =IFERROR(IF($H42="NA","NA",VLOOKUP($A$3,'G10-WALL'!$A$6:$Z$500,16,FALSE)&"% ("&VLOOKUP($A$3,'G10-WALL'!$A$6:$Z$500,12,FALSE)&")"),"NA") -> 58% (5901) | J42: =IFERROR(IF(VLOOKUP($A$3,'G10-WALL'!$A$6:$Z$500,17,FALSE)=0,"NA",VLOOKUP($A$3,'G10-WALL'!$A$6:$Z$500,18,FALSE)),"NA") -> 3.225586227 | K42: =IFERROR(IF($J42="NA","NA",VLOOKUP($A$3,'G10-WALL'!$A$6:$Z$500,24,FALSE)&"% ("&VLOOKUP($A$3,'G10-WALL'!$A$6:$Z$500,20,FALSE)&")"),"NA") -> 71% (7144) | Q42: =IFERROR(VLOOKUP($A$3,'G10-WALL'!$A$6:$Z$500,9,FALSE),"Not Test") -> 10107 | R42: =IFERROR(VLOOKUP($A$3,'G10-WALL'!$A$6:$Z$500,17,FALSE),"Not Test") -> 12207
A43: White | B43: =IFERROR(VLOOKUP(TEXT($A$3,"0000"),MEM_W!$A$2:$S$500,14,FALSE),0) -> 2452 | C43: =IF(OR(B43=0,B43="",B43="NA"),"NA",IF(VLOOKUP($A$3,'G10-WW'!$A$6:$Z$500,3,FALSE)>B43,"100% ("&VLOOKUP($A$3,'G10-WW'!$A$6:$Z$500,3,FALSE)&")",ROUND(VLOOKUP($A$3,'G10-WW'!$A$6:$Z$500,3,FALSE)/B43*100,0)&"% ("&VLOOKUP($A$3,'G10-WW'!$A$6:$Z$500,3,FALSE)&")")) -> 54% (1333) | D43: =IFERROR((IF($C43="NA","NA",VLOOKUP($A$3,'G10-WW'!$A$6:$Z$500,4,FALSE))),"NA") -> 3.201425307 | E43: =IF($D43="NA","NA",ROUND(VLOOKUP($A$3,'G10-WW'!$A$6:$Z$500,6,FALSE),0)&"% ("&VLOOKUP($A$3,'G10-WW'!$A$6:$Z$500,5,FALSE)&")") -> 35% (465) | F43: =IF($D43="NA","NA",ROUND(VLOOKUP($A$3,'G10-WW'!$A$6:$Z$500,8,FALSE),0)&"% ("&VLOOKUP($A$3,'G10-WW'!$A$6:$Z$500,7,FALSE)&")") -> 34% (454) | H43: =IFERROR(IF(VLOOKUP($A$3,'G10-WW'!$A$6:$Z$500,9,FALSE)=0,"NA",VLOOKUP($A$3,'G10-WW'!$A$6:$Z$500,10,FALSE)),"NA") -> 3.068319328 | I43: =IFERROR(IF($H43="NA","NA",VLOOKUP($A$3,'G10-WW'!$A$6:$Z$500,16,FALSE)&"% ("&VLOOKUP($A$3,'G10-WW'!$A$6:$Z$500,12,FALSE)&")"),"NA") -> 71% (842) | J43: =IFERROR(IF(VLOOKUP($A$3,'G10-WW'!$A$6:$Z$500,17,FALSE)=0,"NA",VLOOKUP($A$3,'G10-WW'!$A$6:$Z$500,18,FALSE)),"NA") -> 3.320252101 | K43: =IFERROR(IF($J43="NA","NA",VLOOKUP($A$3,'G10-WW'!$A$6:$Z$500,24,FALSE)&"% ("&VLOOKUP($A$3,'G10-WW'!$A$6:$Z$500,20,FALSE)&")"),"NA") -> 76% (899) | Q43: =IFERROR(VLOOKUP($A$3,'G10-WW'!$A$6:$Z$500,9,FALSE),"Not Test") -> 1190 | R43: =IFERROR(VLOOKUP($A$3,'G10-WW'!$A$6:$Z$500,17,FALSE),"Not Test") -> 1333
A44: Black | B44: =IFERROR(VLOOKUP(TEXT($A$3,"0000"),MEM_B!$A$2:$S$500,14,FALSE),0) -> 6490 | C44: =IF(OR(B44=0,B44="",B44="NA"),"NA",IF(VLOOKUP($A$3,'G10-WB'!$A$6:$Z$500,3,FALSE)>B44,"100% ("&VLOOKUP($A$3,'G10-WB'!$A$6:$Z$500,3,FALSE)&")",ROUND(VLOOKUP($A$3,'G10-WB'!$A$6:$Z$500,3,FALSE)/B44*100,0)&"% ("&VLOOKUP($A$3,'G10-WB'!$A$6:$Z$500,3,FALSE)&")")) -> 22% (1451) | D44: =IFERROR((IF($C44="NA","NA",VLOOKUP($A$3,'G10-WB'!$A$6:$Z$500,4,FALSE))),"NA") -> 2.824897564 | E44: =IF($D44="NA","NA",ROUND(VLOOKUP($A$3,'G10-WB'!$A$6:$Z$500,6,FALSE),0)&"% ("&VLOOKUP($A$3,'G10-WB'!$A$6:$Z$500,5,FALSE)&")") -> 33% (477) | F44: =IF($D44="NA","NA",ROUND(VLOOKUP($A$3,'G10-WB'!$A$6:$Z$500,8,FALSE),0)&"% ("&VLOOKUP($A$3,'G10-WB'!$A$6:$Z$500,7,FALSE)&")") -> 23% (336) | H44: =IFERROR(IF(VLOOKUP($A$3,'G10-WB'!$A$6:$Z$500,9,FALSE)=0,"NA",VLOOKUP($A$3,'G10-WB'!$A$6:$Z$500,10,FALSE)),"NA") -> 2.615244866 | I44: =IFERROR(IF($H44="NA","NA",VLOOKUP($A$3,'G10-WB'!$A$6:$Z$500,16,FALSE)&"% ("&VLOOKUP($A$3,'G10-WB'!$A$6:$Z$500,12,FALSE)&")"),"NA") -> 57% (726) | J44: =IFERROR(IF(VLOOKUP($A$3,'G10-WB'!$A$6:$Z$500,17,FALSE)=0,"NA",VLOOKUP($A$3,'G10-WB'!$A$6:$Z$500,18,FALSE)),"NA") -> 3.007819905 | K44: =IFERROR(IF($J44="NA","NA",VLOOKUP($A$3,'G10-WB'!$A$6:$Z$500,24,FALSE)&"% ("&VLOOKUP($A$3,'G10-WB'!$A$6:$Z$500,20,FALSE)&")"),"NA") -> 63% (797) | Q44: =IFERROR(VLOOKUP($A$3,'G10-WB'!$A$6:$Z$500,9,FALSE),"Not Test") -> 1266 | R44: =IFERROR(VLOOKUP($A$3,'G10-WB'!$A$6:$Z$500,17,FALSE),"Not Test") -> 1451
A45: Hispanic | B45: =IFERROR(VLOOKUP(TEXT($A$3,"0000"),MEM_H!$A$2:$S$500,14,FALSE),0) -> 18037 | C45: =IF(OR(B45=0,B45="",B45="NA"),"NA",IF(VLOOKUP($A$3,'G10-WH'!$A$6:$Z$500,3,FALSE)>B45,"100% ("&VLOOKUP($A$3,'G10-WH'!$A$6:$Z$500,3,FALSE)&")",ROUND(VLOOKUP($A$3,'G10-WH'!$A$6:$Z$500,3,FALSE)/B45*100,0)&"% ("&VLOOKUP($A$3,'G10-WH'!$A$6:$Z$500,3,FALSE)&")")) -> 51% (9240) | D45: =IFERROR((IF($C45="NA","NA",VLOOKUP($A$3,'G10-WH'!$A$6:$Z$500,4,FALSE))),"NA") -> 2.949475025 | E45: =IF($D45="NA","NA",ROUND(VLOOKUP($A$3,'G10-WH'!$A$6:$Z$500,6,FALSE),0)&"% ("&VLOOKUP($A$3,'G10-WH'!$A$6:$Z$500,5,FALSE)&")") -> 34% (3169) | F45: =IF($D45="NA","NA",ROUND(VLOOKUP($A$3,'G10-WH'!$A$6:$Z$500,8,FALSE),0)&"% ("&VLOOKUP($A$3,'G10-WH'!$A$6:$Z$500,7,FALSE)&")") -> 23% (2081) | H45: =IFERROR(IF(VLOOKUP($A$3,'G10-WH'!$A$6:$Z$500,9,FALSE)=0,"NA",VLOOKUP($A$3,'G10-WH'!$A$6:$Z$500,10,FALSE)),"NA") -> 2.585783068 | I45: =IFERROR(IF($H45="NA","NA",VLOOKUP($A$3,'G10-WH'!$A$6:$Z$500,16,FALSE)&"% ("&VLOOKUP($A$3,'G10-WH'!$A$6:$Z$500,12,FALSE)&")"),"NA") -> 56% (4192) | J45: =IFERROR(IF(VLOOKUP($A$3,'G10-WH'!$A$6:$Z$500,17,FALSE)=0,"NA",VLOOKUP($A$3,'G10-WH'!$A$6:$Z$500,18,FALSE)),"NA") -> 3.243774241 | K45: =IFERROR(IF($J45="NA","NA",VLOOKUP($A$3,'G10-WH'!$A$6:$Z$500,24,FALSE)&"% ("&VLOOKUP($A$3,'G10-WH'!$A$6:$Z$500,20,FALSE)&")"),"NA") -> 71% (5307) | Q45: =IFERROR(VLOOKUP($A$3,'G10-WH'!$A$6:$Z$500,9,FALSE),"Not Test") -> 7477 | R45: =IFERROR(VLOOKUP($A$3,'G10-WH'!$A$6:$Z$500,17,FALSE),"Not Test") -> 9240
A46: Asian | B46: =IFERROR(VLOOKUP(TEXT($A$3,"0000"),MEM_A!$A$2:$S$500,14,FALSE),0) -> 356 | C46: =IF(OR(B46=0,B46="",B46="NA"),"NA",IF(VLOOKUP($A$3,'G10-WA'!$A$6:$Z$500,3,FALSE)>B46,"100% ("&VLOOKUP($A$3,'G10-WA'!$A$6:$Z$500,3,FALSE)&")",ROUND(VLOOKUP($A$3,'G10-WA'!$A$6:$Z$500,3,FALSE)/B46*100,0)&"% ("&VLOOKUP($A$3,'G10-WA'!$A$6:$Z$500,3,FALSE)&")")) -> 47% (166) | D46: =IFERROR((IF($C46="NA","NA",VLOOKUP($A$3,'G10-WA'!$A$6:$Z$500,4,FALSE))),"NA") -> 3.430482456 | E46: =IF($D46="NA","NA",ROUND(VLOOKUP($A$3,'G10-WA'!$A$6:$Z$500,6,FALSE),0)&"% ("&VLOOKUP($A$3,'G10-WA'!$A$6:$Z$500,5,FALSE)&")") -> 31% (51) | F46: =IF($D46="NA","NA",ROUND(VLOOKUP($A$3,'G10-WA'!$A$6:$Z$500,8,FALSE),0)&"% ("&VLOOKUP($A$3,'G10-WA'!$A$6:$Z$500,7,FALSE)&")") -> 46% (76) | H46: =IFERROR(IF(VLOOKUP($A$3,'G10-WA'!$A$6:$Z$500,9,FALSE)=0,"NA",VLOOKUP($A$3,'G10-WA'!$A$6:$Z$500,10,FALSE)),"NA") -> 3.339473684 | I46: =IFERROR(IF($H46="NA","NA",VLOOKUP($A$3,'G10-WA'!$A$6:$Z$500,16,FALSE)&"% ("&VLOOKUP($A$3,'G10-WA'!$A$6:$Z$500,12,FALSE)&")"),"NA") -> 79% (120) | J46: =IFERROR(IF(VLOOKUP($A$3,'G10-WA'!$A$6:$Z$500,17,FALSE)=0,"NA",VLOOKUP($A$3,'G10-WA'!$A$6:$Z$500,18,FALSE)),"NA") -> 3.513815789 | K46: =IFERROR(IF($J46="NA","NA",VLOOKUP($A$3,'G10-WA'!$A$6:$Z$500,24,FALSE)&"% ("&VLOOKUP($A$3,'G10-WA'!$A$6:$Z$500,20,FALSE)&")"),"NA") -> 82% (124) | Q46: =IFERROR(VLOOKUP($A$3,'G10-WA'!$A$6:$Z$500,9,FALSE),"Not Test") -> 152 | R46: =IFERROR(VLOOKUP($A$3,'G10-WA'!$A$6:$Z$500,17,FALSE),"Not Test") -> 166
A47: Am. Indian | B47: =IFERROR(VLOOKUP(TEXT($A$3,"0000"),MEM_I!$A$2:$S$500,14,FALSE),0) -> 24 | C47: =IF(OR(B47=0,B47="",B47="NA"),"NA",IF(VLOOKUP($A$3,'G10-WI'!$A$6:$Z$500,3,FALSE)>B47,"100% ("&VLOOKUP($A$3,'G10-WI'!$A$6:$Z$500,3,FALSE)&")",ROUND(VLOOKUP($A$3,'G10-WI'!$A$6:$Z$500,3,FALSE)/B47*100,0)&"% ("&VLOOKUP($A$3,'G10-WI'!$A$6:$Z$500,3,FALSE)&")")) -> 38% (9) | D47: =IFERROR((IF($C47="NA","NA",VLOOKUP($A$3,'G10-WI'!$A$6:$Z$500,4,FALSE))),"NA") -> 3.544642857 | E47: =IF($D47="NA","NA",ROUND(VLOOKUP($A$3,'G10-WI'!$A$6:$Z$500,6,FALSE),0)&"% ("&VLOOKUP($A$3,'G10-WI'!$A$6:$Z$500,5,FALSE)&")") -> 38% (3) | F47: =IF($D47="NA","NA",ROUND(VLOOKUP($A$3,'G10-WI'!$A$6:$Z$500,8,FALSE),0)&"% ("&VLOOKUP($A$3,'G10-WI'!$A$6:$Z$500,7,FALSE)&")") -> 31% (3) | H47: =IFERROR(IF(VLOOKUP($A$3,'G10-WI'!$A$6:$Z$500,9,FALSE)=0,"NA",VLOOKUP($A$3,'G10-WI'!$A$6:$Z$500,10,FALSE)),"NA") -> 3.142857143 | I47: =IFERROR(IF($H47="NA","NA",VLOOKUP($A$3,'G10-WI'!$A$6:$Z$500,16,FALSE)&"% ("&VLOOKUP($A$3,'G10-WI'!$A$6:$Z$500,12,FALSE)&")"),"NA") -> 57% (4) | J47: =IFERROR(IF(VLOOKUP($A$3,'G10-WI'!$A$6:$Z$500,17,FALSE)=0,"NA",VLOOKUP($A$3,'G10-WI'!$A$6:$Z$500,18,FALSE)),"NA") -> 3.857142857 | K47: =IFERROR(IF($J47="NA","NA",VLOOKUP($A$3,'G10-WI'!$A$6:$Z$500,24,FALSE)&"% ("&VLOOKUP($A$3,'G10-WI'!$A$6:$Z$500,20,FALSE)&")"),"NA") -> 100% (7) | Q47: =IFERROR(VLOOKUP($A$3,'G10-WI'!$A$6:$Z$500,9,FALSE),"Not Test") -> 7 | R47: =IFERROR(VLOOKUP($A$3,'G10-WI'!$A$6:$Z$500,17,FALSE),"Not Test") -> 9
A48: ED | B48: =IFERROR(VLOOKUP(TEXT($A$3,"0000"),MEM_ED!$A$2:$S$500,14,FALSE),0) -> 20479 | C48: =IF(OR(B48=0,B48="",B48="NA"),"NA",IF(VLOOKUP($A$3,'G10-WED'!$A$6:$Z$500,3,FALSE)>B48,"100% ("&VLOOKUP($A$3,'G10-WED'!$A$6:$Z$500,3,FALSE)&")",ROUND(VLOOKUP($A$3,'G10-WED'!$A$6:$Z$500,3,FALSE)/B48*100,0)&"% ("&VLOOKUP($A$3,'G10-WED'!$A$6:$Z$500,3,FALSE)&")")) -> 43% (8844) | D48: =IFERROR((IF($C48="NA","NA",VLOOKUP($A$3,'G10-WED'!$A$6:$Z$500,4,FALSE))),"NA") -> 2.829603793 | E48: =IF($D48="NA","NA",ROUND(VLOOKUP($A$3,'G10-WED'!$A$6:$Z$500,6,FALSE),0)&"% ("&VLOOKUP($A$3,'G10-WED'!$A$6:$Z$500,5,FALSE)&")") -> 34% (3026) | F48: =IF($D48="NA","NA",ROUND(VLOOKUP($A$3,'G10-WED'!$A$6:$Z$500,8,FALSE),0)&"% ("&VLOOKUP($A$3,'G10-WED'!$A$6:$Z$500,7,FALSE)&")") -> 21% (1839) | H48: =IFERROR(IF(VLOOKUP($A$3,'G10-WED'!$A$6:$Z$500,9,FALSE)=0,"NA",VLOOKUP($A$3,'G10-WED'!$A$6:$Z$500,10,FALSE)),"NA") -> 2.535595982 | I48: =IFERROR(IF($H48="NA","NA",VLOOKUP($A$3,'G10-WED'!$A$6:$Z$500,16,FALSE)&"% ("&VLOOKUP($A$3,'G10-WED'!$A$6:$Z$500,12,FALSE)&")"),"NA") -> 55% (4022) | J48: =IFERROR(IF(VLOOKUP($A$3,'G10-WED'!$A$6:$Z$500,17,FALSE)=0,"NA",VLOOKUP($A$3,'G10-WED'!$A$6:$Z$500,18,FALSE)),"NA") -> 3.074477328 | K48: =IFERROR(IF($J48="NA","NA",VLOOKUP($A$3,'G10-WED'!$A$6:$Z$500,24,FALSE)&"% ("&VLOOKUP($A$3,'G10-WED'!$A$6:$Z$500,20,FALSE)&")"),"NA") -> 66% (4896) | Q48: =IFERROR(VLOOKUP($A$3,'G10-WED'!$A$6:$Z$500,9,FALSE),"Not Test") -> 7366 | R48: =IFERROR(VLOOKUP($A$3,'G10-WED'!$A$6:$Z$500,17,FALSE),"Not Test") -> 8844
A49: ELL | B49: =IFERROR(VLOOKUP(TEXT($A$3,"0000"),MEM_ELL!$A$2:$S$500,14,FALSE),0) -> 3441 | C49: =IF(OR(B49=0,B49="",B49="NA"),"NA",IF(VLOOKUP($A$3,'G10-WELL'!$A$6:$Z$500,3,FALSE)>B49,"100% ("&VLOOKUP($A$3,'G10-WELL'!$A$6:$Z$500,3,FALSE)&")",ROUND(VLOOKUP($A$3,'G10-WELL'!$A$6:$Z$500,3,FALSE)/B49*100,0)&"%("&VLOOKUP($A$3,'G10-WELL'!$A$6:$Z$500,3,FALSE)&")")) -> 45%(1540) | D49: =IFERROR((IF($C49="NA","NA",VLOOKUP($A$3,'G10-WELL'!$A$6:$Z$500,4,FALSE))),"NA") -> 0.9067175799 | E49: =IF($D49="NA","NA",ROUND(VLOOKUP($A$3,'G10-WELL'!$A$6:$Z$500,6,FALSE),0)&"% ("&VLOOKUP($A$3,'G10-WELL'!$A$6:$Z$500,5,FALSE)&")") -> 19% (293) | F49: =IF($D49="NA","NA",ROUND(VLOOKUP($A$3,'G10-WELL'!$A$6:$Z$500,8,FALSE),0)&"% ("&VLOOKUP($A$3,'G10-WELL'!$A$6:$Z$500,7,FALSE)&")") -> 5% (81) | H49: =IFERROR(IF(VLOOKUP($A$3,'G10-WELL'!$A$6:$Z$500,9,FALSE)=0,"NA",VLOOKUP($A$3,'G10-WELL'!$A$6:$Z$500,10,FALSE)),"NA") -> 1.635586636 | I49: =IFERROR(IF($H49="NA","NA",VLOOKUP($A$3,'G10-WELL'!$A$6:$Z$500,16,FALSE)&"% ("&VLOOKUP($A$3,'G10-WELL'!$A$6:$Z$500,12,FALSE)&")"),"NA") -> 25% (316) | J49: =IFERROR(IF(VLOOKUP($A$3,'G10-WELL'!$A$6:$Z$500,17,FALSE)=0,"NA",VLOOKUP($A$3,'G10-WELL'!$A$6:$Z$500,18,FALSE)),"NA") -> 0.2975912976 | K49: =IFERROR(IF($J49="NA","NA",VLOOKUP($A$3,'G10-WELL'!$A$6:$Z$500,24,FALSE)&"% ("&VLOOKUP($A$3,'G10-WELL'!$A$6:$Z$500,20,FALSE)&")"),"NA") -> 29% (371) | Q49: =IFERROR(VLOOKUP($A$3,'G10-WELL'!$A$6:$Z$500,9,FALSE),"Not Test") -> 1287 | R49: =IFERROR(VLOOKUP($A$3,'G10-WELL'!$A$6:$Z$500,17,FALSE),"Not Test") -> 1540
A50: SWD | B50: =IFERROR(VLOOKUP(TEXT($A$3,"0000"),MEM_SWD!$A$2:$S$500,14,FALSE),0) -> 2622 | C50: =IF(OR(B50=0,B50="",B50="NA"),"NA",IF(VLOOKUP($A$3,'G10-WSWD'!$A$6:$Z$500,3,FALSE)>B50,"100% ("&VLOOKUP($A$3,'G10-WSWD'!$A$6:$Z$500,3,FALSE)&")",ROUND(VLOOKUP($A$3,'G10-WSWD'!$A$6:$Z$500,3,FALSE)/B50*100,0)&"% ("&VLOOKUP($A$3,'G10-WSWD'!$A$6:$Z$500,3,FALSE)&")")) -> 39% (1031) | D50: =IFERROR((IF($C50="NA","NA",VLOOKUP($A$3,'G10-WSWD'!$A$6:$Z$500,4,FALSE))),"NA") -> 2.23937487 | E50: =IF($D50="NA","NA",ROUND(VLOOKUP($A$3,'G10-WSWD'!$A$6:$Z$500,6,FALSE),0)&"% ("&VLOOKUP($A$3,'G10-WSWD'!$A$6:$Z$500,5,FALSE)&")") -> 28% (293) | F50: =IF($D50="NA","NA",ROUND(VLOOKUP($A$3,'G10-WSWD'!$A$6:$Z$500,8,FALSE),0)&"% ("&VLOOKUP($A$3,'G10-WSWD'!$A$6:$Z$500,7,FALSE)&")") -> 8% (82) | H50: =IFERROR(IF(VLOOKUP($A$3,'G10-WSWD'!$A$6:$Z$500,9,FALSE)=0,"NA",VLOOKUP($A$3,'G10-WSWD'!$A$6:$Z$500,10,FALSE)),"NA") -> 2.094098361 | I50: =IFERROR(IF($H50="NA","NA",VLOOKUP($A$3,'G10-WSWD'!$A$6:$Z$500,16,FALSE)&"% ("&VLOOKUP($A$3,'G10-WSWD'!$A$6:$Z$500,12,FALSE)&")"),"NA") -> 35% (323) | J50: =IFERROR(IF(VLOOKUP($A$3,'G10-WSWD'!$A$6:$Z$500,17,FALSE)=0,"NA",VLOOKUP($A$3,'G10-WSWD'!$A$6:$Z$500,18,FALSE)),"NA") -> 2.368306011 | K50: =IFERROR(IF($J50="NA","NA",VLOOKUP($A$3,'G10-WSWD'!$A$6:$Z$500,24,FALSE)&"% ("&VLOOKUP($A$3,'G10-WSWD'!$A$6:$Z$500,20,FALSE)&")"),"NA") -> 42% (384) | Q50: =IFERROR(VLOOKUP($A$3,'G10-WSWD'!$A$6:$Z$500,9,FALSE),"Not Test") -> 915 | R50: =IFERROR(VLOOKUP($A$3,'G10-WSWD'!$A$6:$Z$500,17,FALSE),"Not Test") -> 1031

Sheet EOC Reports
A2: Click here to return to the school and sheet selection interface
A3: ='Select School'!B3 -> 9999
A4: =TEXT(A3,"0000")&"-"&VLOOKUP(A3,SchList!$A$2:$B$504,2,FALSE) -> 9999-District
A5: Algebra I | Q5: Algebra I
A6: Level of Proficiency at 70% or above | B6: Course Enrollment | C6: % and/or Number of Tested | D6: ='G9-10 Matrix'!C8&" ["&'G9-10 Matrix'!C9&"]" -> Overall [48] | F6: ='G9-10 Matrix'!D8&" ["&'G9-10 Matrix'!D9&"]" -> Functions, Linear Equations, and Inequalities [28] | H6: ='G9-10 Matrix'!E8&" ["&'G9-10 Matrix'!E9&"]" -> Polynomials [7] | J6: ='G9-10 Matrix'!F8&" ["&'G9-10 Matrix'!F9&"]" -> Rationals, Radicals, Quadratics, and Discrete Mathematics [13] | Q6: Number Tested
D7: Average Score | E7: % Proficient | F7: Average Score | G7: % Proficient | H7: Average Score | I7: % Proficient | J7: Average Score | K7: % Proficient
A8: All students | B8: =IFERROR(VLOOKUP(TEXT($A$3,"0000"),'Alg Enrollment'!$A$2:$Q$500,3,FALSE),0) -> 31983 | C8: =IFERROR((IF(OR(B8=0,B8="",B8="NA"),"NA",((IF(VLOOKUP($A$3,'ALG-ALL'!$A$6:$AM$500,3,FALSE)>=B8,"100% ("&VLOOKUP($A$3,'ALG-ALL'!$A$6:$AM$500,3,FALSE)&")",(ROUND((VLOOKUP($A$3,'ALG-ALL'!$A$6:$AM$500,3,FALSE)/B8*100),0))&"% ("&IF(VLOOKUP($A$3,'ALG-ALL'!$A$6:$AM$500,3,FALSE)="",0,VLOOKUP($A$3,'ALG-ALL'!$A$6:$AM$500,3,FALSE))&")"))))),"0% (0)") -> 92% (29390) | D8: =IFERROR((IF($C8="NA","NA",VLOOKUP($A$3,'ALG-ALL'!$A$6:$AM$500,4,FALSE))),"NA") -> 15.40400817 | E8: =IFERROR((IF($C8="NA","NA",ROUND(VLOOKUP($A$3,'ALG-ALL'!$A$6:$AM$500,6,FALSE),0)&"% ("&IF(VLOOKUP($A$3,'ALG-ALL'!$A$6:$AM$500,5,FALSE)="",0,VLOOKUP($A$3,'ALG-ALL'!$A$6:$AM$500,5,FALSE))&")")),"NA") -> 0% (88) | F8: =IFERROR((IF($C8="NA","NA",VLOOKUP($A$3,'ALG-ALL'!$A$6:$AM$500,7,FALSE))),"NA") -> 8.969479415 | G8: =IFERROR((IF($C8="NA","NA",ROUND(VLOOKUP($A$3,'ALG-ALL'!$A$6:$AM$500,9,FALSE),0)&"% ("&IF(VLOOKUP($A$3,'ALG-ALL'!$A$6:$AM$500,8,FALSE)="",0,VLOOKUP($A$3,'ALG-ALL'!$A$6:$AM$500,8,FALSE))&")")),"NA") -> 1% (167) | H8: =IFERROR((IF($C8="NA","NA",VLOOKUP($A$3,'ALG-ALL'!$A$6:$AM$500,10,FALSE))),"NA") -> 1.949962572 | I8: =IFERROR((IF($C8="NA","NA",ROUND(VLOOKUP($A$3,'ALG-ALL'!$A$6:$AM$500,12,FALSE),0)&"% ("&IF(VLOOKUP($A$3,'ALG-ALL'!$A$6:$AM$500,11,FALSE)="",0,VLOOKUP($A$3,'ALG-ALL'!$A$6:$AM$500,11,FALSE))&")")),"NA") -> 3% (795) | J8: =IFERROR((IF($C8="NA","NA",VLOOKUP($A$3,'ALG-ALL'!$A$6:$AM$500,13,FALSE))),"NA") -> 4.493429738 | K8: =IFERROR((IF($C8="NA","NA",ROUND(VLOOKUP($A$3,'ALG-ALL'!$A$6:$AM$500,15,FALSE),0)&"% ("&IF(VLOOKUP($A$3,'ALG-ALL'!$A$6:$AM$500,14,FALSE)="",0,VLOOKUP($A$3,'ALG-ALL'!$A$6:$AM$500,14,FALSE))&")")),"NA") -> 1% (319) | Q8: =IFERROR(VLOOKUP($A$3,'ALG-ALL'!$A$6:$AA$500,3,FALSE),"not tested") -> 29390
A9: FCAT Level 1 | B9: =IFERROR(VLOOKUP(TEXT($A$3,"0000"),'Alg Enrollment'!$A$2:$Q$500,4,FALSE),0) -> 5385 | C9: =IFERROR((IF(OR(B9=0,B9="",B9="NA"),"NA",((IF(VLOOKUP($A$3,'ALG-L1'!$A$6:$AM$500,3,FALSE)>=B9,"100% ("&VLOOKUP($A$3,'ALG-L1'!$A$6:$AM$500,3,FALSE)&")",(ROUND((VLOOKUP($A$3,'ALG-L1'!$A$6:$AM$500,3,FALSE)/B9*100),0))&"% ("&IF(VLOOKUP($A$3,'ALG-L1'!$A$6:$AM$500,3,FALSE)="",0,VLOOKUP($A$3,'ALG-L1'!$A$6:$AM$500,3,FALSE))&")"))))),"0% (0)") -> 100% (5497) | D9: =IFERROR((IF($C9="NA","NA",VLOOKUP($A$3,'ALG-L1'!$A$6:$AG$500,4,FALSE))),"NA") -> 12.38340913 | E9: =IFERROR((IF($C9="NA","NA",ROUND(VLOOKUP($A$3,'ALG-L1'!$A$6:$AG$500,6,FALSE),0)&"% ("&IF(VLOOKUP($A$3,'ALG-L1'!$A$6:$AG$500,5,FALSE)="",0,VLOOKUP($A$3,'ALG-L1'!$A$6:$AG$500,5,FALSE))&")")),"NA") -> 0% (4) | F9: =IFERROR((IF($C9="NA","NA",VLOOKUP($A$3,'ALG-L1'!$A$6:$AG$500,7,FALSE))),"NA") -> 7.000745861 | G9: =IFERROR((IF($C9="NA","NA",ROUND(VLOOKUP($A$3,'ALG-L1'!$A$6:$AG$500,9,FALSE),0)&"% ("&IF(VLOOKUP($A$3,'ALG-L1'!$A$6:$AG$500,8,FALSE)="",0,VLOOKUP($A$3,'ALG-L1'!$A$6:$AG$500,8,FALSE))&")")),"NA") -> 0% (3) | H9: =IFERROR((IF($C9="NA","NA",VLOOKUP($A$3,'ALG-L1'!$A$6:$AM$500,10,FALSE))),"NA") -> 1.894160451 | I9: =IFERROR((IF($C9="NA","NA",ROUND(VLOOKUP($A$3,'ALG-L1'!$A$6:$AM$500,12,FALSE),0)&"% ("&IF(VLOOKUP($A$3,'ALG-L1'!$A$6:$AM$500,11,FALSE)="",0,VLOOKUP($A$3,'ALG-L1'!$A$6:$AM$500,11,FALSE))&")")),"NA") -> 2% (100) | J9: =IFERROR((IF($C9="NA","NA",VLOOKUP($A$3,'ALG-L1'!$A$6:$AM$500,13,FALSE))),"NA") -> 3.477660542 | K9: =IFERROR((IF($C9="NA","NA",ROUND(VLOOKUP($A$3,'ALG-L1'!$A$6:$AM$500,15,FALSE),0)&"% ("&IF(VLOOKUP($A$3,'ALG-L1'!$A$6:$AM$500,14,FALSE)="",0,VLOOKUP($A$3,'ALG-L1'!$A$6:$AM$500,14,FALSE))&")")),"NA") -> 0% (7) | Q9: =IFERROR(VLOOKUP($A$3,'ALG-L1'!$A$6:$BX$500,3,FALSE),"not tested") -> 5497
A10: FCAT Level 2 | B10: =IFERROR(VLOOKUP(TEXT($A$3,"0000"),'Alg Enrollment'!$A$2:$Q$500,5,FALSE),0) -> 5393 | C10: =IFERROR((IF(OR(B10=0,B10="",B10="NA"),"NA",((IF(VLOOKUP($A$3,'ALG-L2'!$A$6:$AM$500,3,FALSE)>=B10,"100% ("&VLOOKUP($A$3,'ALG-L2'!$A$6:$AM$500,3,FALSE)&")",(ROUND((VLOOKUP($A$3,'ALG-L2'!$A$6:$AM$500,3,FALSE)/B10*100),0))&"% ("&IF(VLOOKUP($A$3,'ALG-L2'!$A$6:$AM$500,3,FALSE)="",0,VLOOKUP($A$3,'ALG-L2'!$A$6:$AM$500,3,FALSE))&")"))))),"0% (0)") -> 100% (5509) | D10: =IFERROR((IF($C10="NA","NA",VLOOKUP($A$3,'ALG-L2'!$A$6:$AG$500,4,FALSE))),"NA") -> 13.52721002 | E10: =IFERROR((IF($C10="NA","NA",ROUND(VLOOKUP($A$3,'ALG-L2'!$A$6:$AG$500,6,FALSE),0)&"% ("&IF(VLOOKUP($A$3,'ALG-L2'!$A$6:$AG$500,5,FALSE)="",0,VLOOKUP($A$3,'ALG-L2'!$A$6:$AG$500,5,FALSE))&")")),"NA") -> 0% (3) | F10: =IFERROR((IF($C10="NA","NA",VLOOKUP($A$3,'ALG-L2'!$A$6:$AG$500,7,FALSE))),"NA") -> 7.703630423 | G10: =IFERROR((IF($C10="NA","NA",ROUND(VLOOKUP($A$3,'ALG-L2'!$A$6:$AG$500,9,FALSE),0)&"% ("&IF(VLOOKUP($A$3,'ALG-L2'!$A$6:$AG$500,8,FALSE)="",0,VLOOKUP($A$3,'ALG-L2'!$A$6:$AG$500,8,FALSE))&")")),"NA") -> 0% (3) | H10: =IFERROR((IF($C10="NA","NA",VLOOKUP($A$3,'ALG-L2'!$A$6:$AM$500,10,FALSE))),"NA") -> 1.900381194 | I10: =IFERROR((IF($C10="NA","NA",ROUND(VLOOKUP($A$3,'ALG-L2'!$A$6:$AM$500,12,FALSE),0)&"% ("&IF(VLOOKUP($A$3,'ALG-L2'!$A$6:$AM$500,11,FALSE)="",0,VLOOKUP($A$3,'ALG-L2'!$A$6:$AM$500,11,FALSE))&")")),"NA") -> 2% (114) | J10: =IFERROR((IF($C10="NA","NA",VLOOKUP($A$3,'ALG-L2'!$A$6:$AM$500,13,FALSE))),"NA") -> 3.934289345 | K10: =IFERROR((IF($C10="NA","NA",ROUND(VLOOKUP($A$3,'ALG-L2'!$A$6:$AM$500,15,FALSE),0)&"% ("&IF(VLOOKUP($A$3,'ALG-L2'!$A$6:$AM$500,14,FALSE)="",0,VLOOKUP($A$3,'ALG-L2'!$A$6:$AM$500,14,FALSE))&")")),"NA") -> 0% (15) | Q10: =IFERROR(VLOOKUP($A$3,'ALG-L2'!$A$6:$BX$500,3,FALSE),"not tested") -> 5509
A11: FCAT Level 3 | B11: =IFERROR(VLOOKUP(TEXT($A$3,"0000"),'Alg Enrollment'!$A$2:$Q$500,6,FALSE),0) -> 9748 | C11: =IFERROR((IF(OR(B11=0,B11="",B11="NA"),"NA",((IF(VLOOKUP($A$3,'ALG-L3'!$A$6:$AM$500,3,FALSE)>=B11,"100% ("&VLOOKUP($A$3,'ALG-L3'!$A$6:$AM$500,3,FALSE)&")",(ROUND((VLOOKUP($A$3,'ALG-L3'!$A$6:$AM$500,3,FALSE)/B11*100),0))&"% ("&IF(VLOOKUP($A$3,'ALG-L3'!$A$6:$AM$500,3,FALSE)="",0,VLOOKUP($A$3,'ALG-L3'!$A$6:$AM$500,3,FALSE))&")"))))),"0% (0)") -> 98% (9544) | D11: =IFERROR((IF($C11="NA","NA",VLOOKUP($A$3,'ALG-L3'!$A$6:$AG$500,4,FALSE))),"NA") -> 15.39135583 | E11: =IFERROR((IF($C11="NA","NA",ROUND(VLOOKUP($A$3,'ALG-L3'!$A$6:$AG$500,6,FALSE),0)&"% ("&IF(VLOOKUP($A$3,'ALG-L3'!$A$6:$AG$500,5,FALSE)="",0,VLOOKUP($A$3,'ALG-L3'!$A$6:$AG$500,5,FALSE))&")")),"NA") -> 0% (7) | F11: =IFERROR((IF($C11="NA","NA",VLOOKUP($A$3,'ALG-L3'!$A$6:$AG$500,7,FALSE))),"NA") -> 8.916481559 | G11: =IFERROR((IF($C11="NA","NA",ROUND(VLOOKUP($A$3,'ALG-L3'!$A$6:$AG$500,9,FALSE),0)&"% ("&IF(VLOOKUP($A$3,'ALG-L3'!$A$6:$AG$500,8,FALSE)="",0,VLOOKUP($A$3,'ALG-L3'!$A$6:$AG$500,8,FALSE))&")")),"NA") -> 0% (7) | H11: =IFERROR((IF($C11="NA","NA",VLOOKUP($A$3,'ALG-L3'!$A$6:$AM$500,10,FALSE))),"NA") -> 1.919740151 | I11: =IFERROR((IF($C11="NA","NA",ROUND(VLOOKUP($A$3,'ALG-L3'!$A$6:$AM$500,12,FALSE),0)&"% ("&IF(VLOOKUP($A$3,'ALG-L3'!$A$6:$AM$500,11,FALSE)="",0,VLOOKUP($A$3,'ALG-L3'!$A$6:$AM$500,11,FALSE))&")")),"NA") -> 2% (234) | J11: =IFERROR((IF($C11="NA","NA",VLOOKUP($A$3,'ALG-L3'!$A$6:$AM$500,13,FALSE))),"NA") -> 4.560970243 | K11: =IFERROR((IF($C11="NA","NA",ROUND(VLOOKUP($A$3,'ALG-L3'!$A$6:$AM$500,15,FALSE),0)&"% ("&IF(VLOOKUP($A$3,'ALG-L3'!$A$6:$AM$500,14,FALSE)="",0,VLOOKUP($A$3,'ALG-L3'!$A$6:$AM$500,14,FALSE))&")")),"NA") -> 1% (74) | Q11: =IFERROR(VLOOKUP($A$3,'ALG-L3'!$A$6:$BX$500,3,FALSE),"not tested") -> 9544
A12: FCAT Level 4 | B12: =IFERROR(VLOOKUP(TEXT($A$3,"0000"),'Alg Enrollment'!$A$2:$Q$500,7,FALSE),0) -> 5529 | C12: =IFERROR((IF(OR(B12=0,B12="",B12="NA"),"NA",((IF(VLOOKUP($A$3,'ALG-L4'!$A$6:$AM$500,3,FALSE)>=B12,"100% ("&VLOOKUP($A$3,'ALG-L4'!$A$6:$AM$500,3,FALSE)&")",(ROUND((VLOOKUP($A$3,'ALG-L4'!$A$6:$AM$500,3,FALSE)/B12*100),0))&"% ("&IF(VLOOKUP($A$3,'ALG-L4'!$A$6:$AM$500,3,FALSE)="",0,VLOOKUP($A$3,'ALG-L4'!$A$6:$AM$500,3,FALSE))&")"))))),"0% (0)") -> 95% (5226) | D12: =IFERROR((IF($C12="NA","NA",VLOOKUP($A$3,'ALG-L4'!$A$6:$AG$500,4,FALSE))),"NA") -> 18.2115576 | E12: =IFERROR((IF($C12="NA","NA",ROUND(VLOOKUP($A$3,'ALG-L4'!$A$6:$AG$500,6,FALSE),0)&"% ("&IF(VLOOKUP($A$3,'ALG-L4'!$A$6:$AG$500,5,FALSE)="",0,VLOOKUP($A$3,'ALG-L4'!$A$6:$AG$500,5,FALSE))&")")),"NA") -> 0% (24) | F12: =IFERROR((IF($C12="NA","NA",VLOOKUP($A$3,'ALG-L4'!$A$6:$AG$500,7,FALSE))),"NA") -> 10.79642174 | G12: =IFERROR((IF($C12="NA","NA",ROUND(VLOOKUP($A$3,'ALG-L4'!$A$6:$AG$500,9,FALSE),0)&"% ("&IF(VLOOKUP($A$3,'ALG-L4'!$A$6:$AG$500,8,FALSE)="",0,VLOOKUP($A$3,'ALG-L4'!$A$6:$AG$500,8,FALSE))&")")),"NA") -> 1% (41) | H12: =IFERROR((IF($C12="NA","NA",VLOOKUP($A$3,'ALG-L4'!$A$6:$AM$500,10,FALSE))),"NA") -> 2.007252201 | I12: =IFERROR((IF($C12="NA","NA",ROUND(VLOOKUP($A$3,'ALG-L4'!$A$6:$AM$500,12,FALSE),0)&"% ("&IF(VLOOKUP($A$3,'ALG-L4'!$A$6:$AM$500,11,FALSE)="",0,VLOOKUP($A$3,'ALG-L4'!$A$6:$AM$500,11,FALSE))&")")),"NA") -> 3% (177) | J12: =IFERROR((IF($C12="NA","NA",VLOOKUP($A$3,'ALG-L4'!$A$6:$AM$500,13,FALSE))),"NA") -> 5.416628396 | K12: =IFERROR((IF($C12="NA","NA",ROUND(VLOOKUP($A$3,'ALG-L4'!$A$6:$AM$500,15,FALSE),0)&"% ("&IF(VLOOKUP($A$3,'ALG-L4'!$A$6:$AM$500,14,FALSE)="",0,VLOOKUP($A$3,'ALG-L4'!$A$6:$AM$500,14,FALSE))&")")),"NA") -> 2% (117) | Q12: =IFERROR(VLOOKUP($A$3,'ALG-L4'!$A$6:$BX$500,3,FALSE),"not tested") -> 5226
A13: FCAT Level 5 | B13: =IFERROR(VLOOKUP(TEXT($A$3,"0000"),'Alg Enrollment'!$A$2:$Q$500,8,FALSE),0) -> 2698 | C13: =IFERROR((IF(OR(B13=0,B13="",B13="NA"),"NA",((IF(VLOOKUP($A$3,'ALG-L5'!$A$6:$AM$500,3,FALSE)>=B13,"100% ("&VLOOKUP($A$3,'ALG-L5'!$A$6:$AM$500,3,FALSE)&")",(ROUND((VLOOKUP($A$3,'ALG-L5'!$A$6:$AM$500,3,FALSE)/B13*100),0))&"% ("&IF(VLOOKUP($A$3,'ALG-L5'!$A$6:$AM$500,3,FALSE)="",0,VLOOKUP($A$3,'ALG-L5'!$A$6:$AM$500,3,FALSE))&")"))))),"0% (0)") -> 95% (2556) | D13: =IFERROR((IF($C13="NA","NA",VLOOKUP($A$3,'ALG-L5'!$A$6:$AG$500,4,FALSE))),"NA") -> 20.9663928 | E13: =IFERROR((IF($C13="NA","NA",ROUND(VLOOKUP($A$3,'ALG-L5'!$A$6:$AG$500,6,FALSE),0)&"% ("&IF(VLOOKUP($A$3,'ALG-L5'!$A$6:$AG$500,5,FALSE)="",0,VLOOKUP($A$3,'ALG-L5'!$A$6:$AG$500,5,FALSE))&")")),"NA") -> 2% (46) | F13: =IFERROR((IF($C13="NA","NA",VLOOKUP($A$3,'ALG-L5'!$A$6:$AG$500,7,FALSE))),"NA") -> 12.79217527 | G13: =IFERROR((IF($C13="NA","NA",ROUND(VLOOKUP($A$3,'ALG-L5'!$A$6:$AG$500,9,FALSE),0)&"% ("&IF(VLOOKUP($A$3,'ALG-L5'!$A$6:$AG$500,8,FALSE)="",0,VLOOKUP($A$3,'ALG-L5'!$A$6:$AG$500,8,FALSE))&")")),"NA") -> 4% (106) | H13: =IFERROR((IF($C13="NA","NA",VLOOKUP($A$3,'ALG-L5'!$A$6:$AM$500,10,FALSE))),"NA") -> 2.107942097 | I13: =IFERROR((IF($C13="NA","NA",ROUND(VLOOKUP($A$3,'ALG-L5'!$A$6:$AM$500,12,FALSE),0)&"% ("&IF(VLOOKUP($A$3,'ALG-L5'!$A$6:$AM$500,11,FALSE)="",0,VLOOKUP($A$3,'ALG-L5'!$A$6:$AM$500,11,FALSE))&")")),"NA") -> 5% (125) | J13: =IFERROR((IF($C13="NA","NA",VLOOKUP($A$3,'ALG-L5'!$A$6:$AM$500,13,FALSE))),"NA") -> 6.073787167 | K13: =IFERROR((IF($C13="NA","NA",ROUND(VLOOKUP($A$3,'ALG-L5'!$A$6:$AM$500,15,FALSE),0)&"% ("&IF(VLOOKUP($A$3,'ALG-L5'!$A$6:$AM$500,14,FALSE)="",0,VLOOKUP($A$3,'ALG-L5'!$A$6:$AM$500,14,FALSE))&")")),"NA") -> 4% (100) | Q13: =IFERROR(VLOOKUP($A$3,'ALG-L5'!$A$6:$BX$500,3,FALSE),"not tested") -> 2556
A14: White | B14: =IFERROR(VLOOKUP(TEXT($A$3,"0000"),'Alg Enrollment'!$A$2:$Q$500,10,FALSE),0) -> 2747 | C14: =IFERROR((IF(OR(B14=0,B14="",B14="NA"),"NA",((IF(VLOOKUP($A$3,'ALG-W'!$A$6:$AG$500,3,FALSE)>=B14,"100% ("&VLOOKUP($A$3,'ALG-W'!$A$6:$AG$500,3,FALSE)&")",(ROUND((VLOOKUP($A$3,'ALG-W'!$A$6:$AG$500,3,FALSE)/B14*100),0))&"% ("&IF(VLOOKUP($A$3,'ALG-W'!$A$6:$AG$500,3,FALSE)="",0,VLOOKUP($A$3,'ALG-W'!$A$6:$AG$500,3,FALSE))&")"))))),"0% (0)") -> 90% (2473) | D14: =IFERROR((IF($C14="NA","NA",VLOOKUP($A$3,'ALG-W'!$A$6:$AG$500,4,FALSE))),"NA") -> 16.94937323 | E14: =IFERROR((IF($C14="NA","NA",ROUND(VLOOKUP($A$3,'ALG-W'!$A$6:$AG$500,6,FALSE),0)&"% ("&IF(VLOOKUP($A$3,'ALG-W'!$A$6:$AG$500,5,FALSE)="",0,VLOOKUP($A$3,'ALG-W'!$A$6:$AG$500,5,FALSE))&")")),"NA") -> 1% (18) | F14: =IFERROR((IF($C14="NA","NA",VLOOKUP($A$3,'ALG-W'!$A$6:$AG$500,7,FALSE))),"NA") -> 10.08904165 | G14: =IFERROR((IF($C14="NA","NA",ROUND(VLOOKUP($A$3,'ALG-W'!$A$6:$AG$500,9,FALSE),0)&"% ("&IF(VLOOKUP($A$3,'ALG-W'!$A$6:$AG$500,8,FALSE)="",0,VLOOKUP($A$3,'ALG-W'!$A$6:$AG$500,8,FALSE))&")")),"NA") -> 2% (39) | H14: =IFERROR((IF($C14="NA","NA",VLOOKUP($A$3,'ALG-W'!$A$6:$AM$500,10,FALSE))),"NA") -> 1.939264052 | I14: =IFERROR((IF($C14="NA","NA",ROUND(VLOOKUP($A$3,'ALG-W'!$A$6:$AM$500,12,FALSE),0)&"% ("&IF(VLOOKUP($A$3,'ALG-W'!$A$6:$AM$500,11,FALSE)="",0,VLOOKUP($A$3,'ALG-W'!$A$6:$AM$500,11,FALSE))&")")),"NA") -> 3% (77) | J14: =IFERROR((IF($C14="NA","NA",VLOOKUP($A$3,'ALG-W'!$A$6:$AM$500,13,FALSE))),"NA") -> 4.934249899 | K14: =IFERROR((IF($C14="NA","NA",ROUND(VLOOKUP($A$3,'ALG-W'!$A$6:$AM$500,15,FALSE),0)&"% ("&IF(VLOOKUP($A$3,'ALG-W'!$A$6:$AM$500,14,FALSE)="",0,VLOOKUP($A$3,'ALG-W'!$A$6:$AM$500,14,FALSE))&")")),"NA") -> 2% (43) | Q14: =IFERROR(VLOOKUP($A$3,'ALG-W'!$A$6:$BX$500,3,FALSE),"not tested") -> 2473
A15: Black | B15: =IFERROR(VLOOKUP(TEXT($A$3,"0000"),'Alg Enrollment'!$A$2:$Q$500,11,FALSE),0) -> 7469 | C15: =IFERROR((IF(OR(B15=0,B15="",B15="NA"),"NA",((IF(VLOOKUP($A$3,'ALG-B'!$A$6:$AG$500,3,FALSE)>=B15,"100% ("&VLOOKUP($A$3,'ALG-B'!$A$6:$AG$500,3,FALSE)&")",(ROUND((VLOOKUP($A$3,'ALG-B'!$A$6:$AG$500,3,FALSE)/B15*100),0))&"% ("&IF(VLOOKUP($A$3,'ALG-B'!$A$6:$AG$500,3,FALSE)="",0,VLOOKUP($A$3,'ALG-B'!$A$6:$AG$500,3,FALSE))&")"))))),"0% (0)") -> 91% (6797) | D15: =IFERROR((IF($C15="NA","NA",VLOOKUP($A$3,'ALG-B'!$A$6:$AG$500,4,FALSE))),"NA") -> 14.51032809 | E15: =IFERROR((IF($C15="NA","NA",ROUND(VLOOKUP($A$3,'ALG-B'!$A$6:$AG$500,6,FALSE),0)&"% ("&IF(VLOOKUP($A$3,'ALG-B'!$A$6:$AG$500,5,FALSE)="",0,VLOOKUP($A$3,'ALG-B'!$A$6:$AG$500,5,FALSE))&")")),"NA") -> 0% (14) | F15: =IFERROR((IF($C15="NA","NA",VLOOKUP($A$3,'ALG-B'!$A$6:$AG$500,7,FALSE))),"NA") -> 8.307488598 | G15: =IFERROR((IF($C15="NA","NA",ROUND(VLOOKUP($A$3,'ALG-B'!$A$6:$AG$500,9,FALSE),0)&"% ("&IF(VLOOKUP($A$3,'ALG-B'!$A$6:$AG$500,8,FALSE)="",0,VLOOKUP($A$3,'ALG-B'!$A$6:$AG$500,8,FALSE))&")")),"NA") -> 0% (16) | H15: =IFERROR((IF($C15="NA","NA",VLOOKUP($A$3,'ALG-B'!$A$6:$AM$500,10,FALSE))),"NA") -> 1.960923937 | I15: =IFERROR((IF($C15="NA","NA",ROUND(VLOOKUP($A$3,'ALG-B'!$A$6:$AM$500,12,FALSE),0)&"% ("&IF(VLOOKUP($A$3,'ALG-B'!$A$6:$AM$500,11,FALSE)="",0,VLOOKUP($A$3,'ALG-B'!$A$6:$AM$500,11,FALSE))&")")),"NA") -> 3% (171) | J15: =IFERROR((IF($C15="NA","NA",VLOOKUP($A$3,'ALG-B'!$A$6:$AM$500,13,FALSE))),"NA") -> 4.249977931 | K15: =IFERROR((IF($C15="NA","NA",ROUND(VLOOKUP($A$3,'ALG-B'!$A$6:$AM$500,15,FALSE),0)&"% ("&IF(VLOOKUP($A$3,'ALG-B'!$A$6:$AM$500,14,FALSE)="",0,VLOOKUP($A$3,'ALG-B'!$A$6:$AM$500,14,FALSE))&")")),"NA") -> 1% (62) | Q15: =IFERROR(VLOOKUP($A$3,'ALG-B'!$A$6:$BX$500,3,FALSE),"not tested") -> 6797
A16: Hispanic | B16: =IFERROR(VLOOKUP(TEXT($A$3,"0000"),'Alg Enrollment'!$A$2:$Q$500,12,FALSE),0) -> 21295 | C16: =IFERROR((IF(OR(B16=0,B16="",B16="NA"),"NA",((IF(VLOOKUP($A$3,'ALG-H'!$A$6:$AG$500,3,FALSE)>=B16,"100% ("&VLOOKUP($A$3,'ALG-H'!$A$6:$AG$500,3,FALSE)&")",(ROUND((VLOOKUP($A$3,'ALG-H'!$A$6:$AG$500,3,FALSE)/B16*100),0))&"% ("&IF(VLOOKUP($A$3,'ALG-H'!$A$6:$AG$500,3,FALSE)="",0,VLOOKUP($A$3,'ALG-H'!$A$6:$AG$500,3,FALSE))&")"))))),"0% (0)") -> 92% (19686) | D16: =IFERROR((IF($C16="NA","NA",VLOOKUP($A$3,'ALG-H'!$A$6:$AG$500,4,FALSE))),"NA") -> 15.43987605 | E16: =IFERROR((IF($C16="NA","NA",ROUND(VLOOKUP($A$3,'ALG-H'!$A$6:$AG$500,6,FALSE),0)&"% ("&IF(VLOOKUP($A$3,'ALG-H'!$A$6:$AG$500,5,FALSE)="",0,VLOOKUP($A$3,'ALG-H'!$A$6:$AG$500,5,FALSE))&")")),"NA") -> 0% (50) | F16: =IFERROR((IF($C16="NA","NA",VLOOKUP($A$3,'ALG-H'!$A$6:$AG$500,7,FALSE))),"NA") -> 8.996124149 | G16: =IFERROR((IF($C16="NA","NA",ROUND(VLOOKUP($A$3,'ALG-H'!$A$6:$AG$500,9,FALSE),0)&"% ("&IF(VLOOKUP($A$3,'ALG-H'!$A$6:$AG$500,8,FALSE)="",0,VLOOKUP($A$3,'ALG-H'!$A$6:$AG$500,8,FALSE))&")")),"NA") -> 1% (101) | H16: =IFERROR((IF($C16="NA","NA",VLOOKUP($A$3,'ALG-H'!$A$6:$AM$500,10,FALSE))),"NA") -> 1.935121406 | I16: =IFERROR((IF($C16="NA","NA",ROUND(VLOOKUP($A$3,'ALG-H'!$A$6:$AM$500,12,FALSE),0)&"% ("&IF(VLOOKUP($A$3,'ALG-H'!$A$6:$AM$500,11,FALSE)="",0,VLOOKUP($A$3,'ALG-H'!$A$6:$AM$500,11,FALSE))&")")),"NA") -> 3% (520) | J16: =IFERROR((IF($C16="NA","NA",VLOOKUP($A$3,'ALG-H'!$A$6:$AM$500,13,FALSE))),"NA") -> 4.506786549 | K16: =IFERROR((IF($C16="NA","NA",ROUND(VLOOKUP($A$3,'ALG-H'!$A$6:$AM$500,15,FALSE),0)&"% ("&IF(VLOOKUP($A$3,'ALG-H'!$A$6:$AM$500,14,FALSE)="",0,VLOOKUP($A$3,'ALG-H'!$A$6:$AM$500,14,FALSE))&")")),"NA") -> 1% (202) | Q16: =IFERROR(VLOOKUP($A$3,'ALG-H'!$A$6:$BX$500,3,FALSE),"not tested") -> 19686
A17: Asian | B17: =IFERROR(VLOOKUP(TEXT($A$3,"0000"),'Alg Enrollment'!$A$2:$Q$500,13,FALSE),0) -> 357 | C17: =IFERROR((IF(OR(B17=0,B17="",B17="NA"),"NA",((IF(VLOOKUP($A$3,'ALG-A'!$A$6:$AG$500,3,FALSE)>=B17,"100% ("&VLOOKUP($A$3,'ALG-A'!$A$6:$AG$500,3,FALSE)&")",(ROUND((VLOOKUP($A$3,'ALG-A'!$A$6:$AG$500,3,FALSE)/B17*100),0))&"% ("&IF(VLOOKUP($A$3,'ALG-A'!$A$6:$AG$500,3,FALSE)="",0,VLOOKUP($A$3,'ALG-A'!$A$6:$AG$500,3,FALSE))&")"))))),"0% (0)") -> 92% (330) | D17: =IFERROR((IF($C17="NA","NA",VLOOKUP($A$3,'ALG-A'!$A$6:$AG$500,4,FALSE))),"NA") -> 19.41363636 | E17: =IFERROR((IF($C17="NA","NA",ROUND(VLOOKUP($A$3,'ALG-A'!$A$6:$AG$500,6,FALSE),0)&"% ("&IF(VLOOKUP($A$3,'ALG-A'!$A$6:$AG$500,5,FALSE)="",0,VLOOKUP($A$3,'ALG-A'!$A$6:$AG$500,5,FALSE))&")")),"NA") -> 2% (6) | F17: =IFERROR((IF($C17="NA","NA",VLOOKUP($A$3,'ALG-A'!$A$6:$AG$500,7,FALSE))),"NA") -> 11.55181818 | G17: =IFERROR((IF($C17="NA","NA",ROUND(VLOOKUP($A$3,'ALG-A'!$A$6:$AG$500,9,FALSE),0)&"% ("&IF(VLOOKUP($A$3,'ALG-A'!$A$6:$AG$500,8,FALSE)="",0,VLOOKUP($A$3,'ALG-A'!$A$6:$AG$500,8,FALSE))&")")),"NA") -> 3% (11) | H17: =IFERROR((IF($C17="NA","NA",VLOOKUP($A$3,'ALG-A'!$A$6:$AM$500,10,FALSE))),"NA") -> 2.232424242 | I17: =IFERROR((IF($C17="NA","NA",ROUND(VLOOKUP($A$3,'ALG-A'!$A$6:$AM$500,12,FALSE),0)&"% ("&IF(VLOOKUP($A$3,'ALG-A'!$A$6:$AM$500,11,FALSE)="",0,VLOOKUP($A$3,'ALG-A'!$A$6:$AM$500,11,FALSE))&")")),"NA") -> 7% (23) | J17: =IFERROR((IF($C17="NA","NA",VLOOKUP($A$3,'ALG-A'!$A$6:$AM$500,13,FALSE))),"NA") -> 5.647575758 | K17: =IFERROR((IF($C17="NA","NA",ROUND(VLOOKUP($A$3,'ALG-A'!$A$6:$AM$500,15,FALSE),0)&"% ("&IF(VLOOKUP($A$3,'ALG-A'!$A$6:$AM$500,14,FALSE)="",0,VLOOKUP($A$3,'ALG-A'!$A$6:$AM$500,14,FALSE))&")")),"NA") -> 3% (9) | Q17: =IFERROR(VLOOKUP($A$3,'ALG-A'!$A$6:$BX$500,3,FALSE),"not tested") -> 330
A18: Am. Indian | B18: =IFERROR(VLOOKUP(TEXT($A$3,"0000"),'Alg Enrollment'!$A$2:$Q$500,14,FALSE),0) -> 29 | C18: =IFERROR((IF(OR(B18=0,B18="",B18="NA"),"NA",((IF(VLOOKUP($A$3,'ALG-I'!$A$6:$AG$500,3,FALSE)>=B18,"100% ("&VLOOKUP($A$3,'ALG-I'!$A$6:$AG$500,3,FALSE)&")",(ROUND((VLOOKUP($A$3,'ALG-I'!$A$6:$AG$500,3,FALSE)/B18*100),0))&"% ("&IF(VLOOKUP($A$3,'ALG-I'!$A$6:$AG$500,3,FALSE)="",0,VLOOKUP($A$3,'ALG-I'!$A$6:$AG$500,3,FALSE))&")"))))),"0% (0)") -> 86% (25) | D18: =IFERROR((IF($C18="NA","NA",VLOOKUP($A$3,'ALG-I'!$A$6:$AG$500,4,FALSE))),"NA") -> 15.44 | E18: =IFERROR((IF($C18="NA","NA",ROUND(VLOOKUP($A$3,'ALG-I'!$A$6:$AG$500,6,FALSE),0)&"% ("&IF(VLOOKUP($A$3,'ALG-I'!$A$6:$AG$500,5,FALSE)="",0,VLOOKUP($A$3,'ALG-I'!$A$6:$AG$500,5,FALSE))&")")),"NA") -> 0% (0) | F18: =IFERROR((IF($C18="NA","NA",VLOOKUP($A$3,'ALG-I'!$A$6:$AG$500,7,FALSE))),"NA") -> 8.996 | G18: =IFERROR((IF($C18="NA","NA",ROUND(VLOOKUP($A$3,'ALG-I'!$A$6:$AG$500,9,FALSE),0)&"% ("&IF(VLOOKUP($A$3,'ALG-I'!$A$6:$AG$500,8,FALSE)="",0,VLOOKUP($A$3,'ALG-I'!$A$6:$AG$500,8,FALSE))&")")),"NA") -> 0% (0) | H18: =IFERROR((IF($C18="NA","NA",VLOOKUP($A$3,'ALG-I'!$A$6:$AM$500,10,FALSE))),"NA") -> 2.12 | I18: =IFERROR((IF($C18="NA","NA",ROUND(VLOOKUP($A$3,'ALG-I'!$A$6:$AM$500,12,FALSE),0)&"% ("&IF(VLOOKUP($A$3,'ALG-I'!$A$6:$AM$500,11,FALSE)="",0,VLOOKUP($A$3,'ALG-I'!$A$6:$AM$500,11,FALSE))&")")),"NA") -> 8% (2) | J18: =IFERROR((IF($C18="NA","NA",VLOOKUP($A$3,'ALG-I'!$A$6:$AM$500,13,FALSE))),"NA") -> 4.324 | K18: =IFERROR((IF($C18="NA","NA",ROUND(VLOOKUP($A$3,'ALG-I'!$A$6:$AM$500,15,FALSE),0)&"% ("&IF(VLOOKUP($A$3,'ALG-I'!$A$6:$AM$500,14,FALSE)="",0,VLOOKUP($A$3,'ALG-I'!$A$6:$AM$500,14,FALSE))&")")),"NA") -> 0% (0) | Q18: =IFERROR(VLOOKUP($A$3,'ALG-I'!$A$6:$BX$500,3,FALSE),"not tested") -> 25
A19: ED | B19: =IFERROR(VLOOKUP(TEXT($A$3,"0000"),'Alg Enrollment'!$A$2:$Q$500,15,FALSE),0) -> 24744 | C19: =IFERROR((IF(OR(B19=0,B19="",B19="NA"),"NA",((IF(VLOOKUP($A$3,'ALG-ED'!$A$6:$AG$500,3,FALSE)>=B19,"100% ("&VLOOKUP($A$3,'ALG-ED'!$A$6:$AG$500,3,FALSE)&")",(ROUND((VLOOKUP($A$3,'ALG-ED'!$A$6:$AG$500,3,FALSE)/B19*100),0))&"% ("&IF(VLOOKUP($A$3,'ALG-ED'!$A$6:$AG$500,3,FALSE)="",0,VLOOKUP($A$3,'ALG-ED'!$A$6:$AG$500,3,FALSE))&")"))))),"0% (0)") -> 93% (22906) | D19: =IFERROR((IF($C19="NA","NA",VLOOKUP($A$3,'ALG-ED'!$A$6:$AG$500,4,FALSE))),"NA") -> 14.9903999 | E19: =IFERROR((IF($C19="NA","NA",ROUND(VLOOKUP($A$3,'ALG-ED'!$A$6:$AG$500,6,FALSE),0)&"% ("&IF(VLOOKUP($A$3,'ALG-ED'!$A$6:$AG$500,5,FALSE)="",0,VLOOKUP($A$3,'ALG-ED'!$A$6:$AG$500,5,FALSE))&")")),"NA") -> 0% (52) | F19: =IFERROR((IF($C19="NA","NA",VLOOKUP($A$3,'ALG-ED'!$A$6:$AG$500,7,FALSE))),"NA") -> 8.686042958 | G19: =IFERROR((IF($C19="NA","NA",ROUND(VLOOKUP($A$3,'ALG-ED'!$A$6:$AG$500,9,FALSE),0)&"% ("&IF(VLOOKUP($A$3,'ALG-ED'!$A$6:$AG$500,8,FALSE)="",0,VLOOKUP($A$3,'ALG-ED'!$A$6:$AG$500,8,FALSE))&")")),"NA") -> 0% (85) | H19: =IFERROR((IF($C19="NA","NA",VLOOKUP($A$3,'ALG-ED'!$A$6:$AM$500,10,FALSE))),"NA") -> 1.928407404 | I19: =IFERROR((IF($C19="NA","NA",ROUND(VLOOKUP($A$3,'ALG-ED'!$A$6:$AM$500,12,FALSE),0)&"% ("&IF(VLOOKUP($A$3,'ALG-ED'!$A$6:$AM$500,11,FALSE)="",0,VLOOKUP($A$3,'ALG-ED'!$A$6:$AM$500,11,FALSE))&")")),"NA") -> 2% (571) | J19: =IFERROR((IF($C19="NA","NA",VLOOKUP($A$3,'ALG-ED'!$A$6:$AM$500,13,FALSE))),"NA") -> 4.371208417 | K19: =IFERROR((IF($C19="NA","NA",ROUND(VLOOKUP($A$3,'ALG-ED'!$A$6:$AM$500,15,FALSE),0)&"% ("&IF(VLOOKUP($A$3,'ALG-ED'!$A$6:$AM$500,14,FALSE)="",0,VLOOKUP($A$3,'ALG-ED'!$A$6:$AM$500,14,FALSE))&")")),"NA") -> 1% (204) | Q19: =IFERROR(VLOOKUP($A$3,'ALG-ED'!$A$6:$BX$500,3,FALSE),"not tested") -> 22906
A20: ELL | B20: =IFERROR(VLOOKUP(TEXT($A$3,"0000"),'Alg Enrollment'!$A$2:$Q$500,16,FALSE),0) -> 4057 | C20: =IFERROR((IF(OR(B20=0,B20="",B20="NA"),"NA",((IF(VLOOKUP($A$3,'ALG-ELL'!$A$6:$AG$500,3,FALSE)>=B20,"100% ("&VLOOKUP($A$3,'ALG-ELL'!$A$6:$AG$500,3,FALSE)&")",(ROUND((VLOOKUP($A$3,'ALG-ELL'!$A$6:$AG$500,3,FALSE)/B20*100),0))&"% ("&IF(VLOOKUP($A$3,'ALG-ELL'!$A$6:$AG$500,3,FALSE)="",0,VLOOKUP($A$3,'ALG-ELL'!$A$6:$AG$500,3,FALSE))&")"))))),"0% (0)") -> 90% (3642) | D20: =IFERROR((IF($C20="NA","NA",VLOOKUP($A$3,'ALG-ELL'!$A$6:$AG$500,4,FALSE))),"NA") -> 13.74903899 | E20: =IFERROR((IF($C20="NA","NA",ROUND(VLOOKUP($A$3,'ALG-ELL'!$A$6:$AG$500,6,FALSE),0)&"% ("&IF(VLOOKUP($A$3,'ALG-ELL'!$A$6:$AG$500,5,FALSE)="",0,VLOOKUP($A$3,'ALG-ELL'!$A$6:$AG$500,5,FALSE))&")")),"NA") -> 0% (12) | F20: =IFERROR((IF($C20="NA","NA",VLOOKUP($A$3,'ALG-ELL'!$A$6:$AG$500,7,FALSE))),"NA") -> 7.881658429 | G20: =IFERROR((IF($C20="NA","NA",ROUND(VLOOKUP($A$3,'ALG-ELL'!$A$6:$AG$500,9,FALSE),0)&"% ("&IF(VLOOKUP($A$3,'ALG-ELL'!$A$6:$AG$500,8,FALSE)="",0,VLOOKUP($A$3,'ALG-ELL'!$A$6:$AG$500,8,FALSE))&")")),"NA") -> 0% (16) | H20: =IFERROR((IF($C20="NA","NA",VLOOKUP($A$3,'ALG-ELL'!$A$6:$AM$500,10,FALSE))),"NA") -> 1.991213619 | I20: =IFERROR((IF($C20="NA","NA",ROUND(VLOOKUP($A$3,'ALG-ELL'!$A$6:$AM$500,12,FALSE),0)&"% ("&IF(VLOOKUP($A$3,'ALG-ELL'!$A$6:$AM$500,11,FALSE)="",0,VLOOKUP($A$3,'ALG-ELL'!$A$6:$AM$500,11,FALSE))&")")),"NA") -> 3% (113) | J20: =IFERROR((IF($C20="NA","NA",VLOOKUP($A$3,'ALG-ELL'!$A$6:$AM$500,13,FALSE))),"NA") -> 3.876166941 | K20: =IFERROR((IF($C20="NA","NA",ROUND(VLOOKUP($A$3,'ALG-ELL'!$A$6:$AM$500,15,FALSE),0)&"% ("&IF(VLOOKUP($A$3,'ALG-ELL'!$A$6:$AM$500,14,FALSE)="",0,VLOOKUP($A$3,'ALG-ELL'!$A$6:$AM$500,14,FALSE))&")")),"NA") -> 1% (37) | Q20: =IFERROR(VLOOKUP($A$3,'ALG-ELL'!$A$6:$BX$500,3,FALSE),"not tested") -> 3642
A21: SWD | B21: =IFERROR(VLOOKUP(TEXT($A$3,"0000"),'Alg Enrollment'!$A$2:$Q$500,17,FALSE),0) -> 3039 | C21: =IFERROR((IF(OR(B21=0,B21="",B21="NA"),"NA",((IF(VLOOKUP($A$3,'ALG-SWD'!$A$6:$AG$500,3,FALSE)>=B21,"100% ("&VLOOKUP($A$3,'ALG-SWD'!$A$6:$AG$500,3,FALSE)&")",(ROUND((VLOOKUP($A$3,'ALG-SWD'!$A$6:$AG$500,3,FALSE)/B21*100),0))&"% ("&IF(VLOOKUP($A$3,'ALG-SWD'!$A$6:$AG$500,3,FALSE)="",0,VLOOKUP($A$3,'ALG-SWD'!$A$6:$AG$500,3,FALSE))&")"))))),"0% (0)") -> 87% (2636) | D21: =IFERROR((IF($C21="NA","NA",VLOOKUP($A$3,'ALG-SWD'!$A$6:$AG$500,4,FALSE))),"NA") -> 13.50106222 | E21: =IFERROR((IF($C21="NA","NA",ROUND(VLOOKUP($A$3,'ALG-SWD'!$A$6:$AG$500,6,FALSE),0)&"% ("&IF(VLOOKUP($A$3,'ALG-SWD'!$A$6:$AG$500,5,FALSE)="",0,VLOOKUP($A$3,'ALG-SWD'!$A$6:$AG$500,5,FALSE))&")")),"NA") -> 0% (7) | F21: =IFERROR((IF($C21="NA","NA",VLOOKUP($A$3,'ALG-SWD'!$A$6:$AG$500,7,FALSE))),"NA") -> 7.764339909 | G21: =IFERROR((IF($C21="NA","NA",ROUND(VLOOKUP($A$3,'ALG-SWD'!$A$6:$AG$500,9,FALSE),0)&"% ("&IF(VLOOKUP($A$3,'ALG-SWD'!$A$6:$AG$500,8,FALSE)="",0,VLOOKUP($A$3,'ALG-SWD'!$A$6:$AG$500,8,FALSE))&")")),"NA") -> 0% (10) | H21: =IFERROR((IF($C21="NA","NA",VLOOKUP($A$3,'ALG-SWD'!$A$6:$AM$500,10,FALSE))),"NA") -> 1.883611533 | I21: =IFERROR((IF($C21="NA","NA",ROUND(VLOOKUP($A$3,'ALG-SWD'!$A$6:$AM$500,12,FALSE),0)&"% ("&IF(VLOOKUP($A$3,'ALG-SWD'!$A$6:$AM$500,11,FALSE)="",0,VLOOKUP($A$3,'ALG-SWD'!$A$6:$AM$500,11,FALSE))&")")),"NA") -> 2% (54) | J21: =IFERROR((IF($C21="NA","NA",VLOOKUP($A$3,'ALG-SWD'!$A$6:$AM$500,13,FALSE))),"NA") -> 3.842185129 | K21: =IFERROR((IF($C21="NA","NA",ROUND(VLOOKUP($A$3,'ALG-SWD'!$A$6:$AM$500,15,FALSE),0)&"% ("&IF(VLOOKUP($A$3,'ALG-SWD'!$A$6:$AM$500,14,FALSE)="",0,VLOOKUP($A$3,'ALG-SWD'!$A$6:$AM$500,14,FALSE))&")")),"NA") -> 1% (18) | Q21: =IFERROR(VLOOKUP($A$3,'ALG-SWD'!$A$6:$BX$500,3,FALSE),"not tested") -> 2636
A22: Geometry | Q22: Geometry
A23: Level of Proficiency at 70% or above | B23: Course Enrollment | C23: % and/or Number of Tested | D23: ='G9-10 Matrix'!C12&" ["&'G9-10 Matrix'!C13&"]" -> Overall [38] | F23: ='G9-10 Matrix'!D12&" ["&'G9-10 Matrix'!D13&"]" -> Two-Dimensional Geometry [28] | H23: ='G9-10 Matrix'!E12&" ["&'G9-10 Matrix'!E13&"]" -> Three-Dimensional Geometry [6] | J23: ='G9-10 Matrix'!F12&" ["&'G9-10 Matrix'!F13&"]" -> Trigonometry and Discrete Mathematics [4] | Q23: Number Tested
D24: Average Score | E24: % Proficient | F24: Average Score | G24: % Proficient | H24: Average Score | I24: % Proficient | J24: Average Score | K24: % Proficient
A25: All students | B25: =IFERROR(VLOOKUP(TEXT($A$3,"0000"),'Geo Enrollment'!$A$3:$Q$500,3,FALSE),0) -> 28209 | C25: =IFERROR((IF(OR(B25=0,B25="",B25="NA"),"NA",((IF(VLOOKUP($A$3,'GEO-ALL'!$A$6:$AM$500,3,FALSE)>=B25,"100% ("&VLOOKUP($A$3,'GEO-ALL'!$A$6:$AM$500,3,FALSE)&")",(ROUND((VLOOKUP($A$3,'GEO-ALL'!$A$6:$AM$500,3,FALSE)/B25*100),0))&"% ("&IF(VLOOKUP($A$3,'GEO-ALL'!$A$6:$AM$500,3,FALSE)="",0,VLOOKUP($A$3,'GEO-ALL'!$A$6:$AM$500,3,FALSE))&")"))))),"0% (0)") -> 92% (25868) | D25: =IFERROR((IF($C25="NA","NA",VLOOKUP($A$3,'GEO-ALL'!$A$6:$AM$500,4,FALSE))),"NA") -> 11.75664914 | E25: =IFERROR((IF($C25="NA","NA",ROUND(VLOOKUP($A$3,'GEO-ALL'!$A$6:$AM$500,6,FALSE),0)&"% ("&IF(VLOOKUP($A$3,'GEO-ALL'!$A$6:$AM$500,5,FALSE)="",0,VLOOKUP($A$3,'GEO-ALL'!$A$6:$AM$500,5,FALSE))&")")),"NA") -> 0% (81) | F25: =IFERROR((IF($C25="NA","NA",VLOOKUP($A$3,'GEO-ALL'!$A$6:$AM$500,7,FALSE))),"NA") -> 8.539164218 | G25: =IFERROR((IF($C25="NA","NA",ROUND(VLOOKUP($A$3,'GEO-ALL'!$A$6:$AM$500,9,FALSE),0)&"% ("&IF(VLOOKUP($A$3,'GEO-ALL'!$A$6:$AM$500,8,FALSE)="",0,VLOOKUP($A$3,'GEO-ALL'!$A$6:$AM$500,8,FALSE))&")")),"NA") -> 0% (96) | H25: =IFERROR((IF($C25="NA","NA",VLOOKUP($A$3,'GEO-ALL'!$A$6:$AM$500,13,FALSE))),"NA") -> 2.076155868 | I25: =IFERROR((IF($C25="NA","NA",ROUND(VLOOKUP($A$3,'GEO-ALL'!$A$6:$AM$500,15,FALSE),0)&"% ("&IF(VLOOKUP($A$3,'GEO-ALL'!$A$6:$AM$500,14,FALSE)="",0,VLOOKUP($A$3,'GEO-ALL'!$A$6:$AM$500,14,FALSE))&")")),"NA") -> 3% (734) | J25: =IFERROR((IF($C25="NA","NA",VLOOKUP($A$3,'GEO-ALL'!$A$6:$AM$500,10,FALSE))),"NA") -> 1.154306479 | K25: =IFERROR((IF($C25="NA","NA",ROUND(VLOOKUP($A$3,'GEO-ALL'!$A$6:$AM$500,12,FALSE),0)&"% ("&IF(VLOOKUP($A$3,'GEO-ALL'!$A$6:$AM$500,11,FALSE)="",0,VLOOKUP($A$3,'GEO-ALL'!$A$6:$AM$500,11,FALSE))&")")),"NA") -> 7% (1753) | Q25: =IFERROR(VLOOKUP($A$3,'GEO-ALL'!$A$6:$BX$500,3,FALSE),"not tested") -> 25868
A26: FCAT Level 1 | B26: NA | C26: =IFERROR((IF(OR(B26=0,B26="",B26="NA"),"NA",((IF(VLOOKUP($A$3,'GEO-L1'!$A$6:$AM$500,3,FALSE)>=B26,"100% ("&VLOOKUP($A$3,'GEO-L1'!$A$6:$AM$500,3,FALSE)&")",(ROUND((VLOOKUP($A$3,'GEO-L1'!$A$6:$AM$500,3,FALSE)/B26*100),0))&"% ("&IF(VLOOKUP($A$3,'GEO-L1'!$A$6:$AM$500,3,FALSE)="",0,VLOOKUP($A$3,'GEO-L1'!$A$6:$AM$500,3,FALSE))&")"))))),"0% (0)") -> NA | D26: NA | E26: NA | F26: NA | G26: NA | H26: NA | I26: NA | J26: NA | K26: NA | Q26: =IFERROR(VLOOKUP($A$3,'GEO-L1'!$A$6:$BX$500,3,FALSE),"not tested") -> 2953
A27: FCAT Level 2 | B27: NA | C27: =IFERROR((IF(OR(B27=0,B27="",B27="NA"),"NA",((IF(VLOOKUP($A$3,'GEO-L2'!$A$6:$AM$500,3,FALSE)>=B27,"100% ("&VLOOKUP($A$3,'GEO-L2'!$A$6:$AM$500,3,FALSE)&")",(ROUND((VLOOKUP($A$3,'GEO-L2'!$A$6:$AM$500,3,FALSE)/B27*100),0))&"% ("&IF(VLOOKUP($A$3,'GEO-L2'!$A$6:$AM$500,3,FALSE)="",0,VLOOKUP($A$3,'GEO-L2'!$A$6:$AM$500,3,FALSE))&")"))))),"0% (0)") -> NA | D27: NA | E27: NA | F27: NA | G27: NA | H27: NA | I27: NA | J27: NA | K27: NA | Q27: =IFERROR(VLOOKUP($A$3,'GEO-L2'!$A$6:$BX$500,3,FALSE),"not tested") -> 4938
A28: FCAT Level 3 | B28: NA | C28: =IFERROR((IF(OR(B28=0,B28="",B28="NA"),"NA",((IF(VLOOKUP($A$3,'GEO-L3'!$A$6:$AM$500,3,FALSE)>=B28,"100% ("&VLOOKUP($A$3,'GEO-L3'!$A$6:$AM$500,3,FALSE)&")",(ROUND((VLOOKUP($A$3,'GEO-L3'!$A$6:$AM$500,3,FALSE)/B28*100),0))&"% ("&IF(VLOOKUP($A$3,'GEO-L3'!$A$6:$AM$500,3,FALSE)="",0,VLOOKUP($A$3,'GEO-L3'!$A$6:$AM$500,3,FALSE))&")"))))),"0% (0)") -> NA | D28: NA | E28: NA | F28: NA | G28: NA | H28: NA | I28: NA | J28: NA | K28: NA | Q28: =IFERROR(VLOOKUP($A$3,'GEO-L3'!$A$6:$BX$500,3,FALSE),"not tested") -> 9202
A29: FCAT Level 4 | B29: NA | C29: =IFERROR((IF(OR(B29=0,B29="",B29="NA"),"NA",((IF(VLOOKUP($A$3,'GEO-L4'!$A$6:$AM$500,3,FALSE)>=B29,"100% ("&VLOOKUP($A$3,'GEO-L4'!$A$6:$AM$500,3,FALSE)&")",(ROUND((VLOOKUP($A$3,'GEO-L4'!$A$6:$AM$500,3,FALSE)/B29*100),0))&"% ("&IF(VLOOKUP($A$3,'GEO-L4'!$A$6:$AM$500,3,FALSE)="",0,VLOOKUP($A$3,'GEO-L4'!$A$6:$AM$500,3,FALSE))&")"))))),"0% (0)") -> NA | D29: NA | E29: NA | F29: NA | G29: NA | H29: NA | I29: NA | J29: NA | K29: NA | Q29: =IFERROR(VLOOKUP($A$3,'GEO-L4'!$A$6:$BX$500,3,FALSE),"not tested") -> 4546
A30: FCAT Level 5 | B30: NA | C30: =IFERROR((IF(OR(B30=0,B30="",B30="NA"),"NA",((IF(VLOOKUP($A$3,'GEO-L5'!$A$6:$AM$500,3,FALSE)>=B30,"100% ("&VLOOKUP($A$3,'GEO-L5'!$A$6:$AM$500,3,FALSE)&")",(ROUND((VLOOKUP($A$3,'GEO-L5'!$A$6:$AM$500,3,FALSE)/B30*100),0))&"% ("&IF(VLOOKUP($A$3,'GEO-L5'!$A$6:$AM$500,3,FALSE)="",0,VLOOKUP($A$3,'GEO-L5'!$A$6:$AM$500,3,FALSE))&")"))))),"0% (0)") -> NA | D30: NA | E30: NA | F30: NA | G30: NA | H30: NA | I30: NA | J30: NA | K30: NA | Q30: =IFERROR(VLOOKUP($A$3,'GEO-L5'!$A$6:$BX$500,3,FALSE),"not tested") -> 2241
A31: White | B31: =IFERROR(VLOOKUP(TEXT($A$3,"0000"),'Geo Enrollment'!$A$3:$Q$500,10,FALSE),0) -> 2447 | C31: =IFERROR((IF(OR(B31=0,B31="",B31="NA"),"NA",((IF(VLOOKUP($A$3,'GEO-W'!$A$6:$AG$500,3,FALSE)>=B31,"100% ("&VLOOKUP($A$3,'GEO-W'!$A$6:$AG$500,3,FALSE)&")",(ROUND((VLOOKUP($A$3,'GEO-W'!$A$6:$AG$500,3,FALSE)/B31*100),0))&"% ("&IF(VLOOKUP($A$3,'GEO-W'!$A$6:$AG$500,3,FALSE)="",0,VLOOKUP($A$3,'GEO-W'!$A$6:$AG$500,3,FALSE))&")"))))),"0% (0)") -> 92% (2247) | D31: =IFERROR((IF($C31="NA","NA",VLOOKUP($A$3,'GEO-W'!$A$6:$AM$500,4,FALSE))),"NA") -> 13.03186471 | E31: =IFERROR((IF($C31="NA","NA",ROUND(VLOOKUP($A$3,'GEO-W'!$A$6:$AG$500,6,FALSE),0)&"% ("&IF(VLOOKUP($A$3,'GEO-W'!$A$6:$AG$500,5,FALSE)="",0,VLOOKUP($A$3,'GEO-W'!$A$6:$AG$500,5,FALSE))&")")),"NA") -> 1% (16) | F31: =IFERROR((IF($C31="NA","NA",VLOOKUP($A$3,'GEO-W'!$A$6:$AG$500,7,FALSE))),"NA") -> 9.383845127 | G31: =IFERROR((IF($C31="NA","NA",ROUND(VLOOKUP($A$3,'GEO-W'!$A$6:$AG$500,9,FALSE),0)&"% ("&IF(VLOOKUP($A$3,'GEO-W'!$A$6:$AG$500,8,FALSE)="",0,VLOOKUP($A$3,'GEO-W'!$A$6:$AG$500,8,FALSE))&")")),"NA") -> 1% (18) | H31: =IFERROR((IF($C31="NA","NA",VLOOKUP($A$3,'GEO-W'!$A$6:$AM$500,13,FALSE))),"NA") -> 2.343969737 | I31: =IFERROR((IF($C31="NA","NA",ROUND(VLOOKUP($A$3,'GEO-W'!$A$6:$AM$500,15,FALSE),0)&"% ("&IF(VLOOKUP($A$3,'GEO-W'!$A$6:$AM$500,14,FALSE)="",0,VLOOKUP($A$3,'GEO-W'!$A$6:$AM$500,14,FALSE))&")")),"NA") -> 6% (126) | J31: =IFERROR((IF($C31="NA","NA",VLOOKUP($A$3,'GEO-W'!$A$6:$AM$500,10,FALSE))),"NA") -> 1.300178015 | K31: =IFERROR((IF($C31="NA","NA",ROUND(VLOOKUP($A$3,'GEO-W'!$A$6:$AM$500,12,FALSE),0)&"% ("&IF(VLOOKUP($A$3,'GEO-W'!$A$6:$AM$500,11,FALSE)="",0,VLOOKUP($A$3,'GEO-W'!$A$6:$AM$500,11,FALSE))&")")),"NA") -> 9% (194) | Q31: =IFERROR(VLOOKUP($A$3,'GEO-W'!$A$6:$BX$500,3,FALSE),"not tested") -> 2247
A32: Black | B32: =IFERROR(VLOOKUP(TEXT($A$3,"0000"),'Geo Enrollment'!$A$3:$Q$500,11,FALSE),0) -> 6617 | C32: =IFERROR((IF(OR(B32=0,B32="",B32="NA"),"NA",((IF(VLOOKUP($A$3,'GEO-B'!$A$6:$AG$500,3,FALSE)>=B32,"100% ("&VLOOKUP($A$3,'GEO-B'!$A$6:$AG$500,3,FALSE)&")",(ROUND((VLOOKUP($A$3,'GEO-B'!$A$6:$AG$500,3,FALSE)/B32*100),0))&"% ("&IF(VLOOKUP($A$3,'GEO-B'!$A$6:$AG$500,3,FALSE)="",0,VLOOKUP($A$3,'GEO-B'!$A$6:$AG$500,3,FALSE))&")"))))),"0% (0)") -> 88% (5847) | D32: =IFERROR((IF($C32="NA","NA",VLOOKUP($A$3,'GEO-B'!$A$6:$AM$500,4,FALSE))),"NA") -> 10.85310416 | E32: =IFERROR((IF($C32="NA","NA",ROUND(VLOOKUP($A$3,'GEO-B'!$A$6:$AG$500,6,FALSE),0)&"% ("&IF(VLOOKUP($A$3,'GEO-B'!$A$6:$AG$500,5,FALSE)="",0,VLOOKUP($A$3,'GEO-B'!$A$6:$AG$500,5,FALSE))&")")),"NA") -> 0% (4) | F32: =IFERROR((IF($C32="NA","NA",VLOOKUP($A$3,'GEO-B'!$A$6:$AG$500,7,FALSE))),"NA") -> 7.911373354 | G32: =IFERROR((IF($C32="NA","NA",ROUND(VLOOKUP($A$3,'GEO-B'!$A$6:$AG$500,9,FALSE),0)&"% ("&IF(VLOOKUP($A$3,'GEO-B'!$A$6:$AG$500,8,FALSE)="",0,VLOOKUP($A$3,'GEO-B'!$A$6:$AG$500,8,FALSE))&")")),"NA") -> 0% (4) | H32: =IFERROR((IF($C32="NA","NA",VLOOKUP($A$3,'GEO-B'!$A$6:$AM$500,13,FALSE))),"NA") -> 1.890576364 | I32: =IFERROR((IF($C32="NA","NA",ROUND(VLOOKUP($A$3,'GEO-B'!$A$6:$AM$500,15,FALSE),0)&"% ("&IF(VLOOKUP($A$3,'GEO-B'!$A$6:$AM$500,14,FALSE)="",0,VLOOKUP($A$3,'GEO-B'!$A$6:$AM$500,14,FALSE))&")")),"NA") -> 1% (84) | J32: =IFERROR((IF($C32="NA","NA",VLOOKUP($A$3,'GEO-B'!$A$6:$AM$500,10,FALSE))),"NA") -> 1.050145374 | K32: =IFERROR((IF($C32="NA","NA",ROUND(VLOOKUP($A$3,'GEO-B'!$A$6:$AM$500,12,FALSE),0)&"% ("&IF(VLOOKUP($A$3,'GEO-B'!$A$6:$AM$500,11,FALSE)="",0,VLOOKUP($A$3,'GEO-B'!$A$6:$AM$500,11,FALSE))&")")),"NA") -> 5% (294) | Q32: =IFERROR(VLOOKUP($A$3,'GEO-B'!$A$6:$BX$500,3,FALSE),"not tested") -> 5847
A33: Hispanic | B33: =IFERROR(VLOOKUP(TEXT($A$3,"0000"),'Geo Enrollment'!$A$3:$Q$500,12,FALSE),0) -> 18718 | C33: =IFERROR((IF(OR(B33=0,B33="",B33="NA"),"NA",((IF(VLOOKUP($A$3,'GEO-H'!$A$6:$AG$500,3,FALSE)>=B33,"100% ("&VLOOKUP($A$3,'GEO-H'!$A$6:$AG$500,3,FALSE)&")",(ROUND((VLOOKUP($A$3,'GEO-H'!$A$6:$AG$500,3,FALSE)/B33*100),0))&"% ("&IF(VLOOKUP($A$3,'GEO-H'!$A$6:$AG$500,3,FALSE)="",0,VLOOKUP($A$3,'GEO-H'!$A$6:$AG$500,3,FALSE))&")"))))),"0% (0)") -> 93% (17376) | D33: =IFERROR((IF($C33="NA","NA",VLOOKUP($A$3,'GEO-H'!$A$6:$AM$500,4,FALSE))),"NA") -> 11.85077118 | E33: =IFERROR((IF($C33="NA","NA",ROUND(VLOOKUP($A$3,'GEO-H'!$A$6:$AG$500,6,FALSE),0)&"% ("&IF(VLOOKUP($A$3,'GEO-H'!$A$6:$AG$500,5,FALSE)="",0,VLOOKUP($A$3,'GEO-H'!$A$6:$AG$500,5,FALSE))&")")),"NA") -> 0% (55) | F33: =IFERROR((IF($C33="NA","NA",VLOOKUP($A$3,'GEO-H'!$A$6:$AG$500,7,FALSE))),"NA") -> 8.603349448 | G33: =IFERROR((IF($C33="NA","NA",ROUND(VLOOKUP($A$3,'GEO-H'!$A$6:$AG$500,9,FALSE),0)&"% ("&IF(VLOOKUP($A$3,'GEO-H'!$A$6:$AG$500,8,FALSE)="",0,VLOOKUP($A$3,'GEO-H'!$A$6:$AG$500,8,FALSE))&")")),"NA") -> 0% (66) | H33: =IFERROR((IF($C33="NA","NA",VLOOKUP($A$3,'GEO-H'!$A$6:$AM$500,13,FALSE))),"NA") -> 2.085784991 | I33: =IFERROR((IF($C33="NA","NA",ROUND(VLOOKUP($A$3,'GEO-H'!$A$6:$AM$500,15,FALSE),0)&"% ("&IF(VLOOKUP($A$3,'GEO-H'!$A$6:$AM$500,14,FALSE)="",0,VLOOKUP($A$3,'GEO-H'!$A$6:$AM$500,14,FALSE))&")")),"NA") -> 3% (495) | J33: =IFERROR((IF($C33="NA","NA",VLOOKUP($A$3,'GEO-H'!$A$6:$AM$500,10,FALSE))),"NA") -> 1.170908149 | K33: =IFERROR((IF($C33="NA","NA",ROUND(VLOOKUP($A$3,'GEO-H'!$A$6:$AM$500,12,FALSE),0)&"% ("&IF(VLOOKUP($A$3,'GEO-H'!$A$6:$AM$500,11,FALSE)="",0,VLOOKUP($A$3,'GEO-H'!$A$6:$AM$500,11,FALSE))&")")),"NA") -> 7% (1231) | Q33: =IFERROR(VLOOKUP($A$3,'GEO-H'!$A$6:$BX$500,3,FALSE),"not tested") -> 17376
A34: Asian | B34: =IFERROR(VLOOKUP(TEXT($A$3,"0000"),'Geo Enrollment'!$A$3:$Q$500,13,FALSE),0) -> 316 | C34: =IFERROR((IF(OR(B34=0,B34="",B34="NA"),"NA",((IF(VLOOKUP($A$3,'GEO-A'!$A$6:$AG$500,3,FALSE)>=B34,"100% ("&VLOOKUP($A$3,'GEO-A'!$A$6:$AG$500,3,FALSE)&")",(ROUND((VLOOKUP($A$3,'GEO-A'!$A$6:$AG$500,3,FALSE)/B34*100),0))&"% ("&IF(VLOOKUP($A$3,'GEO-A'!$A$6:$AG$500,3,FALSE)="",0,VLOOKUP($A$3,'GEO-A'!$A$6:$AG$500,3,FALSE))&")"))))),"0% (0)") -> 95% (300) | D34: =IFERROR((IF($C34="NA","NA",VLOOKUP($A$3,'GEO-A'!$A$6:$AM$500,4,FALSE))),"NA") -> 14.04966667 | E34: =IFERROR((IF($C34="NA","NA",ROUND(VLOOKUP($A$3,'GEO-A'!$A$6:$AG$500,6,FALSE),0)&"% ("&IF(VLOOKUP($A$3,'GEO-A'!$A$6:$AG$500,5,FALSE)="",0,VLOOKUP($A$3,'GEO-A'!$A$6:$AG$500,5,FALSE))&")")),"NA") -> 1% (4) | F34: =IFERROR((IF($C34="NA","NA",VLOOKUP($A$3,'GEO-A'!$A$6:$AG$500,7,FALSE))),"NA") -> 10.23266667 | G34: =IFERROR((IF($C34="NA","NA",ROUND(VLOOKUP($A$3,'GEO-A'!$A$6:$AG$500,9,FALSE),0)&"% ("&IF(VLOOKUP($A$3,'GEO-A'!$A$6:$AG$500,8,FALSE)="",0,VLOOKUP($A$3,'GEO-A'!$A$6:$AG$500,8,FALSE))&")")),"NA") -> 2% (6) | H34: =IFERROR((IF($C34="NA","NA",VLOOKUP($A$3,'GEO-A'!$A$6:$AM$500,13,FALSE))),"NA") -> 2.53 | I34: =IFERROR((IF($C34="NA","NA",ROUND(VLOOKUP($A$3,'GEO-A'!$A$6:$AM$500,15,FALSE),0)&"% ("&IF(VLOOKUP($A$3,'GEO-A'!$A$6:$AM$500,14,FALSE)="",0,VLOOKUP($A$3,'GEO-A'!$A$6:$AM$500,14,FALSE))&")")),"NA") -> 7% (21) | J34: =IFERROR((IF($C34="NA","NA",VLOOKUP($A$3,'GEO-A'!$A$6:$AM$500,10,FALSE))),"NA") -> 1.304666667 | K34: =IFERROR((IF($C34="NA","NA",ROUND(VLOOKUP($A$3,'GEO-A'!$A$6:$AM$500,12,FALSE),0)&"% ("&IF(VLOOKUP($A$3,'GEO-A'!$A$6:$AM$500,11,FALSE)="",0,VLOOKUP($A$3,'GEO-A'!$A$6:$AM$500,11,FALSE))&")")),"NA") -> 9% (26) | Q34: =IFERROR(VLOOKUP($A$3,'GEO-A'!$A$6:$BX$500,3,FALSE),"not tested") -> 300
A35: Am. Indian | B35: =IFERROR(VLOOKUP(TEXT($A$3,"0000"),'Geo Enrollment'!$A$3:$Q$500,14,FALSE),0) -> 32 | C35: =IFERROR((IF(OR(B35=0,B35="",B35="NA"),"NA",((IF(VLOOKUP($A$3,'GEO-I'!$A$6:$AG$500,3,FALSE)>=B35,"100% ("&VLOOKUP($A$3,'GEO-I'!$A$6:$AG$500,3,FALSE)&")",(ROUND((VLOOKUP($A$3,'GEO-I'!$A$6:$AG$500,3,FALSE)/B35*100),0))&"% ("&IF(VLOOKUP($A$3,'GEO-I'!$A$6:$AG$500,3,FALSE)="",0,VLOOKUP($A$3,'GEO-I'!$A$6:$AG$500,3,FALSE))&")"))))),"0% (0)") -> 91% (29) | D35: =IFERROR((IF($C35="NA","NA",VLOOKUP($A$3,'GEO-I'!$A$6:$AM$500,4,FALSE))),"NA") -> 12.44482759 | E35: =IFERROR((IF($C35="NA","NA",ROUND(VLOOKUP($A$3,'GEO-I'!$A$6:$AG$500,6,FALSE),0)&"% ("&IF(VLOOKUP($A$3,'GEO-I'!$A$6:$AG$500,5,FALSE)="",0,VLOOKUP($A$3,'GEO-I'!$A$6:$AG$500,5,FALSE))&")")),"NA") -> 0% (0) | F35: =IFERROR((IF($C35="NA","NA",VLOOKUP($A$3,'GEO-I'!$A$6:$AG$500,7,FALSE))),"NA") -> 9.165517241 | G35: =IFERROR((IF($C35="NA","NA",ROUND(VLOOKUP($A$3,'GEO-I'!$A$6:$AG$500,9,FALSE),0)&"% ("&IF(VLOOKUP($A$3,'GEO-I'!$A$6:$AG$500,8,FALSE)="",0,VLOOKUP($A$3,'GEO-I'!$A$6:$AG$500,8,FALSE))&")")),"NA") -> 0% (0) | H35: =IFERROR((IF($C35="NA","NA",VLOOKUP($A$3,'GEO-I'!$A$6:$AM$500,13,FALSE))),"NA") -> 2.313793103 | I35: =IFERROR((IF($C35="NA","NA",ROUND(VLOOKUP($A$3,'GEO-I'!$A$6:$AM$500,15,FALSE),0)&"% ("&IF(VLOOKUP($A$3,'GEO-I'!$A$6:$AM$500,14,FALSE)="",0,VLOOKUP($A$3,'GEO-I'!$A$6:$AM$500,14,FALSE))&")")),"NA") -> 7% (2) | J35: =IFERROR((IF($C35="NA","NA",VLOOKUP($A$3,'GEO-I'!$A$6:$AM$500,10,FALSE))),"NA") -> 0.9655172414 | K35: =IFERROR((IF($C35="NA","NA",ROUND(VLOOKUP($A$3,'GEO-I'!$A$6:$AM$500,12,FALSE),0)&"% ("&IF(VLOOKUP($A$3,'GEO-I'!$A$6:$AM$500,11,FALSE)="",0,VLOOKUP($A$3,'GEO-I'!$A$6:$AM$500,11,FALSE))&")")),"NA") -> 3% (1) | Q35: =IFERROR(VLOOKUP($A$3,'GEO-I'!$A$6:$BX$500,3,FALSE),"not tested") -> 29
A36: ED | B36: =IFERROR(VLOOKUP(TEXT($A$3,"0000"),'Geo Enrollment'!$A$3:$Q$500,15,FALSE),0) -> 21248 | C36: =IFERROR((IF(OR(B36=0,B36="",B36="NA"),"NA",((IF(VLOOKUP($A$3,'GEO-ED'!$A$6:$AG$500,3,FALSE)>=B36,"100% ("&VLOOKUP($A$3,'GEO-ED'!$A$6:$AG$500,3,FALSE)&")",(ROUND((VLOOKUP($A$3,'GEO-ED'!$A$6:$AG$500,3,FALSE)/B36*100),0))&"% ("&IF(VLOOKUP($A$3,'GEO-ED'!$A$6:$AG$500,3,FALSE)="",0,VLOOKUP($A$3,'GEO-ED'!$A$6:$AG$500,3,FALSE))&")"))))),"0% (0)") -> 92% (19526) | D36: =IFERROR((IF($C36="NA","NA",VLOOKUP($A$3,'GEO-ED'!$A$6:$AM$500,4,FALSE))),"NA") -> 11.45635051 | E36: =IFERROR((IF($C36="NA","NA",ROUND(VLOOKUP($A$3,'GEO-ED'!$A$6:$AG$500,6,FALSE),0)&"% ("&IF(VLOOKUP($A$3,'GEO-ED'!$A$6:$AG$500,5,FALSE)="",0,VLOOKUP($A$3,'GEO-ED'!$A$6:$AG$500,5,FALSE))&")")),"NA") -> 0% (48) | F36: =IFERROR((IF($C36="NA","NA",VLOOKUP($A$3,'GEO-ED'!$A$6:$AG$500,7,FALSE))),"NA") -> 8.324362389 | G36: =IFERROR((IF($C36="NA","NA",ROUND(VLOOKUP($A$3,'GEO-ED'!$A$6:$AG$500,9,FALSE),0)&"% ("&IF(VLOOKUP($A$3,'GEO-ED'!$A$6:$AG$500,8,FALSE)="",0,VLOOKUP($A$3,'GEO-ED'!$A$6:$AG$500,8,FALSE))&")")),"NA") -> 0% (53) | H36: =IFERROR((IF($C36="NA","NA",VLOOKUP($A$3,'GEO-ED'!$A$6:$AM$500,13,FALSE))),"NA") -> 2.017668749 | I36: =IFERROR((IF($C36="NA","NA",ROUND(VLOOKUP($A$3,'GEO-ED'!$A$6:$AM$500,15,FALSE),0)&"% ("&IF(VLOOKUP($A$3,'GEO-ED'!$A$6:$AM$500,14,FALSE)="",0,VLOOKUP($A$3,'GEO-ED'!$A$6:$AM$500,14,FALSE))&")")),"NA") -> 2% (445) | J36: =IFERROR((IF($C36="NA","NA",VLOOKUP($A$3,'GEO-ED'!$A$6:$AM$500,10,FALSE))),"NA") -> 1.121479054 | K36: =IFERROR((IF($C36="NA","NA",ROUND(VLOOKUP($A$3,'GEO-ED'!$A$6:$AM$500,12,FALSE),0)&"% ("&IF(VLOOKUP($A$3,'GEO-ED'!$A$6:$AM$500,11,FALSE)="",0,VLOOKUP($A$3,'GEO-ED'!$A$6:$AM$500,11,FALSE))&")")),"NA") -> 6% (1214) | Q36: =IFERROR(VLOOKUP($A$3,'GEO-ED'!$A$6:$BX$500,3,FALSE),"not tested") -> 19526
A37: ELL | B37: =IFERROR(VLOOKUP(TEXT($A$3,"0000"),'Geo Enrollment'!$A$3:$Q$500,16,FALSE),0) -> 3521 | C37: =IFERROR((IF(OR(B37=0,B37="",B37="NA"),"NA",((IF(VLOOKUP($A$3,'GEO-ELL'!$A$6:$AG$500,3,FALSE)>=B37,"100% ("&VLOOKUP($A$3,'GEO-ELL'!$A$6:$AG$500,3,FALSE)&")",(ROUND((VLOOKUP($A$3,'GEO-ELL'!$A$6:$AG$500,3,FALSE)/B37*100),0))&"% ("&IF(VLOOKUP($A$3,'GEO-ELL'!$A$6:$AG$500,3,FALSE)="",0,VLOOKUP($A$3,'GEO-ELL'!$A$6:$AG$500,3,FALSE))&")"))))),"0% (0)") -> 91% (3196) | D37: =IFERROR((IF($C37="NA","NA",VLOOKUP($A$3,'GEO-ELL'!$A$6:$AM$500,4,FALSE))),"NA") -> 10.21745932 | E37: =IFERROR((IF($C37="NA","NA",ROUND(VLOOKUP($A$3,'GEO-ELL'!$A$6:$AG$500,6,FALSE),0)&"% ("&IF(VLOOKUP($A$3,'GEO-ELL'!$A$6:$AG$500,5,FALSE)="",0,VLOOKUP($A$3,'GEO-ELL'!$A$6:$AG$500,5,FALSE))&")")),"NA") -> 0% (4) | F37: =IFERROR((IF($C37="NA","NA",VLOOKUP($A$3,'GEO-ELL'!$A$6:$AG$500,7,FALSE))),"NA") -> 7.569148936 | G37: =IFERROR((IF($C37="NA","NA",ROUND(VLOOKUP($A$3,'GEO-ELL'!$A$6:$AG$500,9,FALSE),0)&"% ("&IF(VLOOKUP($A$3,'GEO-ELL'!$A$6:$AG$500,8,FALSE)="",0,VLOOKUP($A$3,'GEO-ELL'!$A$6:$AG$500,8,FALSE))&")")),"NA") -> 0% (5) | H37: =IFERROR((IF($C37="NA","NA",VLOOKUP($A$3,'GEO-ELL'!$A$6:$AM$500,13,FALSE))),"NA") -> 1.655506884 | I37: =IFERROR((IF($C37="NA","NA",ROUND(VLOOKUP($A$3,'GEO-ELL'!$A$6:$AM$500,15,FALSE),0)&"% ("&IF(VLOOKUP($A$3,'GEO-ELL'!$A$6:$AM$500,14,FALSE)="",0,VLOOKUP($A$3,'GEO-ELL'!$A$6:$AM$500,14,FALSE))&")")),"NA") -> 1% (26) | J37: =IFERROR((IF($C37="NA","NA",VLOOKUP($A$3,'GEO-ELL'!$A$6:$AM$500,10,FALSE))),"NA") -> 0.9928035044 | K37: =IFERROR((IF($C37="NA","NA",ROUND(VLOOKUP($A$3,'GEO-ELL'!$A$6:$AM$500,12,FALSE),0)&"% ("&IF(VLOOKUP($A$3,'GEO-ELL'!$A$6:$AM$500,11,FALSE)="",0,VLOOKUP($A$3,'GEO-ELL'!$A$6:$AM$500,11,FALSE))&")")),"NA") -> 5% (162) | Q37: =IFERROR(VLOOKUP($A$3,'GEO-ELL'!$A$6:$BX$500,3,FALSE),"not tested") -> 3196
A38: SWD | B38: =IFERROR(VLOOKUP(TEXT($A$3,"0000"),'Geo Enrollment'!$A$3:$Q$500,17,FALSE),0) -> 2708 | C38: =IFERROR((IF(OR(B38=0,B38="",B38="NA"),"NA",((IF(VLOOKUP($A$3,'GEO-SWD'!$A$6:$AG$500,3,FALSE)>=B38,"100% ("&VLOOKUP($A$3,'GEO-SWD'!$A$6:$AG$500,3,FALSE)&")",(ROUND((VLOOKUP($A$3,'GEO-SWD'!$A$6:$AG$500,3,FALSE)/B38*100),0))&"% ("&IF(VLOOKUP($A$3,'GEO-SWD'!$A$6:$AG$500,3,FALSE)="",0,VLOOKUP($A$3,'GEO-SWD'!$A$6:$AG$500,3,FALSE))&")"))))),"0% (0)") -> 87% (2366) | D38: =IFERROR((IF($C38="NA","NA",VLOOKUP($A$3,'GEO-SWD'!$A$6:$AM$500,4,FALSE))),"NA") -> 10.61715976 | E38: =IFERROR((IF($C38="NA","NA",ROUND(VLOOKUP($A$3,'GEO-SWD'!$A$6:$AG$500,6,FALSE),0)&"% ("&IF(VLOOKUP($A$3,'GEO-SWD'!$A$6:$AG$500,5,FALSE)="",0,VLOOKUP($A$3,'GEO-SWD'!$A$6:$AG$500,5,FALSE))&")")),"NA") -> 0% (3) | F38: =IFERROR((IF($C38="NA","NA",VLOOKUP($A$3,'GEO-SWD'!$A$6:$AG$500,7,FALSE))),"NA") -> 7.737954353 | G38: =IFERROR((IF($C38="NA","NA",ROUND(VLOOKUP($A$3,'GEO-SWD'!$A$6:$AG$500,9,FALSE),0)&"% ("&IF(VLOOKUP($A$3,'GEO-SWD'!$A$6:$AG$500,8,FALSE)="",0,VLOOKUP($A$3,'GEO-SWD'!$A$6:$AG$500,8,FALSE))&")")),"NA") -> 0% (3) | H38: =IFERROR((IF($C38="NA","NA",VLOOKUP($A$3,'GEO-SWD'!$A$6:$AM$500,13,FALSE))),"NA") -> 1.857311919 | I38: =IFERROR((IF($C38="NA","NA",ROUND(VLOOKUP($A$3,'GEO-SWD'!$A$6:$AM$500,15,FALSE),0)&"% ("&IF(VLOOKUP($A$3,'GEO-SWD'!$A$6:$AM$500,14,FALSE)="",0,VLOOKUP($A$3,'GEO-SWD'!$A$6:$AM$500,14,FALSE))&")")),"NA") -> 1% (32) | J38: =IFERROR((IF($C38="NA","NA",VLOOKUP($A$3,'GEO-SWD'!$A$6:$AM$500,10,FALSE))),"NA") -> 1.037362637 | K38: =IFERROR((IF($C38="NA","NA",ROUND(VLOOKUP($A$3,'GEO-SWD'!$A$6:$AM$500,12,FALSE),0)&"% ("&IF(VLOOKUP($A$3,'GEO-SWD'!$A$6:$AM$500,11,FALSE)="",0,VLOOKUP($A$3,'GEO-SWD'!$A$6:$AM$500,11,FALSE))&")")),"NA") -> 5% (125) | Q38: =IFERROR(VLOOKUP($A$3,'GEO-SWD'!$A$6:$BX$500,3,FALSE),"not tested") -> 2366
A39: Biology | Q39: Biology
A40: Level of Proficiency at 70% or above | B40: Course Enrollment | C40: % of Students Tested | D40: ='G9-10 Matrix'!C15&" ["&'G9-10 Matrix'!C16&"]" -> Overall [67] | F40: ='G9-10 Matrix'!D15&" ["&'G9-10 Matrix'!D16&"]" -> Molecular and Cellular Biology [19] | H40: ='G9-10 Matrix'!E15&" ["&'G9-10 Matrix'!E16&"]" -> Classification, Heredity, and Evolution [25] | J40: ='G9-10 Matrix'!F15&" ["&'G9-10 Matrix'!F16&"]" -> Organisms, Populations, and Ecosystems [23] | Q40: Number Tested
D41: Average Score | E41: % Proficient | F41: Average Score | G41: % Proficient | H41: Average Score | I41: % Proficient | J41: Average Score | K41: % Proficient
A42: All students | B42: =IFERROR(VLOOKUP(TEXT($A$3,"0000"),'Bio Enrollment'!$A$2:$C$497,3,FALSE),0) -> 27385 | C42: =IFERROR((IF(OR(B42=0,B42="",B42="NA"),"NA",((IF(VLOOKUP($A$3,'Bio-ALL'!$A$14:$AG$500,3,FALSE)>=B42,"100% ("&VLOOKUP($A$3,'Bio-ALL'!$A$14:$AG$500,3,FALSE)&")",(ROUND((VLOOKUP($A$3,'Bio-ALL'!$A$14:$AG$500,3,FALSE)/B42*100),0))&"% ("&VLOOKUP($A$3,'Bio-ALL'!$A$14:$AG$500,3,FALSE)&")"))))),"NA") -> 92% (25141) | D42: =IFERROR((IF($C42="NA","NA",VLOOKUP($A$3,'Bio-ALL'!$A$14:$AG$500,4,FALSE))),"NA") -> 23.15067477 | E42: =IFERROR((IF($C42="NA","NA",ROUND(VLOOKUP($A$3,'Bio-ALL'!$A$14:$AG$500,9,FALSE)*100,0)&"% ("&IF(VLOOKUP($A$3,'Bio-ALL'!$A$14:$AG$500,7,FALSE)="",0,VLOOKUP($A$3,'Bio-ALL'!$A$14:$AG$500,7,FALSE))&")")),"NA") -> 1% (159) | F42: =IFERROR((IF($C42="NA","NA",VLOOKUP($A$3,'Bio-ALL'!$A$14:$AG$500,16,FALSE))),"NA") -> 6.2506742 | G42: =IFERROR((IF($C42="NA","NA",ROUND(VLOOKUP($A$3,'Bio-ALL'!$A$14:$AG$500,21,FALSE)*100,0)&"% ("&IF(VLOOKUP($A$3,'Bio-ALL'!$A$14:$AG$500,19,FALSE)="",0,VLOOKUP($A$3,'Bio-ALL'!$A$14:$AG$500,19,FALSE))&")")),"NA") -> 1% (256) | H42: =IFERROR((IF($C42="NA","NA",VLOOKUP($A$3,'Bio-ALL'!$A$14:$AG$500,10,FALSE))),"NA") -> 8.300000191 | I42: =IFERROR((IF($C42="NA","NA",ROUND(VLOOKUP($A$3,'Bio-ALL'!$A$14:$AG$500,15,FALSE)*100,0)&"% ("&IF(VLOOKUP($A$3,'Bio-ALL'!$A$14:$AG$500,13,FALSE)="",0,VLOOKUP($A$3,'Bio-ALL'!$A$14:$AG$500,13,FALSE))&")")),"NA") -> 1% (208) | J42: =IFERROR((IF($C42="NA","NA",VLOOKUP($A$3,'Bio-ALL'!$A$14:$AG$500,22,FALSE))),"NA") -> 8.600000381 | K42: =IFERROR((IF($C42="NA","NA",ROUND(VLOOKUP($A$3,'Bio-ALL'!$A$14:$AG$500,27,FALSE)*100,0)&"% ("&IF(VLOOKUP($A$3,'Bio-ALL'!$A$14:$AG$500,25,FALSE)="",0,VLOOKUP($A$3,'Bio-ALL'!$A$14:$AG$500,25,FALSE))&")")),"NA") -> 1% (376) | Q42: =IFERROR(VLOOKUP($A$3,'Bio-ALL'!$A$14:$BR$500,3,FALSE),"not tested") -> 25141
A43: US History | Q43: US History
A44: Level of Proficiency at 70% or above | B44: Course Enrollment | C44: % of Students Tested | D44: ='G9-10 Matrix'!C18&" ["&'G9-10 Matrix'!C19&"]" -> Overall [39] | F44: ='G9-10 Matrix'!D18&" ["&'G9-10 Matrix'!D19&"]" -> Late Nineteenth and Early Century, 1860-1910 [9] | H44: ='G9-10 Matrix'!E18&" ["&'G9-10 Matrix'!E19&"]" -> Global Military, Political, & Eco. Challenges [19] | J44: ='G9-10 Matrix'!F18&" ["&'G9-10 Matrix'!F19&"]" -> The U.S. & Defense of the International Peace [11] | Q44: Number Tested
D45: Average Score | E45: % Proficient | F45: Average Score | G45: % Proficient | H45: Average Score | I45: % Proficient | J45: Average Score | K45: % Proficient
A46: All students | B46: =IFERROR(VLOOKUP(TEXT($A$3,"0000"),'USH Enrollment'!$A$2:$C$497,3,FALSE),0) -> 20752 | C46: =IFERROR((IF(OR(B46=0,B46="",B46="NA"),"NA",((IF(VLOOKUP($A$3,'USH-ALL'!$A$14:$AG$500,3,FALSE)>=B46,"100% ("&VLOOKUP($A$3,'USH-ALL'!$A$14:$AG$500,3,FALSE)&")",(ROUND((VLOOKUP($A$3,'USH-ALL'!$A$14:$AG$500,3,FALSE)/B46*100),0))&"% ("&VLOOKUP($A$3,'USH-ALL'!$A$14:$AG$500,3,FALSE)&")"))))),"NA") -> 92% (19032) | D46: =IFERROR((IF($C46="NA","NA",VLOOKUP($A$3,'USH-ALL'!$A$14:$AG$500,4,FALSE))),"NA") -> 17.75152898 | E46: =IFERROR((IF($C46="NA","NA",ROUND(VLOOKUP($A$3,'USH-ALL'!$A$14:$AG$500,9,FALSE)*100,0)&"% ("&IF(VLOOKUP($A$3,'USH-ALL'!$A$14:$AG$500,7,FALSE)="",0,VLOOKUP($A$3,'USH-ALL'!$A$14:$AG$500,7,FALSE))&")")),"NA") -> 0% (21) | F46: =IFERROR((IF($C46="NA","NA",VLOOKUP($A$3,'USH-ALL'!$A$14:$AG$500,10,FALSE))),"NA") -> 3.14847097 | G46: =IFERROR((IF($C46="NA","NA",ROUND(VLOOKUP($A$3,'USH-ALL'!$A$14:$AG$500,15,FALSE)*100,0)&"% ("&IF(VLOOKUP($A$3,'USH-ALL'!$A$14:$AG$500,13,FALSE)="",0,VLOOKUP($A$3,'USH-ALL'!$A$14:$AG$500,13,FALSE))&")")),"NA") -> 3% (556) | H46: =IFERROR((IF($C46="NA","NA",VLOOKUP($A$3,'USH-ALL'!$A$14:$AG$500,16,FALSE))),"NA") -> 5.74847099 | I46: =IFERROR((IF($C46="NA","NA",ROUND(VLOOKUP($A$3,'USH-ALL'!$A$14:$AG$500,21,FALSE)*100,0)&"% ("&IF(VLOOKUP($A$3,'USH-ALL'!$A$14:$AG$500,19,FALSE)="",0,VLOOKUP($A$3,'USH-ALL'!$A$14:$AG$500,19,FALSE))&")")),"NA") -> 0% (66) | J46: =IFERROR((IF($C46="NA","NA",VLOOKUP($A$3,'USH-ALL'!$A$14:$AG$500,22,FALSE))),"NA") -> 8.8061162 | K46: =IFERROR((IF($C46="NA","NA",ROUND(VLOOKUP($A$3,'USH-ALL'!$A$14:$AG$500,27,FALSE)*100,0)&"% ("&IF(VLOOKUP($A$3,'USH-ALL'!$A$14:$AG$500,25,FALSE)="",0,VLOOKUP($A$3,'USH-ALL'!$A$14:$AG$500,25,FALSE))&")")),"NA") -> 0% (19) | Q46: =IFERROR(VLOOKUP($A$3,'USH-ALL'!$A$14:$BR$500,3,FALSE),"not tested") -> 19032

Sheet G9-10 Matrix (hidden)
A2: Grade | B2: Reading | C2: Overall | D2: Vocabulary | E2: Reading Application | F2: Literary Analysis Fiction/Nonfiction | G2: Informational Text/ Research Process
A3: 9 | B3: N of Items | C3: =SUM(D3:G3) -> 43 | D3: 7 | E3: 22 | F3: 6 | G3: 8
A4: 9 | B4: 51% Cut | C4: =ROUND(0.505*C3,2) -> 21.72 | D4: =ROUND(0.505*D3,2) -> 3.54 | E4: 11.11 | F4: 3.03 | G4: 4.04
A5: 10 | B5: N of Items | C5: =SUM(D5:G5) -> 34 | D5: 5 | E5: 15 | F5: 4 | G5: 10
A6: 10 | B6: 51% Cut | C6: =ROUND(0.505*C5,2) -> 17.17 | D6: =ROUND(0.505*D5,2) -> 2.53 | E6: 7.58 | F6: 2.02 | G6: 5.05
A8: Algebra | B8: Algebra | C8: Overall | D8: Functions, Linear Equations, and Inequalities | E8: Polynomials | F8: Rationals, Radicals, Quadratics, and Discrete Mathematics
B9: N of Items | C9: =SUM(D9:G9) -> 48 | D9: 28 | E9: 7 | F9: 13
B10: 51% Cut | C10: =ROUND(0.505*C9,2) -> 24.24 | D10: =ROUND(0.505*D9,2) -> 14.14 | E10: 3.54 | F10: 6.57
A12: Geometry | B12: Geometry | C12: Overall | D12: Two-Dimensional Geometry | E12: Three-Dimensional Geometry | F12: Trigonometry and Discrete Mathematics
B13: N of Items | C13: =SUM(D13:F13) -> 38 | D13: 28 | E13: 6 | F13: 4
B14: 51% Cut | C14: =ROUND(0.505*C13,2) -> 19.19 | D14: =ROUND(0.505*D13,2) -> 14.14 | E14: 3.03 | F14: 2.02
A15: Biology | B15: Biology | C15: Overall | D15: Molecular and Cellular Biology | E15: Classification, Heredity, and Evolution | F15: Organisms, Populations, and Ecosystems
B16: N of Items | C16: =SUM(D16:G16) -> 67 | D16: 19 | E16: 25 | F16: 23
B17: 51% Cut | C17: =ROUND(0.505*C16,2) -> 33.84 | D17: =ROUND(0.505*D16,2) -> 9.6 | E17: 12.63 | F17: 11.62
A18: US History | B18: US History | C18: Overall | D18: Late Nineteenth and Early Century, 1860-1910 | E18: Global Military, Political, & Eco. Challenges | F18: The U.S. & Defense of the International Peace
B19: N of Items | C19: =SUM(D19:G19) -> 39 | D19: 9 | E19: 19 | F19: 11
B20: 51% Cut | C20: =ROUND(0.505*C19,2) -> 19.7 | D20: =ROUND(0.505*D19,2) -> 4.55 | E20: 9.6 | F20: 5.56

Sheet Alg Enrollment (hidden)
A1: 1 | B1: 2 | C1: 3 | D1: 4 | E1: 5 | F1: 6 | G1: 7 | H1: 8 | I1: 9 | J1: 10 | K1: 11 | L1: 12 | M1: 13 | N1: 14 | O1: 15 | P1: 16 | Q1: 17
A2: School | B2: SchName | C2: Total | D2: ML1 | E2: ML2 | F2: ML3 | G2: ML4 | H2: ML5 | I2: ML0 | J2: W | K2: B | L2: H | M2: A | N2: I | O2: ED | P2: ELL | Q2: SWD
A3: 0070 | B3: CORAL REEF MONTESSORI ACAD CH | C3: 20 | D3: 0 | E3: 1 | F3: 4 | G3: 7 | H3: 7 | I3: 1 | J3: 4 | K3: 3 | L3: 12 | M3: 1 | N3: 0 | O3: 7 | P3: 0 | Q3: 1
A4: 0071 | B4: EUGENIA B. THOMAS K-8 CENTER | C4: 44 | D4: 0 | E4: 0 | F4: 3 | G4: 24 | H4: 15 | I4: 2 | J4: 5 | K4: 0 | L4: 35 | M4: 4 | N4: 0 | O4: 16 | P4: 1 | Q4: 1
A5: 0073 | B5: MANDARIN LAKES K-8 CENTER | C5: 33 | D5: 0 | E5: 1 | F5: 19 | G5: 10 | H5: 2 | I5: 1 | J5: 3 | K5: 14 | L5: 15 | M5: 0 | N5: 0 | O5: 30 | P5: 0 | Q5: 1
A6: 0091 | B6: BOB GRAHAM EDUCATION CTR | C6: 77 | D6: 0 | E6: 0 | F6: 12 | G6: 34 | H6: 31 | I6: 0 | J6: 5 | K6: 3 | L6: 67 | M6: 1 | N6: 0 | O6: 33 | P6: 0 | Q6: 0
A7: 0092 | B7: NORMAN S. EDELCUP/SUNNY ISLES | C7: 97 | D7: 0 | E7: 0 | F7: 4 | G7: 36 | H7: 55 | I7: 2 | J7: 41 | K7: 1 | L7: 51 | M7: 4 | N7: 0 | O7: 45 | P7: 2 | Q7: 1
A8: 0122 | B8: DR ROLANDO ESPINOSA K-8 | C8: 31 | D8: 0 | E8: 0 | F8: 4 | G8: 12 | H8: 14 | I8: 1 | J8: 1 | K8: 0 | L8: 29 | M8: 1 | N8: 0 | O8: 13 | P8: 3 | Q8: 0
A9: 0231 | B9: AVENTURA WATERWAYS K-8 CENTER | C9: 75 | D9: 0 | E9: 0 | F9: 9 | G9: 40 | H9: 22 | I9: 4 | J9: 25 | K9: 7 | L9: 43 | M9: 0 | N9: 0 | O9: 33 | P9: 1 | Q9: 0
A10: 0241 | B10: RUTH K BROAD/BAY HARBOR K-8 | C10: 49 | D10: 0 | E10: 0 | F10: 2 | G10: 22 | H10: 22 | I10: 3 | J10: 23 | K10: 1 | L10: 25 | M10: 0 | N10: 0 | O10: 17 | P10: 0 | Q10: 2
A11: 0332 | B11: SOMERSET ACADEMY(SILVER PALMS) | C11: 44 | D11: 0 | E11: 0 | F11: 17 | G11: 23 | H11: 4 | I11: 0 | J11: 3 | K11: 4 | L11: 37 | M11: 0 | N11: 0 | O11: 35 | P11: 1 | Q11: 3
A12: 0451 | B12: BOWMAN ASHE/DOOLIN K-8 ACAD | C12: 42 | D12: 0 | E12: 2 | F12: 13 | G12: 19 | H12: 8 | I12: 0 | J12: 3 | K12: 0 | L12: 38 | M12: 1 | N12: 0 | O12: 40 | P12: 1 | Q12: 2
A13: 0761 | B13: FIENBERG/FISHER K-8 CENTER | C13: 23 | D13: 0 | E13: 2 | F13: 4 | G13: 10 | H13: 5 | I13: 2 | J13: 3 | K13: 2 | L13: 15 | M13: 3 | N13: 0 | O13: 22 | P13: 0 | Q13: 0
A14: 0950 | B14: AVENTURA CITY OF EXCELLENCE | C14: 93 | D14: 0 | E14: 0 | F14: 14 | G14: 38 | H14: 37 | I14: 4 | J14: 53 | K14: 1 | L14: 37 | M14: 2 | N14: 0 | O14: 16 | P14: 2 | Q14: 2
A15: 0961 | B15: CORAL GABLES PREPARATORY ACAD | C15: 75 | D15: 1 | E15: 6 | F15: 29 | G15: 18 | H15: 18 | I15: 3 | J15: 11 | K15: 1 | L15: 62 | M15: 1 | N15: 0 | O15: 30 | P15: 2 | Q15: 3
A16: 1020 | B16: YOUTH CO-OP CHARTER SCHOOL | C16: 25 | D16: 0 | E16: 0 | F16: 6 | G16: 10 | H16: 9 | I16: 0 | J16: 0 | K16: 0 | L16: 24 | M16: 0 | N16: 1 | O16: 20 | P16: 1 | Q16: 0
A17: 1121 | B17: CORAL WAY K-8 CENTER | C17: 50 | D17: 0 | E17: 4 | F17: 13 | G17: 15 | H17: 17 | I17: 1 | J17: 9 | K17: 0 | L17: 40 | M17: 1 | N17: 0 | O17: 29 | P17: 3 | Q17: 1
A18: 1331 | B18: DEVON AIRE K-8 CENTER | C18: 83 | D18: 0 | E18: 0 | F18: 10 | G18: 36 | H18: 37 | I18: 0 | J18: 20 | K18: 1 | L18: 58 | M18: 4 | N18: 0 | O18: 37 | P18: 0 | Q18: 3
A19: 1681 | B19: LILLIE C. EVANS K-8 CENTER | C19: 15 | D19: 0 | E19: 0 | F19: 7 | G19: 4 | H19: 4 | I19: 0 | J19: 0 | K19: 13 | L19: 2 | M19: 0 | N19: 0 | O19: 14 | P19: 0 | Q19: 0
A20: 1721 | B20: EVERGLADES K-8 CENTER | C20: 43 | D20: 0 | E20: 1 | F20: 15 | G20: 19 | H20: 8 | I20: 0 | J20: 1 | K20: 0 | L20: 42 | M20: 0 | N20: 0 | O20: 27 | P20: 2 | Q20: 0
A21: 2701 | B21: KENWOOD K-8 CENTER | C21: 52 | D21: 0 | E21: 3 | F21: 16 | G21: 23 | H21: 10 | I21: 0 | J21: 12 | K21: 2 | L21: 37 | M21: 1 | N21: 0 | O21: 14 | P21: 2 | Q21: 1
A22: 2741 | B22: KEY BISCAYNE K-8 CENTER | C22: 90 | D22: 2 | E22: 2 | F22: 17 | G22: 44 | H22: 21 | I22: 4 | J22: 28 | K22: 2 | L22: 60 | M22: 0 | N22: 0 | O22: 13 | P22: 16 | Q22: 6
A23: 2881 | B23: LEEWOOD K-8 CENTER | C23: 35 | D23: 0 | E23: 0 | F23: 7 | G23: 17 | H23: 11 | I23: 0 | J23: 12 | K23: 2 | L23: 21 | M23: 0 | N23: 0 | O23: 5 | P23: 1 | Q23: 1
A24: 2901 | B24: LEISURE CITY K-8 CENTER | C24: 46 | D24: 0 | E24: 0 | F24: 32 | G24: 7 | H24: 7 | I24: 0 | J24: 1 | K24: 5 | L24: 40 | M24: 0 | N24: 0 | O24: 44 | P24: 0 | Q24: 1
A25: 2911 | B25: LINDA LENTIN K-8 CENTER | C25: 41 | D25: 0 | E25: 3 | F25: 22 | G25: 11 | H25: 4 | I25: 1 | J25: 1 | K25: 34 | L25: 6 | M25: 0 | N25: 0 | O25: 37 | P25: 2 | Q25: 1
A26: 3029 | B26: DORAL ACADEMY OF TECHNOLOGY | C26: 50 | D26: 0 | E26: 0 | F26: 13 | G26: 22 | H26: 15 | I26: 0 | J26: 4 | K26: 2 | L26: 44 | M26: 0 | N26: 0 | O26: 25 | P26: 1 | Q26: 0
A27: 3032 | B27: PALM GLADES PREPATORY ACADEMY | C27: 26 | D27: 0 | E27: 0 | F27: 5 | G27: 13 | H27: 4 | I27: 4 | J27: 1 | K27: 4 | L27: 21 | M27: 0 | N27: 0 | O27: 17 | P27: 2 | Q27: 1
A28: 3101 | B28: FRANK C. MARTIN K-8 CENTER | C28: 100 | D28: 0 | E28: 4 | F28: 24 | G28: 50 | H28: 21 | I28: 1 | J28: 8 | K28: 48 | L28: 30 | M28: 5 | N28: 0 | O28: 46 | P28: 0 | Q28: 0
A29: 3191 | B29: ADA MERRITT K-8 CENTER | C29: 71 | D29: 0 | E29: 1 | F29: 19 | G29: 22 | H29: 28 | I29: 1 | J29: 17 | K29: 9 | L29: 43 | M29: 1 | N29: 0 | O29: 23 | P29: 1 | Q29: 1
A30: 3281 | B30: MIAMI LAKES K-8 CENTER | C30: 84 | D30: 0 | E30: 1 | F30: 16 | G30: 33 | H30: 31 | I30: 3 | J30: 13 | K30: 3 | L30: 65 | M30: 3 | N30: 0 | O30: 29 | P30: 4 | Q30: 1
A31: 3421 | B31: M.A. MILAM K-8 CENTER | C31: 16 | D31: 0 | E31: 0 | F31: 1 | G31: 12 | H31: 3 | I31: 0 | J31: 0 | K31: 0 | L31: 16 | M31: 0 | N31: 0 | O31: 15 | P31: 2 | Q31: 1
A32: 3610 | B32: KEYS GATE CHARTER SCHOOL | C32: 165 | D32: 0 | E32: 9 | F32: 50 | G32: 80 | H32: 21 | I32: 5 | J32: 50 | K32: 21 | L32: 89 | M32: 4 | N32: 1 | O32: 102 | P32: 4 | Q32: 5
A33: 3621 | B33: COCONUT PALM K-8 ACADEMY | C33: 78 | D33: 0 | E33: 2 | F33: 34 | G33: 26 | H33: 14 | I33: 2 | J33: 2 | K33: 27 | L33: 46 | M33: 3 | N33: 0 | O33: 69 | P33: 5 | Q33: 5
A34: 4691 | B34: JANE ROBERTS K-8 CENTER | C34: 35 | D34: 0 | E34: 0 | F34: 1 | G34: 16 | H34: 18 | I34: 0 | J34: 4 | K34: 0 | L34: 31 | M34: 0 | N34: 0 | O34: 16 | P34: 0 | Q34: 0
A35: 5003 | B35: SOUTH DADE MIDDLE SCHOOL | C35: 88 | D35: 0 | E35: 1 | F35: 61 | G35: 18 | H35: 5 | I35: 3 | J35: 16 | K35: 10 | L35: 60 | M35: 0 | N35: 0 | O35: 78 | P35: 4 | Q35: 5
A36: 5005 | B36: DAVID LAWRENCE JR K-8 CENTER | C36: 52 | D36: 0 | E36: 0 | F36: 2 | G36: 29 | H36: 21 | I36: 0 | J36: 9 | K36: 13 | L36: 24 | M36: 4 | N36: 0 | O36: 29 | P36: 1 | Q36: 0
A37: 5006 | B37: EVERGLADES PREPARATORY ACADEMY | C37: 54 | D37: 0 | E37: 2 | F37: 7 | G37: 27 | H37: 17 | I37: 1 | J37: 3 | K37: 6 | L37: 45 | M37: 0 | N37: 0 | O37: 46 | P37: 2 | Q37: 1
A38: 5010 | B38: OXFORD ACADEMY OF MIAMI | C38: 1 | D38: 0 | E38: 0 | F38: 0 | G38: 1 | H38: 0 | I38: 0 | J38: 1 | K38: 0 | L38: 0 | M38: 0 | N38: 0 | O38: 0 | P38: 0 | Q38: 0
A39: 5025 | B39: LINCOLN-MARTI CS LITTLE HAVANA | C39: 13 | D39: 0 | E39: 0 | F39: 6 | G39: 6 | H39: 1 | I39: 0 | J39: 0 | K39: 4 | L39: 9 | M39: 0 | N39: 0 | O39: 10 | P39: 4 | Q39: 0
A40: 5029 | B40: EXCELSIOR LANGUAGE ACADEMY K-8 | C40: 28 | D40: 0 | E40: 0 | F40: 18 | G40: 7 | H40: 2 | I40: 1 | J40: 0 | K40: 0 | L40: 28 | M40: 0 | N40: 0 | O40: 26 | P40: 6 | Q40: 1
A41: 5047 | B41: MATER ACADEMY (MIAMI BEACH) | C41: 1 | D41: 0 | E41: 0 | F41: 0 | G41: 0 | H41: 1 | I41: 0 | J41: 0 | K41: 0 | L41: 1 | M41: 0 | N41: 0 | O41: 1 | P41: 0 | Q41: 0
A42: 5101 | B42: JOHN I. SMITH K-8 CENTER | C42: 16 | D42: 0 | E42: 0 | F42: 7 | G42: 6 | H42: 2 | I42: 1 | J42: 2 | K42: 1 | L42: 12 | M42: 1 | N42: 0 | O42: 6 | P42: 1 | Q42: 0
A43: 5141 | B43: HUBERT O. SIBLEY K-8 CENTER | C43: 32 | D43: 0 | E43: 0 | F43: 19 | G43: 10 | H43: 3 | I43: 0 | J43: 0 | K43: 27 | L43: 5 | M43: 0 | N43: 0 | O43: 31 | P43: 7 | Q43: 0
A44: 5241 | B44: SOUTH MIAMI K-8 CENTER | C44: 23 | D44: 0 | E44: 1 | F44: 2 | G44: 11 | H44: 9 | I44: 0 | J44: 3 | K44: 1 | L44: 18 | M44: 1 | N44: 0 | O44: 10 | P44: 0 | Q44: 2
A45: 5671 | B45: VINELAND K-8 CENTER | C45: 28 | D45: 0 | E45: 0 | F45: 1 | G45: 7 | H45: 20 | I45: 0 | J45: 10 | K45: 0 | L45: 16 | M45: 2 | N45: 0 | O45: 5 | P45: 0 | Q45: 1
A46: 5961 | B46: WINSTON PARK K-8 CENTER | C46: 74 | D46: 0 | E46: 2 | F46: 19 | G46: 30 | H46: 23 | I46: 0 | J46: 5 | K46: 0 | L46: 67 | M46: 2 | N46: 0 | O46: 53 | P46: 2 | Q46: 4
A47: 6001 | B47: HERBERT A. AMMONS MIDDLE | C47: 282 | D47: 1 | E47: 12 | F47: 60 | G47: 122 | H47: 86 | I47: 1 | J47: 47 | K47: 35 | L47: 185 | M47: 11 | N47: 1 | O47: 135 | P47: 2 | Q47: 7
A48: 6004 | B48: SOMERSET ACADEMY MIDDLE | C48: 76 | D48: 2 | E48: 11 | F48: 23 | G48: 17 | H48: 21 | I48: 2 | J48: 9 | K48: 1 | L48: 64 | M48: 1 | N48: 0 | O48: 41 | P48: 2 | Q48: 0
A49: 6006 | B49: ARCHIMEDEAN CONSERVATORY | C49: 138 | D49: 3 | E49: 16 | F49: 31 | G49: 36 | H49: 48 | I49: 4 | J49: 16 | K49: 2 | L49: 108 | M49: 12 | N49: 0 | O49: 76 | P49: 7 | Q49: 6
A50: 6009 | B50: MATER ACADEMY EAST MIDDLE | C50: 51 | D50: 0 | E50: 0 | F50: 26 | G50: 18 | H50: 7 | I50: 0 | J50: 0 | K50: 6 | L50: 45 | M50: 0 | N50: 0 | O50: 48 | P50: 2 | Q50: 0
A51: 6010 | B51: FLORIDA INTERNATIONAL ACADEMY | C51: 30 | D51: 0 | E51: 0 | F51: 1 | G51: 23 | H51: 5 | I51: 1 | J51: 0 | K51: 27 | L51: 3 | M51: 0 | N51: 0 | O51: 29 | P51: 2 | Q51: 1
A52: 6011 | B52: ALLAPATTAH MIDDLE | C52: 29 | D52: 0 | E52: 0 | F52: 24 | G52: 3 | H52: 2 | I52: 0 | J52: 1 | K52: 15 | L52: 13 | M52: 0 | N52: 0 | O52: 29 | P52: 1 | Q52: 2
A53: 6012 | B53: MATER ACADEMY CHARTER MIDDLE | C53: 325 | D53: 0 | E53: 1 | F53: 168 | G53: 99 | H53: 57 | I53: 0 | J53: 11 | K53: 9 | L53: 304 | M53: 1 | N53: 0 | O53: 272 | P53: 13 | Q53: 5
A54: 6013 | B54: SOMERSET ACADEMY MIDDLE-SOUTH | C54: 45 | D54: 8 | E54: 11 | F54: 14 | G54: 9 | H54: 1 | I54: 2 | J54: 11 | K54: 4 | L54: 30 | M54: 0 | N54: 0 | O54: 31 | P54: 0 | Q54: 2
A55: 6020 | B55: ASPIRA RAUL A. MARTINEZ CHTR | C55: 74 | D55: 0 | E55: 1 | F55: 59 | G55: 10 | H55: 4 | I55: 0 | J55: 1 | K55: 49 | L55: 24 | M55: 0 | N55: 0 | O55: 74 | P55: 6 | Q55: 3
A56: 6021 | B56: ARVIDA MIDDLE SCHOOL | C56: 151 | D56: 0 | E56: 0 | F56: 13 | G56: 66 | H56: 70 | I56: 2 | J56: 34 | K56: 3 | L56: 105 | M56: 9 | N56: 0 | O56: 55 | P56: 2 | Q56: 0
A57: 6022 | B57: PINECREST ACADEMY CHARTER MIDD | C57: 200 | D57: 0 | E57: 1 | F57: 115 | G57: 61 | H57: 23 | I57: 0 | J57: 9 | K57: 1 | L57: 189 | M57: 1 | N57: 0 | O57: 116 | P57: 11 | Q57: 9
A58: 6023 | B58: ANDOVER MIDDLE SCHOOL | C58: 140 | D58: 0 | E58: 4 | F58: 48 | G58: 62 | H58: 23 | I58: 3 | J58: 2 | K58: 129 | L58: 4 | M58: 3 | N58: 1 | O58: 119 | P58: 5 | Q58: 1
A59: 6028 | B59: RENAISSANCE MIDDLE CHARTER | C59: 61 | D59: 0 | E59: 1 | F59: 4 | G59: 37 | H59: 13 | I59: 6 | J59: 12 | K59: 2 | L59: 46 | M59: 1 | N59: 0 | O59: 19 | P59: 7 | Q59: 2
A60: 6030 | B60: DORAL ACADEMY CHARTER MIDDLE | C60: 172 | D60: 1 | E60: 0 | F60: 50 | G60: 78 | H60: 41 | I60: 2 | J60: 14 | K60: 1 | L60: 152 | M60: 5 | N60: 0 | O60: 96 | P60: 1 | Q60: 0
A61: 6031 | B61: BROWNSVILLE MIDDLE | C61: 55 | D61: 1 | E61: 1 | F61: 31 | G61: 20 | H61: 2 | I61: 0 | J61: 0 | K61: 33 | L61: 22 | M61: 0 | N61: 0 | O61: 54 | P61: 2 | Q61: 3
A62: 6033 | B62: MATER ACADEMY LAKES MIDDLE | C62: 53 | D62: 0 | E62: 2 | F62: 18 | G62: 24 | H62: 9 | I62: 0 | J62: 3 | K62: 0 | L62: 49 | M62: 1 | N62: 0 | O62: 39 | P62: 3 | Q62: 1
A63: 6040 | B63: DOCTORS CHARTER/MIAMI SHORES | C63: 93 | D63: 3 | E63: 10 | F63: 22 | G63: 27 | H63: 21 | I63: 10 | J63: 24 | K63: 42 | L63: 21 | M63: 6 | N63: 0 | O63: 26 | P63: 1 | Q63: 5
A64: 6041 | B64: PAUL W. BELL MIDDLE | C64: 44 | D64: 0 | E64: 1 | F64: 13 | G64: 22 | H64: 7 | I64: 1 | J64: 1 | K64: 0 | L64: 43 | M64: 0 | N64: 0 | O64: 43 | P64: 3 | Q64: 1
A65: 6042 | B65: MATER GARDENS ACADEMY MIDDLE | C65: 46 | D65: 0 | E65: 4 | F65: 9 | G65: 21 | H65: 9 | I65: 3 | J65: 2 | K65: 1 | L65: 42 | M65: 0 | N65: 1 | O65: 27 | P65: 0 | Q65: 0
A66: 6045 | B66: INTL. STUDIES CHARTER MIDDLE | C66: 68 | D66: 0 | E66: 1 | F66: 25 | G66: 22 | H66: 13 | I66: 7 | J66: 13 | K66: 0 | L66: 55 | M66: 0 | N66: 0 | O66: 45 | P66: 9 | Q66: 1
A67: 6047 | B67: MATER ACADEMY MIDDLE-INTL STUD | C67: 33 | D67: 0 | E67: 0 | F67: 20 | G67: 10 | H67: 3 | I67: 0 | J67: 1 | K67: 6 | L67: 25 | M67: 1 | N67: 0 | O67: 28 | P67: 4 | Q67: 0
A68: 6048 | B68: MIAMI COMMUNITY CHARTER MIDDLE | C68: 68 | D68: 2 | E68: 26 | F68: 23 | G68: 14 | H68: 3 | I68: 0 | J68: 2 | K68: 6 | L68: 59 | M68: 1 | N68: 0 | O68: 60 | P68: 9 | Q68: 6
A69: 6049 | B69: RIVER CITIES COMMUNITY CHARTER | C69: 14 | D69: 1 | E69: 6 | F69: 5 | G69: 1 | H69: 1 | I69: 0 | J69: 0 | K69: 7 | L69: 7 | M69: 0 | N69: 0 | O69: 11 | P69: 0 | Q69: 0
A70: 6051 | B70: CAROL CITY MIDDLE | C70: 69 | D70: 2 | E70: 7 | F70: 44 | G70: 13 | H70: 0 | I70: 3 | J70: 0 | K70: 60 | L70: 8 | M70: 0 | N70: 0 | O70: 67 | P70: 0 | Q70: 1
A71: 6052 | B71: ZELDA GLAZER MIDDLE SCHOOL | C71: 319 | D71: 3 | E71: 2 | F71: 163 | G71: 119 | H71: 24 | I71: 8 | J71: 8 | K71: 2 | L71: 305 | M71: 4 | N71: 0 | O71: 232 | P71: 27 | Q71: 20
A72: 6053 | B72: SOMERSET ACAD MIDDLE (S-MIAMI) | C72: 28 | D72: 0 | E72: 0 | F72: 16 | G72: 10 | H72: 1 | I72: 1 | J72: 5 | K72: 0 | L72: 23 | M72: 0 | N72: 0 | O72: 6 | P72: 0 | Q72: 0
A73: 6060 | B73: ASPIRA SOUTH YOUTH LEADERSHIP | C73: 26 | D73: 1 | E73: 4 | F73: 14 | G73: 6 | H73: 0 | I73: 1 | J73: 1 | K73: 2 | L73: 23 | M73: 0 | N73: 0 | O73: 22 | P73: 2 | Q73: 1
A74: 6061 | B74: CAMPBELL DRIVE MIDDLE | C74: 68 | D74: 0 | E74: 0 | F74: 40 | G74: 23 | H74: 2 | I74: 3 | J74: 1 | K74: 27 | L74: 39 | M74: 1 | N74: 0 | O74: 65 | P74: 3 | Q74: 4
A75: 6070 | B75: ASPIRA EUGENIO MARIA DE HOSTOS | C75: 69 | D75: 2 | E75: 12 | F75: 37 | G75: 15 | H75: 2 | I75: 1 | J75: 0 | K75: 21 | L75: 48 | M75: 0 | N75: 0 | O75: 67 | P75: 6 | Q75: 0
A76: 6071 | B76: GEORGE WASHINGTON CARVER | C76: 310 | D76: 2 | E76: 4 | F76: 59 | G76: 112 | H76: 131 | I76: 2 | J76: 101 | K76: 16 | L76: 184 | M76: 8 | N76: 0 | O76: 95 | P76: 15 | Q76: 1
A77: 6081 | B77: CENTENNIAL MIDDLE | C77: 122 | D77: 11 | E77: 19 | F77: 46 | G77: 35 | H77: 5 | I77: 6 | J77: 15 | K77: 26 | L77: 78 | M77: 2 | N77: 0 | O77: 84 | P77: 12 | Q77: 7
A78: 6091 | B78: CITRUS GROVE MIDDLE SCHOOL | C78: 68 | D78: 0 | E78: 0 | F78: 46 | G78: 13 | H78: 9 | I78: 0 | J78: 0 | K78: 4 | L78: 63 | M78: 1 | N78: 0 | O78: 67 | P78: 9 | Q78: 0
A79: 6111 | B79: CUTLER RIDGE MIDDLE | C79: 56 | D79: 6 | E79: 16 | F79: 20 | G79: 11 | H79: 2 | I79: 1 | J79: 11 | K79: 21 | L79: 21 | M79: 3 | N79: 0 | O79: 48 | P79: 1 | Q79: 2
A80: 6121 | B80: RUBEN DARIO MIDDLE | C80: 66 | D80: 0 | E80: 0 | F80: 22 | G80: 32 | H80: 12 | I80: 0 | J80: 1 | K80: 0 | L80: 65 | M80: 0 | N80: 0 | O80: 56 | P80: 6 | Q80: 0
A81: 6141 | B81: CHARLES R. DREW MIDDLE | C81: 26 | D81: 0 | E81: 0 | F81: 20 | G81: 4 | H81: 2 | I81: 0 | J81: 1 | K81: 24 | L81: 1 | M81: 0 | N81: 0 | O81: 26 | P81: 0 | Q81: 1
A82: 6151 | B82: DORAL MIDDLE SCHOOL | C82: 39 | D82: 2 | E82: 1 | F82: 17 | G82: 13 | H82: 5 | I82: 1 | J82: 4 | K82: 8 | L82: 27 | M82: 0 | N82: 0 | O82: 25 | P82: 6 | Q82: 0
A83: 6161 | B83: LAWTON CHILES MIDDLE SCHOOL | C83: 107 | D83: 2 | E83: 5 | F83: 71 | G83: 23 | H83: 6 | I83: 0 | J83: 5 | K83: 37 | L83: 64 | M83: 1 | N83: 0 | O83: 85 | P83: 0 | Q83: 3
A84: 6171 | B84: HENRY H. FILER MIDDLE | C84: 182 | D84: 0 | E84: 1 | F84: 101 | G84: 60 | H84: 18 | I84: 2 | J84: 2 | K84: 2 | L84: 178 | M84: 0 | N84: 0 | O84: 173 | P84: 40 | Q84: 4
A85: 6211 | B85: GLADES MIDDLE | C85: 138 | D85: 0 | E85: 1 | F85: 31 | G85: 70 | H85: 36 | I85: 0 | J85: 16 | K85: 1 | L85: 115 | M85: 6 | N85: 0 | O85: 76 | P85: 6 | Q85: 1
A86: 6221 | B86: HAMMOCKS MIDDLE | C86: 118 | D86: 0 | E86: 0 | F86: 28 | G86: 50 | H86: 35 | I86: 5 | J86: 22 | K86: 5 | L86: 86 | M86: 5 | N86: 0 | O86: 72 | P86: 1 | Q86: 1
A87: 6231 | B87: HIALEAH MIDDLE | C87: 57 | D87: 0 | E87: 0 | F87: 51 | G87: 5 | H87: 1 | I87: 0 | J87: 2 | K87: 2 | L87: 53 | M87: 0 | N87: 0 | O87: 53 | P87: 13 | Q87: 5
A88: 6241 | B88: HIGHLAND OAKS MIDDLE | C88: 269 | D88: 0 | E88: 12 | F88: 93 | G88: 111 | H88: 45 | I88: 8 | J88: 78 | K88: 102 | L88: 78 | M88: 10 | N88: 0 | O88: 172 | P88: 12 | Q88: 9
A89: 6251 | B89: HOMESTEAD MIDDLE | C89: 76 | D89: 0 | E89: 0 | F89: 48 | G89: 25 | H89: 1 | I89: 2 | J89: 3 | K89: 25 | L89: 48 | M89: 0 | N89: 0 | O89: 71 | P89: 4 | Q89: 5
A90: 6281 | B90: THOMAS JEFFERSON MIDDLE | C90: 43 | D90: 0 | E90: 0 | F90: 32 | G90: 10 | H90: 0 | I90: 1 | J90: 0 | K90: 42 | L90: 0 | M90: 0 | N90: 0 | O90: 41 | P90: 5 | Q90: 1
A91: 6301 | B91: JOHN F. KENNEDY MIDDLE | C91: 271 | D91: 1 | E91: 20 | F91: 110 | G91: 100 | H91: 39 | I91: 1 | J91: 14 | K91: 185 | L91: 60 | M91: 8 | N91: 2 | O91: 230 | P91: 2 | Q91: 1
A92: 6331 | B92: KINLOCH PARK MIDDLE | C92: 97 | D92: 0 | E92: 0 | F92: 23 | G92: 55 | H92: 18 | I92: 1 | J92: 2 | K92: 0 | L92: 95 | M92: 0 | N92: 0 | O92: 92 | P92: 6 | Q92: 3
A93: 6351 | B93: LAKE STEVENS MIDDLE | C93: 83 | D93: 0 | E93: 0 | F93: 43 | G93: 30 | H93: 8 | I93: 2 | J93: 2 | K93: 38 | L93: 43 | M93: 0 | N93: 0 | O93: 77 | P93: 3 | Q93: 1
A94: 6361 | B94: JOSE DE DIEGO MIDDLE SCHOOL | C94: 46 | D94: 0 | E94: 2 | F94: 34 | G94: 8 | H94: 1 | I94: 1 | J94: 1 | K94: 20 | L94: 25 | M94: 0 | N94: 0 | O94: 45 | P94: 6 | Q94: 2
A95: 6391 | B95: MADISON MIDDLE SCHOOL | C95: 51 | D95: 0 | E95: 1 | F95: 39 | G95: 8 | H95: 1 | I95: 2 | J95: 0 | K95: 30 | L95: 20 | M95: 0 | N95: 0 | O95: 50 | P95: 1 | Q95: 5
A96: 6411 | B96: HORACE MANN MIDDLE | C96: 31 | D96: 0 | E96: 0 | F96: 16 | G96: 12 | H96: 1 | I96: 2 | J96: 0 | K96: 28 | L96: 3 | M96: 0 | N96: 0 | O96: 30 | P96: 1 | Q96: 1
A97: 6421 | B97: JOSE MARTI MIDDLE | C97: 17 | D97: 0 | E97: 0 | F97: 8 | G97: 6 | H97: 3 | I97: 0 | J97: 3 | K97: 0 | L97: 13 | M97: 1 | N97: 0 | O97: 11 | P97: 2 | Q97: 1
A98: 6431 | B98: MAYS MIDDLE | C98: 43 | D98: 0 | E98: 0 | F98: 25 | G98: 14 | H98: 4 | I98: 0 | J98: 5 | K98: 15 | L98: 22 | M98: 1 | N98: 0 | O98: 40 | P98: 1 | Q98: 1
A99: 6441 | B99: HOWARD D. MCMILLAN MIDDLE | C99: 112 | D99: 0 | E99: 7 | F99: 43 | G99: 38 | H99: 23 | I99: 1 | J99: 7 | K99: 3 | L99: 97 | M99: 5 | N99: 0 | O99: 88 | P99: 9 | Q99: 0
A100: 6481 | B100: MIAMI EDISON MIDDLE | C100: 53 | D100: 0 | E100: 0 | F100: 38 | G100: 11 | H100: 3 | I100: 1 | J100: 3 | K100: 39 | L100: 9 | M100: 0 | N100: 0 | O100: 52 | P100: 10 | Q100: 2
A101: 6501 | B101: MIAMI LAKES MIDDLE | C101: 43 | D101: 1 | E101: 3 | F101: 7 | G101: 11 | H101: 20 | I101: 1 | J101: 2 | K101: 4 | L101: 35 | M101: 1 | N101: 0 | O101: 39 | P101: 0 | Q101: 0
A102: 6521 | B102: MIAMI SPRINGS MIDDLE | C102: 176 | D102: 0 | E102: 7 | F102: 63 | G102: 78 | H102: 26 | I102: 2 | J102: 8 | K102: 21 | L102: 142 | M102: 4 | N102: 0 | O102: 140 | P102: 14 | Q102: 2
A103: 6541 | B103: NAUTILUS MIDDLE | C103: 138 | D103: 0 | E103: 0 | F103: 22 | G103: 56 | H103: 56 | I103: 4 | J103: 55 | K103: 6 | L103: 75 | M103: 1 | N103: 0 | O103: 80 | P103: 2 | Q103: 1
A104: 6571 | B104: NORLAND MIDDLE | C104: 23 | D104: 0 | E104: 1 | F104: 4 | G104: 10 | H104: 7 | I104: 1 | J104: 0 | K104: 23 | L104: 0 | M104: 0 | N104: 0 | O104: 23 | P104: 0 | Q104: 0
A105: 6591 | B105: NORTH DADE MIDDLE | C105: 82 | D105: 1 | E105: 6 | F105: 42 | G105: 25 | H105: 6 | I105: 2 | J105: 0 | K105: 69 | L105: 13 | M105: 0 | N105: 0 | O105: 70 | P105: 5 | Q105: 1
A106: 6611 | B106: COUNTRY CLUB MIDDLE SCHOOL | C106: 86 | D106: 0 | E106: 0 | F106: 22 | G106: 45 | H106: 18 | I106: 1 | J106: 2 | K106: 23 | L106: 58 | M106: 2 | N106: 0 | O106: 70 | P106: 4 | Q106: 0
A107: 6631 | B107: NORTH MIAMI MIDDLE | C107: 121 | D107: 1 | E107: 13 | F107: 61 | G107: 34 | H107: 8 | I107: 4 | J107: 1 | K107: 106 | L107: 12 | M107: 0 | N107: 0 | O107: 117 | P107: 14 | Q107: 4
A108: 6681 | B108: PALM SPRINGS MIDDLE | C108: 183 | D108: 0 | E108: 1 | F108: 103 | G108: 67 | H108: 11 | I108: 1 | J108: 7 | K108: 0 | L108: 175 | M108: 1 | N108: 0 | O108: 167 | P108: 37 | Q108: 7
A109: 6701 | B109: PALMETTO MIDDLE | C109: 217 | D109: 0 | E109: 5 | F109: 37 | G109: 68 | H109: 92 | I109: 15 | J109: 97 | K109: 9 | L109: 92 | M109: 16 | N109: 0 | O109: 34 | P109: 2 | Q109: 7
A110: 6721 | B110: PARKWAY MIDDLE | C110: 33 | D110: 2 | E110: 10 | F110: 18 | G110: 2 | H110: 1 | I110: 0 | J110: 0 | K110: 31 | L110: 2 | M110: 0 | N110: 0 | O110: 33 | P110: 0 | Q110: 2
A111: 6741 | B111: PONCE DE LEON MIDDLE | C111: 237 | D111: 1 | E111: 9 | F111: 59 | G111: 98 | H111: 63 | I111: 7 | J111: 32 | K111: 20 | L111: 181 | M111: 4 | N111: 0 | O111: 176 | P111: 9 | Q111: 10
A112: 6751 | B112: HIALEAH GARDENS MIDDLE SCHOOL | C112: 373 | D112: 4 | E112: 22 | F112: 163 | G112: 131 | H112: 50 | I112: 3 | J112: 5 | K112: 2 | L112: 363 | M112: 3 | N112: 0 | O112: 312 | P112: 42 | Q112: 8
A113: 6761 | B113: REDLAND MIDDLE | C113: 41 | D113: 0 | E113: 5 | F113: 28 | G113: 6 | H113: 0 | I113: 2 | J113: 7 | K113: 13 | L113: 21 | M113: 0 | N113: 0 | O113: 40 | P113: 1 | Q113: 4
A114: 6771 | B114: JORGE MAS CANOSA MIDDLE | C114: 122 | D114: 0 | E114: 3 | F114: 12 | G114: 54 | H114: 52 | I114: 1 | J114: 11 | K114: 4 | L114: 102 | M114: 4 | N114: 0 | O114: 73 | P114: 3 | Q114: 2
A115: 6781 | B115: RICHMOND HEIGHTS MIDDLE | C115: 89 | D115: 1 | E115: 5 | F115: 44 | G115: 30 | H115: 8 | I115: 1 | J115: 9 | K115: 37 | L115: 39 | M115: 3 | N115: 0 | O115: 75 | P115: 2 | Q115: 3
A116: 6801 | B116: RIVIERA MIDDLE | C116: 169 | D116: 1 | E116: 7 | F116: 76 | G116: 62 | H116: 21 | I116: 2 | J116: 14 | K116: 2 | L116: 149 | M116: 3 | N116: 1 | O116: 135 | P116: 9 | Q116: 15
A117: 6821 | B117: ROCKWAY MIDDLE | C117: 174 | D117: 1 | E117: 9 | F117: 59 | G117: 62 | H117: 39 | I117: 4 | J117: 8 | K117: 2 | L117: 160 | M117: 4 | N117: 0 | O117: 131 | P117: 16 | Q117: 5
A118: 6841 | B118: SHENANDOAH MIDDLE | C118: 120 | D118: 0 | E118: 0 | F118: 85 | G118: 22 | H118: 12 | I118: 1 | J118: 2 | K118: 8 | L118: 110 | M118: 0 | N118: 0 | O118: 113 | P118: 8 | Q118: 2
A119: 6861 | B119: SOUTHWOOD MIDDLE | C119: 338 | D119: 0 | E119: 2 | F119: 141 | G119: 100 | H119: 82 | I119: 13 | J119: 114 | K119: 53 | L119: 155 | M119: 12 | N119: 0 | O119: 127 | P119: 2 | Q119: 15
A120: 6881 | B120: SOUTH MIAMI MIDDLE SCHOOL | C120: 113 | D120: 0 | E120: 0 | F120: 6 | G120: 44 | H120: 62 | I120: 1 | J120: 32 | K120: 4 | L120: 70 | M120: 5 | N120: 0 | O120: 39 | P120: 0 | Q120: 2
A121: 6901 | B121: W. R. THOMAS MIDDLE | C121: 247 | D121: 0 | E121: 2 | F121: 62 | G121: 79 | H121: 94 | I121: 10 | J121: 10 | K121: 2 | L121: 227 | M121: 8 | N121: 0 | O121: 183 | P121: 9 | Q121: 17
A122: 6921 | B122: LAMAR LOUISE CURRY MIDDLE SCH | C122: 171 | D122: 0 | E122: 0 | F122: 13 | G122: 63 | H122: 95 | I122: 0 | J122: 9 | K122: 3 | L122: 149 | M122: 10 | N122: 0 | O122: 103 | P122: 2 | Q122: 2
A123: 6961 | B123: WEST MIAMI MIDDLE | C123: 89 | D123: 0 | E123: 0 | F123: 53 | G123: 29 | H123: 7 | I123: 0 | J123: 3 | K123: 0 | L123: 86 | M123: 0 | N123: 0 | O123: 78 | P123: 11 | Q123: 5
A124: 6981 | B124: WESTVIEW MIDDLE | C124: 53 | D124: 0 | E124: 0 | F124: 39 | G124: 11 | H124: 3 | I124: 0 | J124: 0 | K124: 41 | L124: 12 | M124: 0 | N124: 0 | O124: 51 | P124: 8 | Q124: 5
A125: 7001 | B125: MIAMI-DADE ONLINE ACADEMY | C125: 38 | D125: 10 | E125: 8 | F125: 6 | G125: 5 | H125: 4 | I125: 5 | J125: 5 | K125: 7 | L125: 25 | M125: 1 | N125: 0 | O125: 24 | P125: 0 | Q125: 0
A126: 7007 | B126: INTL. STUDIES CHARTER SENIOR | C126: 59 | D126: 8 | E126: 11 | F126: 17 | G126: 5 | H126: 0 | I126: 18 | J126: 4 | K126: 1 | L126: 54 | M126: 0 | N126: 0 | O126: 48 | P126: 17 | Q126: 2
A127: 7009 | B127: DORAL PERFORMING ARTS ACADEMY | C127: 47 | D127: 0 | E127: 7 | F127: 28 | G127: 5 | H127: 3 | I127: 4 | J127: 1 | K127: 0 | L127: 46 | M127: 0 | N127: 0 | O127: 25 | P127: 1 | Q127: 2
A128: 7011 | B128: AMERICAN SENIOR | C128: 466 | D128: 123 | E128: 111 | F128: 130 | G128: 28 | H128: 8 | I128: 66 | J128: 14 | K128: 123 | L128: 324 | M128: 5 | N128: 0 | O128: 407 | P128: 71 | Q128: 59
A129: 7014 | B129: MATER PERFORMING ARTS ACADEMY | C129: 39 | D129: 0 | E129: 2 | F129: 23 | G129: 8 | H129: 5 | I129: 1 | J129: 4 | K129: 3 | L129: 32 | M129: 0 | N129: 0 | O129: 33 | P129: 0 | Q129: 0
A130: 7015 | B130: STELLAR LEADERSHIP ACADEMY | C130: 85 | D130: 4 | E130: 0 | F130: 0 | G130: 0 | H130: 0 | I130: 81 | J130: 0 | K130: 67 | L130: 18 | M130: 0 | N130: 0 | O130: 67 | P130: 1 | Q130: 28
A131: 7016 | B131: SPORTS LEADERSHIP OF MIAMI CHS | C131: 11 | D131: 2 | E131: 3 | F131: 6 | G131: 0 | H131: 0 | I131: 0 | J131: 1 | K131: 0 | L131: 10 | M131: 0 | N131: 0 | O131: 11 | P131: 1 | Q131: 0
A132: 7018 | B132: MATER ACADEMY LAKES HIGH SCH | C132: 170 | D132: 32 | E132: 50 | F132: 60 | G132: 7 | H132: 4 | I132: 17 | J132: 8 | K132: 7 | L132: 154 | M132: 1 | N132: 0 | O132: 135 | P132: 14 | Q132: 6
A133: 7020 | B133: DORAL ACADEMY HIGH SCHOOL | C133: 256 | D133: 22 | E133: 71 | F133: 110 | G133: 33 | H133: 6 | I133: 14 | J133: 13 | K133: 3 | L133: 240 | M133: 0 | N133: 0 | O133: 160 | P133: 21 | Q133: 8
A134: 7022 | B134: ACADEMY OF ARTS AND MINDS | C134: 82 | D134: 12 | E134: 13 | F134: 19 | G134: 3 | H134: 2 | I134: 33 | J134: 14 | K134: 5 | L134: 61 | M134: 0 | N134: 0 | O134: 45 | P134: 7 | Q134: 4
A135: 7024 | B135: MATER ACADEMY HIGH-INTL STUDIE | C135: 24 | D135: 2 | E135: 6 | F135: 11 | G135: 4 | H135: 0 | I135: 1 | J135: 0 | K135: 3 | L135: 21 | M135: 0 | N135: 0 | O135: 15 | P135: 1 | Q135: 0
A136: 7025 | B136: MATER ACAD HIGH (MIAMI BEACH) | C136: 14 | D136: 1 | E136: 1 | F136: 7 | G136: 4 | H136: 1 | I136: 0 | J136: 1 | K136: 0 | L136: 11 | M136: 2 | N136: 0 | O136: 8 | P136: 3 | Q136: 1
A137: 7029 | B137: TERRA ENVIRONMENTAL RESEARCH | C137: 158 | D137: 5 | E137: 14 | F137: 66 | G137: 29 | H137: 7 | I137: 37 | J137: 21 | K137: 4 | L137: 133 | M137: 0 | N137: 0 | O137: 84 | P137: 2 | Q137: 10
A138: 7030 | B138: INTEGRATED ACADEMICS (SIATECH) | C138: 39 | D138: 0 | E138: 0 | F138: 0 | G138: 0 | H138: 0 | I138: 39 | J138: 2 | K138: 29 | L138: 7 | M138: 0 | N138: 0 | O138: 15 | P138: 3 | Q138: 6
A139: 7032 | B139: PALM GLADES PREP HIGH SCHOOL | C139: 89 | D139: 23 | E139: 17 | F139: 22 | G139: 10 | H139: 1 | I139: 16 | J139: 6 | K139: 16 | L139: 64 | M139: 2 | N139: 0 | O139: 68 | P139: 0 | Q139: 6
A140: 7033 | B140: LAW ENFORCEMENT OFFICERS HS | C140: 33 | D140: 6 | E140: 7 | F140: 12 | G140: 3 | H140: 1 | I140: 4 | J140: 1 | K140: 5 | L140: 27 | M140: 0 | N140: 0 | O140: 28 | P140: 0 | Q140: 3
A141: 7034 | B141: SOMERSET ACAD HIGH SOUTH-HMSTD | C141: 13 | D141: 3 | E141: 5 | F141: 3 | G141: 0 | H141: 0 | I141: 2 | J141: 2 | K141: 1 | L141: 9 | M141: 0 | N141: 0 | O141: 8 | P141: 0 | Q141: 1
A142: 7036 | B142: LAWRENCE ACADEMY SENIOR | C142: 30 | D142: 5 | E142: 6 | F142: 11 | G142: 4 | H142: 0 | I142: 4 | J142: 0 | K142: 10 | L142: 20 | M142: 0 | N142: 0 | O142: 29 | P142: 2 | Q142: 3
A143: 7037 | B143: MATER ACADEMY EAST HIGH SCHOOL | C143: 56 | D143: 15 | E143: 12 | F143: 25 | G143: 2 | H143: 1 | I143: 1 | J143: 0 | K143: 5 | L143: 51 | M143: 0 | N143: 0 | O143: 53 | P143: 13 | Q143: 2
A144: 7042 | B144: SOMERSET ACADEMY CHARTER HIGH | C144: 84 | D144: 17 | E144: 19 | F144: 27 | G144: 16 | H144: 3 | I144: 2 | J144: 8 | K144: 8 | L144: 66 | M144: 2 | N144: 0 | O144: 64 | P144: 10 | Q144: 3
A145: 7048 | B145: ALONZO & TRACY MOURNING SH | C145: 389 | D145: 74 | E145: 76 | F145: 109 | G145: 55 | H145: 30 | I145: 45 | J145: 100 | K145: 80 | L145: 203 | M145: 5 | N145: 0 | O145: 271 | P145: 57 | Q145: 31
A146: 7049 | B146: WESTLAND HIALEAH SENIOR HIGH | C146: 490 | D146: 147 | E146: 121 | F146: 144 | G146: 36 | H146: 9 | I146: 33 | J146: 10 | K146: 5 | L146: 474 | M146: 0 | N146: 0 | O146: 466 | P146: 211 | Q146: 43
A147: 7050 | B147: KEYS GATE CHARTER HIGH SCHL | C147: 226 | D147: 53 | E147: 73 | F147: 62 | G147: 8 | H147: 0 | I147: 30 | J147: 35 | K147: 38 | L147: 151 | M147: 1 | N147: 0 | O147: 158 | P147: 27 | Q147: 22
A148: 7051 | B148: G. HOLMES BRADDOCK SENIOR HIGH | C148: 679 | D148: 170 | E148: 197 | F148: 193 | G148: 51 | H148: 11 | I148: 57 | J148: 29 | K148: 10 | L148: 637 | M148: 2 | N148: 0 | O148: 588 | P148: 133 | Q148: 105
A149: 7053 | B149: PINECREST ACADEMY CHARTER HIGH | C149: 97 | D149: 27 | E149: 34 | F149: 31 | G149: 3 | H149: 0 | I149: 2 | J149: 6 | K149: 0 | L149: 90 | M149: 1 | N149: 0 | O149: 59 | P149: 4 | Q149: 6
A150: 7054 | B150: EXCELSIOR CHARTER HIGH SCHOOL | C150: 50 | D150: 15 | E150: 10 | F150: 14 | G150: 7 | H150: 0 | I150: 4 | J150: 1 | K150: 0 | L150: 49 | M150: 0 | N150: 0 | O150: 43 | P150: 23 | Q150: 3
A151: 7055 | B151: YOUNG WOMEN'S PREPARATORY ACAD | C151: 78 | D151: 1 | E151: 12 | F151: 22 | G151: 25 | H151: 17 | I151: 1 | J151: 10 | K151: 18 | L151: 50 | M151: 0 | N151: 0 | O151: 54 | P151: 2 | Q151: 1
A152: 7056 | B152: YOUNG MENS PREPARATORY ACADEMY | C152: 23 | D152: 3 | E152: 11 | F152: 5 | G152: 1 | H152: 1 | I152: 2 | J152: 1 | K152: 20 | L152: 2 | M152: 0 | N152: 0 | O152: 16 | P152: 0 | Q152: 1
A153: 7058 | B153: MIAMI COMMUNITY CH HIGH SCHOOL | C153: 34 | D153: 13 | E153: 3 | F153: 6 | G153: 0 | H153: 1 | I153: 11 | J153: 5 | K153: 5 | L153: 24 | M153: 0 | N153: 0 | O153: 29 | P153: 11 | Q153: 5
A154: 7059 | B154: MIAMI ARTS CHARTER | C154: 119 | D154: 19 | E154: 19 | F154: 37 | G154: 19 | H154: 9 | I154: 16 | J154: 31 | K154: 27 | L154: 59 | M154: 0 | N154: 0 | O154: 35 | P154: 0 | Q154: 4
A155: 7060 | B155: EVERGLADES PREP ACADEMY HIGH | C155: 115 | D155: 23 | E155: 35 | F155: 28 | G155: 11 | H155: 0 | I155: 18 | J155: 15 | K155: 12 | L155: 86 | M155: 0 | N155: 1 | O155: 90 | P155: 1 | Q155: 19
A156: 7065 | B156: MAVERICKS HIGH OF SOUTH M-DADE | C156: 48 | D156: 2 | E156: 2 | F156: 2 | G156: 0 | H156: 0 | I156: 42 | J156: 5 | K156: 21 | L156: 22 | M156: 0 | N156: 0 | O156: 43 | P156: 0 | Q156: 14
A157: 7066 | B157: LBA CONSTR & BUS MGMT ACAD | C157: 39 | D157: 13 | E157: 9 | F157: 9 | G157: 2 | H157: 0 | I157: 6 | J157: 1 | K157: 3 | L157: 35 | M157: 0 | N157: 0 | O157: 38 | P157: 11 | Q157: 3
A158: 7067 | B158: GREEN SPRINGS HIGH SCHOOL | C158: 90 | D158: 5 | E158: 1 | F158: 2 | G158: 0 | H158: 0 | I158: 82 | J158: 1 | K158: 12 | L158: 77 | M158: 0 | N158: 0 | O158: 67 | P158: 11 | Q158: 11
A159: 7068 | B159: NORTH GARDENS HIGH SCHOOL | C159: 71 | D159: 0 | E159: 0 | F159: 0 | G159: 0 | H159: 0 | I159: 71 | J159: 0 | K159: 53 | L159: 18 | M159: 0 | N159: 0 | O159: 49 | P159: 0 | Q159: 7
A160: 7069 | B160: NORTH PARK HIGH SCHOOL | C160: 87 | D160: 1 | E160: 4 | F160: 0 | G160: 0 | H160: 0 | I160: 82 | J160: 4 | K160: 59 | L160: 24 | M160: 0 | N160: 0 | O160: 69 | P160: 8 | Q160: 12
A161: 7070 | B161: YOUTH CO-OP PREP HIGH SCHOOL | C161: 61 | D161: 12 | E161: 19 | F161: 15 | G161: 6 | H161: 0 | I161: 9 | J161: 2 | K161: 2 | L161: 57 | M161: 0 | N161: 0 | O161: 51 | P161: 16 | Q161: 4
A162: 7071 | B162: CORAL GABLES SENIOR HIGH | C162: 633 | D162: 150 | E162: 137 | F162: 143 | G162: 39 | H162: 3 | I162: 161 | J162: 43 | K162: 55 | L162: 533 | M162: 2 | N162: 0 | O162: 539 | P162: 161 | Q162: 86
A163: 7080 | B163: CHARTER HS OF THE AMERICAS | C163: 23 | D163: 9 | E163: 2 | F163: 8 | G163: 1 | H163: 3 | I163: 0 | J163: 0 | K163: 0 | L163: 23 | M163: 0 | N163: 0 | O163: 18 | P163: 21 | Q163: 0
A164: 7081 | B164: DESIGN & ARCHITECTURE SENIOR | C164: 55 | D164: 1 | E164: 3 | F164: 24 | G164: 19 | H164: 2 | I164: 6 | J164: 12 | K164: 6 | L164: 35 | M164: 2 | N164: 0 | O164: 26 | P164: 4 | Q164: 3
A165: 7101 | B165: CORAL REEF SENIOR HIGH | C165: 345 | D165: 42 | E165: 61 | F165: 140 | G165: 72 | H165: 13 | I165: 17 | J165: 67 | K165: 63 | L165: 211 | M165: 3 | N165: 0 | O165: 180 | P165: 7 | Q165: 31
A166: 7111 | B166: HIALEAH SENIOR | C166: 600 | D166: 187 | E166: 151 | F166: 138 | G166: 21 | H166: 3 | I166: 100 | J166: 6 | K166: 21 | L166: 573 | M166: 0 | N166: 0 | O166: 567 | P166: 167 | Q166: 98
A167: 7121 | B167: JOHN A FERGUSON SENIOR HIGH | C167: 739 | D167: 149 | E167: 178 | F167: 230 | G167: 75 | H167: 10 | I167: 97 | J167: 45 | K167: 13 | L167: 670 | M167: 8 | N167: 3 | O167: 557 | P167: 94 | Q167: 102
A168: 7131 | B168: HIALEAH-MIAMI LAKES SENIOR | C168: 379 | D168: 131 | E168: 89 | F168: 92 | G168: 21 | H168: 2 | I168: 44 | J168: 15 | K168: 96 | L168: 264 | M168: 1 | N168: 2 | O168: 349 | P168: 80 | Q168: 59
A169: 7141 | B169: DR MICHAEL M KROP SENIOR HIGH | C169: 519 | D169: 92 | E169: 104 | F169: 157 | G169: 43 | H169: 6 | I169: 117 | J169: 97 | K169: 251 | L169: 161 | M169: 6 | N169: 1 | O169: 380 | P169: 46 | Q169: 41
A170: 7151 | B170: HOMESTEAD SENIOR HIGH | C170: 394 | D170: 139 | E170: 100 | F170: 89 | G170: 8 | H170: 2 | I170: 56 | J170: 12 | K170: 190 | L170: 189 | M170: 0 | N170: 1 | O170: 376 | P170: 32 | Q170: 82
A171: 7160 | B171: MATER ACADEMY CHARTER HIGH | C171: 282 | D171: 31 | E171: 49 | F171: 133 | G171: 47 | H171: 6 | I171: 16 | J171: 6 | K171: 10 | L171: 266 | M171: 0 | N171: 0 | O171: 243 | P171: 32 | Q171: 21
A172: 7161 | B172: MAST @ VIRGINIA KEY | C172: 79 | D172: 4 | E172: 12 | F172: 18 | G172: 26 | H172: 11 | I172: 8 | J172: 17 | K172: 10 | L172: 52 | M172: 0 | N172: 0 | O172: 26 | P172: 7 | Q172: 1
A173: 7191 | B173: HIALEAH GARDENS SENIOR | C173: 634 | D173: 165 | E173: 174 | F173: 212 | G173: 36 | H173: 3 | I173: 44 | J173: 9 | K173: 6 | L173: 618 | M173: 1 | N173: 0 | O173: 583 | P173: 159 | Q173: 59
A174: 7201 | B174: MIAMI BEACH SENIOR HIGH | C174: 451 | D174: 102 | E174: 105 | F174: 140 | G174: 31 | H174: 5 | I174: 68 | J174: 71 | K174: 43 | L174: 333 | M174: 4 | N174: 0 | O174: 384 | P174: 78 | Q174: 60
A175: 7231 | B175: MIAMI CAROL CITY SENIOR HIGH | C175: 387 | D175: 148 | E175: 98 | F175: 78 | G175: 15 | H175: 3 | I175: 45 | J175: 6 | K175: 330 | L175: 49 | M175: 0 | N175: 1 | O175: 353 | P175: 9 | Q175: 51
A176: 7241 | B176: RONALD W REAGAN/DORAL SENIOR | C176: 343 | D176: 54 | E176: 77 | F176: 119 | G176: 48 | H176: 10 | I176: 35 | J176: 28 | K176: 7 | L176: 303 | M176: 3 | N176: 0 | O176: 182 | P176: 104 | Q176: 20
A177: 7251 | B177: MIAMI CENTRAL SENIOR HIGH | C177: 480 | D177: 188 | E177: 127 | F177: 109 | G177: 16 | H177: 0 | I177: 40 | J177: 4 | K177: 372 | L177: 102 | M177: 1 | N177: 0 | O177: 448 | P177: 40 | Q177: 72
A178: 7262 | B178: CITY OF HIALEAH EDUCATION ACAD | C178: 83 | D178: 15 | E178: 21 | F178: 20 | G178: 9 | H178: 1 | I178: 17 | J178: 2 | K178: 3 | L178: 77 | M178: 1 | N178: 0 | O178: 71 | P178: 16 | Q178: 11
A179: 7271 | B179: MIAMI CORAL PARK SENIOR HIGH | C179: 550 | D179: 144 | E179: 124 | F179: 164 | G179: 45 | H179: 13 | I179: 60 | J179: 12 | K179: 2 | L179: 535 | M179: 1 | N179: 0 | O179: 481 | P179: 166 | Q179: 76
A180: 7291 | B180: JOSE MARTI MAST 6-12 ACADEMY | C180: 63 | D180: 1 | E180: 1 | F180: 27 | G180: 14 | H180: 16 | I180: 4 | J180: 3 | K180: 4 | L180: 55 | M180: 1 | N180: 0 | O180: 51 | P180: 8 | Q180: 0
A181: 7301 | B181: MIAMI EDISON SENIOR HIGH | C181: 199 | D181: 82 | E181: 49 | F181: 35 | G181: 6 | H181: 0 | I181: 27 | J181: 1 | K181: 172 | L181: 25 | M181: 1 | N181: 0 | O181: 191 | P181: 70 | Q181: 25
A182: 7341 | B182: MIAMI JACKSON SENIOR HIGH | C182: 391 | D182: 158 | E182: 98 | F182: 63 | G182: 14 | H182: 0 | I182: 58 | J182: 4 | K182: 145 | L182: 240 | M182: 2 | N182: 0 | O182: 376 | P182: 68 | Q182: 60
A183: 7351 | B183: ARTHUR AND POLLY MAYS CONSERVA | C183: 95 | D183: 20 | E183: 27 | F183: 33 | G183: 10 | H183: 3 | I183: 2 | J183: 4 | K183: 38 | L183: 51 | M183: 1 | N183: 1 | O183: 89 | P183: 6 | Q183: 12
A184: 7361 | B184: MIAMI KILLIAN SENIOR HIGH | C184: 447 | D184: 120 | E184: 115 | F184: 128 | G184: 36 | H184: 9 | I184: 39 | J184: 56 | K184: 96 | L184: 288 | M184: 4 | N184: 1 | O184: 318 | P184: 59 | Q184: 86
A185: 7371 | B185: ROBERT MORGAN EDUCATIONAL CTR | C185: 406 | D185: 55 | E185: 116 | F185: 167 | G185: 47 | H185: 9 | I185: 12 | J185: 34 | K185: 84 | L185: 283 | M185: 2 | N185: 2 | O185: 324 | P185: 34 | Q185: 43
A186: 7381 | B186: MIAMI NORLAND SENIOR HIGH | C186: 440 | D186: 133 | E186: 137 | F186: 116 | G186: 13 | H186: 1 | I186: 40 | J186: 1 | K186: 415 | L186: 21 | M186: 3 | N186: 0 | O186: 392 | P186: 21 | Q186: 46
A187: 7391 | B187: MIAMI LAKES EDUCATIONAL CENTER | C187: 291 | D187: 36 | E187: 62 | F187: 106 | G187: 42 | H187: 12 | I187: 33 | J187: 10 | K187: 89 | L187: 186 | M187: 4 | N187: 0 | O187: 232 | P187: 24 | Q187: 43
A188: 7411 | B188: MIAMI NORTHWESTERN SENIOR HIGH | C188: 371 | D188: 150 | E188: 115 | F188: 65 | G188: 13 | H188: 0 | I188: 28 | J188: 0 | K188: 342 | L188: 27 | M188: 1 | N188: 0 | O188: 345 | P188: 17 | Q188: 61
A189: 7431 | B189: MIAMI PALMETTO SENIOR HIGH | C189: 449 | D189: 69 | E189: 99 | F189: 155 | G189: 60 | H189: 14 | I189: 52 | J189: 125 | K189: 118 | L189: 197 | M189: 4 | N189: 1 | O189: 243 | P189: 39 | Q189: 60
A190: 7461 | B190: MIAMI SENIOR HIGH | C190: 641 | D190: 255 | E190: 164 | F190: 112 | G190: 21 | H190: 6 | I190: 83 | J190: 9 | K190: 24 | L190: 606 | M190: 2 | N190: 0 | O190: 618 | P190: 177 | Q190: 84
A191: 7511 | B191: MIAMI SPRINGS SENIOR HIGH | C191: 374 | D191: 107 | E191: 81 | F191: 113 | G191: 18 | H191: 0 | I191: 55 | J191: 19 | K191: 52 | L191: 300 | M191: 3 | N191: 0 | O191: 329 | P191: 95 | Q191: 25
A192: 7531 | B192: MIAMI SUNSET SENIOR HIGH | C192: 360 | D192: 76 | E192: 98 | F192: 118 | G192: 30 | H192: 2 | I192: 36 | J192: 35 | K192: 23 | L192: 298 | M192: 4 | N192: 0 | O192: 287 | P192: 49 | Q192: 73
A193: 7541 | B193: NORTH MIAMI BEACH SENIOR HIGH | C193: 384 | D193: 124 | E193: 121 | F193: 83 | G193: 10 | H193: 1 | I193: 45 | J193: 12 | K193: 289 | L193: 76 | M193: 6 | N193: 0 | O193: 357 | P193: 74 | Q193: 53
A194: 7571 | B194: INTL STUDIES PREP ACADEMY | C194: 37 | D194: 1 | E194: 7 | F194: 15 | G194: 5 | H194: 0 | I194: 9 | J194: 5 | K194: 1 | L194: 30 | M194: 0 | N194: 0 | O194: 24 | P194: 10 | Q194: 1
A195: 7591 | B195: NORTH MIAMI SENIOR HIGH | C195: 585 | D195: 197 | E195: 150 | F195: 117 | G195: 29 | H195: 0 | I195: 92 | J195: 3 | K195: 517 | L195: 60 | M195: 3 | N195: 2 | O195: 538 | P195: 158 | Q195: 49
A196: 7601 | B196: WILLIAM H. TURNER TECHNICAL | C196: 256 | D196: 27 | E196: 67 | F196: 113 | G196: 19 | H196: 4 | I196: 26 | J196: 0 | K196: 211 | L196: 41 | M196: 1 | N196: 2 | O196: 234 | P196: 30 | Q196: 11
A197: 7631 | B197: MIAMI MACARTHUR SOUTH | C197: 23 | D197: 12 | E197: 4 | F197: 0 | G197: 0 | H197: 0 | I197: 7 | J197: 0 | K197: 8 | L197: 15 | M197: 0 | N197: 0 | O197: 22 | P197: 1 | Q197: 8
A198: 7701 | B198: SOUTH DADE SENIOR HIGH | C198: 617 | D198: 187 | E198: 170 | F198: 147 | G198: 28 | H198: 1 | I198: 84 | J198: 54 | K198: 150 | L198: 410 | M198: 3 | N198: 0 | O198: 556 | P198: 72 | Q198: 129
A199: 7721 | B199: SOUTH MIAMI SENIOR HIGH | C199: 531 | D199: 168 | E199: 137 | F199: 138 | G199: 44 | H199: 4 | I199: 40 | J199: 25 | K199: 27 | L199: 479 | M199: 0 | N199: 0 | O199: 467 | P199: 155 | Q199: 82
A200: 7731 | B200: MIAMI SOUTHRIDGE SENIOR HIGH | C200: 472 | D200: 169 | E200: 121 | F200: 85 | G200: 23 | H200: 1 | I200: 73 | J200: 27 | K200: 225 | L200: 214 | M200: 6 | N200: 0 | O200: 425 | P200: 63 | Q200: 105
... 16 more rows

Sheet Geo Enrollment (hidden)
A1: 1 | B1: 2 | C1: 3 | D1: 4 | E1: 5 | F1: 6 | G1: 7 | H1: 8 | I1: 9 | J1: 10 | K1: 11 | L1: 12 | M1: 13 | N1: 14 | O1: 15 | P1: 16 | Q1: 17
A2: School | B2: SchName | C2: Total | D2: ML1 | E2: ML2 | F2: ML3 | G2: ML4 | H2: ML5 | I2: ML0 | J2: W | K2: B | L2: H | M2: A | N2: I | O2: ED | P2: ELL | Q2: SWD
A3: 0071 | B3: EUGENIA B. THOMAS K-8 CENTER | C3: 23 | D3: 0 | E3: 0 | F3: 1 | G3: 11 | H3: 11 | I3: 0 | J3: 2 | K3: 0 | L3: 21 | M3: 0 | N3: 0 | O3: 8 | P3: 0 | Q3: 0
A4: 0073 | B4: MANDARIN LAKES K-8 CENTER | C4: 1 | D4: 0 | E4: 0 | F4: 0 | G4: 1 | H4: 0 | I4: 0 | J4: 0 | K4: 1 | L4: 0 | M4: 0 | N4: 0 | O4: 1 | P4: 0 | Q4: 0
A5: 0092 | B5: NORMAN S. EDELCUP/SUNNY ISLES | C5: 11 | D5: 0 | E5: 0 | F5: 0 | G5: 0 | H5: 11 | I5: 0 | J5: 6 | K5: 0 | L5: 3 | M5: 2 | N5: 0 | O5: 3 | P5: 0 | Q5: 0
A6: 0122 | B6: DR ROLANDO ESPINOSA K-8 | C6: 12 | D6: 0 | E6: 0 | F6: 0 | G6: 3 | H6: 8 | I6: 1 | J6: 2 | K6: 0 | L6: 10 | M6: 0 | N6: 0 | O6: 2 | P6: 0 | Q6: 0
A7: 0231 | B7: AVENTURA WATERWAYS K-8 CENTER | C7: 20 | D7: 0 | E7: 0 | F7: 1 | G7: 3 | H7: 16 | I7: 0 | J7: 8 | K7: 2 | L7: 7 | M7: 3 | N7: 0 | O7: 4 | P7: 2 | Q7: 0
A8: 0241 | B8: RUTH K BROAD/BAY HARBOR K-8 | C8: 7 | D8: 0 | E8: 0 | F8: 0 | G8: 4 | H8: 3 | I8: 0 | J8: 3 | K8: 0 | L8: 4 | M8: 0 | N8: 0 | O8: 2 | P8: 0 | Q8: 0
A9: 0332 | B9: SOMERSET ACADEMY(SILVER PALMS) | C9: 2 | D9: 0 | E9: 0 | F9: 0 | G9: 1 | H9: 0 | I9: 1 | J9: 1 | K9: 0 | L9: 1 | M9: 0 | N9: 0 | O9: 1 | P9: 0 | Q9: 0
A10: 0950 | B10: AVENTURA CITY OF EXCELLENCE | C10: 18 | D10: 0 | E10: 0 | F10: 0 | G10: 2 | H10: 15 | I10: 1 | J10: 9 | K10: 0 | L10: 8 | M10: 1 | N10: 0 | O10: 1 | P10: 0 | Q10: 0
A11: 0961 | B11: CORAL GABLES PREPARATORY ACAD | C11: 13 | D11: 0 | E11: 1 | F11: 1 | G11: 7 | H11: 4 | I11: 0 | J11: 1 | K11: 0 | L11: 11 | M11: 1 | N11: 0 | O11: 7 | P11: 0 | Q11: 1
A12: 1020 | B12: YOUTH CO-OP CHARTER SCHOOL | C12: 20 | D12: 0 | E12: 1 | F12: 7 | G12: 9 | H12: 3 | I12: 0 | J12: 1 | K12: 1 | L12: 18 | M12: 0 | N12: 0 | O12: 13 | P12: 0 | Q12: 0
A13: 1331 | B13: DEVON AIRE K-8 CENTER | C13: 15 | D13: 0 | E13: 0 | F13: 1 | G13: 1 | H13: 13 | I13: 0 | J13: 3 | K13: 0 | L13: 11 | M13: 1 | N13: 0 | O13: 6 | P13: 0 | Q13: 0
A14: 1721 | B14: EVERGLADES K-8 CENTER | C14: 35 | D14: 0 | E14: 0 | F14: 6 | G14: 14 | H14: 15 | I14: 0 | J14: 1 | K14: 0 | L14: 33 | M14: 1 | N14: 0 | O14: 19 | P14: 0 | Q14: 1
A15: 2741 | B15: KEY BISCAYNE K-8 CENTER | C15: 4 | D15: 0 | E15: 0 | F15: 1 | G15: 1 | H15: 2 | I15: 0 | J15: 1 | K15: 0 | L15: 3 | M15: 0 | N15: 0 | O15: 1 | P15: 0 | Q15: 0
A16: 3029 | B16: DORAL ACADEMY OF TECHNOLOGY | C16: 38 | D16: 0 | E16: 0 | F16: 3 | G16: 17 | H16: 18 | I16: 0 | J16: 4 | K16: 0 | L16: 31 | M16: 3 | N16: 0 | O16: 11 | P16: 0 | Q16: 0
A17: 3101 | B17: FRANK C. MARTIN K-8 CENTER | C17: 40 | D17: 0 | E17: 0 | F17: 7 | G17: 19 | H17: 14 | I17: 0 | J17: 8 | K17: 14 | L17: 13 | M17: 4 | N17: 1 | O17: 12 | P17: 0 | Q17: 1
A18: 3191 | B18: ADA MERRITT K-8 CENTER | C18: 20 | D18: 0 | E18: 0 | F18: 0 | G18: 8 | H18: 12 | I18: 0 | J18: 9 | K18: 1 | L18: 9 | M18: 0 | N18: 0 | O18: 6 | P18: 0 | Q18: 0
A19: 3281 | B19: MIAMI LAKES K-8 CENTER | C19: 34 | D19: 0 | E19: 0 | F19: 0 | G19: 17 | H19: 17 | I19: 0 | J19: 2 | K19: 0 | L19: 31 | M19: 1 | N19: 0 | O19: 12 | P19: 0 | Q19: 0
A20: 3421 | B20: M.A. MILAM K-8 CENTER | C20: 12 | D20: 0 | E20: 0 | F20: 0 | G20: 4 | H20: 8 | I20: 0 | J20: 0 | K20: 0 | L20: 12 | M20: 0 | N20: 0 | O20: 9 | P20: 0 | Q20: 0
A21: 5003 | B21: SOUTH DADE MIDDLE SCHOOL | C21: 9 | D21: 0 | E21: 0 | F21: 2 | G21: 4 | H21: 3 | I21: 0 | J21: 2 | K21: 0 | L21: 7 | M21: 0 | N21: 0 | O21: 8 | P21: 0 | Q21: 0
A22: 5005 | B22: DAVID LAWRENCE JR K-8 CENTER | C22: 14 | D22: 0 | E22: 0 | F22: 0 | G22: 0 | H22: 14 | I22: 0 | J22: 6 | K22: 2 | L22: 5 | M22: 1 | N22: 0 | O22: 5 | P22: 0 | Q22: 0
A23: 5006 | B23: EVERGLADES PREPARATORY ACADEMY | C23: 17 | D23: 1 | E23: 3 | F23: 5 | G23: 5 | H23: 3 | I23: 0 | J23: 1 | K23: 0 | L23: 16 | M23: 0 | N23: 0 | O23: 14 | P23: 1 | Q23: 1
A24: 5961 | B24: WINSTON PARK K-8 CENTER | C24: 12 | D24: 0 | E24: 0 | F24: 2 | G24: 7 | H24: 3 | I24: 0 | J24: 0 | K24: 0 | L24: 12 | M24: 0 | N24: 0 | O24: 6 | P24: 0 | Q24: 1
A25: 6001 | B25: HERBERT A. AMMONS MIDDLE | C25: 97 | D25: 0 | E25: 0 | F25: 8 | G25: 41 | H25: 46 | I25: 2 | J25: 19 | K25: 12 | L25: 55 | M25: 8 | N25: 0 | O25: 40 | P25: 1 | Q25: 0
A26: 6006 | B26: ARCHIMEDEAN CONSERVATORY | C26: 79 | D26: 1 | E26: 5 | F26: 18 | G26: 19 | H26: 34 | I26: 2 | J26: 15 | K26: 1 | L26: 62 | M26: 1 | N26: 0 | O26: 41 | P26: 0 | Q26: 3
A27: 6010 | B27: FLORIDA INTERNATIONAL ACADEMY | C27: 16 | D27: 0 | E27: 0 | F27: 3 | G27: 11 | H27: 2 | I27: 0 | J27: 0 | K27: 15 | L27: 1 | M27: 0 | N27: 0 | O27: 16 | P27: 0 | Q27: 0
A28: 6012 | B28: MATER ACADEMY CHARTER MIDDLE | C28: 47 | D28: 0 | E28: 0 | F28: 0 | G28: 10 | H28: 37 | I28: 0 | J28: 1 | K28: 0 | L28: 45 | M28: 1 | N28: 0 | O28: 36 | P28: 0 | Q28: 1
A29: 6021 | B29: ARVIDA MIDDLE SCHOOL | C29: 41 | D29: 0 | E29: 0 | F29: 0 | G29: 11 | H29: 29 | I29: 1 | J29: 10 | K29: 2 | L29: 25 | M29: 4 | N29: 0 | O29: 18 | P29: 0 | Q29: 0
A30: 6022 | B30: PINECREST ACADEMY CHARTER MIDD | C30: 21 | D30: 0 | E30: 0 | F30: 2 | G30: 11 | H30: 8 | I30: 0 | J30: 2 | K30: 0 | L30: 19 | M30: 0 | N30: 0 | O30: 11 | P30: 0 | Q30: 0
A31: 6030 | B31: DORAL ACADEMY CHARTER MIDDLE | C31: 29 | D31: 0 | E31: 0 | F31: 5 | G31: 13 | H31: 11 | I31: 0 | J31: 3 | K31: 0 | L31: 26 | M31: 0 | N31: 0 | O31: 17 | P31: 0 | Q31: 0
A32: 6033 | B32: MATER ACADEMY LAKES MIDDLE | C32: 8 | D32: 0 | E32: 1 | F32: 2 | G32: 2 | H32: 3 | I32: 0 | J32: 0 | K32: 0 | L32: 8 | M32: 0 | N32: 0 | O32: 6 | P32: 0 | Q32: 0
A33: 6040 | B33: DOCTORS CHARTER/MIAMI SHORES | C33: 74 | D33: 0 | E33: 0 | F33: 5 | G33: 6 | H33: 3 | I33: 60 | J33: 14 | K33: 39 | L33: 18 | M33: 3 | N33: 0 | O33: 22 | P33: 1 | Q33: 3
A34: 6045 | B34: INTL. STUDIES CHARTER MIDDLE | C34: 1 | D34: 0 | E34: 0 | F34: 0 | G34: 0 | H34: 1 | I34: 0 | J34: 0 | K34: 0 | L34: 1 | M34: 0 | N34: 0 | O34: 0 | P34: 0 | Q34: 0
A35: 6052 | B35: ZELDA GLAZER MIDDLE SCHOOL | C35: 113 | D35: 0 | E35: 0 | F35: 27 | G35: 50 | H35: 35 | I35: 1 | J35: 4 | K35: 1 | L35: 105 | M35: 3 | N35: 0 | O35: 62 | P35: 1 | Q35: 1
A36: 6060 | B36: ASPIRA SOUTH YOUTH LEADERSHIP | C36: 23 | D36: 0 | E36: 1 | F36: 9 | G36: 11 | H36: 2 | I36: 0 | J36: 0 | K36: 0 | L36: 23 | M36: 0 | N36: 0 | O36: 19 | P36: 0 | Q36: 0
A37: 6071 | B37: GEORGE WASHINGTON CARVER | C37: 36 | D37: 0 | E37: 0 | F37: 3 | G37: 4 | H37: 29 | I37: 0 | J37: 17 | K37: 2 | L37: 15 | M37: 2 | N37: 0 | O37: 5 | P37: 0 | Q37: 0
A38: 6081 | B38: CENTENNIAL MIDDLE | C38: 23 | D38: 0 | E38: 2 | F38: 3 | G38: 14 | H38: 2 | I38: 2 | J38: 9 | K38: 4 | L38: 9 | M38: 0 | N38: 1 | O38: 21 | P38: 1 | Q38: 1
A39: 6111 | B39: CUTLER RIDGE MIDDLE | C39: 17 | D39: 1 | E39: 0 | F39: 8 | G39: 5 | H39: 3 | I39: 0 | J39: 3 | K39: 6 | L39: 8 | M39: 0 | N39: 0 | O39: 14 | P39: 0 | Q39: 1
A40: 6151 | B40: DORAL MIDDLE SCHOOL | C40: 29 | D40: 0 | E40: 0 | F40: 7 | G40: 10 | H40: 12 | I40: 0 | J40: 5 | K40: 2 | L40: 21 | M40: 1 | N40: 0 | O40: 15 | P40: 0 | Q40: 2
A41: 6161 | B41: LAWTON CHILES MIDDLE SCHOOL | C41: 2 | D41: 0 | E41: 0 | F41: 1 | G41: 1 | H41: 0 | I41: 0 | J41: 0 | K41: 0 | L41: 2 | M41: 0 | N41: 0 | O41: 2 | P41: 0 | Q41: 0
A42: 6211 | B42: GLADES MIDDLE | C42: 43 | D42: 0 | E42: 0 | F42: 5 | G42: 20 | H42: 18 | I42: 0 | J42: 6 | K42: 0 | L42: 34 | M42: 1 | N42: 0 | O42: 23 | P42: 0 | Q42: 2
A43: 6231 | B43: HIALEAH MIDDLE | C43: 30 | D43: 1 | E43: 2 | F43: 7 | G43: 18 | H43: 2 | I43: 0 | J43: 1 | K43: 1 | L43: 28 | M43: 0 | N43: 0 | O43: 25 | P43: 0 | Q43: 0
A44: 6241 | B44: HIGHLAND OAKS MIDDLE | C44: 44 | D44: 0 | E44: 1 | F44: 7 | G44: 18 | H44: 18 | I44: 0 | J44: 25 | K44: 5 | L44: 11 | M44: 2 | N44: 0 | O44: 20 | P44: 0 | Q44: 0
A45: 6251 | B45: HOMESTEAD MIDDLE | C45: 1 | D45: 0 | E45: 0 | F45: 0 | G45: 1 | H45: 0 | I45: 0 | J45: 0 | K45: 0 | L45: 1 | M45: 0 | N45: 0 | O45: 1 | P45: 0 | Q45: 0
A46: 6301 | B46: JOHN F. KENNEDY MIDDLE | C46: 54 | D46: 0 | E46: 0 | F46: 5 | G46: 22 | H46: 27 | I46: 0 | J46: 1 | K46: 36 | L46: 15 | M46: 1 | N46: 1 | O46: 50 | P46: 0 | Q46: 0
A47: 6411 | B47: HORACE MANN MIDDLE | C47: 21 | D47: 0 | E47: 1 | F47: 9 | G47: 10 | H47: 1 | I47: 0 | J47: 2 | K47: 17 | L47: 2 | M47: 0 | N47: 0 | O47: 20 | P47: 0 | Q47: 1
A48: 6431 | B48: MAYS MIDDLE | C48: 2 | D48: 0 | E48: 0 | F48: 1 | G48: 1 | H48: 0 | I48: 0 | J48: 0 | K48: 2 | L48: 0 | M48: 0 | N48: 0 | O48: 0 | P48: 0 | Q48: 0
A49: 6441 | B49: HOWARD D. MCMILLAN MIDDLE | C49: 49 | D49: 0 | E49: 0 | F49: 6 | G49: 29 | H49: 14 | I49: 0 | J49: 1 | K49: 0 | L49: 45 | M49: 3 | N49: 0 | O49: 38 | P49: 2 | Q49: 2
A50: 6501 | B50: MIAMI LAKES MIDDLE | C50: 31 | D50: 0 | E50: 0 | F50: 3 | G50: 8 | H50: 20 | I50: 0 | J50: 0 | K50: 4 | L50: 25 | M50: 1 | N50: 0 | O50: 19 | P50: 0 | Q50: 0
A51: 6521 | B51: MIAMI SPRINGS MIDDLE | C51: 25 | D51: 0 | E51: 0 | F51: 3 | G51: 10 | H51: 12 | I51: 0 | J51: 3 | K51: 1 | L51: 20 | M51: 0 | N51: 0 | O51: 15 | P51: 0 | Q51: 0
A52: 6541 | B52: NAUTILUS MIDDLE | C52: 50 | D52: 0 | E52: 0 | F52: 6 | G52: 16 | H52: 27 | I52: 1 | J52: 32 | K52: 1 | L52: 16 | M52: 1 | N52: 0 | O52: 12 | P52: 0 | Q52: 0
A53: 6591 | B53: NORTH DADE MIDDLE | C53: 9 | D53: 0 | E53: 1 | F53: 3 | G53: 2 | H53: 3 | I53: 0 | J53: 0 | K53: 8 | L53: 1 | M53: 0 | N53: 0 | O53: 7 | P53: 0 | Q53: 0
A54: 6611 | B54: COUNTRY CLUB MIDDLE SCHOOL | C54: 20 | D54: 0 | E54: 0 | F54: 3 | G54: 7 | H54: 9 | I54: 1 | J54: 1 | K54: 2 | L54: 16 | M54: 1 | N54: 0 | O54: 15 | P54: 0 | Q54: 0
A55: 6701 | B55: PALMETTO MIDDLE | C55: 21 | D55: 0 | E55: 0 | F55: 1 | G55: 4 | H55: 16 | I55: 0 | J55: 7 | K55: 0 | L55: 7 | M55: 6 | N55: 0 | O55: 1 | P55: 0 | Q55: 0
A56: 6741 | B56: PONCE DE LEON MIDDLE | C56: 20 | D56: 0 | E56: 0 | F56: 1 | G56: 6 | H56: 11 | I56: 2 | J56: 7 | K56: 1 | L56: 10 | M56: 2 | N56: 0 | O56: 8 | P56: 0 | Q56: 0
A57: 6751 | B57: HIALEAH GARDENS MIDDLE SCHOOL | C57: 220 | D57: 1 | E57: 14 | F57: 68 | G57: 84 | H57: 53 | I57: 0 | J57: 6 | K57: 2 | L57: 209 | M57: 3 | N57: 0 | O57: 186 | P57: 2 | Q57: 1
A58: 6761 | B58: REDLAND MIDDLE | C58: 26 | D58: 0 | E58: 1 | F58: 17 | G58: 6 | H58: 2 | I58: 0 | J58: 7 | K58: 4 | L58: 15 | M58: 0 | N58: 0 | O58: 20 | P58: 0 | Q58: 2
A59: 6771 | B59: JORGE MAS CANOSA MIDDLE | C59: 55 | D59: 0 | E59: 1 | F59: 7 | G59: 23 | H59: 23 | I59: 1 | J59: 9 | K59: 2 | L59: 41 | M59: 2 | N59: 0 | O59: 38 | P59: 0 | Q59: 1
A60: 6781 | B60: RICHMOND HEIGHTS MIDDLE | C60: 8 | D60: 0 | E60: 0 | F60: 0 | G60: 3 | H60: 5 | I60: 0 | J60: 0 | K60: 3 | L60: 5 | M60: 0 | N60: 0 | O60: 6 | P60: 0 | Q60: 1
A61: 6801 | B61: RIVIERA MIDDLE | C61: 21 | D61: 0 | E61: 0 | F61: 3 | G61: 12 | H61: 6 | I61: 0 | J61: 3 | K61: 0 | L61: 16 | M61: 2 | N61: 0 | O61: 14 | P61: 0 | Q61: 1
A62: 6821 | B62: ROCKWAY MIDDLE | C62: 21 | D62: 0 | E62: 0 | F62: 0 | G62: 5 | H62: 16 | I62: 0 | J62: 1 | K62: 0 | L62: 20 | M62: 0 | N62: 0 | O62: 9 | P62: 0 | Q62: 0
A63: 6841 | B63: SHENANDOAH MIDDLE | C63: 46 | D63: 0 | E63: 0 | F63: 4 | G63: 31 | H63: 11 | I63: 0 | J63: 2 | K63: 1 | L63: 43 | M63: 0 | N63: 0 | O63: 35 | P63: 1 | Q63: 0
A64: 6861 | B64: SOUTHWOOD MIDDLE | C64: 32 | D64: 0 | E64: 0 | F64: 0 | G64: 4 | H64: 27 | I64: 1 | J64: 10 | K64: 0 | L64: 15 | M64: 7 | N64: 0 | O64: 2 | P64: 0 | Q64: 1
A65: 6901 | B65: W. R. THOMAS MIDDLE | C65: 54 | D65: 0 | E65: 0 | F65: 13 | G65: 26 | H65: 15 | I65: 0 | J65: 2 | K65: 0 | L65: 51 | M65: 0 | N65: 1 | O65: 39 | P65: 1 | Q65: 0
A66: 6921 | B66: LAMAR LOUISE CURRY MIDDLE SCH | C66: 21 | D66: 0 | E66: 0 | F66: 0 | G66: 3 | H66: 18 | I66: 0 | J66: 3 | K66: 1 | L66: 15 | M66: 1 | N66: 1 | O66: 8 | P66: 0 | Q66: 0
A67: 7001 | B67: MIAMI-DADE ONLINE ACADEMY | C67: 34 | D67: 1 | E67: 0 | F67: 1 | G67: 4 | H67: 2 | I67: 26 | J67: 7 | K67: 5 | L67: 22 | M67: 0 | N67: 0 | O67: 29 | P67: 0 | Q67: 0
A68: 7007 | B68: INTL. STUDIES CHARTER SENIOR | C68: 94 | D68: 3 | E68: 0 | F68: 10 | G68: 6 | H68: 7 | I68: 68 | J68: 24 | K68: 1 | L68: 69 | M68: 0 | N68: 0 | O68: 54 | P68: 30 | Q68: 1
A69: 7009 | B69: DORAL PERFORMING ARTS ACADEMY | C69: 89 | D69: 0 | E69: 4 | F69: 15 | G69: 17 | H69: 10 | I69: 43 | J69: 10 | K69: 0 | L69: 78 | M69: 0 | N69: 0 | O69: 36 | P69: 3 | Q69: 1
A70: 7011 | B70: AMERICAN SENIOR | C70: 501 | D70: 0 | E70: 1 | F70: 13 | G70: 11 | H70: 6 | I70: 470 | J70: 14 | K70: 145 | L70: 338 | M70: 4 | N70: 0 | O70: 417 | P70: 70 | Q70: 52
A71: 7014 | B71: MATER PERFORMING ARTS ACADEMY | C71: 95 | D71: 0 | E71: 0 | F71: 0 | G71: 0 | H71: 0 | I71: 95 | J71: 2 | K71: 4 | L71: 89 | M71: 0 | N71: 0 | O71: 72 | P71: 0 | Q71: 0
A72: 7015 | B72: STELLAR LEADERSHIP ACADEMY | C72: 90 | D72: 5 | E72: 3 | F72: 0 | G72: 0 | H72: 0 | I72: 82 | J72: 0 | K72: 71 | L72: 19 | M72: 0 | N72: 0 | O72: 76 | P72: 3 | Q72: 18
A73: 7016 | B73: SPORTS LEADERSHIP OF MIAMI CHS | C73: 11 | D73: 0 | E73: 1 | F73: 1 | G73: 0 | H73: 0 | I73: 9 | J73: 0 | K73: 1 | L73: 10 | M73: 0 | N73: 0 | O73: 10 | P73: 0 | Q73: 0
A74: 7018 | B74: MATER ACADEMY LAKES HIGH SCH | C74: 302 | D74: 0 | E74: 2 | F74: 40 | G74: 43 | H74: 26 | I74: 191 | J74: 21 | K74: 5 | L74: 275 | M74: 1 | N74: 0 | O74: 224 | P74: 30 | Q74: 8
A75: 7020 | B75: DORAL ACADEMY HIGH SCHOOL | C75: 394 | D75: 1 | E75: 6 | F75: 54 | G75: 54 | H75: 30 | I75: 249 | J75: 23 | K75: 4 | L75: 367 | M75: 0 | N75: 0 | O75: 223 | P75: 24 | Q75: 12
A76: 7022 | B76: ACADEMY OF ARTS AND MINDS | C76: 98 | D76: 0 | E76: 1 | F76: 8 | G76: 3 | H76: 2 | I76: 84 | J76: 24 | K76: 7 | L76: 66 | M76: 0 | N76: 0 | O76: 64 | P76: 10 | Q76: 4
A77: 7024 | B77: MATER ACADEMY HIGH-INTL STUDIE | C77: 12 | D77: 0 | E77: 0 | F77: 0 | G77: 0 | H77: 0 | I77: 12 | J77: 0 | K77: 5 | L77: 7 | M77: 0 | N77: 0 | O77: 10 | P77: 1 | Q77: 0
A78: 7029 | B78: TERRA ENVIRONMENTAL RESEARCH | C78: 472 | D78: 0 | E78: 5 | F78: 77 | G78: 94 | H78: 88 | I78: 208 | J78: 98 | K78: 12 | L78: 338 | M78: 20 | N78: 0 | O78: 205 | P78: 2 | Q78: 23
A79: 7030 | B79: INTEGRATED ACADEMICS (SIATECH) | C79: 75 | D79: 0 | E79: 0 | F79: 0 | G79: 0 | H79: 0 | I79: 75 | J79: 5 | K79: 58 | L79: 11 | M79: 0 | N79: 0 | O79: 29 | P79: 5 | Q79: 14
A80: 7032 | B80: PALM GLADES PREP HIGH SCHOOL | C80: 33 | D80: 0 | E80: 2 | F80: 0 | G80: 0 | H80: 0 | I80: 31 | J80: 0 | K80: 6 | L80: 27 | M80: 0 | N80: 0 | O80: 25 | P80: 0 | Q80: 2
A81: 7033 | B81: LAW ENFORCEMENT OFFICERS HS | C81: 149 | D81: 0 | E81: 2 | F81: 19 | G81: 10 | H81: 6 | I81: 112 | J81: 9 | K81: 35 | L81: 104 | M81: 1 | N81: 0 | O81: 119 | P81: 1 | Q81: 7
A82: 7034 | B82: SOMERSET ACAD HIGH SOUTH-HMSTD | C82: 16 | D82: 0 | E82: 1 | F82: 4 | G82: 0 | H82: 0 | I82: 11 | J82: 4 | K82: 0 | L82: 12 | M82: 0 | N82: 0 | O82: 14 | P82: 1 | Q82: 1
A83: 7036 | B83: LAWRENCE ACADEMY SENIOR | C83: 10 | D83: 0 | E83: 0 | F83: 0 | G83: 0 | H83: 0 | I83: 10 | J83: 0 | K83: 3 | L83: 7 | M83: 0 | N83: 0 | O83: 10 | P83: 2 | Q83: 0
A84: 7037 | B84: MATER ACADEMY EAST HIGH SCHOOL | C84: 116 | D84: 0 | E84: 4 | F84: 5 | G84: 4 | H84: 2 | I84: 101 | J84: 5 | K84: 6 | L84: 104 | M84: 1 | N84: 0 | O84: 95 | P84: 15 | Q84: 5
A85: 7042 | B85: SOMERSET ACADEMY CHARTER HIGH | C85: 78 | D85: 0 | E85: 3 | F85: 5 | G85: 5 | H85: 2 | I85: 63 | J85: 3 | K85: 8 | L85: 67 | M85: 0 | N85: 0 | O85: 66 | P85: 6 | Q85: 7
A86: 7048 | B86: ALONZO & TRACY MOURNING SH | C86: 465 | D86: 2 | E86: 5 | F86: 4 | G86: 14 | H86: 16 | I86: 424 | J86: 127 | K86: 97 | L86: 233 | M86: 5 | N86: 0 | O86: 318 | P86: 56 | Q86: 31
A87: 7049 | B87: WESTLAND HIALEAH SENIOR HIGH | C87: 512 | D87: 0 | E87: 1 | F87: 18 | G87: 47 | H87: 11 | I87: 435 | J87: 12 | K87: 6 | L87: 494 | M87: 0 | N87: 0 | O87: 475 | P87: 199 | Q87: 34
A88: 7050 | B88: KEYS GATE CHARTER HIGH SCHL | C88: 286 | D88: 1 | E88: 7 | F88: 26 | G88: 16 | H88: 6 | I88: 230 | J88: 43 | K88: 54 | L88: 186 | M88: 3 | N88: 0 | O88: 200 | P88: 22 | Q88: 19
A89: 7051 | B89: G. HOLMES BRADDOCK SENIOR HIGH | C89: 775 | D89: 0 | E89: 11 | F89: 31 | G89: 38 | H89: 20 | I89: 675 | J89: 42 | K89: 12 | L89: 715 | M89: 3 | N89: 2 | O89: 631 | P89: 130 | Q89: 122
A90: 7053 | B90: PINECREST ACADEMY CHARTER HIGH | C90: 156 | D90: 1 | E90: 6 | F90: 15 | G90: 7 | H90: 5 | I90: 122 | J90: 7 | K90: 1 | L90: 148 | M90: 0 | N90: 0 | O90: 91 | P90: 12 | Q90: 14
A91: 7054 | B91: EXCELSIOR CHARTER HIGH SCHOOL | C91: 32 | D91: 0 | E91: 0 | F91: 4 | G91: 1 | H91: 0 | I91: 27 | J91: 0 | K91: 0 | L91: 32 | M91: 0 | N91: 0 | O91: 30 | P91: 15 | Q91: 0
A92: 7055 | B92: YOUNG WOMEN'S PREPARATORY ACAD | C92: 54 | D92: 2 | E92: 4 | F92: 25 | G92: 18 | H92: 3 | I92: 2 | J92: 7 | K92: 9 | L92: 38 | M92: 0 | N92: 0 | O92: 37 | P92: 2 | Q92: 0
A93: 7056 | B93: YOUNG MENS PREPARATORY ACADEMY | C93: 30 | D93: 0 | E93: 1 | F93: 1 | G93: 1 | H93: 0 | I93: 27 | J93: 1 | K93: 21 | L93: 8 | M93: 0 | N93: 0 | O93: 21 | P93: 0 | Q93: 5
A94: 7058 | B94: MIAMI COMMUNITY CH HIGH SCHOOL | C94: 30 | D94: 0 | E94: 3 | F94: 1 | G94: 0 | H94: 0 | I94: 26 | J94: 3 | K94: 1 | L94: 26 | M94: 0 | N94: 0 | O94: 23 | P94: 6 | Q94: 4
A95: 7059 | B95: MIAMI ARTS CHARTER | C95: 78 | D95: 2 | E95: 4 | F95: 9 | G95: 7 | H95: 7 | I95: 49 | J95: 19 | K95: 16 | L95: 40 | M95: 2 | N95: 0 | O95: 26 | P95: 1 | Q95: 1
A96: 7060 | B96: EVERGLADES PREP ACADEMY HIGH | C96: 65 | D96: 1 | E96: 1 | F96: 10 | G96: 10 | H96: 4 | I96: 39 | J96: 4 | K96: 2 | L96: 59 | M96: 0 | N96: 0 | O96: 56 | P96: 0 | Q96: 6
A97: 7062 | B97: MAVERICKS HIGH OF NORTH M-DADE | C97: 15 | D97: 0 | E97: 0 | F97: 0 | G97: 0 | H97: 0 | I97: 15 | J97: 1 | K97: 12 | L97: 2 | M97: 0 | N97: 0 | O97: 11 | P97: 0 | Q97: 5
A98: 7065 | B98: MAVERICKS HIGH OF SOUTH M-DADE | C98: 34 | D98: 2 | E98: 1 | F98: 0 | G98: 0 | H98: 0 | I98: 31 | J98: 2 | K98: 19 | L98: 13 | M98: 0 | N98: 0 | O98: 30 | P98: 0 | Q98: 5
A99: 7067 | B99: GREEN SPRINGS HIGH SCHOOL | C99: 80 | D99: 3 | E99: 2 | F99: 0 | G99: 0 | H99: 0 | I99: 75 | J99: 0 | K99: 12 | L99: 68 | M99: 0 | N99: 0 | O99: 58 | P99: 12 | Q99: 12
A100: 7068 | B100: NORTH GARDENS HIGH SCHOOL | C100: 78 | D100: 1 | E100: 3 | F100: 0 | G100: 0 | H100: 0 | I100: 74 | J100: 0 | K100: 53 | L100: 25 | M100: 0 | N100: 0 | O100: 63 | P100: 0 | Q100: 7
A101: 7069 | B101: NORTH PARK HIGH SCHOOL | C101: 58 | D101: 0 | E101: 0 | F101: 0 | G101: 0 | H101: 0 | I101: 58 | J101: 1 | K101: 45 | L101: 12 | M101: 0 | N101: 0 | O101: 50 | P101: 4 | Q101: 10
A102: 7070 | B102: YOUTH CO-OP PREP HIGH SCHOOL | C102: 5 | D102: 0 | E102: 0 | F102: 1 | G102: 1 | H102: 2 | I102: 1 | J102: 0 | K102: 0 | L102: 5 | M102: 0 | N102: 0 | O102: 3 | P102: 0 | Q102: 0
A103: 7071 | B103: CORAL GABLES SENIOR HIGH | C103: 913 | D103: 5 | E103: 10 | F103: 74 | G103: 94 | H103: 68 | I103: 662 | J103: 93 | K103: 72 | L103: 737 | M103: 11 | N103: 0 | O103: 713 | P103: 182 | Q103: 88
A104: 7080 | B104: CHARTER HS OF THE AMERICAS | C104: 15 | D104: 0 | E104: 0 | F104: 7 | G104: 4 | H104: 4 | I104: 0 | J104: 0 | K104: 1 | L104: 14 | M104: 0 | N104: 0 | O104: 8 | P104: 4 | Q104: 0
A105: 7081 | B105: DESIGN & ARCHITECTURE SENIOR | C105: 109 | D105: 0 | E105: 1 | F105: 8 | G105: 31 | H105: 18 | I105: 51 | J105: 31 | K105: 19 | L105: 56 | M105: 1 | N105: 0 | O105: 47 | P105: 3 | Q105: 7
A106: 7101 | B106: CORAL REEF SENIOR HIGH | C106: 604 | D106: 0 | E106: 4 | F106: 68 | G106: 120 | H106: 105 | I106: 307 | J106: 128 | K106: 83 | L106: 365 | M106: 14 | N106: 1 | O106: 253 | P106: 8 | Q106: 31
A107: 7111 | B107: HIALEAH SENIOR | C107: 745 | D107: 2 | E107: 5 | F107: 29 | G107: 24 | H107: 13 | I107: 672 | J107: 14 | K107: 34 | L107: 697 | M107: 0 | N107: 0 | O107: 674 | P107: 188 | Q107: 113
A108: 7121 | B108: JOHN A FERGUSON SENIOR HIGH | C108: 939 | D108: 3 | E108: 20 | F108: 79 | G108: 84 | H108: 45 | I108: 708 | J108: 67 | K108: 14 | L108: 839 | M108: 14 | N108: 3 | O108: 645 | P108: 99 | Q108: 104
A109: 7131 | B109: HIALEAH-MIAMI LAKES SENIOR | C109: 432 | D109: 1 | E109: 4 | F109: 13 | G109: 12 | H109: 10 | I109: 392 | J109: 16 | K109: 101 | L109: 310 | M109: 3 | N109: 2 | O109: 371 | P109: 75 | Q109: 50
A110: 7141 | B110: DR MICHAEL M KROP SENIOR HIGH | C110: 686 | D110: 0 | E110: 1 | F110: 9 | G110: 6 | H110: 2 | I110: 668 | J110: 120 | K110: 325 | L110: 227 | M110: 12 | N110: 1 | O110: 448 | P110: 72 | Q110: 42
A111: 7151 | B111: HOMESTEAD SENIOR HIGH | C111: 513 | D111: 3 | E111: 6 | F111: 20 | G111: 16 | H111: 4 | I111: 464 | J111: 24 | K111: 225 | L111: 261 | M111: 2 | N111: 0 | O111: 482 | P111: 49 | Q111: 88
A112: 7160 | B112: MATER ACADEMY CHARTER HIGH | C112: 383 | D112: 0 | E112: 0 | F112: 1 | G112: 0 | H112: 2 | I112: 380 | J112: 11 | K112: 13 | L112: 359 | M112: 0 | N112: 0 | O112: 309 | P112: 43 | Q112: 16
A113: 7161 | B113: MAST @ VIRGINIA KEY | C113: 145 | D113: 0 | E113: 2 | F113: 23 | G113: 53 | H113: 41 | I113: 26 | J113: 42 | K113: 15 | L113: 84 | M113: 4 | N113: 0 | O113: 45 | P113: 2 | Q113: 2
A114: 7171 | B114: MED ACAD SCIENCE & TECHNOLOGY | C114: 145 | D114: 1 | E114: 15 | F114: 46 | G114: 43 | H114: 32 | I114: 8 | J114: 18 | K114: 26 | L114: 98 | M114: 3 | N114: 0 | O114: 113 | P114: 4 | Q114: 4
A115: 7191 | B115: HIALEAH GARDENS SENIOR | C115: 739 | D115: 0 | E115: 6 | F115: 43 | G115: 44 | H115: 19 | I115: 627 | J115: 16 | K115: 5 | L115: 714 | M115: 4 | N115: 0 | O115: 649 | P115: 160 | Q115: 57
A116: 7201 | B116: MIAMI BEACH SENIOR HIGH | C116: 609 | D116: 0 | E116: 4 | F116: 29 | G116: 42 | H116: 27 | I116: 507 | J116: 124 | K116: 71 | L116: 404 | M116: 8 | N116: 0 | O116: 439 | P116: 77 | Q116: 62
A117: 7231 | B117: MIAMI CAROL CITY SENIOR HIGH | C117: 443 | D117: 0 | E117: 0 | F117: 2 | G117: 5 | H117: 0 | I117: 436 | J117: 3 | K117: 372 | L117: 66 | M117: 1 | N117: 0 | O117: 385 | P117: 14 | Q117: 44
A118: 7241 | B118: RONALD W REAGAN/DORAL SENIOR | C118: 428 | D118: 0 | E118: 1 | F118: 14 | G118: 43 | H118: 20 | I118: 350 | J118: 30 | K118: 5 | L118: 385 | M118: 6 | N118: 2 | O118: 212 | P118: 110 | Q118: 18
A119: 7251 | B119: MIAMI CENTRAL SENIOR HIGH | C119: 442 | D119: 4 | E119: 4 | F119: 5 | G119: 4 | H119: 2 | I119: 423 | J119: 2 | K119: 348 | L119: 90 | M119: 0 | N119: 0 | O119: 387 | P119: 59 | Q119: 66
A120: 7262 | B120: CITY OF HIALEAH EDUCATION ACAD | C120: 83 | D120: 1 | E120: 0 | F120: 2 | G120: 1 | H120: 0 | I120: 79 | J120: 7 | K120: 1 | L120: 74 | M120: 1 | N120: 0 | O120: 71 | P120: 10 | Q120: 6
A121: 7265 | B121: ARCHIMEDEAN UPPER CONSERV CHAR | C121: 61 | D121: 0 | E121: 1 | F121: 13 | G121: 11 | H121: 34 | I121: 2 | J121: 6 | K121: 2 | L121: 46 | M121: 5 | N121: 0 | O121: 31 | P121: 0 | Q121: 0
A122: 7271 | B122: MIAMI CORAL PARK SENIOR HIGH | C122: 652 | D122: 0 | E122: 4 | F122: 33 | G122: 44 | H122: 22 | I122: 549 | J122: 15 | K122: 8 | L122: 627 | M122: 2 | N122: 0 | O122: 561 | P122: 165 | Q122: 69
A123: 7291 | B123: JOSE MARTI MAST 6-12 ACADEMY | C123: 42 | D123: 0 | E123: 2 | F123: 3 | G123: 7 | H123: 8 | I123: 22 | J123: 3 | K123: 5 | L123: 34 | M123: 0 | N123: 0 | O123: 37 | P123: 8 | Q123: 0
A124: 7301 | B124: MIAMI EDISON SENIOR HIGH | C124: 240 | D124: 0 | E124: 0 | F124: 7 | G124: 6 | H124: 1 | I124: 226 | J124: 2 | K124: 207 | L124: 31 | M124: 0 | N124: 0 | O124: 224 | P124: 51 | Q124: 24
A125: 7341 | B125: MIAMI JACKSON SENIOR HIGH | C125: 421 | D125: 1 | E125: 4 | F125: 23 | G125: 8 | H125: 8 | I125: 377 | J125: 6 | K125: 149 | L125: 266 | M125: 0 | N125: 0 | O125: 401 | P125: 65 | Q125: 48
A126: 7351 | B126: ARTHUR AND POLLY MAYS CONSERVA | C126: 86 | D126: 0 | E126: 1 | F126: 6 | G126: 3 | H126: 0 | I126: 76 | J126: 7 | K126: 34 | L126: 44 | M126: 1 | N126: 0 | O126: 79 | P126: 8 | Q126: 13
A127: 7361 | B127: MIAMI KILLIAN SENIOR HIGH | C127: 594 | D127: 0 | E127: 3 | F127: 24 | G127: 28 | H127: 14 | I127: 525 | J127: 84 | K127: 138 | L127: 360 | M127: 8 | N127: 1 | O127: 412 | P127: 64 | Q127: 104
A128: 7371 | B128: ROBERT MORGAN EDUCATIONAL CTR | C128: 501 | D128: 3 | E128: 13 | F128: 51 | G128: 57 | H128: 29 | I128: 348 | J128: 74 | K128: 116 | L128: 301 | M128: 6 | N128: 1 | O128: 349 | P128: 17 | Q128: 56
A129: 7381 | B129: MIAMI NORLAND SENIOR HIGH | C129: 401 | D129: 0 | E129: 2 | F129: 17 | G129: 10 | H129: 1 | I129: 371 | J129: 2 | K129: 382 | L129: 15 | M129: 2 | N129: 0 | O129: 332 | P129: 22 | Q129: 26
A130: 7391 | B130: MIAMI LAKES EDUCATIONAL CENTER | C130: 320 | D130: 1 | E130: 4 | F130: 39 | G130: 40 | H130: 17 | I130: 219 | J130: 10 | K130: 89 | L130: 219 | M130: 2 | N130: 0 | O130: 259 | P130: 14 | Q130: 44
A131: 7411 | B131: MIAMI NORTHWESTERN SENIOR HIGH | C131: 440 | D131: 1 | E131: 7 | F131: 35 | G131: 26 | H131: 4 | I131: 367 | J131: 1 | K131: 396 | L131: 41 | M131: 1 | N131: 1 | O131: 390 | P131: 15 | Q131: 51
A132: 7431 | B132: MIAMI PALMETTO SENIOR HIGH | C132: 637 | D132: 0 | E132: 1 | F132: 26 | G132: 60 | H132: 59 | I132: 491 | J132: 207 | K132: 126 | L132: 281 | M132: 16 | N132: 2 | O132: 260 | P132: 27 | Q132: 82
A133: 7461 | B133: MIAMI SENIOR HIGH | C133: 710 | D133: 0 | E133: 6 | F133: 27 | G133: 28 | H133: 8 | I133: 641 | J133: 24 | K133: 16 | L133: 667 | M133: 3 | N133: 0 | O133: 657 | P133: 170 | Q133: 73
A134: 7511 | B134: MIAMI SPRINGS SENIOR HIGH | C134: 478 | D134: 0 | E134: 0 | F134: 13 | G134: 21 | H134: 10 | I134: 434 | J134: 22 | K134: 67 | L134: 383 | M134: 6 | N134: 0 | O134: 408 | P134: 109 | Q134: 41
A135: 7531 | B135: MIAMI SUNSET SENIOR HIGH | C135: 476 | D135: 0 | E135: 1 | F135: 17 | G135: 23 | H135: 6 | I135: 429 | J135: 52 | K135: 22 | L135: 395 | M135: 5 | N135: 0 | O135: 362 | P135: 66 | Q135: 83
A136: 7541 | B136: NORTH MIAMI BEACH SENIOR HIGH | C136: 506 | D136: 0 | E136: 8 | F136: 42 | G136: 29 | H136: 11 | I136: 416 | J136: 7 | K136: 385 | L136: 97 | M136: 15 | N136: 1 | O136: 448 | P136: 73 | Q136: 36
A137: 7571 | B137: INTL STUDIES PREP ACADEMY | C137: 81 | D137: 0 | E137: 4 | F137: 19 | G137: 22 | H137: 11 | I137: 25 | J137: 14 | K137: 1 | L137: 64 | M137: 2 | N137: 0 | O137: 44 | P137: 13 | Q137: 2
A138: 7581 | B138: IPREPARATORY ACADEMY | C138: 58 | D138: 2 | E138: 5 | F138: 11 | G138: 24 | H138: 12 | I138: 4 | J138: 8 | K138: 10 | L138: 39 | M138: 0 | N138: 0 | O138: 37 | P138: 0 | Q138: 0
A139: 7591 | B139: NORTH MIAMI SENIOR HIGH | C139: 695 | D139: 5 | E139: 11 | F139: 31 | G139: 33 | H139: 12 | I139: 603 | J139: 3 | K139: 612 | L139: 73 | M139: 6 | N139: 0 | O139: 635 | P139: 171 | Q139: 38
A140: 7601 | B140: WILLIAM H. TURNER TECHNICAL | C140: 374 | D140: 3 | E140: 14 | F140: 72 | G140: 53 | H140: 9 | I140: 223 | J140: 1 | K140: 307 | L140: 65 | M140: 1 | N140: 0 | O140: 337 | P140: 23 | Q140: 10
A141: 7631 | B141: MIAMI MACARTHUR SOUTH | C141: 15 | D141: 2 | E141: 0 | F141: 0 | G141: 0 | H141: 0 | I141: 13 | J141: 0 | K141: 11 | L141: 4 | M141: 0 | N141: 0 | O141: 13 | P141: 0 | Q141: 6
A142: 7701 | B142: SOUTH DADE SENIOR HIGH | C142: 821 | D142: 6 | E142: 5 | F142: 76 | G142: 44 | H142: 18 | I142: 672 | J142: 85 | K142: 188 | L142: 533 | M142: 10 | N142: 3 | O142: 690 | P142: 83 | Q142: 103
A143: 7721 | B143: SOUTH MIAMI SENIOR HIGH | C143: 542 | D143: 1 | E143: 3 | F143: 23 | G143: 26 | H143: 11 | I143: 478 | J143: 30 | K143: 25 | L143: 486 | M143: 1 | N143: 0 | O143: 454 | P143: 140 | Q143: 66
A144: 7731 | B144: MIAMI SOUTHRIDGE SENIOR HIGH | C144: 624 | D144: 4 | E144: 15 | F144: 20 | G144: 13 | H144: 2 | I144: 570 | J144: 33 | K144: 253 | L144: 320 | M144: 9 | N144: 5 | O144: 528 | P144: 55 | Q144: 108
A145: 7741 | B145: SOUTHWEST MIAMI SENIOR HIGH | C145: 783 | D145: 2 | E145: 12 | F145: 40 | G145: 48 | H145: 29 | I145: 652 | J145: 41 | K145: 10 | L145: 729 | M145: 1 | N145: 1 | O145: 642 | P145: 148 | Q145: 123
A146: 7751 | B146: BARBARA GOLEMAN SENIOR HIGH | C146: 466 | D146: 1 | E146: 0 | F146: 11 | G146: 23 | H146: 8 | I146: 423 | J146: 29 | K146: 69 | L146: 365 | M146: 2 | N146: 0 | O146: 323 | P146: 50 | Q146: 43
A147: 7781 | B147: FELIX VARELA SENIOR HIGH | C147: 846 | D147: 2 | E147: 9 | F147: 53 | G147: 72 | H147: 34 | I147: 676 | J147: 77 | K147: 41 | L147: 712 | M147: 11 | N147: 1 | O147: 625 | P147: 89 | Q147: 76
A148: 7791 | B148: BOOKER T. WASHINGTON SR. HIGH | C148: 246 | D148: 2 | E148: 2 | F148: 5 | G148: 5 | H148: 2 | I148: 230 | J148: 2 | K148: 134 | L148: 109 | M148: 1 | N148: 0 | O148: 230 | P148: 26 | Q148: 36
A149: 7901 | B149: NEW WORLD SCHOOL OF THE ARTS | C149: 102 | D149: 0 | E149: 0 | F149: 0 | G149: 0 | H149: 1 | I149: 101 | J149: 26 | K149: 16 | L149: 57 | M149: 2 | N149: 0 | O149: 38 | P149: 0 | Q149: 7
A150: 8014 | B150: ALTERNATIVE OUTREACH-EXT. YR | C150: 39 | D150: 2 | E150: 0 | F150: 1 | G150: 0 | H150: 0 | I150: 36 | J150: 7 | K150: 23 | L150: 9 | M150: 0 | N150: 0 | O150: 17 | P150: 2 | Q150: 17
A151: 8017 | B151: ALTERNATIVE OUTREACH PROGRAM | C151: 57 | D151: 1 | E151: 0 | F151: 1 | G151: 0 | H151: 0 | I151: 55 | J151: 1 | K151: 37 | L151: 19 | M151: 0 | N151: 0 | O151: 38 | P151: 7 | Q151: 7
A152: 8019 | B152: ACADEMY FOR COMMUNITY ED | C152: 20 | D152: 0 | E152: 0 | F152: 0 | G152: 0 | H152: 0 | I152: 20 | J152: 1 | K152: 14 | L152: 5 | M152: 0 | N152: 0 | O152: 20 | P152: 0 | Q152: 0
A153: 8101 | B153: JAN MANN OPPORTUNITY SCHOOL | C153: 6 | D153: 0 | E153: 0 | F153: 0 | G153: 0 | H153: 0 | I153: 6 | J153: 1 | K153: 5 | L153: 0 | M153: 0 | N153: 0 | O153: 6 | P153: 0 | Q153: 1
A154: 8121 | B154: COPE CENTER NORTH | C154: 33 | D154: 0 | E154: 1 | F154: 0 | G154: 0 | H154: 0 | I154: 32 | J154: 0 | K154: 23 | L154: 10 | M154: 0 | N154: 0 | O154: 32 | P154: 2 | Q154: 2
A155: 8131 | B155: DOROTHY M WALLACE COPE CENTER | C155: 16 | D155: 0 | E155: 0 | F155: 1 | G155: 0 | H155: 0 | I155: 15 | J155: 0 | K155: 10 | L155: 6 | M155: 0 | N155: 0 | O155: 16 | P155: 1 | Q155: 1
A156: 8141 | B156: JUVENILE JUSTICE CENTER | C156: 24 | D156: 1 | E156: 0 | F156: 0 | G156: 0 | H156: 0 | I156: 23 | J156: 0 | K156: 13 | L156: 11 | M156: 0 | N156: 0 | O156: 19 | P156: 1 | Q156: 12
A157: 8151 | B157: ROBERT RENICK EDUCATION CTR | C157: 6 | D157: 0 | E157: 0 | F157: 0 | G157: 0 | H157: 0 | I157: 6 | J157: 0 | K157: 5 | L157: 1 | M157: 0 | N157: 0 | O157: 6 | P157: 0 | Q157: 6
A158: 8181 | B158: RUTH OWENS KRUSE' EDUC CENTER | C158: 9 | D158: 0 | E158: 0 | F158: 0 | G158: 0 | H158: 0 | I158: 9 | J158: 1 | K158: 2 | L158: 6 | M158: 0 | N158: 0 | O158: 8 | P158: 1 | Q158: 9
A159: 9732 | B159: MERRICK EDUCATIONAL CENTER | C159: 29 | D159: 0 | E159: 0 | F159: 0 | G159: 0 | H159: 0 | I159: 29 | J159: 0 | K159: 4 | L159: 24 | M159: 0 | N159: 0 | O159: 21 | P159: 1 | Q159: 28
A160: 9999 | B160: District | C160: 28209 | D160: 90 | E160: 340 | F160: 1919 | G160: 2527 | H160: 1852 | I160: 21481 | J160: 2447 | K160: 6617 | L160: 18718 | M160: 316 | N160: 32 | O160: 21248 | P160: 3521 | Q160: 2708
A161: Grand Total | B161: 0 | C161: 0 | D161: 0 | E161: 0 | F161: 0 | G161: 0 | H161: 0 | I161: 0 | J161: 0 | K161: 0 | L161: 0 | M161: 0 | N161: 0 | O161: 0 | P161: 0 | Q161: 0
A162: 0 | B162: 0 | C162: 0 | D162: 0 | E162: 0 | F162: 0 | G162: 0 | H162: 0 | I162: 0 | J162: 0 | K162: 0 | L162: 0 | M162: 0 | N162: 0 | O162: 0 | P162: 0 | Q162: 0
A163: 0 | B163: 0 | C163: 0 | D163: 0 | E163: 0 | F163: 0 | G163: 0 | H163: 0 | I163: 0 | J163: 0 | K163: 0 | L163: 0 | M163: 0 | N163: 0 | O163: 0 | P163: 0 | Q163: 0
A164: 0 | B164: 0 | C164: 0 | D164: 0 | E164: 0 | F164: 0 | G164: 0 | H164: 0 | I164: 0 | J164: 0 | K164: 0 | L164: 0 | M164: 0 | N164: 0 | O164: 0 | P164: 0 | Q164: 0
A165: 0 | B165: 0 | C165: 0 | D165: 0 | E165: 0 | F165: 0 | G165: 0 | H165: 0 | I165: 0 | J165: 0 | K165: 0 | L165: 0 | M165: 0 | N165: 0 | O165: 0 | P165: 0 | Q165: 0
A166: 0 | B166: 0 | C166: 0 | D166: 0 | E166: 0 | F166: 0 | G166: 0 | H166: 0 | I166: 0 | J166: 0 | K166: 0 | L166: 0 | M166: 0 | N166: 0 | O166: 0 | P166: 0 | Q166: 0
A167: 0 | B167: 0 | C167: 0 | D167: 0 | E167: 0 | F167: 0 | G167: 0 | H167: 0 | I167: 0 | J167: 0 | K167: 0 | L167: 0 | M167: 0 | N167: 0 | O167: 0 | P167: 0 | Q167: 0
A168: 0 | B168: 0 | C168: 0 | D168: 0 | E168: 0 | F168: 0 | G168: 0 | H168: 0 | I168: 0 | J168: 0 | K168: 0 | L168: 0 | M168: 0 | N168: 0 | O168: 0 | P168: 0 | Q168: 0
A169: 0 | B169: 0 | C169: 0 | D169: 0 | E169: 0 | F169: 0 | G169: 0 | H169: 0 | I169: 0 | J169: 0 | K169: 0 | L169: 0 | M169: 0 | N169: 0 | O169: 0 | P169: 0 | Q169: 0
A170: 0 | B170: 0 | C170: 0 | D170: 0 | E170: 0 | F170: 0 | G170: 0 | H170: 0 | I170: 0 | J170: 0 | K170: 0 | L170: 0 | M170: 0 | N170: 0 | O170: 0 | P170: 0 | Q170: 0
A171: 0 | B171: 0 | C171: 0 | D171: 0 | E171: 0 | F171: 0 | G171: 0 | H171: 0 | I171: 0 | J171: 0 | K171: 0 | L171: 0 | M171: 0 | N171: 0 | O171: 0 | P171: 0 | Q171: 0
A172: 0 | B172: 0 | C172: 0 | D172: 0 | E172: 0 | F172: 0 | G172: 0 | H172: 0 | I172: 0 | J172: 0 | K172: 0 | L172: 0 | M172: 0 | N172: 0 | O172: 0 | P172: 0 | Q172: 0
A173: 0 | B173: 0 | C173: 0 | D173: 0 | E173: 0 | F173: 0 | G173: 0 | H173: 0 | I173: 0 | J173: 0 | K173: 0 | L173: 0 | M173: 0 | N173: 0 | O173: 0 | P173: 0 | Q173: 0
A174: 0 | B174: 0 | C174: 0 | D174: 0 | E174: 0 | F174: 0 | G174: 0 | H174: 0 | I174: 0 | J174: 0 | K174: 0 | L174: 0 | M174: 0 | N174: 0 | O174: 0 | P174: 0 | Q174: 0
A175: 0 | B175: 0 | C175: 0 | D175: 0 | E175: 0 | F175: 0 | G175: 0 | H175: 0 | I175: 0 | J175: 0 | K175: 0 | L175: 0 | M175: 0 | N175: 0 | O175: 0 | P175: 0 | Q175: 0
A176: 0 | B176: 0 | C176: 0 | D176: 0 | E176: 0 | F176: 0 | G176: 0 | H176: 0 | I176: 0 | J176: 0 | K176: 0 | L176: 0 | M176: 0 | N176: 0 | O176: 0 | P176: 0 | Q176: 0
A177: 0 | B177: 0 | C177: 0 | D177: 0 | E177: 0 | F177: 0 | G177: 0 | H177: 0 | I177: 0 | J177: 0 | K177: 0 | L177: 0 | M177: 0 | N177: 0 | O177: 0 | P177: 0 | Q177: 0
A178: 0 | B178: 0 | C178: 0 | D178: 0 | E178: 0 | F178: 0 | G178: 0 | H178: 0 | I178: 0 | J178: 0 | K178: 0 | L178: 0 | M178: 0 | N178: 0 | O178: 0 | P178: 0 | Q178: 0
A179: 0 | B179: 0 | C179: 0 | D179: 0 | E179: 0 | F179: 0 | G179: 0 | H179: 0 | I179: 0 | J179: 0 | K179: 0 | L179: 0 | M179: 0 | N179: 0 | O179: 0 | P179: 0 | Q179: 0
A180: 0 | B180: 0 | C180: 0 | D180: 0 | E180: 0 | F180: 0 | G180: 0 | H180: 0 | I180: 0 | J180: 0 | K180: 0 | L180: 0 | M180: 0 | N180: 0 | O180: 0 | P180: 0 | Q180: 0
A181: 0 | B181: 0 | C181: 0 | D181: 0 | E181: 0 | F181: 0 | G181: 0 | H181: 0 | I181: 0 | J181: 0 | K181: 0 | L181: 0 | M181: 0 | N181: 0 | O181: 0 | P181: 0 | Q181: 0
A182: 0 | B182: 0 | C182: 0 | D182: 0 | E182: 0 | F182: 0 | G182: 0 | H182: 0 | I182: 0 | J182: 0 | K182: 0 | L182: 0 | M182: 0 | N182: 0 | O182: 0 | P182: 0 | Q182: 0
A183: 0 | B183: 0 | C183: 0 | D183: 0 | E183: 0 | F183: 0 | G183: 0 | H183: 0 | I183: 0 | J183: 0 | K183: 0 | L183: 0 | M183: 0 | N183: 0 | O183: 0 | P183: 0 | Q183: 0
A184: 0 | B184: 0 | C184: 0 | D184: 0 | E184: 0 | F184: 0 | G184: 0 | H184: 0 | I184: 0 | J184: 0 | K184: 0 | L184: 0 | M184: 0 | N184: 0 | O184: 0 | P184: 0 | Q184: 0
A185: 0 | B185: 0 | C185: 0 | D185: 0 | E185: 0 | F185: 0 | G185: 0 | H185: 0 | I185: 0 | J185: 0 | K185: 0 | L185: 0 | M185: 0 | N185: 0 | O185: 0 | P185: 0 | Q185: 0
A186: 0 | B186: 0 | C186: 0 | D186: 0 | E186: 0 | F186: 0 | G186: 0 | H186: 0 | I186: 0 | J186: 0 | K186: 0 | L186: 0 | M186: 0 | N186: 0 | O186: 0 | P186: 0 | Q186: 0
A187: 0 | B187: 0 | C187: 0 | D187: 0 | E187: 0 | F187: 0 | G187: 0 | H187: 0 | I187: 0 | J187: 0 | K187: 0 | L187: 0 | M187: 0 | N187: 0 | O187: 0 | P187: 0 | Q187: 0
A188: 0 | B188: 0 | C188: 0 | D188: 0 | E188: 0 | F188: 0 | G188: 0 | H188: 0 | I188: 0 | J188: 0 | K188: 0 | L188: 0 | M188: 0 | N188: 0 | O188: 0 | P188: 0 | Q188: 0
A189: 0 | B189: 0 | C189: 0 | D189: 0 | E189: 0 | F189: 0 | G189: 0 | H189: 0 | I189: 0 | J189: 0 | K189: 0 | L189: 0 | M189: 0 | N189: 0 | O189: 0 | P189: 0 | Q189: 0
A190: 0 | B190: 0 | C190: 0 | D190: 0 | E190: 0 | F190: 0 | G190: 0 | H190: 0 | I190: 0 | J190: 0 | K190: 0 | L190: 0 | M190: 0 | N190: 0 | O190: 0 | P190: 0 | Q190: 0
A191: 0 | B191: 0 | C191: 0 | D191: 0 | E191: 0 | F191: 0 | G191: 0 | H191: 0 | I191: 0 | J191: 0 | K191: 0 | L191: 0 | M191: 0 | N191: 0 | O191: 0 | P191: 0 | Q191: 0
A192: 0 | B192: 0 | C192: 0 | D192: 0 | E192: 0 | F192: 0 | G192: 0 | H192: 0 | I192: 0 | J192: 0 | K192: 0 | L192: 0 | M192: 0 | N192: 0 | O192: 0 | P192: 0 | Q192: 0
A193: 0 | B193: 0 | C193: 0 | D193: 0 | E193: 0 | F193: 0 | G193: 0 | H193: 0 | I193: 0 | J193: 0 | K193: 0 | L193: 0 | M193: 0 | N193: 0 | O193: 0 | P193: 0 | Q193: 0
A194: 0 | B194: 0 | C194: 0 | D194: 0 | E194: 0 | F194: 0 | G194: 0 | H194: 0 | I194: 0 | J194: 0 | K194: 0 | L194: 0 | M194: 0 | N194: 0 | O194: 0 | P194: 0 | Q194: 0
A195: 0 | B195: 0 | C195: 0 | D195: 0 | E195: 0 | F195: 0 | G195: 0 | H195: 0 | I195: 0 | J195: 0 | K195: 0 | L195: 0 | M195: 0 | N195: 0 | O195: 0 | P195: 0 | Q195: 0
A196: 0 | B196: 0 | C196: 0 | D196: 0 | E196: 0 | F196: 0 | G196: 0 | H196: 0 | I196: 0 | J196: 0 | K196: 0 | L196: 0 | M196: 0 | N196: 0 | O196: 0 | P196: 0 | Q196: 0
A197: 0 | B197: 0 | C197: 0 | D197: 0 | E197: 0 | F197: 0 | G197: 0 | H197: 0 | I197: 0 | J197: 0 | K197: 0 | L197: 0 | M197: 0 | N197: 0 | O197: 0 | P197: 0 | Q197: 0
A198: 0 | B198: 0 | C198: 0 | D198: 0 | E198: 0 | F198: 0 | G198: 0 | H198: 0 | I198: 0 | J198: 0 | K198: 0 | L198: 0 | M198: 0 | N198: 0 | O198: 0 | P198: 0 | Q198: 0
A199: 0 | B199: 0 | C199: 0 | D199: 0 | E199: 0 | F199: 0 | G199: 0 | H199: 0 | I199: 0 | J199: 0 | K199: 0 | L199: 0 | M199: 0 | N199: 0 | O199: 0 | P199: 0 | Q199: 0
A200: 0 | B200: 0 | C200: 0 | D200: 0 | E200: 0 | F200: 0 | G200: 0 | H200: 0 | I200: 0 | J200: 0 | K200: 0 | L200: 0 | M200: 0 | N200: 0 | O200: 0 | P200: 0 | Q200: 0
... 16 more rows

Sheet Bio Enrollment (hidden)
A3: Count of STUDENT_ID
A4: CLASS_SCHOOL | B4: S_SCHL_NAME | C4: Total
A5: 0241 | B5: RUTH K BROAD/BAY HARBOR K-8 | C5: 6
A6: 0950 | B6: AVENTURA CITY OF EXCELLENCE | C6: 24
A7: 1331 | B7: DEVON AIRE K-8 CENTER | C7: 18
A8: 3029 | B8: DORAL ACADEMY OF TECHNOLOGY | C8: 3
A9: 3101 | B9: FRANK C. MARTIN K-8 CENTER | C9: 55
A10: 3281 | B10: MIAMI LAKES K-8 CENTER | C10: 41
A11: 3610 | B11: KEYS GATE CHARTER SCHOOL | C11: 71
A12: 6001 | B12: HERBERT A. AMMONS MIDDLE | C12: 55
A13: 6012 | B13: MATER ACADEMY CHARTER MIDDLE | C13: 197
A14: 6021 | B14: ARVIDA MIDDLE SCHOOL | C14: 82
A15: 6022 | B15: PINECREST ACADEMY CHARTER MIDD | C15: 110
A16: 6023 | B16: ANDOVER MIDDLE SCHOOL | C16: 22
A17: 6030 | B17: DORAL ACADEMY CHARTER MIDDLE | C17: 1
A18: 6033 | B18: MATER ACADEMY LAKES MIDDLE | C18: 23
A19: 6040 | B19: DOCTORS CHARTER/MIAMI SHORES | C19: 83
A20: 6042 | B20: MATER GARDENS ACADEMY MIDDLE | C20: 46
A21: 6053 | B21: SOMERSET ACAD MIDDLE (S-MIAMI) | C21: 28
A22: 6071 | B22: GEORGE WASHINGTON CARVER | C22: 20
A23: 6081 | B23: CENTENNIAL MIDDLE | C23: 24
A24: 6111 | B24: CUTLER RIDGE MIDDLE | C24: 14
A25: 6211 | B25: GLADES MIDDLE | C25: 34
A26: 6241 | B26: HIGHLAND OAKS MIDDLE | C26: 43
A27: 6431 | B27: MAYS MIDDLE | C27: 2
A28: 6441 | B28: HOWARD D. MCMILLAN MIDDLE | C28: 50
A29: 6521 | B29: MIAMI SPRINGS MIDDLE | C29: 25
A30: 6541 | B30: NAUTILUS MIDDLE | C30: 45
A31: 6751 | B31: HIALEAH GARDENS MIDDLE SCHOOL | C31: 228
A32: 6821 | B32: ROCKWAY MIDDLE | C32: 42
A33: 6841 | B33: SHENANDOAH MIDDLE | C33: 29
A34: 6861 | B34: SOUTHWOOD MIDDLE | C34: 1
A35: 6901 | B35: W. R. THOMAS MIDDLE | C35: 37
A36: 7001 | B36: MIAMI-DADE ONLINE ACADEMY | C36: 27
A37: 7007 | B37: INTL. STUDIES CHARTER SENIOR | C37: 94
A38: 7009 | B38: DORAL PERFORMING ARTS ACADEMY | C38: 86
A39: 7011 | B39: AMERICAN SENIOR | C39: 490
A40: 7014 | B40: MATER PERFORMING ARTS ACADEMY | C40: 24
A41: 7015 | B41: STELLAR LEADERSHIP ACADEMY | C41: 154
A42: 7016 | B42: SPORTS LEADERSHIP OF MIAMI CHS | C42: 11
A43: 7018 | B43: MATER ACADEMY LAKES HIGH SCH | C43: 226
A44: 7020 | B44: DORAL ACADEMY HIGH SCHOOL | C44: 408
A45: 7022 | B45: ACADEMY OF ARTS AND MINDS | C45: 69
A46: 7024 | B46: MATER ACADEMY HIGH-INTL STUDIE | C46: 12
A47: 7029 | B47: TERRA ENVIRONMENTAL RESEARCH | C47: 611
A48: 7030 | B48: INTEGRATED ACADEMICS (SIATECH) | C48: 34
A49: 7033 | B49: LAW ENFORCEMENT OFFICERS HS | C49: 80
A50: 7034 | B50: SOMERSET ACAD HIGH SOUTH-HMSTD | C50: 20
A51: 7036 | B51: LAWRENCE ACADEMY SENIOR | C51: 11
A52: 7037 | B52: MATER ACADEMY EAST HIGH SCHOOL | C52: 116
A53: 7038 | B53: SOMERSET ACADEMY HIGH (SOUTH) | C53: 1
A54: 7042 | B54: SOMERSET ACADEMY CHARTER HIGH | C54: 77
A55: 7048 | B55: ALONZO & TRACY MOURNING SH | C55: 477
A56: 7049 | B56: WESTLAND HIALEAH SENIOR HIGH | C56: 548
A57: 7050 | B57: KEYS GATE CHARTER HIGH SCHL | C57: 256
A58: 7051 | B58: G. HOLMES BRADDOCK SENIOR HIGH | C58: 839
A59: 7053 | B59: PINECREST ACADEMY CHARTER HIGH | C59: 128
A60: 7054 | B60: EXCELSIOR CHARTER HIGH SCHOOL | C60: 27
A61: 7055 | B61: YOUNG WOMEN'S PREPARATORY ACAD | C61: 50
A62: 7056 | B62: YOUNG MENS PREPARATORY ACADEMY | C62: 25
A63: 7058 | B63: MIAMI COMMUNITY CH HIGH SCHOOL | C63: 29
A64: 7059 | B64: MIAMI ARTS CHARTER | C64: 103
A65: 7060 | B65: EVERGLADES PREP ACADEMY HIGH | C65: 169
A66: 7065 | B66: MAVERICKS HIGH OF SOUTH M-DADE | C66: 19
A67: 7067 | B67: GREEN SPRINGS HIGH SCHOOL | C67: 65
A68: 7068 | B68: NORTH GARDENS HIGH SCHOOL | C68: 13
A69: 7069 | B69: NORTH PARK HIGH SCHOOL | C69: 39
A70: 7070 | B70: YOUTH CO-OP PREP HIGH SCHOOL | C70: 67
A71: 7071 | B71: CORAL GABLES SENIOR HIGH | C71: 895
A72: 7080 | B72: CHARTER HS OF THE AMERICAS | C72: 15
A73: 7081 | B73: DESIGN & ARCHITECTURE SENIOR | C73: 122
A74: 7101 | B74: CORAL REEF SENIOR HIGH | C74: 681
A75: 7111 | B75: HIALEAH SENIOR | C75: 753
A76: 7121 | B76: JOHN A FERGUSON SENIOR HIGH | C76: 1083
A77: 7131 | B77: HIALEAH-MIAMI LAKES SENIOR | C77: 459
A78: 7141 | B78: DR MICHAEL M KROP SENIOR HIGH | C78: 655
A79: 7151 | B79: HOMESTEAD SENIOR HIGH | C79: 505
A80: 7160 | B80: MATER ACADEMY CHARTER HIGH | C80: 174
A81: 7161 | B81: MAST @ VIRGINIA KEY | C81: 154
A82: 7171 | B82: MED ACAD SCIENCE & TECHNOLOGY | C82: 209
A83: 7191 | B83: HIALEAH GARDENS SENIOR | C83: 844
A84: 7201 | B84: MIAMI BEACH SENIOR HIGH | C84: 597
A85: 7231 | B85: MIAMI CAROL CITY SENIOR HIGH | C85: 472
A86: 7241 | B86: RONALD W REAGAN/DORAL SENIOR | C86: 330
A87: 7251 | B87: MIAMI CENTRAL SENIOR HIGH | C87: 427
A88: 7262 | B88: CITY OF HIALEAH EDUCATION ACAD | C88: 38
A89: 7265 | B89: ARCHIMEDEAN UPPER CONSERV CHAR | C89: 22
A90: 7271 | B90: MIAMI CORAL PARK SENIOR HIGH | C90: 649
A91: 7291 | B91: JOSE MARTI MAST 6-12 ACADEMY | C91: 39
A92: 7301 | B92: MIAMI EDISON SENIOR HIGH | C92: 211
A93: 7341 | B93: MIAMI JACKSON SENIOR HIGH | C93: 366
A94: 7351 | B94: ARTHUR AND POLLY MAYS CONSERVA | C94: 91
A95: 7361 | B95: MIAMI KILLIAN SENIOR HIGH | C95: 563
A96: 7371 | B96: ROBERT MORGAN EDUCATIONAL CTR | C96: 528
A97: 7381 | B97: MIAMI NORLAND SENIOR HIGH | C97: 390
A98: 7391 | B98: MIAMI LAKES EDUCATIONAL CENTER | C98: 185
A99: 7411 | B99: MIAMI NORTHWESTERN SENIOR HIGH | C99: 365
A100: 7431 | B100: MIAMI PALMETTO SENIOR HIGH | C100: 664
A101: 7461 | B101: MIAMI SENIOR HIGH | C101: 677
A102: 7511 | B102: MIAMI SPRINGS SENIOR HIGH | C102: 455
A103: 7531 | B103: MIAMI SUNSET SENIOR HIGH | C103: 452
A104: 7541 | B104: NORTH MIAMI BEACH SENIOR HIGH | C104: 511
A105: 7571 | B105: INTL STUDIES PREP ACADEMY | C105: 89
A106: 7581 | B106: IPREPARATORY ACADEMY | C106: 77
A107: 7591 | B107: NORTH MIAMI SENIOR HIGH | C107: 722
A108: 7601 | B108: WILLIAM H. TURNER TECHNICAL | C108: 411
A109: 7631 | B109: MIAMI MACARTHUR SOUTH | C109: 6
A110: 7701 | B110: SOUTH DADE SENIOR HIGH | C110: 798
A111: 7721 | B111: SOUTH MIAMI SENIOR HIGH | C111: 554
A112: 7731 | B112: MIAMI SOUTHRIDGE SENIOR HIGH | C112: 567
A113: 7741 | B113: SOUTHWEST MIAMI SENIOR HIGH | C113: 782
A114: 7751 | B114: BARBARA GOLEMAN SENIOR HIGH | C114: 480
A115: 7781 | B115: FELIX VARELA SENIOR HIGH | C115: 884
A116: 7791 | B116: BOOKER T. WASHINGTON SR. HIGH | C116: 219
A117: 7901 | B117: NEW WORLD SCHOOL OF THE ARTS | C117: 125
A118: 8014 | B118: ALTERNATIVE OUTREACH-EXT. YR | C118: 38
A119: 8017 | B119: ALTERNATIVE OUTREACH PROGRAM | C119: 51
A120: 8019 | B120: ACADEMY FOR COMMUNITY ED | C120: 28
A121: 8101 | B121: JAN MANN OPPORTUNITY SCHOOL | C121: 7
A122: 8121 | B122: COPE CENTER NORTH | C122: 25
A123: 8131 | B123: DOROTHY M WALLACE COPE CENTER | C123: 25
A124: 8141 | B124: JUVENILE JUSTICE CENTER | C124: 11
A125: 8151 | B125: ROBERT RENICK EDUCATION CTR | C125: 7
A126: 8181 | B126: RUTH OWENS KRUSE' EDUC CENTER | C126: 10
A127: 9732 | B127: MERRICK EDUCATIONAL CENTER | C127: 24
A129: 9999 | B129: District | C129: 27385

Sheet USH Enrollment (hidden)
A3: Count of STUDENT_ID
A4: CLASS_SCHOOL | B4: S_SCHL_NAME | C4: Total
A5: 5006 | B5: EVERGLADES PREPARATORY ACADEMY | C5: 88
A6: 6040 | B6: DOCTORS CHARTER/MIAMI SHORES | C6: 64
A7: 7001 | B7: MIAMI-DADE ONLINE ACADEMY | C7: 23
A8: 7007 | B8: INTL. STUDIES CHARTER SENIOR | C8: 94
A9: 7009 | B9: DORAL PERFORMING ARTS ACADEMY | C9: 38
A10: 7011 | B10: AMERICAN SENIOR | C10: 424
A11: 7015 | B11: STELLAR LEADERSHIP ACADEMY | C11: 102
A12: 7018 | B12: MATER ACADEMY LAKES HIGH SCH | C12: 155
A13: 7020 | B13: DORAL ACADEMY HIGH SCHOOL | C13: 205
A14: 7022 | B14: ACADEMY OF ARTS AND MINDS | C14: 89
A15: 7029 | B15: TERRA ENVIRONMENTAL RESEARCH | C15: 195
A16: 7030 | B16: INTEGRATED ACADEMICS (SIATECH) | C16: 46
A17: 7033 | B17: LAW ENFORCEMENT OFFICERS HS | C17: 52
A18: 7034 | B18: SOMERSET ACAD HIGH SOUTH-HMSTD | C18: 17
A19: 7036 | B19: LAWRENCE ACADEMY SENIOR | C19: 18
A20: 7037 | B20: MATER ACADEMY EAST HIGH SCHOOL | C20: 62
A21: 7042 | B21: SOMERSET ACADEMY CHARTER HIGH | C21: 79
A22: 7048 | B22: ALONZO & TRACY MOURNING SH | C22: 413
A23: 7049 | B23: WESTLAND HIALEAH SENIOR HIGH | C23: 439
A24: 7050 | B24: KEYS GATE CHARTER HIGH SCHL | C24: 147
A25: 7051 | B25: G. HOLMES BRADDOCK SENIOR HIGH | C25: 616
A26: 7053 | B26: PINECREST ACADEMY CHARTER HIGH | C26: 39
A27: 7054 | B27: EXCELSIOR CHARTER HIGH SCHOOL | C27: 16
A28: 7056 | B28: YOUNG MENS PREPARATORY ACADEMY | C28: 19
A29: 7058 | B29: MIAMI COMMUNITY CH HIGH SCHOOL | C29: 30
A30: 7059 | B30: MIAMI ARTS CHARTER | C30: 59
A31: 7061 | B31: SCHOOL FOR ADVANCED STUDIES NO | C31: 1
A32: 7065 | B32: MAVERICKS HIGH OF SOUTH M-DADE | C32: 14
A33: 7067 | B33: GREEN SPRINGS HIGH SCHOOL | C33: 78
A34: 7068 | B34: NORTH GARDENS HIGH SCHOOL | C34: 28
A35: 7069 | B35: NORTH PARK HIGH SCHOOL | C35: 43
A36: 7071 | B36: CORAL GABLES SENIOR HIGH | C36: 582
A37: 7081 | B37: DESIGN & ARCHITECTURE SENIOR | C37: 93
A38: 7101 | B38: CORAL REEF SENIOR HIGH | C38: 439
A39: 7111 | B39: HIALEAH SENIOR | C39: 748
A40: 7121 | B40: JOHN A FERGUSON SENIOR HIGH | C40: 877
A41: 7131 | B41: HIALEAH-MIAMI LAKES SENIOR | C41: 347
A42: 7141 | B42: DR MICHAEL M KROP SENIOR HIGH | C42: 557
A43: 7151 | B43: HOMESTEAD SENIOR HIGH | C43: 407
A44: 7160 | B44: MATER ACADEMY CHARTER HIGH | C44: 280
A45: 7161 | B45: MAST @ VIRGINIA KEY | C45: 37
A46: 7171 | B46: MED ACAD SCIENCE & TECHNOLOGY | C46: 70
A47: 7191 | B47: HIALEAH GARDENS SENIOR | C47: 541
A48: 7201 | B48: MIAMI BEACH SENIOR HIGH | C48: 473
A49: 7231 | B49: MIAMI CAROL CITY SENIOR HIGH | C49: 420
A50: 7241 | B50: RONALD W REAGAN/DORAL SENIOR | C50: 447
A51: 7251 | B51: MIAMI CENTRAL SENIOR HIGH | C51: 415
A52: 7262 | B52: CITY OF HIALEAH EDUCATION ACAD | C52: 103
A53: 7265 | B53: ARCHIMEDEAN UPPER CONSERV CHAR | C53: 18
A54: 7271 | B54: MIAMI CORAL PARK SENIOR HIGH | C54: 663
A55: 7301 | B55: MIAMI EDISON SENIOR HIGH | C55: 233
A56: 7341 | B56: MIAMI JACKSON SENIOR HIGH | C56: 236
A57: 7351 | B57: ARTHUR AND POLLY MAYS CONSERVA | C57: 61
A58: 7361 | B58: MIAMI KILLIAN SENIOR HIGH | C58: 518
A59: 7371 | B59: ROBERT MORGAN EDUCATIONAL CTR | C59: 389
A60: 7381 | B60: MIAMI NORLAND SENIOR HIGH | C60: 404
A61: 7391 | B61: MIAMI LAKES EDUCATIONAL CENTER | C61: 322
A62: 7411 | B62: MIAMI NORTHWESTERN SENIOR HIGH | C62: 369
A63: 7431 | B63: MIAMI PALMETTO SENIOR HIGH | C63: 458
A64: 7461 | B64: MIAMI SENIOR HIGH | C64: 653
A65: 7511 | B65: MIAMI SPRINGS SENIOR HIGH | C65: 402
A66: 7531 | B66: MIAMI SUNSET SENIOR HIGH | C66: 493
A67: 7541 | B67: NORTH MIAMI BEACH SENIOR HIGH | C67: 407
A68: 7571 | B68: INTL STUDIES PREP ACADEMY | C68: 25
A69: 7591 | B69: NORTH MIAMI SENIOR HIGH | C69: 539
A70: 7601 | B70: WILLIAM H. TURNER TECHNICAL | C70: 262
A71: 7631 | B71: MIAMI MACARTHUR SOUTH | C71: 10
A72: 7701 | B72: SOUTH DADE SENIOR HIGH | C72: 696
A73: 7721 | B73: SOUTH MIAMI SENIOR HIGH | C73: 469
A74: 7731 | B74: MIAMI SOUTHRIDGE SENIOR HIGH | C74: 459
A75: 7741 | B75: SOUTHWEST MIAMI SENIOR HIGH | C75: 647
A76: 7751 | B76: BARBARA GOLEMAN SENIOR HIGH | C76: 354
A77: 7781 | B77: FELIX VARELA SENIOR HIGH | C77: 597
A78: 7791 | B78: BOOKER T. WASHINGTON SR. HIGH | C78: 194
A79: 7901 | B79: NEW WORLD SCHOOL OF THE ARTS | C79: 79
A80: 8014 | B80: ALTERNATIVE OUTREACH-EXT. YR | C80: 59
A81: 8017 | B81: ALTERNATIVE OUTREACH PROGRAM | C81: 48
A82: 8019 | B82: ACADEMY FOR COMMUNITY ED | C82: 27
A83: 8101 | B83: JAN MANN OPPORTUNITY SCHOOL | C83: 3
A84: 8121 | B84: COPE CENTER NORTH | C84: 44
A85: 8131 | B85: DOROTHY M WALLACE COPE CENTER | C85: 26
A86: 8141 | B86: JUVENILE JUSTICE CENTER | C86: 13
A87: 8151 | B87: ROBERT RENICK EDUCATION CTR | C87: 7
A88: 8181 | B88: RUTH OWENS KRUSE' EDUC CENTER | C88: 12
A89: 9732 | B89: MERRICK EDUCATIONAL CENTER | C89: 27
A91: 9999 | B91: DISTRICT | C91: 20752

Sheet Mem_All (hidden)
A1: 1 | B1: 2 | C1: 3 | D1: 4 | E1: 5 | F1: 6 | G1: 7 | H1: 8 | I1: 9 | J1: 10 | K1: 11 | L1: 12 | M1: 13 | N1: 14 | O1: 15 | P1: 16 | Q1: 17 | R1: GR10Reading exclude Retainee
A2: SCHOOL_NUMBER | B2: S_SCHL_NAME | C2: Total Of STUDENT_ID | D2: 00 | E2: 01 | F2: 02 | G2: 03 | H2: 04 | I2: 05 | J2: 06 | K2: 07 | L2: 08 | M2: 09 | N2: 10 | O2: 11 | P2: 12 | Q2: PK | R2: =N2-IFERROR(VLOOKUP(TEXT(A2,"0000"),G10RPassingR!$A$2:$S$200,4,FALSE),0) -> 10
A3: 0041 | B3: AIR BASE ELEMENTARY | C3: 741 | D3: 99 | E3: 107 | F3: 117 | G3: 113 | H3: 115 | I3: 119 | Q3: 71 | R3: =N3-IFERROR(VLOOKUP(TEXT(A3,"0000"),G10RPassingR!$A$2:$S$200,4,FALSE),0) -> 0
A4: 0070 | B4: CORAL REEF MONTESSORI ACAD CH | C4: 413 | D4: 71 | E4: 54 | F4: 58 | G4: 56 | H4: 43 | I4: 41 | J4: 28 | K4: 31 | L4: 31 | R4: =N4-IFERROR(VLOOKUP(TEXT(A4,"0000"),G10RPassingR!$A$2:$S$200,4,FALSE),0) -> 0
A5: 0071 | B5: EUGENIA B. THOMAS K-8 CENTER | C5: 1603 | D5: 146 | E5: 194 | F5: 179 | G5: 193 | H5: 186 | I5: 169 | J5: 148 | K5: 165 | L5: 181 | Q5: 42 | R5: =N5-IFERROR(VLOOKUP(TEXT(A5,"0000"),G10RPassingR!$A$2:$S$200,4,FALSE),0) -> 0
A6: 0072 | B6: SUMMERVILLE CHARTER SCHOOL | C6: 433 | E6: 104 | F6: 75 | G6: 84 | H6: 82 | I6: 88 | R6: =N6-IFERROR(VLOOKUP(TEXT(A6,"0000"),G10RPassingR!$A$2:$S$200,4,FALSE),0) -> 0
A7: 0073 | B7: MANDARIN LAKES K-8 CENTER | C7: 1120 | D7: 125 | E7: 149 | F7: 135 | G7: 153 | H7: 120 | I7: 122 | J7: 123 | K7: 80 | L7: 113 | R7: =N7-IFERROR(VLOOKUP(TEXT(A7,"0000"),G10RPassingR!$A$2:$S$200,4,FALSE),0) -> 0
A8: 0081 | B8: LENORA B. SMITH ELEMENTARY | C8: 429 | D8: 63 | E8: 63 | F8: 66 | G8: 80 | H8: 60 | I8: 59 | Q8: 38 | R8: =N8-IFERROR(VLOOKUP(TEXT(A8,"0000"),G10RPassingR!$A$2:$S$200,4,FALSE),0) -> 0
A9: 0091 | B9: BOB GRAHAM EDUCATION CTR | C9: 1721 | D9: 128 | E9: 139 | F9: 162 | G9: 192 | H9: 215 | I9: 194 | J9: 218 | K9: 232 | L9: 241 | R9: =N9-IFERROR(VLOOKUP(TEXT(A9,"0000"),G10RPassingR!$A$2:$S$200,4,FALSE),0) -> 0
A10: 0092 | B10: NORMAN S. EDELCUP/SUNNY ISLES | C10: 1769 | D10: 192 | E10: 202 | F10: 204 | G10: 220 | H10: 206 | I10: 169 | J10: 185 | K10: 194 | L10: 197 | R10: =N10-IFERROR(VLOOKUP(TEXT(A10,"0000"),G10RPassingR!$A$2:$S$200,4,FALSE),0) -> 0
A11: 0100 | B11: MATER ACADEMY | C11: 745 | D11: 125 | E11: 94 | F11: 149 | G11: 127 | H11: 123 | I11: 127 | R11: =N11-IFERROR(VLOOKUP(TEXT(A11,"0000"),G10RPassingR!$A$2:$S$200,4,FALSE),0) -> 0
A12: 0101 | B12: ARCOLA LAKE ELEMENTARY | C12: 481 | D12: 62 | E12: 71 | F12: 68 | G12: 67 | H12: 57 | I12: 84 | Q12: 72 | R12: =N12-IFERROR(VLOOKUP(TEXT(A12,"0000"),G10RPassingR!$A$2:$S$200,4,FALSE),0) -> 0
A13: 0102 | B13: MIAMI COMMUNITY CHARTER SCHOOL | C13: 517 | D13: 98 | E13: 95 | F13: 94 | G13: 89 | H13: 72 | I13: 69 | R13: =N13-IFERROR(VLOOKUP(TEXT(A13,"0000"),G10RPassingR!$A$2:$S$200,4,FALSE),0) -> 0
A14: 0111 | B14: MAYA ANGELOU ELEMENTARY | C14: 671 | D14: 141 | E14: 116 | F14: 93 | G14: 91 | H14: 79 | I14: 94 | Q14: 57 | R14: =N14-IFERROR(VLOOKUP(TEXT(A14,"0000"),G10RPassingR!$A$2:$S$200,4,FALSE),0) -> 0
A15: 0121 | B15: AUBURNDALE ELEMENTARY | C15: 820 | D15: 96 | E15: 147 | F15: 137 | G15: 129 | H15: 131 | I15: 133 | Q15: 47 | R15: =N15-IFERROR(VLOOKUP(TEXT(A15,"0000"),G10RPassingR!$A$2:$S$200,4,FALSE),0) -> 0
A16: 0122 | B16: DR ROLANDO ESPINOSA K-8 | C16: 1658 | D16: 151 | E16: 171 | F16: 183 | G16: 185 | H16: 205 | I16: 171 | J16: 186 | K16: 195 | L16: 192 | Q16: 19 | R16: =N16-IFERROR(VLOOKUP(TEXT(A16,"0000"),G10RPassingR!$A$2:$S$200,4,FALSE),0) -> 0
A17: 0125 | B17: NORMA BUTLER BOSSARD ELEM | C17: 1255 | D17: 196 | E17: 204 | F17: 174 | G17: 230 | H17: 206 | I17: 226 | Q17: 19 | R17: =N17-IFERROR(VLOOKUP(TEXT(A17,"0000"),G10RPassingR!$A$2:$S$200,4,FALSE),0) -> 0
A18: 0161 | B18: AVOCADO ELEMENTARY | C18: 570 | D18: 134 | E18: 144 | F18: 151 | G18: 141 | R18: =N18-IFERROR(VLOOKUP(TEXT(A18,"0000"),G10RPassingR!$A$2:$S$200,4,FALSE),0) -> 0
A19: 0201 | B19: BANYAN ELEMENTARY | C19: 354 | D19: 51 | E19: 62 | F19: 63 | G19: 35 | H19: 57 | I19: 52 | Q19: 34 | R19: =N19-IFERROR(VLOOKUP(TEXT(A19,"0000"),G10RPassingR!$A$2:$S$200,4,FALSE),0) -> 0
A20: 0211 | B20: DR. MANUEL C. BARREIRO ELEM | C20: 820 | D20: 104 | E20: 119 | F20: 123 | G20: 131 | H20: 162 | I20: 162 | Q20: 19 | R20: =N20-IFERROR(VLOOKUP(TEXT(A20,"0000"),G10RPassingR!$A$2:$S$200,4,FALSE),0) -> 0
A21: 0231 | B21: AVENTURA WATERWAYS K-8 CENTER | C21: 1867 | D21: 211 | E21: 230 | F21: 207 | G21: 205 | H21: 212 | I21: 198 | J21: 204 | K21: 187 | L21: 213 | R21: =N21-IFERROR(VLOOKUP(TEXT(A21,"0000"),G10RPassingR!$A$2:$S$200,4,FALSE),0) -> 0
A22: 0241 | B22: RUTH K BROAD/BAY HARBOR K-8 | C22: 1248 | D22: 123 | E22: 122 | F22: 156 | G22: 144 | H22: 161 | I22: 122 | J22: 162 | K22: 114 | L22: 125 | Q22: 19 | R22: =N22-IFERROR(VLOOKUP(TEXT(A22,"0000"),G10RPassingR!$A$2:$S$200,4,FALSE),0) -> 0
A23: 0251 | B23: ETHEL KOGER BECKHAM ELEMENTARY | C23: 708 | D23: 118 | E23: 112 | F23: 104 | G23: 116 | H23: 113 | I23: 107 | Q23: 38 | R23: =N23-IFERROR(VLOOKUP(TEXT(A23,"0000"),G10RPassingR!$A$2:$S$200,4,FALSE),0) -> 0
A24: 0261 | B24: BEL-AIRE ELEMENTARY | C24: 476 | D24: 82 | E24: 76 | F24: 76 | G24: 76 | H24: 60 | I24: 69 | Q24: 37 | R24: =N24-IFERROR(VLOOKUP(TEXT(A24,"0000"),G10RPassingR!$A$2:$S$200,4,FALSE),0) -> 0
A25: 0271 | B25: BENT TREE ELEMENTARY | C25: 554 | D25: 103 | E25: 72 | F25: 87 | G25: 83 | H25: 94 | I25: 98 | Q25: 17 | R25: =N25-IFERROR(VLOOKUP(TEXT(A25,"0000"),G10RPassingR!$A$2:$S$200,4,FALSE),0) -> 0
A26: 0311 | B26: GOULDS ELEMENTARY | C26: 607 | D26: 117 | E26: 121 | F26: 110 | G26: 84 | H26: 96 | I26: 79 | R26: =N26-IFERROR(VLOOKUP(TEXT(A26,"0000"),G10RPassingR!$A$2:$S$200,4,FALSE),0) -> 0
A27: 0312 | B27: MATER GARDENS ACADEMY | C27: 611 | D27: 99 | E27: 104 | F27: 101 | G27: 107 | H27: 99 | I27: 101 | R27: =N27-IFERROR(VLOOKUP(TEXT(A27,"0000"),G10RPassingR!$A$2:$S$200,4,FALSE),0) -> 0
A28: 0321 | B28: BISCAYNE ELEMENTARY | C28: 678 | D28: 99 | E28: 88 | F28: 92 | G28: 123 | H28: 105 | I28: 109 | Q28: 62 | R28: =N28-IFERROR(VLOOKUP(TEXT(A28,"0000"),G10RPassingR!$A$2:$S$200,4,FALSE),0) -> 0
A29: 0331 | B29: CHAPMAN PARTNERSHIP ECC NORTH | C29: 39 | Q29: 39 | R29: =N29-IFERROR(VLOOKUP(TEXT(A29,"0000"),G10RPassingR!$A$2:$S$200,4,FALSE),0) -> 0
A30: 0332 | B30: SOMERSET ACADEMY(SILVER PALMS) | C30: 639 | G30: 66 | H30: 46 | I30: 88 | J30: 165 | K30: 150 | L30: 124 | R30: =N30-IFERROR(VLOOKUP(TEXT(A30,"0000"),G10RPassingR!$A$2:$S$200,4,FALSE),0) -> 0
A31: 0339 | B31: SOMERSET ACADEMY CHARTER ELEM | C31: 318 | D31: 45 | E31: 60 | F31: 60 | G31: 60 | H31: 49 | I31: 44 | R31: =N31-IFERROR(VLOOKUP(TEXT(A31,"0000"),G10RPassingR!$A$2:$S$200,4,FALSE),0) -> 0
A32: 0341 | B32: ARCH CREEK ELEMENTARY SCHOOL | C32: 563 | D32: 74 | E32: 92 | F32: 93 | G32: 96 | H32: 103 | I32: 105 | R32: =N32-IFERROR(VLOOKUP(TEXT(A32,"0000"),G10RPassingR!$A$2:$S$200,4,FALSE),0) -> 0
A33: 0342 | B33: PINECREST ACADEMY SOUTH CAMPUS | C33: 746 | D33: 136 | E33: 134 | F33: 115 | G33: 127 | H33: 113 | I33: 121 | R33: =N33-IFERROR(VLOOKUP(TEXT(A33,"0000"),G10RPassingR!$A$2:$S$200,4,FALSE),0) -> 0
A34: 0351 | B34: CHAPMAN PARTNERSHIP ECC SOUTH | C34: 85 | Q34: 85 | R34: =N34-IFERROR(VLOOKUP(TEXT(A34,"0000"),G10RPassingR!$A$2:$S$200,4,FALSE),0) -> 0
A35: 0361 | B35: BISCAYNE GARDENS ELEMENTARY | C35: 606 | D35: 111 | E35: 93 | F35: 83 | G35: 90 | H35: 81 | I35: 81 | Q35: 67 | R35: =N35-IFERROR(VLOOKUP(TEXT(A35,"0000"),G10RPassingR!$A$2:$S$200,4,FALSE),0) -> 0
A36: 0400 | B36: RENAISSANCE ELEMENTARY CHARTER | C36: 911 | D36: 165 | E36: 154 | F36: 152 | G36: 157 | H36: 150 | I36: 133 | R36: =N36-IFERROR(VLOOKUP(TEXT(A36,"0000"),G10RPassingR!$A$2:$S$200,4,FALSE),0) -> 0
A37: 0401 | B37: VAN E. BLANTON ELEMENTARY | C37: 555 | D37: 86 | E37: 85 | F37: 89 | G37: 102 | H37: 73 | I37: 82 | Q37: 38 | R37: =N37-IFERROR(VLOOKUP(TEXT(A37,"0000"),G10RPassingR!$A$2:$S$200,4,FALSE),0) -> 0
A38: 0410 | B38: ACADEMIR CHARTER SCHOOL WEST | C38: 613 | D38: 95 | E38: 162 | F38: 124 | G38: 113 | H38: 64 | I38: 55 | R38: =N38-IFERROR(VLOOKUP(TEXT(A38,"0000"),G10RPassingR!$A$2:$S$200,4,FALSE),0) -> 0
A39: 0441 | B39: BLUE LAKES ELEMENTARY | C39: 458 | D39: 54 | E39: 59 | F39: 60 | G39: 75 | H39: 74 | I39: 66 | Q39: 70 | R39: =N39-IFERROR(VLOOKUP(TEXT(A39,"0000"),G10RPassingR!$A$2:$S$200,4,FALSE),0) -> 0
A40: 0451 | B40: BOWMAN ASHE/DOOLIN K-8 ACAD | C40: 1397 | D40: 138 | E40: 108 | F40: 120 | G40: 122 | H40: 148 | I40: 139 | J40: 148 | K40: 200 | L40: 225 | Q40: 49 | R40: =N40-IFERROR(VLOOKUP(TEXT(A40,"0000"),G10RPassingR!$A$2:$S$200,4,FALSE),0) -> 0
A41: 0461 | B41: BRENTWOOD ELEMENTARY | C41: 790 | D41: 130 | E41: 119 | F41: 122 | G41: 141 | H41: 102 | I41: 120 | Q41: 56 | R41: =N41-IFERROR(VLOOKUP(TEXT(A41,"0000"),G10RPassingR!$A$2:$S$200,4,FALSE),0) -> 0
A42: 0481 | B42: JAMES H. BRIGHT/JW JOHNSON ES | C42: 735 | D42: 86 | E42: 100 | F42: 112 | G42: 128 | H42: 118 | I42: 132 | Q42: 59 | R42: =N42-IFERROR(VLOOKUP(TEXT(A42,"0000"),G10RPassingR!$A$2:$S$200,4,FALSE),0) -> 0
A43: 0510 | B43: ARCHIMEDEAN ACADEMY | C43: 555 | D43: 79 | E43: 122 | F43: 103 | G43: 85 | H43: 80 | I43: 86 | R43: =N43-IFERROR(VLOOKUP(TEXT(A43,"0000"),G10RPassingR!$A$2:$S$200,4,FALSE),0) -> 0
A44: 0520 | B44: SOMERSET ACADEMY | C44: 570 | D44: 105 | E44: 100 | F44: 79 | G44: 103 | H44: 92 | I44: 91 | R44: =N44-IFERROR(VLOOKUP(TEXT(A44,"0000"),G10RPassingR!$A$2:$S$200,4,FALSE),0) -> 0
A45: 0521 | B45: BROADMOOR ELEMENTARY | C45: 457 | D45: 75 | E45: 69 | F45: 70 | G45: 62 | H45: 64 | I45: 71 | Q45: 46 | R45: =N45-IFERROR(VLOOKUP(TEXT(A45,"0000"),G10RPassingR!$A$2:$S$200,4,FALSE),0) -> 0
A46: 0561 | B46: W.J. BRYAN ELEMENTARY | C46: 742 | D46: 121 | E46: 123 | F46: 110 | G46: 126 | H46: 111 | I46: 121 | Q46: 30 | R46: =N46-IFERROR(VLOOKUP(TEXT(A46,"0000"),G10RPassingR!$A$2:$S$200,4,FALSE),0) -> 0
A47: 0600 | B47: PINECREST PREP ACADEMY | C47: 641 | D47: 75 | E47: 122 | F47: 110 | G47: 122 | H47: 113 | I47: 99 | R47: =N47-IFERROR(VLOOKUP(TEXT(A47,"0000"),G10RPassingR!$A$2:$S$200,4,FALSE),0) -> 0
A48: 0641 | B48: BUNCHE PARK ELEMENTARY | C48: 276 | D48: 39 | E48: 48 | F48: 41 | G48: 43 | H48: 36 | I48: 30 | Q48: 39 | R48: =N48-IFERROR(VLOOKUP(TEXT(A48,"0000"),G10RPassingR!$A$2:$S$200,4,FALSE),0) -> 0
A49: 0651 | B49: CAMPBELL DRIVE K-8 CENTER | C49: 749 | D49: 107 | E49: 104 | F49: 94 | G49: 96 | H49: 85 | I49: 100 | J49: 62 | K49: 60 | Q49: 41 | R49: =N49-IFERROR(VLOOKUP(TEXT(A49,"0000"),G10RPassingR!$A$2:$S$200,4,FALSE),0) -> 0
A50: 0661 | B50: CARIBBEAN ELEMENTARY | C50: 625 | D50: 105 | E50: 106 | F50: 91 | G50: 110 | H50: 80 | I50: 87 | Q50: 46 | R50: =N50-IFERROR(VLOOKUP(TEXT(A50,"0000"),G10RPassingR!$A$2:$S$200,4,FALSE),0) -> 0
A51: 0671 | B51: CALUSA ELEMENTARY | C51: 902 | D51: 135 | E51: 158 | F51: 123 | G51: 143 | H51: 159 | I51: 164 | Q51: 20 | R51: =N51-IFERROR(VLOOKUP(TEXT(A51,"0000"),G10RPassingR!$A$2:$S$200,4,FALSE),0) -> 0
A52: 0681 | B52: CAROL CITY ELEMENTARY | C52: 645 | D52: 100 | E52: 91 | F52: 122 | G52: 99 | H52: 85 | I52: 93 | Q52: 55 | R52: =N52-IFERROR(VLOOKUP(TEXT(A52,"0000"),G10RPassingR!$A$2:$S$200,4,FALSE),0) -> 0
A53: 0721 | B53: GEORGE WASHINGTON CARVER ELEM | C53: 453 | D53: 66 | E53: 80 | F53: 66 | G53: 84 | H53: 80 | I53: 77 | R53: =N53-IFERROR(VLOOKUP(TEXT(A53,"0000"),G10RPassingR!$A$2:$S$200,4,FALSE),0) -> 0
A54: 0761 | B54: FIENBERG/FISHER K-8 CENTER | C54: 829 | D54: 70 | E54: 75 | F54: 76 | G54: 82 | H54: 87 | I54: 89 | J54: 110 | K54: 91 | L54: 85 | Q54: 64 | R54: =N54-IFERROR(VLOOKUP(TEXT(A54,"0000"),G10RPassingR!$A$2:$S$200,4,FALSE),0) -> 0
A55: 0771 | B55: WILLIAM A. CHAPMAN ELEMENTARY | C55: 498 | D55: 92 | E55: 62 | F55: 69 | G55: 66 | H55: 53 | I55: 50 | Q55: 106 | R55: =N55-IFERROR(VLOOKUP(TEXT(A55,"0000"),G10RPassingR!$A$2:$S$200,4,FALSE),0) -> 0
A56: 0801 | B56: CITRUS GROVE ELEMENTARY | C56: 856 | D56: 120 | E56: 124 | F56: 141 | G56: 132 | H56: 150 | I56: 137 | Q56: 52 | R56: =N56-IFERROR(VLOOKUP(TEXT(A56,"0000"),G10RPassingR!$A$2:$S$200,4,FALSE),0) -> 0
A57: 0831 | B57: CLAUDE PEPPER ELEMENTARY | C57: 748 | D57: 93 | E57: 123 | F57: 109 | G57: 123 | H57: 115 | I57: 115 | Q57: 70 | R57: =N57-IFERROR(VLOOKUP(TEXT(A57,"0000"),G10RPassingR!$A$2:$S$200,4,FALSE),0) -> 0
A58: 0841 | B58: COCONUT GROVE ELEMENTARY | C58: 387 | D58: 76 | E58: 63 | F58: 53 | G58: 51 | H58: 60 | I58: 57 | Q58: 27 | R58: =N58-IFERROR(VLOOKUP(TEXT(A58,"0000"),G10RPassingR!$A$2:$S$200,4,FALSE),0) -> 0
A59: 0861 | B59: COLONIAL DRIVE ELEMENTARY | C59: 273 | D59: 40 | E59: 36 | F59: 41 | G59: 44 | H59: 30 | I59: 43 | Q59: 39 | R59: =N59-IFERROR(VLOOKUP(TEXT(A59,"0000"),G10RPassingR!$A$2:$S$200,4,FALSE),0) -> 0
A60: 0881 | B60: COMSTOCK ELEMENTARY | C60: 553 | D60: 86 | E60: 89 | F60: 73 | G60: 92 | H60: 83 | I60: 74 | Q60: 56 | R60: =N60-IFERROR(VLOOKUP(TEXT(A60,"0000"),G10RPassingR!$A$2:$S$200,4,FALSE),0) -> 0
A61: 0921 | B61: NEVA KING COOPER EDUCATIONAL | C61: 5 | D61: 1 | F61: 1 | I61: 1 | Q61: 2 | R61: =N61-IFERROR(VLOOKUP(TEXT(A61,"0000"),G10RPassingR!$A$2:$S$200,4,FALSE),0) -> 0
A62: 0950 | B62: AVENTURA CITY OF EXCELLENCE | C62: 984 | D62: 108 | E62: 108 | F62: 113 | G62: 107 | H62: 119 | I62: 109 | J62: 108 | K62: 108 | L62: 104 | R62: =N62-IFERROR(VLOOKUP(TEXT(A62,"0000"),G10RPassingR!$A$2:$S$200,4,FALSE),0) -> 0
A63: 0961 | B63: CORAL GABLES PREPARATORY ACAD | C63: 796 | D63: 86 | E63: 92 | F63: 87 | G63: 96 | H63: 104 | I63: 89 | J63: 70 | K63: 99 | L63: 53 | Q63: 20 | R63: =N63-IFERROR(VLOOKUP(TEXT(A63,"0000"),G10RPassingR!$A$2:$S$200,4,FALSE),0) -> 0
A64: 1001 | B64: CORAL PARK ELEMENTARY | C64: 1096 | D64: 163 | E64: 167 | F64: 154 | G64: 166 | H64: 168 | I64: 203 | Q64: 75 | R64: =N64-IFERROR(VLOOKUP(TEXT(A64,"0000"),G10RPassingR!$A$2:$S$200,4,FALSE),0) -> 0
A65: 1010 | B65: CHARTER SCHOOL AT WATERSTONE | C65: 900 | E65: 215 | F65: 193 | G65: 154 | H65: 164 | I65: 174 | R65: =N65-IFERROR(VLOOKUP(TEXT(A65,"0000"),G10RPassingR!$A$2:$S$200,4,FALSE),0) -> 0
A66: 1014 | B66: ADVANCED LEARNING CHARTER SCH | C66: 447 | D66: 52 | E66: 100 | F66: 100 | G66: 66 | H66: 68 | I66: 61 | R66: =N66-IFERROR(VLOOKUP(TEXT(A66,"0000"),G10RPassingR!$A$2:$S$200,4,FALSE),0) -> 0
A67: 1017 | B67: MATER ACADEMY OF INTL STUDIES | C67: 501 | D67: 124 | E67: 111 | F67: 86 | G67: 83 | H67: 45 | I67: 52 | R67: =N67-IFERROR(VLOOKUP(TEXT(A67,"0000"),G10RPassingR!$A$2:$S$200,4,FALSE),0) -> 0
A68: 1020 | B68: YOUTH CO-OP CHARTER SCHOOL | C68: 600 | D68: 85 | E68: 73 | F68: 57 | G68: 52 | H68: 42 | I68: 52 | J68: 63 | K68: 90 | L68: 86 | R68: =N68-IFERROR(VLOOKUP(TEXT(A68,"0000"),G10RPassingR!$A$2:$S$200,4,FALSE),0) -> 0
A69: 1041 | B69: CORAL REEF ELEMENTARY | C69: 818 | D69: 131 | E69: 104 | F69: 130 | G69: 134 | H69: 155 | I69: 146 | Q69: 18 | R69: =N69-IFERROR(VLOOKUP(TEXT(A69,"0000"),G10RPassingR!$A$2:$S$200,4,FALSE),0) -> 0
A70: 1070 | B70: SOUTH FLORIDA AUTISM CHARTER | C70: 36 | D70: 7 | E70: 3 | F70: 6 | G70: 7 | H70: 7 | J70: 5 | K70: 1 | R70: =N70-IFERROR(VLOOKUP(TEXT(A70,"0000"),G10RPassingR!$A$2:$S$200,4,FALSE),0) -> 0
A71: 1081 | B71: CORAL TERRACE ELEMENTARY | C71: 495 | D71: 71 | E71: 77 | F71: 85 | G71: 78 | H71: 77 | I71: 88 | Q71: 19 | R71: =N71-IFERROR(VLOOKUP(TEXT(A71,"0000"),G10RPassingR!$A$2:$S$200,4,FALSE),0) -> 0
A72: 1121 | B72: CORAL WAY K-8 CENTER | C72: 1527 | D72: 157 | E72: 154 | F72: 150 | G72: 171 | H72: 166 | I72: 186 | J72: 172 | K72: 162 | L72: 180 | Q72: 29 | R72: =N72-IFERROR(VLOOKUP(TEXT(A72,"0000"),G10RPassingR!$A$2:$S$200,4,FALSE),0) -> 0
A73: 1161 | B73: CRESTVIEW ELEMENTARY | C73: 499 | D73: 82 | E73: 63 | F73: 72 | G73: 94 | H73: 68 | I73: 101 | Q73: 19 | R73: =N73-IFERROR(VLOOKUP(TEXT(A73,"0000"),G10RPassingR!$A$2:$S$200,4,FALSE),0) -> 0
A74: 1241 | B74: CUTLER RIDGE ELEMENTARY | C74: 796 | D74: 115 | E74: 94 | F74: 123 | G74: 163 | H74: 152 | I74: 134 | Q74: 15 | R74: =N74-IFERROR(VLOOKUP(TEXT(A74,"0000"),G10RPassingR!$A$2:$S$200,4,FALSE),0) -> 0
A75: 1281 | B75: CYPRESS ELEMENTARY | C75: 340 | D75: 45 | E75: 60 | F75: 37 | G75: 50 | H75: 65 | I75: 64 | Q75: 19 | R75: =N75-IFERROR(VLOOKUP(TEXT(A75,"0000"),G10RPassingR!$A$2:$S$200,4,FALSE),0) -> 0
A76: 1331 | B76: DEVON AIRE K-8 CENTER | C76: 1539 | D76: 127 | E76: 174 | F76: 154 | G76: 158 | H76: 166 | I76: 174 | J76: 198 | K76: 180 | L76: 189 | Q76: 19 | R76: =N76-IFERROR(VLOOKUP(TEXT(A76,"0000"),G10RPassingR!$A$2:$S$200,4,FALSE),0) -> 0
A77: 1361 | B77: FREDERICK DOUGLASS ELEMENTARY | C77: 333 | D77: 38 | E77: 38 | F77: 36 | G77: 69 | H77: 32 | I77: 30 | Q77: 90 | R77: =N77-IFERROR(VLOOKUP(TEXT(A77,"0000"),G10RPassingR!$A$2:$S$200,4,FALSE),0) -> 0
A78: 1371 | B78: MARJORY STONEMAN DOUGLAS ELEM | C78: 1035 | D78: 135 | E78: 162 | F78: 154 | G78: 159 | H78: 162 | I78: 206 | Q78: 57 | R78: =N78-IFERROR(VLOOKUP(TEXT(A78,"0000"),G10RPassingR!$A$2:$S$200,4,FALSE),0) -> 0
A79: 1401 | B79: CHARLES R. DREW ELEMENTARY | C79: 353 | D79: 54 | E79: 36 | F79: 33 | G79: 35 | H79: 32 | I79: 39 | J79: 46 | Q79: 78 | R79: =N79-IFERROR(VLOOKUP(TEXT(A79,"0000"),G10RPassingR!$A$2:$S$200,4,FALSE),0) -> 0
A80: 1441 | B80: PAUL LAURENCE DUNBAR ELEM | C80: 403 | D80: 53 | E80: 60 | F80: 62 | G80: 60 | H80: 56 | I80: 57 | J80: 35 | Q80: 20 | R80: =N80-IFERROR(VLOOKUP(TEXT(A80,"0000"),G10RPassingR!$A$2:$S$200,4,FALSE),0) -> 0
A81: 1481 | B81: JOHN G. DUPUIS ELEMENTARY | C81: 712 | D81: 79 | E81: 92 | F81: 110 | G81: 107 | H81: 107 | I81: 131 | Q81: 86 | R81: =N81-IFERROR(VLOOKUP(TEXT(A81,"0000"),G10RPassingR!$A$2:$S$200,4,FALSE),0) -> 0
A82: 1521 | B82: AMELIA EARHART ELEMENTARY | C82: 424 | D82: 50 | E82: 51 | F82: 66 | G82: 79 | H82: 65 | I82: 73 | Q82: 40 | R82: =N82-IFERROR(VLOOKUP(TEXT(A82,"0000"),G10RPassingR!$A$2:$S$200,4,FALSE),0) -> 0
A83: 1561 | B83: EARLINGTON HEIGHTS ELEMENTARY | C83: 469 | D83: 79 | E83: 70 | F83: 93 | G83: 74 | H83: 72 | I83: 65 | Q83: 16 | R83: =N83-IFERROR(VLOOKUP(TEXT(A83,"0000"),G10RPassingR!$A$2:$S$200,4,FALSE),0) -> 0
A84: 1601 | B84: EDISON PARK ELEMENTARY | C84: 378 | D84: 63 | E84: 58 | F84: 64 | G84: 60 | H84: 43 | I84: 46 | J84: 25 | Q84: 19 | R84: =N84-IFERROR(VLOOKUP(TEXT(A84,"0000"),G10RPassingR!$A$2:$S$200,4,FALSE),0) -> 0
A85: 1641 | B85: EMERSON ELEMENTARY | C85: 403 | D85: 64 | E85: 69 | F85: 45 | G85: 80 | H85: 52 | I85: 73 | Q85: 20 | R85: =N85-IFERROR(VLOOKUP(TEXT(A85,"0000"),G10RPassingR!$A$2:$S$200,4,FALSE),0) -> 0
A86: 1681 | B86: LILLIE C. EVANS K-8 CENTER | C86: 457 | D86: 42 | E86: 45 | F86: 55 | G86: 42 | H86: 60 | I86: 43 | J86: 60 | K86: 36 | L86: 24 | Q86: 50 | R86: =N86-IFERROR(VLOOKUP(TEXT(A86,"0000"),G10RPassingR!$A$2:$S$200,4,FALSE),0) -> 0
A87: 1691 | B87: CHRISTINA M. EVE ELEMENTARY | C87: 631 | D87: 101 | E87: 87 | F87: 111 | G87: 95 | H87: 105 | I87: 111 | Q87: 21 | R87: =N87-IFERROR(VLOOKUP(TEXT(A87,"0000"),G10RPassingR!$A$2:$S$200,4,FALSE),0) -> 0
A88: 1721 | B88: EVERGLADES K-8 CENTER | C88: 1141 | D88: 100 | E88: 126 | F88: 117 | G88: 103 | H88: 115 | I88: 118 | J88: 133 | K88: 153 | L88: 143 | Q88: 33 | R88: =N88-IFERROR(VLOOKUP(TEXT(A88,"0000"),G10RPassingR!$A$2:$S$200,4,FALSE),0) -> 0
A89: 1761 | B89: DAVID FAIRCHILD ELEMENTARY | C89: 634 | D89: 102 | E89: 102 | F89: 104 | G89: 118 | H89: 88 | I89: 91 | Q89: 29 | R89: =N89-IFERROR(VLOOKUP(TEXT(A89,"0000"),G10RPassingR!$A$2:$S$200,4,FALSE),0) -> 0
A90: 1801 | B90: FAIRLAWN ELEMENTARY | C90: 673 | D90: 97 | E90: 115 | F90: 108 | G90: 100 | H90: 118 | I90: 116 | Q90: 19 | R90: =N90-IFERROR(VLOOKUP(TEXT(A90,"0000"),G10RPassingR!$A$2:$S$200,4,FALSE),0) -> 0
A91: 1811 | B91: DANTE B. FASCELL ELEMENTARY | C91: 530 | D91: 80 | E91: 86 | F91: 85 | G91: 82 | H91: 79 | I91: 99 | Q91: 19 | R91: =N91-IFERROR(VLOOKUP(TEXT(A91,"0000"),G10RPassingR!$A$2:$S$200,4,FALSE),0) -> 0
A92: 1841 | B92: FLAGAMI ELEMENTARY | C92: 470 | D92: 61 | E92: 74 | F92: 78 | G92: 69 | H92: 73 | I92: 87 | Q92: 28 | R92: =N92-IFERROR(VLOOKUP(TEXT(A92,"0000"),G10RPassingR!$A$2:$S$200,4,FALSE),0) -> 0
A93: 1881 | B93: HENRY M. FLAGLER ELEMENTARY | C93: 832 | D93: 127 | E93: 142 | F93: 124 | G93: 140 | H93: 116 | I93: 133 | Q93: 50 | R93: =N93-IFERROR(VLOOKUP(TEXT(A93,"0000"),G10RPassingR!$A$2:$S$200,4,FALSE),0) -> 0
A94: 1921 | B94: FLAMINGO ELEMENTARY | C94: 766 | D94: 92 | E94: 107 | F94: 117 | G94: 147 | H94: 128 | I94: 156 | Q94: 19 | R94: =N94-IFERROR(VLOOKUP(TEXT(A94,"0000"),G10RPassingR!$A$2:$S$200,4,FALSE),0) -> 0
A95: 2001 | B95: FLORIDA CITY ELEMENTARY | C95: 757 | D95: 145 | E95: 142 | F95: 118 | G95: 96 | H95: 117 | I95: 99 | Q95: 40 | R95: =N95-IFERROR(VLOOKUP(TEXT(A95,"0000"),G10RPassingR!$A$2:$S$200,4,FALSE),0) -> 0
A96: 2003 | B96: BRIDGEPOINT ACADEMY | C96: 307 | D96: 60 | E96: 36 | F96: 76 | G96: 52 | H96: 44 | I96: 39 | R96: =N96-IFERROR(VLOOKUP(TEXT(A96,"0000"),G10RPassingR!$A$2:$S$200,4,FALSE),0) -> 0
A97: 2004 | B97: ISAAC ACADEMY K-8 | C97: 25 | F97: 25 | R97: =N97-IFERROR(VLOOKUP(TEXT(A97,"0000"),G10RPassingR!$A$2:$S$200,4,FALSE),0) -> 0
A98: 2006 | B98: RICHARD ALLEN LEADERSHIP ACAD | C98: 81 | D98: 11 | E98: 16 | F98: 9 | G98: 17 | H98: 15 | I98: 13 | R98: =N98-IFERROR(VLOOKUP(TEXT(A98,"0000"),G10RPassingR!$A$2:$S$200,4,FALSE),0) -> 0
A99: 2007 | B99: SOMERSET ACADEMY ELEMENTARY | C99: 474 | D99: 75 | E99: 77 | F99: 75 | G99: 98 | H99: 99 | I99: 50 | R99: =N99-IFERROR(VLOOKUP(TEXT(A99,"0000"),G10RPassingR!$A$2:$S$200,4,FALSE),0) -> 0
A100: 2012 | B100: SOMERSET ARTS ACADEMY | C100: 290 | D100: 41 | E100: 57 | F100: 34 | G100: 50 | H100: 72 | I100: 36 | R100: =N100-IFERROR(VLOOKUP(TEXT(A100,"0000"),G10RPassingR!$A$2:$S$200,4,FALSE),0) -> 0
A101: 2013 | B101: BRIDGEPOINT ACAD GREATER MIAMI | C101: 278 | D101: 80 | E101: 87 | F101: 38 | G101: 25 | H101: 27 | I101: 21 | R101: =N101-IFERROR(VLOOKUP(TEXT(A101,"0000"),G10RPassingR!$A$2:$S$200,4,FALSE),0) -> 0
A102: 2021 | B102: GLORIA FLOYD ELEMENTARY | C102: 599 | D102: 101 | E102: 101 | F102: 77 | G102: 93 | H102: 96 | I102: 94 | Q102: 37 | R102: =N102-IFERROR(VLOOKUP(TEXT(A102,"0000"),G10RPassingR!$A$2:$S$200,4,FALSE),0) -> 0
A103: 2041 | B103: BENJAMIN FRANKLIN K-8 CENTER | C103: 529 | D103: 70 | E103: 64 | F103: 67 | G103: 68 | H103: 63 | I103: 74 | J103: 61 | K103: 43 | Q103: 19 | R103: =N103-IFERROR(VLOOKUP(TEXT(A103,"0000"),G10RPassingR!$A$2:$S$200,4,FALSE),0) -> 0
A104: 2060 | B104: GIBSON CHARTER SCHOOL | C104: 260 | D104: 31 | E104: 25 | F104: 30 | G104: 22 | H104: 21 | I104: 27 | J104: 43 | K104: 33 | L104: 28 | R104: =N104-IFERROR(VLOOKUP(TEXT(A104,"0000"),G10RPassingR!$A$2:$S$200,4,FALSE),0) -> 0
A105: 2081 | B105: FULFORD ELEMENTARY | C105: 514 | D105: 99 | E105: 88 | F105: 68 | G105: 80 | H105: 82 | I105: 78 | Q105: 19 | R105: =N105-IFERROR(VLOOKUP(TEXT(A105,"0000"),G10RPassingR!$A$2:$S$200,4,FALSE),0) -> 0
A106: 2111 | B106: HIALEAH GARDENS ELEMENTARY | C106: 822 | D106: 136 | E106: 117 | F106: 126 | G106: 135 | H106: 134 | I106: 132 | Q106: 42 | R106: =N106-IFERROR(VLOOKUP(TEXT(A106,"0000"),G10RPassingR!$A$2:$S$200,4,FALSE),0) -> 0
A107: 2151 | B107: JACK D. GORDON ELEMENTARY | C107: 1107 | D107: 174 | E107: 153 | F107: 193 | G107: 178 | H107: 187 | I107: 202 | Q107: 20 | R107: =N107-IFERROR(VLOOKUP(TEXT(A107,"0000"),G10RPassingR!$A$2:$S$200,4,FALSE),0) -> 0
A108: 2161 | B108: GOLDEN GLADES ELEMENTARY | C108: 267 | D108: 44 | E108: 40 | F108: 33 | G108: 47 | H108: 38 | I108: 33 | Q108: 32 | R108: =N108-IFERROR(VLOOKUP(TEXT(A108,"0000"),G10RPassingR!$A$2:$S$200,4,FALSE),0) -> 0
A109: 2181 | B109: JOELLA C. GOOD ELEMENTARY | C109: 916 | D109: 148 | E109: 135 | F109: 140 | G109: 153 | H109: 167 | I109: 155 | Q109: 18 | R109: =N109-IFERROR(VLOOKUP(TEXT(A109,"0000"),G10RPassingR!$A$2:$S$200,4,FALSE),0) -> 0
A110: 2191 | B110: SPANISH LAKE ELEMENTARY | C110: 1625 | D110: 259 | E110: 243 | F110: 245 | G110: 307 | H110: 273 | I110: 290 | Q110: 8 | R110: =N110-IFERROR(VLOOKUP(TEXT(A110,"0000"),G10RPassingR!$A$2:$S$200,4,FALSE),0) -> 0
A111: 2241 | B111: GRATIGNY ELEMENTARY | C111: 671 | D111: 91 | E111: 78 | F111: 75 | G111: 108 | H111: 73 | I111: 91 | J111: 77 | Q111: 78 | R111: =N111-IFERROR(VLOOKUP(TEXT(A111,"0000"),G10RPassingR!$A$2:$S$200,4,FALSE),0) -> 0
A112: 2261 | B112: GREENGLADE ELEMENTARY | C112: 480 | D112: 77 | E112: 57 | F112: 65 | G112: 83 | H112: 89 | I112: 77 | Q112: 32 | R112: =N112-IFERROR(VLOOKUP(TEXT(A112,"0000"),G10RPassingR!$A$2:$S$200,4,FALSE),0) -> 0
A113: 2281 | B113: GREYNOLDS PARK ELEMENTARY | C113: 792 | D113: 130 | E113: 118 | F113: 104 | G113: 136 | H113: 112 | I113: 112 | Q113: 80 | R113: =N113-IFERROR(VLOOKUP(TEXT(A113,"0000"),G10RPassingR!$A$2:$S$200,4,FALSE),0) -> 0
A114: 2321 | B114: GULFSTREAM ELEMENTARY | C114: 554 | D114: 86 | E114: 86 | F114: 82 | G114: 74 | H114: 72 | I114: 66 | Q114: 88 | R114: =N114-IFERROR(VLOOKUP(TEXT(A114,"0000"),G10RPassingR!$A$2:$S$200,4,FALSE),0) -> 0
A115: 2331 | B115: CHARLES R. HADLEY ELEMENTARY | C115: 1018 | D115: 163 | E115: 174 | F115: 178 | G115: 143 | H115: 177 | I115: 148 | Q115: 35 | R115: =N115-IFERROR(VLOOKUP(TEXT(A115,"0000"),G10RPassingR!$A$2:$S$200,4,FALSE),0) -> 0
A116: 2341 | B116: JOE HALL ELEMENTARY | C116: 568 | D116: 94 | E116: 67 | F116: 91 | G116: 96 | H116: 92 | I116: 108 | Q116: 20 | R116: =N116-IFERROR(VLOOKUP(TEXT(A116,"0000"),G10RPassingR!$A$2:$S$200,4,FALSE),0) -> 0
A117: 2351 | B117: ENEIDA MASSAS HARTNER ELEM | C117: 580 | D117: 102 | E117: 100 | F117: 90 | G117: 96 | H117: 89 | I117: 85 | Q117: 18 | R117: =N117-IFERROR(VLOOKUP(TEXT(A117,"0000"),G10RPassingR!$A$2:$S$200,4,FALSE),0) -> 0
A118: 2361 | B118: HIALEAH ELEMENTARY | C118: 668 | D118: 72 | E118: 104 | F118: 110 | G118: 110 | H118: 118 | I118: 126 | Q118: 28 | R118: =N118-IFERROR(VLOOKUP(TEXT(A118,"0000"),G10RPassingR!$A$2:$S$200,4,FALSE),0) -> 0
A119: 2371 | B119: WEST HIALEAH GARDENS ELEM | C119: 1163 | D119: 182 | E119: 165 | F119: 206 | G119: 212 | H119: 208 | I119: 174 | Q119: 16 | R119: =N119-IFERROR(VLOOKUP(TEXT(A119,"0000"),G10RPassingR!$A$2:$S$200,4,FALSE),0) -> 0
A120: 2401 | B120: HIBISCUS ELEMENTARY | C120: 547 | D120: 85 | E120: 68 | F120: 90 | G120: 90 | H120: 71 | I120: 110 | Q120: 33 | R120: =N120-IFERROR(VLOOKUP(TEXT(A120,"0000"),G10RPassingR!$A$2:$S$200,4,FALSE),0) -> 0
A121: 2441 | B121: VIRGINIA A BOONE/HIGHLAND OAKS | C121: 734 | D121: 101 | E121: 136 | F121: 112 | G121: 143 | H121: 124 | I121: 86 | Q121: 32 | R121: =N121-IFERROR(VLOOKUP(TEXT(A121,"0000"),G10RPassingR!$A$2:$S$200,4,FALSE),0) -> 0
A122: 2501 | B122: HOLMES ELEMENTARY | C122: 579 | D122: 111 | E122: 111 | F122: 90 | G122: 104 | H122: 64 | I122: 80 | Q122: 19 | R122: =N122-IFERROR(VLOOKUP(TEXT(A122,"0000"),G10RPassingR!$A$2:$S$200,4,FALSE),0) -> 0
A123: 2511 | B123: ZORA NEALE HURSTON ELEMENTARY | C123: 732 | D123: 96 | E123: 111 | F123: 86 | G123: 135 | H123: 114 | I123: 135 | Q123: 55 | R123: =N123-IFERROR(VLOOKUP(TEXT(A123,"0000"),G10RPassingR!$A$2:$S$200,4,FALSE),0) -> 0
A124: 2521 | B124: OLIVER HOOVER ELEMENTARY | C124: 809 | D124: 114 | E124: 106 | F124: 126 | G124: 141 | H124: 134 | I124: 142 | Q124: 46 | R124: =N124-IFERROR(VLOOKUP(TEXT(A124,"0000"),G10RPassingR!$A$2:$S$200,4,FALSE),0) -> 0
A125: 2531 | B125: THENA C. CROWDER EARLY CHLDHD | C125: 47 | Q125: 47 | R125: =N125-IFERROR(VLOOKUP(TEXT(A125,"0000"),G10RPassingR!$A$2:$S$200,4,FALSE),0) -> 0
A126: 2541 | B126: HOWARD DRIVE ELEMENTARY | C126: 646 | D126: 72 | E126: 95 | F126: 99 | G126: 95 | H126: 135 | I126: 112 | Q126: 38 | R126: =N126-IFERROR(VLOOKUP(TEXT(A126,"0000"),G10RPassingR!$A$2:$S$200,4,FALSE),0) -> 0
A127: 2581 | B127: MADIE IVES ELEMENTARY | C127: 716 | D127: 103 | E127: 136 | F127: 109 | G127: 109 | H127: 123 | I127: 114 | Q127: 22 | R127: =N127-IFERROR(VLOOKUP(TEXT(A127,"0000"),G10RPassingR!$A$2:$S$200,4,FALSE),0) -> 0
A128: 2641 | B128: KENDALE ELEMENTARY | C128: 482 | D128: 75 | E128: 71 | F128: 78 | G128: 78 | H128: 75 | I128: 77 | Q128: 28 | R128: =N128-IFERROR(VLOOKUP(TEXT(A128,"0000"),G10RPassingR!$A$2:$S$200,4,FALSE),0) -> 0
A129: 2651 | B129: KENDALE LAKES ELEMENTARY | C129: 712 | D129: 121 | E129: 109 | F129: 96 | G129: 104 | H129: 107 | I129: 123 | Q129: 52 | R129: =N129-IFERROR(VLOOKUP(TEXT(A129,"0000"),G10RPassingR!$A$2:$S$200,4,FALSE),0) -> 0
A130: 2661 | B130: KENSINGTON PARK ELEMENTARY | C130: 1122 | D130: 162 | E130: 161 | F130: 178 | G130: 199 | H130: 189 | I130: 191 | Q130: 42 | R130: =N130-IFERROR(VLOOKUP(TEXT(A130,"0000"),G10RPassingR!$A$2:$S$200,4,FALSE),0) -> 0
A131: 2701 | B131: KENWOOD K-8 CENTER | C131: 1057 | D131: 112 | E131: 89 | F131: 100 | G131: 121 | H131: 115 | I131: 101 | J131: 143 | K131: 125 | L131: 126 | Q131: 25 | R131: =N131-IFERROR(VLOOKUP(TEXT(A131,"0000"),G10RPassingR!$A$2:$S$200,4,FALSE),0) -> 0
A132: 2741 | B132: KEY BISCAYNE K-8 CENTER | C132: 1306 | D132: 142 | E132: 153 | F132: 142 | G132: 181 | H132: 159 | I132: 155 | J132: 152 | K132: 137 | L132: 65 | Q132: 20 | R132: =N132-IFERROR(VLOOKUP(TEXT(A132,"0000"),G10RPassingR!$A$2:$S$200,4,FALSE),0) -> 0
A133: 2781 | B133: KINLOCH PARK ELEMENTARY | C133: 812 | D133: 122 | E133: 118 | F133: 126 | G133: 133 | H133: 132 | I133: 162 | Q133: 19 | R133: =N133-IFERROR(VLOOKUP(TEXT(A133,"0000"),G10RPassingR!$A$2:$S$200,4,FALSE),0) -> 0
A134: 2801 | B134: LAKE STEVENS ELEMENTARY | C134: 289 | D134: 48 | E134: 32 | F134: 44 | G134: 43 | H134: 51 | I134: 43 | Q134: 28 | R134: =N134-IFERROR(VLOOKUP(TEXT(A134,"0000"),G10RPassingR!$A$2:$S$200,4,FALSE),0) -> 0
A135: 2821 | B135: LAKEVIEW ELEMENTARY | C135: 416 | D135: 65 | E135: 58 | F135: 57 | G135: 64 | H135: 65 | I135: 79 | Q135: 28 | R135: =N135-IFERROR(VLOOKUP(TEXT(A135,"0000"),G10RPassingR!$A$2:$S$200,4,FALSE),0) -> 0
A136: 2881 | B136: LEEWOOD K-8 CENTER | C136: 797 | D136: 92 | E136: 80 | F136: 89 | G136: 105 | H136: 109 | I136: 89 | J136: 77 | K136: 67 | L136: 51 | Q136: 38 | R136: =N136-IFERROR(VLOOKUP(TEXT(A136,"0000"),G10RPassingR!$A$2:$S$200,4,FALSE),0) -> 0
A137: 2891 | B137: WILLIAM LEHMAN ELEMENTARY | C137: 618 | D137: 98 | E137: 87 | F137: 82 | G137: 110 | H137: 118 | I137: 95 | Q137: 28 | R137: =N137-IFERROR(VLOOKUP(TEXT(A137,"0000"),G10RPassingR!$A$2:$S$200,4,FALSE),0) -> 0
A138: 2901 | B138: LEISURE CITY K-8 CENTER | C138: 1111 | D138: 92 | E138: 112 | F138: 122 | G138: 96 | H138: 129 | I138: 123 | J138: 100 | K138: 113 | L138: 129 | Q138: 95 | R138: =N138-IFERROR(VLOOKUP(TEXT(A138,"0000"),G10RPassingR!$A$2:$S$200,4,FALSE),0) -> 0
A139: 2911 | B139: LINDA LENTIN K-8 CENTER | C139: 963 | D139: 86 | E139: 81 | F139: 88 | G139: 105 | H139: 96 | I139: 136 | J139: 122 | K139: 102 | L139: 110 | Q139: 37 | R139: =N139-IFERROR(VLOOKUP(TEXT(A139,"0000"),G10RPassingR!$A$2:$S$200,4,FALSE),0) -> 0
A140: 2941 | B140: LAURA C. SAUNDERS ELEMENTARY | C140: 706 | D140: 132 | E140: 125 | F140: 114 | G140: 122 | H140: 94 | I140: 99 | Q140: 20 | R140: =N140-IFERROR(VLOOKUP(TEXT(A140,"0000"),G10RPassingR!$A$2:$S$200,4,FALSE),0) -> 0
A141: 2981 | B141: LIBERTY CITY ELEMENTARY | C141: 432 | D141: 64 | E141: 57 | F141: 45 | G141: 62 | H141: 56 | I141: 49 | Q141: 99 | R141: =N141-IFERROR(VLOOKUP(TEXT(A141,"0000"),G10RPassingR!$A$2:$S$200,4,FALSE),0) -> 0
A142: 3021 | B142: JESSE J MCCRARY JR ELEMENTARY | C142: 552 | D142: 108 | E142: 93 | F142: 72 | G142: 99 | H142: 77 | I142: 68 | Q142: 35 | R142: =N142-IFERROR(VLOOKUP(TEXT(A142,"0000"),G10RPassingR!$A$2:$S$200,4,FALSE),0) -> 0
A143: 3024 | B143: FLORIDA INTERNATIONAL EL ACAD | C143: 442 | D143: 80 | E143: 70 | F143: 85 | G143: 85 | H143: 65 | I143: 57 | R143: =N143-IFERROR(VLOOKUP(TEXT(A143,"0000"),G10RPassingR!$A$2:$S$200,4,FALSE),0) -> 0
A144: 3025 | B144: ADVANTAGE ACADEMY SANTA FE | C144: 284 | D144: 61 | E144: 88 | F144: 53 | G144: 24 | H144: 33 | I144: 25 | R144: =N144-IFERROR(VLOOKUP(TEXT(A144,"0000"),G10RPassingR!$A$2:$S$200,4,FALSE),0) -> 0
A145: 3026 | B145: ADVANTAGE ACAD AT SUMMERVILLE | C145: 105 | D145: 105 | R145: =N145-IFERROR(VLOOKUP(TEXT(A145,"0000"),G10RPassingR!$A$2:$S$200,4,FALSE),0) -> 0
A146: 3027 | B146: ADVANTAGE ACAD AT WATERSTONE | C146: 238 | D146: 238 | R146: =N146-IFERROR(VLOOKUP(TEXT(A146,"0000"),G10RPassingR!$A$2:$S$200,4,FALSE),0) -> 0
A147: 3029 | B147: DORAL ACADEMY OF TECHNOLOGY | C147: 203 | J147: 70 | K147: 63 | L147: 70 | R147: =N147-IFERROR(VLOOKUP(TEXT(A147,"0000"),G10RPassingR!$A$2:$S$200,4,FALSE),0) -> 0
A148: 3030 | B148: DORAL ACADEMY | C148: 925 | D148: 183 | E148: 169 | F148: 142 | G148: 129 | H148: 149 | I148: 153 | R148: =N148-IFERROR(VLOOKUP(TEXT(A148,"0000"),G10RPassingR!$A$2:$S$200,4,FALSE),0) -> 0
A149: 3032 | B149: PALM GLADES PREPATORY ACADEMY | C149: 451 | J149: 187 | K149: 132 | L149: 132 | R149: =N149-IFERROR(VLOOKUP(TEXT(A149,"0000"),G10RPassingR!$A$2:$S$200,4,FALSE),0) -> 0
A150: 3033 | B150: SOMERSET OAKS ACADEMY | C150: 51 | D150: 40 | E150: 11 | R150: =N150-IFERROR(VLOOKUP(TEXT(A150,"0000"),G10RPassingR!$A$2:$S$200,4,FALSE),0) -> 0
A151: 3034 | B151: BRIDGEPOINT ACAD VILLAGE GREEN | C151: 172 | D151: 62 | E151: 49 | F151: 18 | G151: 17 | H151: 12 | I151: 12 | K151: 2 | R151: =N151-IFERROR(VLOOKUP(TEXT(A151,"0000"),G10RPassingR!$A$2:$S$200,4,FALSE),0) -> 0
A152: 3035 | B152: RAMZ ACADEMY ELEM MIAMI CAMPUS | C152: 149 | D152: 35 | E152: 36 | F152: 21 | G152: 25 | H152: 11 | I152: 21 | R152: =N152-IFERROR(VLOOKUP(TEXT(A152,"0000"),G10RPassingR!$A$2:$S$200,4,FALSE),0) -> 0
A153: 3041 | B153: LORAH PARK ELEMENTARY | C153: 432 | D153: 92 | E153: 67 | F153: 75 | G153: 69 | H153: 52 | I153: 57 | Q153: 20 | R153: =N153-IFERROR(VLOOKUP(TEXT(A153,"0000"),G10RPassingR!$A$2:$S$200,4,FALSE),0) -> 0
A154: 3051 | B154: TOUSSAINT L'OUVERTURE ELEM | C154: 472 | D154: 69 | E154: 62 | F154: 70 | G154: 85 | H154: 76 | I154: 73 | Q154: 37 | R154: =N154-IFERROR(VLOOKUP(TEXT(A154,"0000"),G10RPassingR!$A$2:$S$200,4,FALSE),0) -> 0
A155: 3061 | B155: LUDLAM ELEMENTARY | C155: 393 | D155: 70 | E155: 67 | F155: 68 | G155: 59 | H155: 54 | I155: 61 | Q155: 14 | R155: =N155-IFERROR(VLOOKUP(TEXT(A155,"0000"),G10RPassingR!$A$2:$S$200,4,FALSE),0) -> 0
A156: 3100 | B156: MATER ACADEMY EAST CHARTER | C156: 625 | D156: 156 | E156: 125 | F156: 129 | G156: 81 | H156: 69 | I156: 65 | R156: =N156-IFERROR(VLOOKUP(TEXT(A156,"0000"),G10RPassingR!$A$2:$S$200,4,FALSE),0) -> 0
A157: 3101 | B157: FRANK C. MARTIN K-8 CENTER | C157: 1164 | D157: 103 | E157: 118 | F157: 121 | G157: 142 | H157: 131 | I157: 129 | J157: 135 | K157: 136 | L157: 131 | Q157: 18 | R157: =N157-IFERROR(VLOOKUP(TEXT(A157,"0000"),G10RPassingR!$A$2:$S$200,4,FALSE),0) -> 0
A158: 3111 | B158: WESLEY MATTHEWS ELEMENTARY | C158: 508 | D158: 81 | E158: 73 | F158: 68 | G158: 85 | H158: 78 | I158: 85 | Q158: 38 | R158: =N158-IFERROR(VLOOKUP(TEXT(A158,"0000"),G10RPassingR!$A$2:$S$200,4,FALSE),0) -> 0
A159: 3141 | B159: MEADOWLANE ELEMENTARY | C159: 1088 | D159: 132 | E159: 173 | F159: 173 | G159: 181 | H159: 191 | I159: 219 | Q159: 19 | R159: =N159-IFERROR(VLOOKUP(TEXT(A159,"0000"),G10RPassingR!$A$2:$S$200,4,FALSE),0) -> 0
A160: 3181 | B160: MELROSE ELEMENTARY | C160: 746 | D160: 80 | E160: 73 | F160: 101 | G160: 96 | H160: 103 | I160: 76 | Q160: 217 | R160: =N160-IFERROR(VLOOKUP(TEXT(A160,"0000"),G10RPassingR!$A$2:$S$200,4,FALSE),0) -> 0
A161: 3191 | B161: ADA MERRITT K-8 CENTER | C161: 727 | D161: 72 | E161: 72 | F161: 68 | G161: 78 | H161: 63 | I161: 73 | J161: 98 | K161: 112 | L161: 91 | R161: =N161-IFERROR(VLOOKUP(TEXT(A161,"0000"),G10RPassingR!$A$2:$S$200,4,FALSE),0) -> 0
A162: 3241 | B162: MIAMI GARDENS ELEMENTARY | C162: 291 | D162: 40 | E162: 48 | F162: 45 | G162: 40 | H162: 52 | I162: 37 | Q162: 29 | R162: =N162-IFERROR(VLOOKUP(TEXT(A162,"0000"),G10RPassingR!$A$2:$S$200,4,FALSE),0) -> 0
A163: 3261 | B163: MIAMI HEIGHTS ELEMENTARY | C163: 1146 | D163: 184 | E163: 162 | F163: 152 | G163: 203 | H163: 165 | I163: 181 | Q163: 99 | R163: =N163-IFERROR(VLOOKUP(TEXT(A163,"0000"),G10RPassingR!$A$2:$S$200,4,FALSE),0) -> 0
A164: 3281 | B164: MIAMI LAKES K-8 CENTER | C164: 1387 | D164: 124 | E164: 154 | F164: 127 | G164: 140 | H164: 165 | I164: 153 | J164: 168 | K164: 152 | L164: 184 | Q164: 20 | R164: =N164-IFERROR(VLOOKUP(TEXT(A164,"0000"),G10RPassingR!$A$2:$S$200,4,FALSE),0) -> 0
A165: 3301 | B165: MIAMI PARK ELEMENTARY | C165: 458 | D165: 71 | E165: 72 | F165: 57 | G165: 69 | H165: 60 | I165: 57 | Q165: 72 | R165: =N165-IFERROR(VLOOKUP(TEXT(A165,"0000"),G10RPassingR!$A$2:$S$200,4,FALSE),0) -> 0
A166: 3341 | B166: MIAMI SHORES ELEMENTARY | C166: 776 | D166: 110 | E166: 151 | F166: 119 | G166: 134 | H166: 119 | I166: 126 | Q166: 17 | R166: =N166-IFERROR(VLOOKUP(TEXT(A166,"0000"),G10RPassingR!$A$2:$S$200,4,FALSE),0) -> 0
A167: 3381 | B167: MIAMI SPRINGS ELEMENTARY | C167: 539 | D167: 67 | E167: 76 | F167: 89 | G167: 81 | H167: 100 | I167: 100 | Q167: 26 | R167: =N167-IFERROR(VLOOKUP(TEXT(A167,"0000"),G10RPassingR!$A$2:$S$200,4,FALSE),0) -> 0
A168: 3421 | B168: M.A. MILAM K-8 CENTER | C168: 993 | D168: 72 | E168: 84 | F168: 80 | G168: 97 | H168: 103 | I168: 113 | J168: 123 | K168: 154 | L168: 148 | Q168: 19 | R168: =N168-IFERROR(VLOOKUP(TEXT(A168,"0000"),G10RPassingR!$A$2:$S$200,4,FALSE),0) -> 0
A169: 3431 | B169: PHYLLIS RUTH MILLER ELEMENTARY | C169: 696 | D169: 115 | E169: 95 | F169: 98 | G169: 129 | H169: 98 | I169: 101 | Q169: 60 | R169: =N169-IFERROR(VLOOKUP(TEXT(A169,"0000"),G10RPassingR!$A$2:$S$200,4,FALSE),0) -> 0
A170: 3501 | B170: MORNINGSIDE ELEMENTARY | C170: 442 | D170: 59 | E170: 51 | F170: 70 | G170: 58 | H170: 78 | I170: 66 | J170: 28 | Q170: 32 | R170: =N170-IFERROR(VLOOKUP(TEXT(A170,"0000"),G10RPassingR!$A$2:$S$200,4,FALSE),0) -> 0
A171: 3541 | B171: ROBERT RUSSA MOTON ELEMENTARY | C171: 333 | D171: 63 | E171: 62 | F171: 47 | G171: 44 | H171: 43 | I171: 36 | Q171: 38 | R171: =N171-IFERROR(VLOOKUP(TEXT(A171,"0000"),G10RPassingR!$A$2:$S$200,4,FALSE),0) -> 0
A172: 3581 | B172: MYRTLE GROVE ELEMENTARY | C172: 437 | D172: 64 | E172: 62 | F172: 61 | G172: 49 | H172: 49 | I172: 49 | J172: 44 | Q172: 59 | R172: =N172-IFERROR(VLOOKUP(TEXT(A172,"0000"),G10RPassingR!$A$2:$S$200,4,FALSE),0) -> 0
A173: 3600 | B173: DOWNTOWN MIAMI CHARTER SCHOOL | C173: 647 | D173: 106 | E173: 104 | F173: 95 | G173: 79 | H173: 99 | I173: 90 | J173: 74 | R173: =N173-IFERROR(VLOOKUP(TEXT(A173,"0000"),G10RPassingR!$A$2:$S$200,4,FALSE),0) -> 0
A174: 3610 | B174: KEYS GATE CHARTER SCHOOL | C174: 2020 | D174: 207 | E174: 214 | F174: 219 | G174: 216 | H174: 176 | I174: 183 | J174: 235 | K174: 292 | L174: 278 | R174: =N174-IFERROR(VLOOKUP(TEXT(A174,"0000"),G10RPassingR!$A$2:$S$200,4,FALSE),0) -> 0
A175: 3621 | B175: COCONUT PALM K-8 ACADEMY | C175: 1222 | D175: 141 | E175: 145 | F175: 165 | G175: 168 | H175: 140 | I175: 139 | J175: 135 | K175: 117 | L175: 72 | R175: =N175-IFERROR(VLOOKUP(TEXT(A175,"0000"),G10RPassingR!$A$2:$S$200,4,FALSE),0) -> 0
A176: 3661 | B176: NATURAL BRIDGE ELEMENTARY | C176: 624 | D176: 101 | E176: 87 | F176: 111 | G176: 95 | H176: 83 | I176: 75 | Q176: 72 | R176: =N176-IFERROR(VLOOKUP(TEXT(A176,"0000"),G10RPassingR!$A$2:$S$200,4,FALSE),0) -> 0
A177: 3701 | B177: NORLAND ELEMENTARY | C177: 624 | D177: 110 | E177: 88 | F177: 88 | G177: 94 | H177: 98 | I177: 105 | Q177: 41 | R177: =N177-IFERROR(VLOOKUP(TEXT(A177,"0000"),G10RPassingR!$A$2:$S$200,4,FALSE),0) -> 0
A178: 3741 | B178: NORTH BEACH ELEMENTARY | C178: 1027 | D178: 145 | E178: 179 | F178: 173 | G178: 180 | H178: 152 | I178: 159 | Q178: 39 | R178: =N178-IFERROR(VLOOKUP(TEXT(A178,"0000"),G10RPassingR!$A$2:$S$200,4,FALSE),0) -> 0
A179: 3781 | B179: BARBARA HAWKINS ELEMENTARY | C179: 326 | D179: 52 | E179: 56 | F179: 51 | G179: 62 | H179: 40 | I179: 45 | Q179: 20 | R179: =N179-IFERROR(VLOOKUP(TEXT(A179,"0000"),G10RPassingR!$A$2:$S$200,4,FALSE),0) -> 0
A180: 3821 | B180: NORTH COUNTY K-8 CENTER | C180: 358 | D180: 48 | E180: 39 | F180: 51 | G180: 51 | H180: 36 | I180: 33 | J180: 44 | K180: 37 | Q180: 19 | R180: =N180-IFERROR(VLOOKUP(TEXT(A180,"0000"),G10RPassingR!$A$2:$S$200,4,FALSE),0) -> 0
A181: 3861 | B181: NORTH GLADE ELEMENTARY | C181: 351 | D181: 56 | E181: 47 | F181: 53 | G181: 72 | H181: 46 | I181: 48 | Q181: 29 | R181: =N181-IFERROR(VLOOKUP(TEXT(A181,"0000"),G10RPassingR!$A$2:$S$200,4,FALSE),0) -> 0
A182: 3901 | B182: NORTH HIALEAH ELEMENTARY | C182: 606 | D182: 69 | E182: 87 | F182: 107 | G182: 109 | H182: 108 | I182: 108 | Q182: 18 | R182: =N182-IFERROR(VLOOKUP(TEXT(A182,"0000"),G10RPassingR!$A$2:$S$200,4,FALSE),0) -> 0
A183: 3941 | B183: NORTH MIAMI ELEMENTARY | C183: 608 | D183: 101 | E183: 91 | F183: 95 | G183: 78 | H183: 93 | I183: 75 | Q183: 75 | R183: =N183-IFERROR(VLOOKUP(TEXT(A183,"0000"),G10RPassingR!$A$2:$S$200,4,FALSE),0) -> 0
A184: 3981 | B184: NORTH TWIN LAKES ELEMENTARY | C184: 583 | D184: 72 | E184: 90 | F184: 79 | G184: 101 | H184: 104 | I184: 82 | Q184: 55 | R184: =N184-IFERROR(VLOOKUP(TEXT(A184,"0000"),G10RPassingR!$A$2:$S$200,4,FALSE),0) -> 0
A185: 4000 | B185: MIAMI CHILDREN'S MUSEUM | C185: 303 | D185: 62 | E185: 54 | F185: 50 | G185: 54 | H185: 36 | I185: 47 | R185: =N185-IFERROR(VLOOKUP(TEXT(A185,"0000"),G10RPassingR!$A$2:$S$200,4,FALSE),0) -> 0
A186: 4001 | B186: NORWOOD ELEMENTARY | C186: 472 | D186: 71 | E186: 75 | F186: 86 | G186: 75 | H186: 61 | I186: 64 | Q186: 40 | R186: =N186-IFERROR(VLOOKUP(TEXT(A186,"0000"),G10RPassingR!$A$2:$S$200,4,FALSE),0) -> 0
A187: 4012 | B187: SOMERSET ACAD AT SILVER PALMS | C187: 614 | D187: 142 | E187: 121 | F187: 126 | G187: 69 | H187: 87 | I187: 69 | R187: =N187-IFERROR(VLOOKUP(TEXT(A187,"0000"),G10RPassingR!$A$2:$S$200,4,FALSE),0) -> 0
A188: 4021 | B188: OAK GROVE ELEMENTARY | C188: 682 | D188: 84 | E188: 99 | F188: 82 | G188: 97 | H188: 99 | I188: 104 | J188: 62 | Q188: 55 | R188: =N188-IFERROR(VLOOKUP(TEXT(A188,"0000"),G10RPassingR!$A$2:$S$200,4,FALSE),0) -> 0
A189: 4031 | B189: GATEWAY ENVIRONMENTAL K-8 | C189: 1596 | D189: 217 | E189: 245 | F189: 207 | G189: 230 | H189: 206 | I189: 171 | J189: 154 | K189: 131 | Q189: 35 | R189: =N189-IFERROR(VLOOKUP(TEXT(A189,"0000"),G10RPassingR!$A$2:$S$200,4,FALSE),0) -> 0
A190: 4061 | B190: OJUS ELEMENTARY | C190: 900 | D190: 152 | E190: 151 | F190: 139 | G190: 152 | H190: 157 | I190: 149 | R190: =N190-IFERROR(VLOOKUP(TEXT(A190,"0000"),G10RPassingR!$A$2:$S$200,4,FALSE),0) -> 0
A191: 4070 | B191: EARLY BEGINNINGS ACADEMY-CIVIC | C191: 119 | D191: 26 | E191: 10 | F191: 3 | Q191: 80 | R191: =N191-IFERROR(VLOOKUP(TEXT(A191,"0000"),G10RPassingR!$A$2:$S$200,4,FALSE),0) -> 0
A192: 4071 | B192: OLINDA ELEMENTARY | C192: 328 | D192: 44 | E192: 43 | F192: 57 | G192: 53 | H192: 46 | I192: 49 | Q192: 36 | R192: =N192-IFERROR(VLOOKUP(TEXT(A192,"0000"),G10RPassingR!$A$2:$S$200,4,FALSE),0) -> 0
A193: 4081 | B193: PRIMARY LEARNING CENTER | C193: 207 | D193: 52 | E193: 52 | F193: 35 | G193: 18 | Q193: 50 | R193: =N193-IFERROR(VLOOKUP(TEXT(A193,"0000"),G10RPassingR!$A$2:$S$200,4,FALSE),0) -> 0
A194: 4091 | B194: OLYMPIA HEIGHTS ELEMENTARY | C194: 500 | D194: 70 | E194: 83 | F194: 88 | G194: 77 | H194: 86 | I194: 77 | Q194: 19 | R194: =N194-IFERROR(VLOOKUP(TEXT(A194,"0000"),G10RPassingR!$A$2:$S$200,4,FALSE),0) -> 0
A195: 4121 | B195: DR. ROBERT B. INGRAM EL | C195: 382 | D195: 67 | E195: 56 | F195: 70 | G195: 70 | H195: 53 | I195: 47 | Q195: 19 | R195: =N195-IFERROR(VLOOKUP(TEXT(A195,"0000"),G10RPassingR!$A$2:$S$200,4,FALSE),0) -> 0
A196: 4171 | B196: ORCHARD VILLA ELEMENTARY | C196: 454 | D196: 82 | E196: 75 | F196: 59 | G196: 75 | H196: 58 | I196: 51 | Q196: 54 | R196: =N196-IFERROR(VLOOKUP(TEXT(A196,"0000"),G10RPassingR!$A$2:$S$200,4,FALSE),0) -> 0
A197: 4221 | B197: PALMETTO ELEMENTARY | C197: 615 | D197: 76 | E197: 98 | F197: 82 | G197: 112 | H197: 98 | I197: 103 | Q197: 46 | R197: =N197-IFERROR(VLOOKUP(TEXT(A197,"0000"),G10RPassingR!$A$2:$S$200,4,FALSE),0) -> 0
A198: 4241 | B198: PALM LAKES ELEMENTARY | C198: 848 | D198: 93 | E198: 133 | F198: 119 | G198: 154 | H198: 138 | I198: 165 | Q198: 46 | R198: =N198-IFERROR(VLOOKUP(TEXT(A198,"0000"),G10RPassingR!$A$2:$S$200,4,FALSE),0) -> 0
A199: 4261 | B199: PALM SPRINGS ELEMENTARY | C199: 726 | D199: 92 | E199: 118 | F199: 113 | G199: 122 | H199: 124 | I199: 118 | Q199: 39 | R199: =N199-IFERROR(VLOOKUP(TEXT(A199,"0000"),G10RPassingR!$A$2:$S$200,4,FALSE),0) -> 0
A200: 4281 | B200: PALM SPRINGS NORTH ELEMENTARY | C200: 1012 | D200: 168 | E200: 141 | F200: 173 | G200: 158 | H200: 187 | I200: 157 | Q200: 28 | R200: =N200-IFERROR(VLOOKUP(TEXT(A200,"0000"),G10RPassingR!$A$2:$S$200,4,FALSE),0) -> 0
... 273 more rows

Sheet G10RPassingR (hidden)
